Workbook

Sheet Simulación Cliente
D4: SIMULADOR HIPOTECARIO
V6: Porcentaje %
V7: Valor
D8: Valor del Inmueble | E8: 2145000
D9: Valor Cuota Inicial | E9: 511582.5
D10: Valor Asegurable aproximado | E10: =0.75*E8 -> 1608750 | F10: Se usa como aproximación el 75% del valor del inmueble | W10: SD. Exonerado | X10: 0
D11: Bono Buen Pagador | E11: NO | F11: =IF(E11="NO",0,7500) -> 0
D12: Bono Verde | E12: NO | F12: =IF(E12="NO",0,5400) -> 0
D13: % Cuota Inicial | E13: =E9/$E$8 -> 0.2385
D14: Monto a Financiar | E14: =E8-E9-F11-F12 -> 1633417.5 | Q14: Columna1 | R14: Columna2 | W14: Columna1 | X14: Columna2
Q15: Seguro Desgravamen sin retorno Titular | R15: 0.0285 | W15: SD. Exonerado | X15: 0
D16: Plazo (meses) | E16: 240 | Q16: Seguro Desgravamen con retorno Titular | R16: 0.0485 | W16: Endosado | X16: 0
D17: Seg. Desgravamen (% mensual) | E17: Seguro Desgravamen sin retorno Titular | F17: =+VLOOKUP(E17,$Q$10:$R$47,2,0)/100 -> 0.000285 | Q17: Seguro Desgravamen sin retorno Titular + Cónyuge | R17: 0.0546 | W17: SR Titular Premium | X17: 0.025
D18: Seg. Del Bien (% mensual) | E18: Seguro del Bien Hipotecario | F18: =+VLOOKUP(E18,$W$52:$X$53,2,0)/100 -> 0.00028 | Q18: Seguro Desgravamen con retorno Titular + Cónyuge | R18: 0.0928 | W18: CR Titular Premium | X18: 0.047
D19: Portes | E19: 0 | Q19: Seguro Desgravamen sin retorno Titular c/sobretasa | R19: 0.057 | W19: SR Titular + Cony. Premium | X19: 0.0425
D20: TEA (Tasa efectiva anual) | E20: 0.2 | Q20: Seguro Desgravamen con retorno Titular c/sobretasa | R20: 0.0969 | W20: CR Titular + Cony. Premium | X20: 0.0799
D21: TCEA (Tasa de costo efectivo anual) | E21: 0.2081881354 | H21: Simple | Q21: Seguro Desgravamen sin retorno Titular + Cónyuge c/sobretasa | R21: 0.1092 | W21: SR SD. Hipotecario CV/BF Titular CAMPAØA | X21: 0.0285
Q22: Seguro Desgravamen con retorno Titular + Cónyuge c/sobretasa | R22: 0.1856 | W22: CR SD. Hipotecario CV/BF Titular CAMPAØA | X22: 0.0485
I23: Cuota Doble | Q23: SD. Exonerado | R23: 0 | W23: SR SD. Hipotecario CV/BF Tit.+ Cony.CAMP | X23: 0.0546
D24: Valor Cuota Simple | E24: =+'Simulador Detalle'!$C$17 -> 26913.07096 | G24: Valor Cuota con cuotas dobles | H24: =+'Simulador Detalle'!$Y$17 -> 23170.08738 | I24: =+H24*2 -> 46340.17475 | Q24: Endosado | R24: 0 | W24: CR SD. Hipotecario CV/BF Tit.+ Cony.CAMP | X24: 0.0928
D25: Valor Seg. Desgravamen (promedio mensual) | E25: =+AVERAGE('Simulador Detalle'!$I$22:$I$381) -> 359.1787575 | G25: Valor Seg. Desgravamen (promedio mensual) | H25: =+AVERAGE('Simulador Detalle'!$AE$22:$AE$381) -> 361.3478043 | W25: SR Desgravamen TIT Sobretasa (100%) | X25: 0.057
D26: Valor Seg. Del Bien (mensual) | E26: =+'Simulador Detalle'!$J$22 -> 450.45 | G26: Valor Seg. Del Bien (mensual) | H26: =+'Simulador Detalle'!$AF$22 -> 450.45 | W26: CR Desgravamen TIT Sobretasa (100%) | X26: 0.0969
W27: SR Desgravamen TIT + CONY Sobretasa (100 | X27: 0.0819
W28: CR Desgravamen TIT + CONY Sobretasa (100 | X28: 0.1392
W29: SR Degravamen TIT Sobretasa 50% | X29: 0.0428
D30: Simulaciones adicionales | W30: CR Degravamen TIT Sobretasa 50% | X30: 0.0728
D31: Plazo | E31: Valor Cuota Simple | F31: Valor Cuota con cuotas dobles | W31: SR Degravamen TIT Sobretasa(50%)+CONY | X31: 0.0683
D32: 180 meses | E32: =+'Simulador Detalle'!$AP$17 -> 27930.02628 | F32: =+'Simulador Detalle'!$BG$17 -> 24045.60661 | W32: CR Degravamen TIT Sobretasa(50%)+CONY | X32: 0.1161
D33: 240 meses | E33: =+'Simulador Detalle'!$BX$17 -> 26913.07096 | F33: =+'Simulador Detalle'!$CO$17 -> 23170.08738 | W33: SR Desgravamen TIT+ CONY Sobretasa (50%) | X33: 0.0683
I34: =+TODAY() -> 2024-07-01 | W34: CR Desgravamen TIT+ CONY Sobretasa (50%) | X34: 0.11
W35: SR Desgravamen TIT Sobretasa(100%)+CONY | X35: 0.0819
W36: CR Desgravamen TIT Sobretasa(100%)+CONY | X36: 0.13
D37: Importante: | W37: SR Desgravamen (TIT+CONY)Sobretasa (50%) | X37: 0.0819
D38: - Cargos mensuales que se incluyen: Seguro de desgravamen individual CARDIF BNP PARIBAS (sobre el monto del crédito adeudado a la fecha) y Seguro del bien Mapfre (sobre el valor asegurable). - Valores aproximados y referenciales. - Los términos y condiciones presentados son indicativos y vigentes en la medida que no ocurra cambios sustantivos en el mercado que afecten las condiciones existentes a la fecha de la presente propuesta. - Crédito sujeto a evaluación crediticia. | W38: CR Desgravamen (TIT+CONY)Sobretasa (50%) | X38: 0.1392
W39: SR Desgravamen (TIT+CONY ) Sobretasa (10 | X39: 0.1092
W40: CR Desgravamen (TIT+CONY ) Sobretasa (10 | X40: 0.1856
W41: SR SD Titul.Sobretasa100%+Cony.Sobretasa | X41: 0.0956
W42: CR SD Titul.Sobretasa100%+Cony.Sobretasa | X42: 0.1625
W43: SR SD Titul.Sobretasa50%+Cony.Sobretasa1 | X43: 0.0956
V44: Colaborador | W44: CR SD Titul.Sobretasa50%+Cony.Sobretasa1 | X44: 0.1625
V45: Colaborador | W45: CR Desgravamen TIT Sobretasa(100%)+CONY | X45: 0.13
V46: Colaborador | W46: CR Desgravamen (TIT+CONY)Sobretasa (50%) | X46: 0.1392
W47: CR SD. HIPOT. WP(Tit + Cony)Sobretasa (N | X47: 0.1392
W48: CR Desgravamen TIT + CONY Sobretasa (100 | X48: 0.1392
W49: CR SD Titul.Sobretasa50%+Cony.Sobretasa1 | X49: 0.1625
W50: CR SD Titul.Sobretasa100%+Cony.Sobretasa | X50: 0.1625
V51: CV | W51: CR Desgravamen (TIT+CONY ) Sobretasa (10 | X51: 0.18
V52: CV | W52: Seguro del Bien Hipotecario | X52: 0.028
V53: CV | W53: Seguro del Bien Exonerado | X53: 0
V54: LDGH

Sheet Simulador Detalle (hidden)
B1: simulacion con Cuota simple | X1: simulacion con CD | AO1: simulacion a 180 | BF1: simulacion a 180 con CD | BW1: simulacion a 240 | CN1: simulacion a 240 con CD
B3: MAF | C3: =+'Simulación Cliente'!$E$14 -> 1633417.5 | X3: MAF | Y3: =+'Simulación Cliente'!$E$14 -> 1633417.5 | AO3: MAF | AP3: =+'Simulación Cliente'!$E$14 -> 1633417.5 | BF3: MAF | BG3: =+'Simulación Cliente'!$E$14 -> 1633417.5 | BW3: MAF | BX3: =+'Simulación Cliente'!$E$14 -> 1633417.5 | CN3: MAF | CO3: =+'Simulación Cliente'!$E$14 -> 1633417.5
B4: Monto del Bien | C4: =+'Simulación Cliente'!$E$8 -> 2145000 | D4: ='Simulación Cliente'!$E$10 -> 1608750 | X4: Monto del Bien | Y4: =+'Simulación Cliente'!$E$8 -> 2145000 | Z4: ='Simulación Cliente'!$E$10 -> 1608750 | AO4: Monto del Bien | AP4: =+'Simulación Cliente'!$E$8 -> 2145000 | AQ4: ='Simulación Cliente'!$E$10 -> 1608750 | BF4: Monto del Bien | BG4: =+'Simulación Cliente'!$E$8 -> 2145000 | BH4: ='Simulación Cliente'!$E$10 -> 1608750 | BW4: Monto del Bien | BX4: =+'Simulación Cliente'!$E$8 -> 2145000 | BY4: ='Simulación Cliente'!$E$10 -> 1608750 | CN4: Monto del Bien | CO4: =+'Simulación Cliente'!$E$8 -> 2145000 | CP4: ='Simulación Cliente'!$E$10 -> 1608750
B5: Moneda | C5: Soles | X5: Moneda | Y5: Soles | AO5: Moneda | AP5: Soles | BF5: Moneda | BG5: Soles | BW5: Moneda | BX5: Soles | CN5: Moneda | CO5: Soles
B6: Plazo | C6: =+'Simulación Cliente'!$E$16 -> 240 | X6: Plazo | Y6: =+'Simulación Cliente'!$E$16 -> 240 | AO6: Plazo | AP6: 180 | BF6: Plazo | BG6: 180 | BW6: Plazo | BX6: 240 | CN6: Plazo | CO6: 240
B7: Fecha de Desembolso | C7: =TODAY() -> 2024-07-01 | X7: Fecha de Desembolso | Y7: =TODAY() -> 2024-07-01 | AO7: Fecha de Desembolso | AP7: =TODAY() -> 2024-07-01 | BF7: Fecha de Desembolso | BG7: =TODAY() -> 2024-07-01 | BW7: Fecha de Desembolso | BX7: =TODAY() -> 2024-07-01 | CN7: Fecha de Desembolso | CO7: =TODAY() -> 2024-07-01
B8: Fecha de 1er Pago | C8: =EDATE(C7,1) -> 2024-08-01 | X8: Fecha de 1er Pago | Y8: =EDATE(Y7,1) -> 2024-08-01 | AO8: Fecha de 1er Pago | AP8: =EDATE(AP7,1) -> 2024-08-01 | BF8: Fecha de 1er Pago | BG8: =EDATE(BG7,1) -> 2024-08-01 | BW8: Fecha de 1er Pago | BX8: =EDATE(BX7,1) -> 2024-08-01 | CN8: Fecha de 1er Pago | CO8: =EDATE(CO7,1) -> 2024-08-01
B9: Cuota Julio | C9: 1 | X9: Cuota Julio | Y9: 2 | AO9: Cuota Julio | AP9: 1 | BF9: Cuota Julio | BG9: 2 | BW9: Cuota Julio | BX9: 1 | CN9: Cuota Julio | CO9: 2
B10: Cuota Diciembre | C10: 1 | X10: Cuota Diciembre | Y10: 2 | AO10: Cuota Diciembre | AP10: 1 | BF10: Cuota Diciembre | BG10: 2 | BW10: Cuota Diciembre | BX10: 1 | CN10: Cuota Diciembre | CO10: 2
B11: TEA | C11: =+'Simulación Cliente'!$E$20 -> 0.2 | X11: TEA | Y11: =+'Simulación Cliente'!$E$20 -> 0.2 | AO11: TEA | AP11: =+'Simulación Cliente'!$E$20 -> 0.2 | BF11: TEA | BG11: =+'Simulación Cliente'!$E$20 -> 0.2 | BW11: TEA | BX11: =+'Simulación Cliente'!$E$20 -> 0.2 | CN11: TEA | CO11: =+'Simulación Cliente'!$E$20 -> 0.2
B12: Seguro de Desgravamen | C12: =+'Simulación Cliente'!$F$17 -> 0.000285 | X12: Seguro de Desgravamen | Y12: =+'Simulación Cliente'!$F$17 -> 0.000285 | AO12: Seguro de Desgravamen | AP12: =+'Simulación Cliente'!$F$17 -> 0.000285 | BF12: Seguro de Desgravamen | BG12: =+'Simulación Cliente'!$F$17 -> 0.000285 | BW12: Seguro de Desgravamen | BX12: =+'Simulación Cliente'!$F$17 -> 0.000285 | CN12: Seguro de Desgravamen | CO12: =+'Simulación Cliente'!$F$17 -> 0.000285
B13: TCEA | C13: =(1+(((1+C11)^(30/360)-1)+C12+C16))^12-1 -> 0.2040483636 | X13: TCEA | Y13: =(1+(((1+Y11)^(30/360)-1)+Y12+Y16))^12-1 -> 0.2040483636 | AO13: TCEA | AP13: =(1+(((1+AP11)^(30/360)-1)+AP12+AP16))^12-1 -> 0.2040483636 | BF13: TCEA | BG13: =(1+(((1+BG11)^(30/360)-1)+BG12+BG16))^12-1 -> 0.2040483636 | BW13: TCEA | BX13: =(1+(((1+BX11)^(30/360)-1)+BX12+BX16))^12-1 -> 0.2040483636 | CN13: TCEA | CO13: =(1+(((1+CO11)^(30/360)-1)+CO12+CO16))^12-1 -> 0.2040483636
B14: Seguro del Bien | C14: =+'Simulación Cliente'!$F$18 -> 0.00028 | X14: Seguro del Bien | Y14: =+'Simulación Cliente'!$F$18 -> 0.00028 | AO14: Seguro del Bien | AP14: =+'Simulación Cliente'!$F$18 -> 0.00028 | BF14: Seguro del Bien | BG14: =+'Simulación Cliente'!$F$18 -> 0.00028 | BW14: Seguro del Bien | BX14: =+'Simulación Cliente'!$F$18 -> 0.00028 | CN14: Seguro del Bien | CO14: =+'Simulación Cliente'!$F$18 -> 0.00028
B15: Portes | C15: =+'Simulación Cliente'!$E$19 -> 0 | X15: Portes | Y15: =+'Simulación Cliente'!$E$19 -> 0 | AO15: Portes | AP15: =+'Simulación Cliente'!$E$19 -> 0 | BF15: Portes | BG15: =+'Simulación Cliente'!$E$19 -> 0 | BW15: Portes | BX15: =+'Simulación Cliente'!$E$19 -> 0 | CN15: Portes | CO15: =+'Simulación Cliente'!$E$19 -> 0
B16: % Portes | C16: =C15/C3 -> 0 | X16: % Portes | Y16: =Y15/Y3 -> 0 | AO16: % Portes | AP16: =AP15/AP3 -> 0 | BF16: % Portes | BG16: =BG15/BG3 -> 0 | BW16: % Portes | BX16: =BX15/BX3 -> 0 | CN16: % Portes | CO16: =CO15/CO3 -> 0
B17: VALOR CUOTA | C17: =(C3+(C14*D4)*O20)/N20 -> 26913.07096 | X17: VALOR CUOTA | Y17: =(Y3+(Y14*Z4)*AK20)/AJ20 -> 23170.08738 | AO17: VALOR CUOTA | AP17: =(AP3+(AP14*AQ4)*BB20)/BA20 -> 27930.02628 | BF17: VALOR CUOTA | BG17: =(BG3+(BG14*BH4)*BS20)/BR20 -> 24045.60661 | BW17: VALOR CUOTA | BX17: =(BX3+(BX14*BY4)*CJ20)/CI20 -> 26913.07096 | CN17: VALOR CUOTA | CO17: =(CO3+(CO14*CP4)*DA20)/CZ20 -> 23170.08738
T19: ='Simulación Cliente'!E14-'Simulador Detalle'!T20 -> 0
N20: =SUM(N22:N381) -> 61.72546182 | O20: =SUM(O22:O381) -> 61.72546182 | T20: =SUM(T22:T381) -> 1633417.5 | AJ20: =SUM(AJ22:AJ381) -> 71.69682649 | AK20: =SUM(AK22:AK381) -> 61.72546182 | BA20: =SUM(BA22:BA381) -> 59.4411458 | BB20: =SUM(BB22:BB381) -> 59.4411458 | BR20: =SUM(BR22:BR381) -> 69.04349684 | BS20: =SUM(BS22:BS381) -> 59.4411458 | CI20: =SUM(CI22:CI381) -> 61.72546182 | CJ20: =SUM(CJ22:CJ381) -> 61.72546182 | CZ20: =SUM(CZ22:CZ381) -> 71.69682649 | DA20: =SUM(DA22:DA381) -> 61.72546182
B21: N° Cuota | C21: Fecha de pago | D21: Días | E21: Dias Acumulados | F21: Saldo Inicial | G21: Amortización | H21: Interés | I21: Seguro Desgravamen | J21: Seguro del Bien | K21: Portes | L21: VALOR CUOTA | M21: Saldo Final | N21: Factor Cronograma | O21: Factor Cronograma 2 | Q21: Vector i,1 Cuota | R21: Vector i,2 Días Acum | S21: Vector i,3 Factor | T21: Vector i,4 Calculo VA | X21: N° Cuota | Y21: Fecha de pago | Z21: Días | AA21: Dias Acumulados | AB21: Saldo Inicial | AC21: Amortización | AD21: Interés | AE21: Seguro Desgravamen | AF21: Seguro del Bien | AG21: Portes | AH21: VALOR CUOTA | AI21: Saldo Final | AJ21: Factor Cronograma | AK21: Factor Cronograma 2 | AO21: N° Cuota | AP21: Fecha de pago | AQ21: Días | AR21: Dias Acumulados | AS21: Saldo Inicial | AT21: Amortización | AU21: Interés | AV21: Seguro Desgravamen | AW21: Seguro del Bien | AX21: Portes | AY21: VALOR CUOTA | AZ21: Saldo Final | BA21: Factor Cronograma | BB21: Factor Cronograma 2 | BF21: N° Cuota | BG21: Fecha de pago | BH21: Días | BI21: Dias Acumulados | BJ21: Saldo Inicial | BK21: Amortización | BL21: Interés | BM21: Seguro Desgravamen | BN21: Seguro del Bien | BO21: Portes | BP21: VALOR CUOTA | BQ21: Saldo Final | BR21: Factor Cronograma | BS21: Factor Cronograma 2 | BW21: N° Cuota | BX21: Fecha de pago | BY21: Días | BZ21: Dias Acumulados | CA21: Saldo Inicial | CB21: Amortización | CC21: Interés | CD21: Seguro Desgravamen | CE21: Seguro del Bien | CF21: Portes | CG21: VALOR CUOTA | CH21: Saldo Final | CI21: Factor Cronograma | CJ21: Factor Cronograma 2 | CN21: N° Cuota | CO21: Fecha de pago | CP21: Días | CQ21: Dias Acumulados | CR21: Saldo Inicial | CS21: Amortización | CT21: Interés | CU21: Seguro Desgravamen | CV21: Seguro del Bien | CW21: Portes | CX21: VALOR CUOTA | CY21: Saldo Final | CZ21: Factor Cronograma | DA21: Factor Cronograma 2
B22: 1 | C22: =C8 -> 2024-08-01 | D22: =C22-C7 -> 31 | E22: =D22 -> 31 | F22: =C3 -> 1633417.5 | G22: =IF(B22>C$6,"",L22-K22-J22-I22-H22) -> 134.7005501 | H22: =IF(B22>C$6,"",((1+C$11)^(D22/360)-1)*F22) -> 25846.87667 | I22: =IF(B22>C$6,"",((1+C$12)^(D22/30)-1)*F22) -> 481.0437385 | J22: =IF(B22>C$6,"",D$4*C$14) -> 450.45 | K22: =IF(B22>C$6,"",C$15) -> 0 | L22: =IF(B22>C$6,"",IF(B22=C$6,F22+H22+I22+J22+K22,IF(AND(C$9=2,MONTH(C22)=7),2*C$17,IF(AND(C$10=2,MONTH(C22)=12),2*C$17,C$17)))) -> 26913.07096 | M22: =IF(B22>C$6,"",F22-G22) -> 1633282.799 | N22: =IFERROR(IF(AND(MONTH(C22)=7,C$9=2),2/(1+C$13)^(E22/360),IF(AND(MONTH(C22)=12,C$10=2),2/(1+C$13)^(E22/360),1/(1+C$13)^(E22/360))),"") -> 0.9841372298 | O22: =IFERROR(1/(1+C$13)^(E22/360),"") -> 0.9841372298 | Q22: =IFERROR(IF('Simulación Cliente'!$H$21="Simple",G22+H22+I22+J22+K22,AC22+AD22+AE22+AF22+AG22),"") -> 26913.07096 | R22: =E22 -> 31 | S22: =IFERROR((1+'Simulación Cliente'!$E$21)^(R22/360),"") -> 1.016418822 | T22: =IFERROR(ROUND(Q22/S22,2),"") -> 26478.33 | X22: 1 | Y22: =Y8 -> 2024-08-01 | Z22: =Y22-Y7 -> 31 | AA22: =Z22 -> 31 | AB22: =Y3 -> 1633417.5 | AC22: =IF(X22>Y$6,"",AH22-AG22-AF22-AE22-AD22) -> -3608.283037 | AD22: =IF(X22>Y$6,"",((1+Y$11)^(Z22/360)-1)*AB22) -> 25846.87667 | AE22: =IF(X22>Y$6,"",((1+Y$12)^(Z22/30)-1)*AB22) -> 481.0437385 | AF22: =IF(X22>Y$6,"",Z$4*Y$14) -> 450.45 | AG22: =IF(X22>Y$6,"",Y$15) -> 0 | AH22: =IF(X22>Y$6,"",IF(X22=Y$6,AB22+AD22+AE22+AF22+AG22,IF(AND(Y$9=2,MONTH(Y22)=7),2*Y$17,IF(AND(Y$10=2,MONTH(Y22)=12),2*Y$17,Y$17)))) -> 23170.08738 | AI22: =IF(X22>Y$6,"",AB22-AC22) -> 1637025.783 | AJ22: =IFERROR(IF(AND(MONTH(Y22)=7,Y$9=2),2/(1+Y$13)^(AA22/360),IF(AND(MONTH(Y22)=12,Y$10=2),2/(1+Y$13)^(AA22/360),1/(1+Y$13)^(AA22/360))),"") -> 0.9841372298 | AK22: =IFERROR(1/(1+Y$13)^(AA22/360),"") -> 0.9841372298 | AO22: 1 | AP22: =AP8 -> 2024-08-01 | AQ22: =AP22-AP7 -> 31 | AR22: =AQ22 -> 31 | AS22: =AP3 -> 1633417.5 | AT22: =IF(AO22>AP$6,"",AY22-AX22-AW22-AV22-AU22) -> 1151.655865 | AU22: =IF(AO22>AP$6,"",((1+AP$11)^(AQ22/360)-1)*AS22) -> 25846.87667 | AV22: =IF(AO22>AP$6,"",((1+AP$12)^(AQ22/30)-1)*AS22) -> 481.0437385 | AW22: =IF(AO22>AP$6,"",AQ$4*AP$14) -> 450.45 | AX22: =IF(AO22>AP$6,"",AP$15) -> 0 | AY22: =IF(AO22>AP$6,"",IF(AO22=AP$6,AS22+AU22+AV22+AW22+AX22,IF(AND(AP$9=2,MONTH(AP22)=7),2*AP$17,IF(AND(AP$10=2,MONTH(AP22)=12),2*AP$17,AP$17)))) -> 27930.02628 | AZ22: =IF(AO22>AP$6,"",AS22-AT22) -> 1632265.844 | BA22: =IFERROR(IF(AND(MONTH(AP22)=7,AP$9=2),2/(1+AP$13)^(AR22/360),IF(AND(MONTH(AP22)=12,AP$10=2),2/(1+AP$13)^(AR22/360),1/(1+AP$13)^(AR22/360))),"") -> 0.9841372298 | BB22: =IFERROR(1/(1+AP$13)^(AR22/360),"") -> 0.9841372298 | BF22: 1 | BG22: =BG8 -> 2024-08-01 | BH22: =BG22-BG7 -> 31 | BI22: =BH22 -> 31 | BJ22: =BG3 -> 1633417.5 | BK22: =IF(BF22>BG$6,"",BP22-BO22-BN22-BM22-BL22) -> -2732.763801 | BL22: =IF(BF22>BG$6,"",((1+BG$11)^(BH22/360)-1)*BJ22) -> 25846.87667 | BM22: =IF(BF22>BG$6,"",((1+BG$12)^(BH22/30)-1)*BJ22) -> 481.0437385 | BN22: =IF(BF22>BG$6,"",BH$4*BG$14) -> 450.45 | BO22: =IF(BF22>BG$6,"",BG$15) -> 0 | BP22: =IF(BF22>BG$6,"",IF(BF22=BG$6,BJ22+BL22+BM22+BN22+BO22,IF(AND(BG$9=2,MONTH(BG22)=7),2*BG$17,IF(AND(BG$10=2,MONTH(BG22)=12),2*BG$17,BG$17)))) -> 24045.60661 | BQ22: =IF(BF22>BG$6,"",BJ22-BK22) -> 1636150.264 | BR22: =IFERROR(IF(AND(MONTH(BG22)=7,BG$9=2),2/(1+BG$13)^(BI22/360),IF(AND(MONTH(BG22)=12,BG$10=2),2/(1+BG$13)^(BI22/360),1/(1+BG$13)^(BI22/360))),"") -> 0.9841372298 | BS22: =IFERROR(1/(1+BG$13)^(BI22/360),"") -> 0.9841372298 | BW22: 1 | BX22: =BX8 -> 2024-08-01 | BY22: =BX22-BX7 -> 31 | BZ22: =BY22 -> 31 | CA22: =BX3 -> 1633417.5 | CB22: =IF(BW22>BX$6,"",CG22-CF22-CE22-CD22-CC22) -> 134.7005501 | CC22: =IF(BW22>BX$6,"",((1+BX$11)^(BY22/360)-1)*CA22) -> 25846.87667 | CD22: =IF(BW22>BX$6,"",((1+BX$12)^(BY22/30)-1)*CA22) -> 481.0437385 | CE22: =IF(BW22>BX$6,"",BY$4*BX$14) -> 450.45 | CF22: =IF(BW22>BX$6,"",BX$15) -> 0 | CG22: =IF(BW22>BX$6,"",IF(BW22=BX$6,CA22+CC22+CD22+CE22+CF22,IF(AND(BX$9=2,MONTH(BX22)=7),2*BX$17,IF(AND(BX$10=2,MONTH(BX22)=12),2*BX$17,BX$17)))) -> 26913.07096 | CH22: =IF(BW22>BX$6,"",CA22-CB22) -> 1633282.799 | CI22: =IFERROR(IF(AND(MONTH(BX22)=7,BX$9=2),2/(1+BX$13)^(BZ22/360),IF(AND(MONTH(BX22)=12,BX$10=2),2/(1+BX$13)^(BZ22/360),1/(1+BX$13)^(BZ22/360))),"") -> 0.9841372298 | CJ22: =IFERROR(1/(1+BX$13)^(BZ22/360),"") -> 0.9841372298 | CN22: 1 | CO22: =CO8 -> 2024-08-01 | CP22: =CO22-CO7 -> 31 | CQ22: =CP22 -> 31 | CR22: =CO3 -> 1633417.5 | CS22: =IF(CN22>CO$6,"",CX22-CW22-CV22-CU22-CT22) -> -3608.283037 | CT22: =IF(CN22>CO$6,"",((1+CO$11)^(CP22/360)-1)*CR22) -> 25846.87667 | CU22: =IF(CN22>CO$6,"",((1+CO$12)^(CP22/30)-1)*CR22) -> 481.0437385 | CV22: =IF(CN22>CO$6,"",CP$4*CO$14) -> 450.45 | CW22: =IF(CN22>CO$6,"",CO$15) -> 0 | CX22: =IF(CN22>CO$6,"",IF(CN22=CO$6,CR22+CT22+CU22+CV22+CW22,IF(AND(CO$9=2,MONTH(CO22)=7),2*CO$17,IF(AND(CO$10=2,MONTH(CO22)=12),2*CO$17,CO$17)))) -> 23170.08738 | CY22: =IF(CN22>CO$6,"",CR22-CS22) -> 1637025.783 | CZ22: =IFERROR(IF(AND(MONTH(CO22)=7,CO$9=2),2/(1+CO$13)^(CQ22/360),IF(AND(MONTH(CO22)=12,CO$10=2),2/(1+CO$13)^(CQ22/360),1/(1+CO$13)^(CQ22/360))),"") -> 0.9841372298 | DA22: =IFERROR(1/(1+CO$13)^(CQ22/360),"") -> 0.9841372298
B23: 2 | C23: =IF(B23>C$6,"",EDATE(C$22,B22)) -> 2024-09-01 | D23: =IF(B23>C$6,"",C23-C22) -> 31 | E23: =IFERROR(D23+E22,"") -> 62 | F23: =IF(B23>C$6,"",M22) -> 1633282.799 | G23: 136.8716946 | H23: =IF(B23>C$6,"",((1+C$11)^(D23/360)-1)*F23) -> 25844.7452 | I23: =IF(B23>C$6,"",((1+C$12)^(D23/30)-1)*F23) -> 481.004069 | J23: =IF(B23>C$6,"",D$4*C$14) -> 450.45 | K23: 0 | L23: =IF(B23>C$6,"",IF(B23=C$6,F23+H23+I23+J23+K23,IF(AND(C$9=2,MONTH(C23)=7),2*C$17,IF(AND(C$10=2,MONTH(C23)=12),2*C$17,C$17)))) -> 26913.07096 | M23: =IF(B23>C$6,"",F23-G23) -> 1633145.928 | N23: =IFERROR(IF(AND(MONTH(C23)=7,C$9=2),2/(1+C$13)^(E23/360),IF(AND(MONTH(C23)=12,C$10=2),2/(1+C$13)^(E23/360),1/(1+C$13)^(E23/360))),"") -> 0.9685260871 | O23: =IFERROR(1/(1+C$13)^(E23/360),"") -> 0.9685260871 | Q23: =IFERROR(IF('Simulación Cliente'!$H$21="Simple",G23+H23+I23+J23+K23,AC23+AD23+AE23+AF23+AG23),"") -> 26913.07096 | R23: =E23 -> 62 | S23: =IFERROR((1+'Simulación Cliente'!$E$21)^(R23/360),"") -> 1.033107222 | T23: =IFERROR(ROUND(Q23/S23,2),"") -> 26050.61 | X23: 2 | Y23: =IF(X23>Y$6,"",EDATE(Y$22,X22)) -> 2024-09-01 | Z23: =IF(X23>Y$6,"",Y23-Y22) -> 31 | AA23: =IFERROR(Z23+AA22,"") -> 62 | AB23: =IF(X23>Y$6,"",AI22) -> 1637025.783 | AC23: =IF(X23>Y$6,"",AH23-AG23-AF23-AE23-AD23) -> -3666.442441 | AD23: =IF(X23>Y$6,"",((1+Y$11)^(Z23/360)-1)*AB23) -> 25903.97343 | AE23: =IF(X23>Y$6,"",((1+Y$12)^(Z23/30)-1)*AB23) -> 482.1063829 | AF23: =IF(X23>Y$6,"",Z$4*Y$14) -> 450.45 | AG23: 0 | AH23: 23170.08738 | AI23: 1640692.225 | AJ23: =IFERROR(IF(AND(MONTH(Y23)=7,Y$9=2),2/(1+Y$13)^(AA23/360),IF(AND(MONTH(Y23)=12,Y$10=2),2/(1+Y$13)^(AA23/360),1/(1+Y$13)^(AA23/360))),"") -> 0.9685260871 | AK23: =IFERROR(1/(1+Y$13)^(AA23/360),"") -> 0.9685260871 | AO23: 2 | AP23: =IF(AO23>AP$6,"",EDATE(AP$22,AO22)) -> 2024-09-01 | AQ23: =IF(AO23>AP$6,"",AP23-AP22) -> 31 | AR23: =IFERROR(AQ23+AR22,"") -> 62 | AS23: =IF(AO23>AP$6,"",AZ22) -> 1632265.844 | AT23: 1170.218605 | AU23: =IF(AO23>AP$6,"",((1+AP$11)^(AQ23/360)-1)*AS23) -> 25828.6531 | AV23: =IF(AO23>AP$6,"",((1+AP$12)^(AQ23/30)-1)*AS23) -> 480.7045742 | AW23: =IF(AO23>AP$6,"",AQ$4*AP$14) -> 450.45 | AX23: 0 | AY23: 27930.02628 | AZ23: 1631095.626 | BA23: =IFERROR(IF(AND(MONTH(AP23)=7,AP$9=2),2/(1+AP$13)^(AR23/360),IF(AND(MONTH(AP23)=12,AP$10=2),2/(1+AP$13)^(AR23/360),1/(1+AP$13)^(AR23/360))),"") -> 0.9685260871 | BB23: =IFERROR(1/(1+AP$13)^(AR23/360),"") -> 0.9685260871 | BF23: 2 | BG23: =IF(BF23>BG$6,"",EDATE(BG$22,BF22)) -> 2024-09-01 | BH23: =IF(BF23>BG$6,"",BG23-BG22) -> 31 | BI23: =IFERROR(BH23+BI22,"") -> 62 | BJ23: =IF(BF23>BG$6,"",BQ22) -> 1636150.264 | BK23: -2776.81132 | BL23: =IF(BF23>BG$6,"",((1+BG$11)^(BH23/360)-1)*BJ23) -> 25890.11939 | BM23: 481.8485412 | BN23: =IF(BF23>BG$6,"",BH$4*BG$14) -> 450.45 | BO23: 0 | BP23: 24045.60661 | BQ23: 1638927.075 | BR23: =IFERROR(IF(AND(MONTH(BG23)=7,BG$9=2),2/(1+BG$13)^(BI23/360),IF(AND(MONTH(BG23)=12,BG$10=2),2/(1+BG$13)^(BI23/360),1/(1+BG$13)^(BI23/360))),"") -> 0.9685260871 | BS23: =IFERROR(1/(1+BG$13)^(BI23/360),"") -> 0.9685260871 | BW23: 2 | BX23: =IF(BW23>BX$6,"",EDATE(BX$22,BW22)) -> 2024-09-01 | BY23: =IF(BW23>BX$6,"",BX23-BX22) -> 31 | BZ23: =IFERROR(BY23+BZ22,"") -> 62 | CA23: =IF(BW23>BX$6,"",CH22) -> 1633282.799 | CB23: 136.8716946 | CC23: =IF(BW23>BX$6,"",((1+BX$11)^(BY23/360)-1)*CA23) -> 25844.7452 | CD23: 481.004069 | CE23: =IF(BW23>BX$6,"",BY$4*BX$14) -> 450.45 | CF23: 0 | CG23: 26913.07096 | CH23: 1633145.928 | CI23: =IFERROR(IF(AND(MONTH(BX23)=7,BX$9=2),2/(1+BX$13)^(BZ23/360),IF(AND(MONTH(BX23)=12,BX$10=2),2/(1+BX$13)^(BZ23/360),1/(1+BX$13)^(BZ23/360))),"") -> 0.9685260871 | CJ23: =IFERROR(1/(1+BX$13)^(BZ23/360),"") -> 0.9685260871 | CN23: 2 | CO23: =IF(CN23>CO$6,"",EDATE(CO$22,CN22)) -> 2024-09-01 | CP23: =IF(CN23>CO$6,"",CO23-CO22) -> 31 | CQ23: =IFERROR(CP23+CQ22,"") -> 62 | CR23: =IF(CN23>CO$6,"",CY22) -> 1637025.783 | CS23: =IF(CN23>CO$6,"",CX23-CW23-CV23-CU23-CT23) -> -3666.442441 | CT23: =IF(CN23>CO$6,"",((1+CO$11)^(CP23/360)-1)*CR23) -> 25903.97343 | CU23: 482.1063829 | CV23: =IF(CN23>CO$6,"",CP$4*CO$14) -> 450.45 | CW23: 0 | CX23: =IF(CN23>CO$6,"",IF(CN23=CO$6,CR23+CT23+CU23+CV23+CW23,IF(AND(CO$9=2,MONTH(CO23)=7),2*CO$17,IF(AND(CO$10=2,MONTH(CO23)=12),2*CO$17,CO$17)))) -> 23170.08738 | CY23: 1640692.225 | CZ23: =IFERROR(IF(AND(MONTH(CO23)=7,CO$9=2),2/(1+CO$13)^(CQ23/360),IF(AND(MONTH(CO23)=12,CO$10=2),2/(1+CO$13)^(CQ23/360),1/(1+CO$13)^(CQ23/360))),"") -> 0.9685260871 | DA23: =IFERROR(1/(1+CO$13)^(CQ23/360),"") -> 0.9685260871
B24: 3 | C24: =IF(B24>C$6,"",EDATE(C$22,B23)) -> 2024-10-01 | D24: =IF(B24>C$6,"",C24-C23) -> 30 | E24: 92 | F24: 1633145.928 | G24: =IF(B24>C$6,"",L24-K24-J24-I24-H24) -> 994.5749706 | H24: =IF(B24>C$6,"",((1+C$11)^(D24/360)-1)*F24) -> 25002.5994 | I24: 465.4465894 | J24: 450.45 | K24: 0 | L24: 26913.07096 | M24: 1632151.353 | N24: 0.9536543524 | O24: 0.9536543524 | Q24: =IFERROR(IF('Simulación Cliente'!$H$21="Simple",G24+H24+I24+J24+K24,AC24+AD24+AE24+AF24+AG24),"") -> 26913.07096 | R24: 92 | S24: =IFERROR((1+'Simulación Cliente'!$E$21)^(R24/360),"") -> 1.049518129 | T24: 25643.26 | X24: 3 | Y24: 2024-10-01 | Z24: =IF(X24>Y$6,"",Y24-Y23) -> 30 | AA24: =IFERROR(Z24+AA23,"") -> 92 | AB24: 1640692.225 | AC24: =IF(X24>Y$6,"",AH24-AG24-AF24-AE24-AD24) -> -2866.089133 | AD24: =IF(X24>Y$6,"",((1+Y$11)^(Z24/360)-1)*AB24) -> 25118.12923 | AE24: 467.5972843 | AF24: 450.45 | AG24: 0 | AH24: 23170.08738 | AI24: 1643558.315 | AJ24: 0.9536543524 | AK24: 0.9536543524 | AO24: 3 | AP24: 2024-10-01 | AQ24: =IF(AO24>AP$6,"",AP24-AP23) -> 30 | AR24: 92 | AS24: 1631095.626 | AT24: =IF(AO24>AP$6,"",AY24-AX24-AW24-AV24-AU24) -> 2043.503663 | AU24: =IF(AO24>AP$6,"",((1+AP$11)^(AQ24/360)-1)*AS24) -> 24971.21036 | AV24: =IF(AO24>AP$6,"",((1+AP$12)^(AQ24/30)-1)*AS24) -> 464.8622533 | AW24: 450.45 | AX24: 0 | AY24: 27930.02628 | AZ24: 1629052.122 | BA24: 0.9536543524 | BB24: 0.9536543524 | BF24: 3 | BG24: 2024-10-01 | BH24: =IF(BF24>BG$6,"",BG24-BG23) -> 30 | BI24: 92 | BJ24: 1638927.075 | BK24: =IF(BF24>BG$6,"",BP24-BO24-BN24-BM24-BL24) -> -1963.043313 | BL24: =IF(BF24>BG$6,"",((1+BG$11)^(BH24/360)-1)*BJ24) -> 25091.10571 | BM24: 467.0942164 | BN24: 450.45 | BO24: 0 | BP24: 24045.60661 | BQ24: 1640890.118 | BR24: 0.9536543524 | BS24: 0.9536543524 | BW24: 3 | BX24: 2024-10-01 | BY24: =IF(BW24>BX$6,"",BX24-BX23) -> 30 | BZ24: 92 | CA24: 1633145.928 | CB24: =IF(BW24>BX$6,"",CG24-CF24-CE24-CD24-CC24) -> 994.5749706 | CC24: =IF(BW24>BX$6,"",((1+BX$11)^(BY24/360)-1)*CA24) -> 25002.5994 | CD24: 465.4465894 | CE24: 450.45 | CF24: 0 | CG24: 26913.07096 | CH24: 1632151.353 | CI24: 0.9536543524 | CJ24: 0.9536543524 | CN24: 3 | CO24: 2024-10-01 | CP24: =IF(CN24>CO$6,"",CO24-CO23) -> 30 | CQ24: 92 | CR24: 1640692.225 | CS24: =IF(CN24>CO$6,"",CX24-CW24-CV24-CU24-CT24) -> -2866.089133 | CT24: =IF(CN24>CO$6,"",((1+CO$11)^(CP24/360)-1)*CR24) -> 25118.12923 | CU24: 467.5972843 | CV24: 450.45 | CW24: 0 | CX24: 23170.08738 | CY24: 1643558.315 | CZ24: 0.9536543524 | DA24: 0.9536543524
B25: 4 | C25: 2024-11-01 | D25: 31 | E25: 123 | F25: 1632151.353 | G25: 155.1086963 | H25: 25826.84141 | I25: 480.6708564 | J25: 450.45 | K25: 0 | L25: 26913.07096 | M25: 1631996.244 | N25: 0.9385267526 | O25: 0.9385267526 | Q25: =IFERROR(IF('Simulación Cliente'!$H$21="Simple",G25+H25+I25+J25+K25,AC25+AD25+AE25+AF25+AG25),"") -> 26913.07096 | R25: 123 | S25: =IFERROR((1+'Simulación Cliente'!$E$21)^(R25/360),"") -> 1.06674998 | T25: 25229.03 | X25: 4 | Y25: 2024-11-01 | Z25: =IF(X25>Y$6,"",Y25-Y24) -> 31 | AA25: 123 | AB25: 1643558.315 | AC25: =IF(X25>Y$6,"",AH25-AG25-AF25-AE25-AD25) -> -3771.735773 | AD25: 26007.34293 | AE25: 484.0302226 | AF25: 450.45 | AG25: 0 | AH25: 23170.08738 | AI25: 1647330.05 | AJ25: 0.9385267526 | AK25: 0.9385267526 | AO25: 4 | AP25: 2024-11-01 | AQ25: =IF(AO25>AP$6,"",AP25-AP24) -> 31 | AR25: 123 | AS25: 1629052.122 | AT25: =IF(AO25>AP$6,"",AY25-AX25-AW25-AV25-AU25) -> 1222.018358 | AU25: 25777.79979 | AV25: 479.7581285 | AW25: 450.45 | AX25: 0 | AY25: 27930.02628 | AZ25: 1627830.104 | BA25: 0.9385267526 | BB25: 0.9385267526 | BF25: 4 | BG25: 2024-11-01 | BH25: =IF(BF25>BG$6,"",BG25-BG24) -> 31 | BI25: 123 | BJ25: 1640890.118 | BK25: =IF(BF25>BG$6,"",BP25-BO25-BN25-BM25-BL25) -> -2853.20974 | BL25: 25965.12192 | BM25: 483.2444351 | BN25: 450.45 | BO25: 0 | BP25: 24045.60661 | BQ25: 1643743.328 | BR25: 0.9385267526 | BS25: 0.9385267526 | BW25: 4 | BX25: 2024-11-01 | BY25: =IF(BW25>BX$6,"",BX25-BX24) -> 31 | BZ25: 123 | CA25: 1632151.353 | CB25: =IF(BW25>BX$6,"",CG25-CF25-CE25-CD25-CC25) -> 155.1086963 | CC25: 25826.84141 | CD25: 480.6708564 | CE25: 450.45 | CF25: 0 | CG25: 26913.07096 | CH25: 1631996.244 | CI25: 0.9385267526 | CJ25: 0.9385267526 | CN25: 4 | CO25: 2024-11-01 | CP25: =IF(CN25>CO$6,"",CO25-CO24) -> 31 | CQ25: 123 | CR25: 1643558.315 | CS25: =IF(CN25>CO$6,"",CX25-CW25-CV25-CU25-CT25) -> -3771.735773 | CT25: 26007.34293 | CU25: 484.0302226 | CV25: 450.45 | CW25: 0 | CX25: 23170.08738 | CY25: 1647330.05 | CZ25: 0.9385267526 | DA25: 0.9385267526
B26: 5 | C26: 2024-12-01 | D26: 30 | E26: 153 | F26: 1631996.244 | G26: 1012.503679 | H26: 24984.99835 | I26: 465.1189296 | J26: 450.45 | K26: 0 | L26: 26913.07096 | M26: 1630983.74 | N26: 0.9241156582 | O26: 0.9241156582 | Q26: =IFERROR(IF('Simulación Cliente'!$H$21="Simple",G26+H26+I26+J26+K26,AC26+AD26+AE26+AF26+AG26),"") -> 26913.07096 | R26: 153 | S26: =IFERROR((1+'Simulación Cliente'!$E$21)^(R26/360),"") -> 1.083695302 | T26: 24834.54 | X26: 5 | Y26: 2024-12-01 | Z26: 30 | AA26: 153 | AB26: 1647330.05 | AC26: 20200.48488 | AD26: 25219.75081 | AE26: 469.4890644 | AF26: 450.45 | AG26: 0 | AH26: 46340.17475 | AI26: 1627129.566 | AJ26: 1.848231316 | AK26: 0.9241156582 | AO26: 5 | AP26: 2024-12-01 | AQ26: 30 | AR26: 153 | AS26: 1627830.104 | AT26: 2094.42775 | AU26: 24921.21695 | AV26: 463.9315795 | AW26: 450.45 | AX26: 0 | AY26: 27930.02628 | AZ26: 1625735.676 | BA26: 0.9241156582 | BB26: 0.9241156582 | BF26: 5 | BG26: 2024-12-01 | BH26: 30 | BI26: 153 | BJ26: 1643743.328 | BK26: 22007.45638 | BL26: 25164.83999 | BM26: 468.4668485 | BN26: 450.45 | BO26: 0 | BP26: 48091.21322 | BQ26: 1621735.872 | BR26: 1.848231316 | BS26: 0.9241156582 | BW26: 5 | BX26: 2024-12-01 | BY26: 30 | BZ26: 153 | CA26: 1631996.244 | CB26: 1012.503679 | CC26: 24984.99835 | CD26: 465.1189296 | CE26: 450.45 | CF26: 0 | CG26: 26913.07096 | CH26: 1630983.74 | CI26: 0.9241156582 | CJ26: 0.9241156582 | CN26: 5 | CO26: 2024-12-01 | CP26: 30 | CQ26: 153 | CR26: 1647330.05 | CS26: 20200.48488 | CT26: 25219.75081 | CU26: 469.4890644 | CV26: 450.45 | CW26: 0 | CX26: 46340.17475 | CY26: 1627129.566 | CZ26: 1.848231316 | DA26: 0.9241156582
B27: 6 | C27: 2025-01-01 | D27: 31 | E27: 184 | F27: 1630983.74 | G27: 173.928628 | H27: 25808.36534 | I27: 480.3269929 | J27: 450.45 | K27: 0 | L27: 26913.07096 | M27: 1630809.812 | N27: 0.9094566239 | O27: 0.9094566239 | Q27: =IFERROR(IF('Simulación Cliente'!$H$21="Simple",G27+H27+I27+J27+K27,AC27+AD27+AE27+AF27+AG27),"") -> 26913.07096 | R27: 184 | S27: =IFERROR((1+'Simulación Cliente'!$E$21)^(R27/360),"") -> 1.101488303 | T27: 24433.37 | X27: 6 | Y27: 2025-01-01 | Z27: 31 | AA27: 184 | AB27: 1627129.566 | AC27: -3506.932195 | AD27: 25747.37764 | AE27: 479.191933 | AF27: 450.45 | AG27: 0 | AH27: 23170.08738 | AI27: 1630636.498 | AJ27: 0.9094566239 | AK27: 0.9094566239 | AO27: 6 | AP27: 2025-01-01 | AQ27: 31 | AR27: 184 | AS27: 1625735.676 | AT27: 1275.473846 | AU27: 25725.321 | AV27: 478.7814305 | AW27: 450.45 | AX27: 0 | AY27: 27930.02628 | AZ27: 1624460.202 | BA27: 0.9094566239 | BB27: 0.9094566239 | BF27: 6 | BG27: 2025-01-01 | BH27: 31 | BI27: 184 | BJ27: 1621735.872 | BK27: -2544.475763 | BL27: 25662.02889 | BM27: 477.6034826 | BN27: 450.45 | BO27: 0 | BP27: 24045.60661 | BQ27: 1624280.348 | BR27: 0.9094566239 | BS27: 0.9094566239 | BW27: 6 | BX27: 2025-01-01 | BY27: 31 | BZ27: 184 | CA27: 1630983.74 | CB27: 173.928628 | CC27: 25808.36534 | CD27: 480.3269929 | CE27: 450.45 | CF27: 0 | CG27: 26913.07096 | CH27: 1630809.812 | CI27: 0.9094566239 | CJ27: 0.9094566239 | CN27: 6 | CO27: 2025-01-01 | CP27: 31 | CQ27: 184 | CR27: 1627129.566 | CS27: -3506.932195 | CT27: 25747.37764 | CU27: 479.191933 | CV27: 450.45 | CW27: 0 | CX27: 23170.08738 | CY27: 1630636.498 | CZ27: 0.9094566239 | DA27: 0.9094566239
B28: 7 | C28: 2025-02-01 | D28: 31 | E28: 215 | F28: 1630809.812 | G28: 176.7320625 | H28: 25805.61313 | I28: 480.2757707 | J28: 450.45 | K28: 0 | L28: 26913.07096 | M28: 1630633.08 | N28: 0.8950301224 | O28: 0.8950301224 | Q28: =IFERROR(IF('Simulación Cliente'!$H$21="Simple",G28+H28+I28+J28+K28,AC28+AD28+AE28+AF28+AG28),"") -> 26913.07096 | R28: 215 | S28: =IFERROR((1+'Simulación Cliente'!$E$21)^(R28/360),"") -> 1.119573443 | T28: 24038.68 | X28: 7 | Y28: 2025-02-01 | Z28: 31 | AA28: 215 | AB28: 1630636.498 | AC28: -3563.457995 | AD28: 25802.87064 | AE28: 480.2247294 | AF28: 450.45 | AG28: 0 | AH28: 23170.08738 | AI28: 1634199.956 | AJ28: 0.8950301224 | AK28: 0.8950301224 | AO28: 7 | AP28: 2025-02-01 | AQ28: 31 | AR28: 215 | AS28: 1624460.202 | AT28: 1296.032322 | AU28: 25705.13815 | AV28: 478.4058017 | AW28: 450.45 | AX28: 0 | AY28: 27930.02628 | AZ28: 1623164.17 | BA28: 0.8950301224 | BB28: 0.8950301224 | BF28: 7 | BG28: 2025-02-01 | BH28: 31 | BI28: 215 | BJ28: 1624280.348 | BK28: -2585.488397 | BL28: 25702.29217 | BM28: 478.3528343 | BN28: 450.45 | BO28: 0 | BP28: 24045.60661 | BQ28: 1626865.836 | BR28: 0.8950301224 | BS28: 0.8950301224 | BW28: 7 | BX28: 2025-02-01 | BY28: 31 | BZ28: 215 | CA28: 1630809.812 | CB28: 176.7320625 | CC28: 25805.61313 | CD28: 480.2757707 | CE28: 450.45 | CF28: 0 | CG28: 26913.07096 | CH28: 1630633.08 | CI28: 0.8950301224 | CJ28: 0.8950301224 | CN28: 7 | CO28: 2025-02-01 | CP28: 31 | CQ28: 215 | CR28: 1630636.498 | CS28: -3563.457995 | CT28: 25802.87064 | CU28: 480.2247294 | CV28: 450.45 | CW28: 0 | CX28: 23170.08738 | CY28: 1634199.956 | CZ28: 0.8950301224 | DA28: 0.8950301224
B29: 8 | C29: 2025-03-01 | D29: 28 | E29: 243 | F29: 1630633.08 | G29: 2740.848987 | H29: 23288.0277 | I29: 433.744279 | J29: 450.45 | K29: 0 | L29: 26913.07096 | M29: 1627892.231 | N29: 0.8821965317 | O29: 0.8821965317 | Q29: =IFERROR(IF('Simulación Cliente'!$H$21="Simple",G29+H29+I29+J29+K29,AC29+AD29+AE29+AF29+AG29),"") -> 26913.07096 | R29: 243 | S29: =IFERROR((1+'Simulación Cliente'!$E$21)^(R29/360),"") -> 1.136163498 | T29: 23687.67 | X29: 8 | Y29: 2025-03-01 | Z29: 28 | AA29: 243 | AB29: 1634199.956 | AC29: -1054.024028 | AD29: 23338.96834 | AE29: 434.693059 | AF29: 450.45 | AG29: 0 | AH29: 23170.08738 | AI29: 1635253.98 | AJ29: 0.8821965317 | AK29: 0.8821965317 | AO29: 8 | AP29: 2025-03-01 | AQ29: 28 | AR29: 243 | AS29: 1623164.17 | AT29: 3866.458901 | AU29: 23181.35981 | AV29: 431.7575678 | AW29: 450.45 | AX29: 0 | AY29: 27930.02628 | AZ29: 1619297.711 | BA29: 0.8821965317 | BB29: 0.8821965317 | BF29: 8 | BG29: 2025-03-01 | BH29: 28 | BI29: 243 | BJ29: 1626865.836 | BK29: -71.81106846 | BL29: 23234.22548 | BM29: 432.7422017 | BN29: 450.45 | BO29: 0 | BP29: 24045.60661 | BQ29: 1626937.647 | BR29: 0.8821965317 | BS29: 0.8821965317 | BW29: 8 | BX29: 2025-03-01 | BY29: 28 | BZ29: 243 | CA29: 1630633.08 | CB29: 2740.848987 | CC29: 23288.0277 | CD29: 433.744279 | CE29: 450.45 | CF29: 0 | CG29: 26913.07096 | CH29: 1627892.231 | CI29: 0.8821965317 | CJ29: 0.8821965317 | CN29: 8 | CO29: 2025-03-01 | CP29: 28 | CQ29: 243 | CR29: 1634199.956 | CS29: -1054.024028 | CT29: 23338.96834 | CU29: 434.693059 | CV29: 450.45 | CW29: 0 | CX29: 23170.08738 | CY29: 1635253.98 | CZ29: 0.8821965317 | DA29: 0.8821965317
B30: 9 | C30: 2025-04-01 | D30: 31 | E30: 274 | F30: 1627892.231 | G30: 223.7585219 | H30: 25759.4459 | I30: 479.416539 | J30: 450.45 | K30: 0 | L30: 26913.07096 | M30: 1627668.472 | N30: 0.8682024508 | O30: 0.8682024508 | Q30: =IFERROR(IF('Simulación Cliente'!$H$21="Simple",G30+H30+I30+J30+K30,AC30+AD30+AE30+AF30+AG30),"") -> 26913.07096 | R30: 274 | S30: =IFERROR((1+'Simulación Cliente'!$E$21)^(R30/360),"") -> 1.154817965 | T30: 23305.03 | X30: 9 | Y30: 2025-04-01 | Z30: 31 | AA30: 274 | AB30: 1635253.98 | AC30: -3637.883976 | AD30: 25875.93677 | AE30: 481.5845843 | AF30: 450.45 | AG30: 0 | AH30: 23170.08738 | AI30: 1638891.864 | AJ30: 0.8682024508 | AK30: 0.8682024508 | AO30: 9 | AP30: 2025-04-01 | AQ30: 31 | AR30: 274 | AS30: 1619297.711 | AT30: 1379.242927 | AU30: 25623.44791 | AV30: 476.8854408 | AW30: 450.45 | AX30: 0 | AY30: 27930.02628 | AZ30: 1617918.468 | BA30: 0.8682024508 | BB30: 0.8682024508 | BF30: 9 | BG30: 2025-04-01 | BH30: 31 | BI30: 274 | BJ30: 1626937.647 | BK30: -2628.319559 | BL30: 25744.34076 | BM30: 479.1354127 | BN30: 450.45 | BO30: 0 | BP30: 24045.60661 | BQ30: 1629565.967 | BR30: 0.8682024508 | BS30: 0.8682024508 | BW30: 9 | BX30: 2025-04-01 | BY30: 31 | BZ30: 274 | CA30: 1627892.231 | CB30: 223.7585219 | CC30: 25759.4459 | CD30: 479.416539 | CE30: 450.45 | CF30: 0 | CG30: 26913.07096 | CH30: 1627668.472 | CI30: 0.8682024508 | CJ30: 0.8682024508 | CN30: 9 | CO30: 2025-04-01 | CP30: 31 | CQ30: 274 | CR30: 1635253.98 | CS30: -3637.883976 | CT30: 25875.93677 | CU30: 481.5845843 | CV30: 450.45 | CW30: 0 | CX30: 23170.08738 | CY30: 1638891.864 | CZ30: 0.8682024508 | DA30: 0.8682024508
B31: 10 | C31: 2025-05-01 | D31: 30 | E31: 304 | F31: 1627668.472 | G31: 1079.992989 | H31: 24918.74246 | I31: 463.8855146 | J31: 450.45 | K31: 0 | L31: 26913.07096 | M31: 1626588.479 | N31: 0.8548711873 | O31: 0.8548711873 | Q31: =IFERROR(IF('Simulación Cliente'!$H$21="Simple",G31+H31+I31+J31+K31,AC31+AD31+AE31+AF31+AG31),"") -> 26913.07096 | R31: =E31 -> 304 | S31: =IFERROR((1+'Simulación Cliente'!$E$21)^(R31/360),"") -> 1.173162246 | T31: 22940.62 | X31: 10 | Y31: 2025-05-01 | Z31: 30 | AA31: 304 | AB31: 1638891.864 | AC31: -2838.013445 | AD31: 25090.56664 | AE31: 467.0841812 | AF31: 450.45 | AG31: 0 | AH31: 23170.08738 | AI31: 1641729.877 | AJ31: 0.8548711873 | AK31: 0.8548711873 | AO31: 10 | AP31: 2025-05-01 | AQ31: 30 | AR31: 304 | AS31: 1617918.468 | AT31: 2248.994461 | AU31: 24769.47505 | AV31: 461.1067633 | AW31: 450.45 | AX31: 0 | AY31: 27930.02628 | AZ31: 1615669.473 | BA31: 0.8548711873 | BB31: 0.8548711873 | BF31: 10 | BG31: 2025-05-01 | BH31: 30 | BI31: 304 | BJ31: 1629565.967 | BK31: -1817.061782 | BL31: 24947.79209 | BM31: 464.4263005 | BN31: 450.45 | BO31: 0 | BP31: 24045.60661 | BQ31: 1631383.028 | BR31: 0.8548711873 | BS31: 0.8548711873 | BW31: 10 | BX31: 2025-05-01 | BY31: 30 | BZ31: 304 | CA31: 1627668.472 | CB31: 1079.992989 | CC31: 24918.74246 | CD31: 463.8855146 | CE31: 450.45 | CF31: 0 | CG31: 26913.07096 | CH31: 1626588.479 | CI31: 0.8548711873 | CJ31: 0.8548711873 | CN31: 10 | CO31: 2025-05-01 | CP31: 30 | CQ31: 304 | CR31: 1638891.864 | CS31: -2838.013445 | CT31: 25090.56664 | CU31: 467.0841812 | CV31: 450.45 | CW31: 0 | CX31: 23170.08738 | CY31: 1641729.877 | CZ31: 0.8548711873 | DA31: 0.8548711873
B32: 11 | C32: 2025-06-01 | D32: 31 | E32: 335 | F32: 1626588.479 | G32: 244.7727856 | H32: 25738.81559 | I32: 479.0325823 | J32: 450.45 | K32: 0 | L32: 26913.07096 | M32: 1626343.706 | N32: 0.8413105621 | O32: 0.8413105621 | Q32: =IFERROR(IF('Simulación Cliente'!$H$21="Simple",G32+H32+I32+J32+K32,AC32+AD32+AE32+AF32+AG32),"") -> 26913.07096 | R32: 335 | S32: =IFERROR((1+'Simulación Cliente'!$E$21)^(R32/360),"") -> 1.192424189 | T32: 22570.05 | X32: 11 | Y32: 2025-06-01 | Z32: 31 | AA32: 335 | AB32: 1641729.877 | AC32: -3742.264461 | AD32: 25978.41009 | AE32: 483.4917452 | AF32: 450.45 | AG32: 0 | AH32: 23170.08738 | AI32: 1645472.142 | AJ32: 0.8413105621 | AK32: 0.8413105621 | AO32: 11 | AP32: 2025-06-01 | AQ32: 31 | AR32: 335 | AS32: 1615669.473 | AT32: 1437.723961 | AU32: 25566.0354 | AV32: 475.8169198 | AW32: 450.45 | AX32: 0 | AY32: 27930.02628 | AZ32: 1614231.749 | BA32: 0.8413105621 | BB32: 0.8413105621 | BF32: 11 | BG32: 2025-06-01 | BH32: 31 | BI32: 335 | BJ32: 1631383.028 | BK32: -2699.971568 | BL32: 25814.6836 | BM32: 480.4445837 | BN32: 450.45 | BO32: 0 | BP32: 24045.60661 | BQ32: 1634083 | BR32: 0.8413105621 | BS32: 0.8413105621 | BW32: 11 | BX32: 2025-06-01 | BY32: 31 | BZ32: 335 | CA32: 1626588.479 | CB32: 244.7727856 | CC32: 25738.81559 | CD32: 479.0325823 | CE32: 450.45 | CF32: 0 | CG32: 26913.07096 | CH32: 1626343.706 | CI32: 0.8413105621 | CJ32: 0.8413105621 | CN32: 11 | CO32: 2025-06-01 | CP32: 31 | CQ32: 335 | CR32: 1641729.877 | CS32: -3742.264461 | CT32: 25978.41009 | CU32: 483.4917452 | CV32: 450.45 | CW32: 0 | CX32: 23170.08738 | CY32: 1645472.142 | CZ32: 0.8413105621 | DA32: 0.8413105621
B33: 12 | C33: 2025-07-01 | D33: 30 | E33: 365 | F33: 1626343.706 | G33: 1100.65201 | H33: 24898.461 | I33: 463.5079563 | J33: 450.45 | K33: 0 | L33: 26913.07096 | M33: 1625243.054 | N33: 0.828392224 | O33: 0.828392224 | Q33: =IFERROR(IF('Simulación Cliente'!$H$21="Simple",G33+H33+I33+J33+K33,AC33+AD33+AE33+AF33+AG33),"") -> 26913.07096 | R33: 365 | S33: =IFERROR((1+'Simulación Cliente'!$E$21)^(R33/360),"") -> 1.211365845 | T33: 22217.13 | X33: 12 | Y33: 2025-07-01 | Z33: 30 | AA33: 365 | AB33: 1645472.142 | AC33: 20229.45798 | AD33: 25191.30721 | AE33: 468.9595604 | AF33: 450.45 | AG33: 0 | AH33: 46340.17475 | AI33: 1625242.684 | AJ33: 1.656784448 | AK33: 0.828392224 | AO33: 12 | AP33: 2025-07-01 | AQ33: 30 | AR33: 365 | AS33: 1614231.749 | AT33: 2306.486883 | AU33: 24713.03335 | AV33: 460.0560486 | AW33: 450.45 | AX33: 0 | AY33: 27930.02628 | AZ33: 1611925.262 | BA33: 0.828392224 | BB33: 0.828392224 | BF33: 12 | BG33: 2025-07-01 | BH33: 30 | BI33: 365 | BJ33: 1634083 | BK33: 22158.10409 | BL33: 25016.94548 | BM33: 465.713655 | BN33: 450.45 | BO33: 0 | BP33: 48091.21322 | BQ33: 1611924.896 | BR33: 1.656784448 | BS33: 0.828392224 | BW33: 12 | BX33: 2025-07-01 | BY33: 30 | BZ33: 365 | CA33: 1626343.706 | CB33: 1100.65201 | CC33: 24898.461 | CD33: 463.5079563 | CE33: 450.45 | CF33: 0 | CG33: 26913.07096 | CH33: 1625243.054 | CI33: 0.828392224 | CJ33: 0.828392224 | CN33: 12 | CO33: 2025-07-01 | CP33: 30 | CQ33: 365 | CR33: 1645472.142 | CS33: 20229.45798 | CT33: 25191.30721 | CU33: 468.9595604 | CV33: 450.45 | CW33: 0 | CX33: 46340.17475 | CY33: 1625242.684 | CZ33: 1.656784448 | DA33: 0.828392224
B34: 13 | C34: 2025-08-01 | D34: 31 | E34: 396 | F34: 1625243.054 | G34: 266.4587519 | H34: 25717.52586 | I34: 478.6363528 | J34: 450.45 | K34: 0 | L34: 26913.07096 | M34: 1624976.596 | N34: 0.8152516285 | O34: 0.8152516285 | Q34: =IFERROR(IF('Simulación Cliente'!$H$21="Simple",G34+H34+I34+J34+K34,AC34+AD34+AE34+AF34+AG34),"") -> 26913.07096 | R34: 396 | S34: =IFERROR((1+'Simulación Cliente'!$E$21)^(R34/360),"") -> 1.231255046 | T34: 21858.24 | X34: 13 | Y34: 2025-08-01 | Z34: 31 | AA34: 396 | AB34: 1625242.684 | AC34: -3476.518858 | AD34: 25717.51999 | AE34: 478.6362436 | AF34: 450.45 | AG34: 0 | AH34: 23170.08738 | AI34: 1628719.202 | AJ34: 0.8152516285 | AK34: 0.8152516285 | AO34: 13 | AP34: 2025-08-01 | AQ34: 31 | AR34: 396 | AS34: 1611925.262 | AT34: 1498.074291 | AU34: 25506.78774 | AV34: 474.7142445 | AW34: 450.45 | AX34: 0 | AY34: 27930.02628 | AZ34: 1610427.188 | BA34: 0.8152516285 | BB34: 0.8152516285 | BF34: 13 | BG34: 2025-08-01 | BH34: 31 | BI34: 396 | BJ34: 1611924.896 | BK34: -2386.339466 | BL34: 25506.78194 | BM34: 474.7141365 | BN34: 450.45 | BO34: 0 | BP34: 24045.60661 | BQ34: 1614311.235 | BR34: 0.8152516285 | BS34: 0.8152516285 | BW34: 13 | BX34: 2025-08-01 | BY34: 31 | BZ34: 396 | CA34: 1625243.054 | CB34: 266.4587519 | CC34: 25717.52586 | CD34: 478.6363528 | CE34: 450.45 | CF34: 0 | CG34: 26913.07096 | CH34: 1624976.596 | CI34: 0.8152516285 | CJ34: 0.8152516285 | CN34: 13 | CO34: 2025-08-01 | CP34: 31 | CQ34: 396 | CR34: 1625242.684 | CS34: -3476.518858 | CT34: 25717.51999 | CU34: 478.6362436 | CV34: 450.45 | CW34: 0 | CX34: 23170.08738 | CY34: 1628719.202 | CZ34: 0.8152516285 | DA34: 0.8152516285
B35: 14 | C35: 2025-09-01 | D35: 31 | E35: 427 | F35: 1624976.596 | G35: 270.7536152 | H35: 25713.30947 | I35: 478.5578804 | J35: 450.45 | K35: 0 | L35: 26913.07096 | M35: 1624705.842 | N35: 0.8023194793 | O35: 0.8023194793 | Q35: =IFERROR(IF('Simulación Cliente'!$H$21="Simple",G35+H35+I35+J35+K35,AC35+AD35+AE35+AF35+AG35),"") -> 26913.07096 | R35: 427 | S35: =IFERROR((1+'Simulación Cliente'!$E$21)^(R35/360),"") -> 1.251470803 | T35: 21505.15 | X35: 14 | Y35: 2025-09-01 | Z35: 31 | AA35: 427 | AB35: 1628719.202 | AC35: -3532.554447 | AD35: 25772.53174 | AE35: 479.6600833 | AF35: 450.45 | AG35: 0 | AH35: 23170.08738 | AI35: 1632251.757 | AJ35: 0.8023194793 | AK35: 0.8023194793 | AO35: 14 | AP35: 2025-09-01 | AQ35: 31 | AR35: 427 | AS35: 1610427.188 | AT35: 1522.220708 | AU35: 25483.08251 | AV35: 474.2730595 | AW35: 450.45 | AX35: 0 | AY35: 27930.02628 | AZ35: 1608904.967 | BA35: 0.8023194793 | BB35: 0.8023194793 | BF35: 14 | BG35: 2025-09-01 | BH35: 31 | BI35: 427 | BJ35: 1614311.235 | BK35: -2424.803212 | BL35: 25544.54291 | BM35: 475.4169168 | BN35: 450.45 | BO35: 0 | BP35: 24045.60661 | BQ35: 1616736.039 | BR35: 0.8023194793 | BS35: 0.8023194793 | BW35: 14 | BX35: 2025-09-01 | BY35: 31 | BZ35: 427 | CA35: 1624976.596 | CB35: 270.7536152 | CC35: 25713.30947 | CD35: 478.5578804 | CE35: 450.45 | CF35: 0 | CG35: 26913.07096 | CH35: 1624705.842 | CI35: 0.8023194793 | CJ35: 0.8023194793 | CN35: 14 | CO35: 2025-09-01 | CP35: 31 | CQ35: 427 | CR35: 1628719.202 | CS35: -3532.554447 | CT35: 25772.53174 | CU35: 479.6600833 | CV35: 450.45 | CW35: 0 | CX35: 23170.08738 | CY35: 1632251.757 | CZ35: 0.8023194793 | DA35: 0.8023194793
B36: 15 | C36: 2025-10-01 | D36: 30 | E36: 457 | F36: 1624705.842 | G36: 1126.193638 | H36: 24873.38616 | I36: 463.041165 | J36: 450.45 | K36: 0 | L36: 26913.07096 | M36: 1623579.648 | N36: 0.7899998499 | O36: 0.7899998499 | Q36: =IFERROR(IF('Simulación Cliente'!$H$21="Simple",G36+H36+I36+J36+K36,AC36+AD36+AE36+AF36+AG36),"") -> 26913.07096 | R36: 457 | S36: =IFERROR((1+'Simulación Cliente'!$E$21)^(R36/360),"") -> 1.271350415 | T36: 21168.89 | X36: 15 | Y36: 2025-10-01 | Z36: 30 | AA36: 457 | AB36: 1632251.757 | AC36: -2734.464496 | AD36: 24988.91012 | AE36: 465.1917507 | AF36: 450.45 | AG36: 0 | AH36: 23170.08738 | AI36: 1634986.221 | AJ36: 0.7899998499 | AK36: 0.7899998499 | AO36: 15 | AP36: 2025-10-01 | AQ36: 30 | AR36: 457 | AS36: 1608904.967 | AT36: 2389.555226 | AU36: 24631.48314 | AV36: 458.5379157 | AW36: 450.45 | AX36: 0 | AY36: 27930.02628 | AZ36: 1606515.412 | BA36: 0.7899998499 | BB36: 0.7899998499 | BF36: 15 | BG36: 2025-10-01 | BH36: 30 | BI36: 457 | BJ36: 1616736.039 | BK36: -1616.985847 | BL36: 24751.37269 | BM36: 460.769771 | BN36: 450.45 | BO36: 0 | BP36: 24045.60661 | BQ36: 1618353.024 | BR36: 0.7899998499 | BS36: 0.7899998499 | BW36: 15 | BX36: 2025-10-01 | BY36: 30 | BZ36: 457 | CA36: 1624705.842 | CB36: 1126.193638 | CC36: 24873.38616 | CD36: 463.041165 | CE36: 450.45 | CF36: 0 | CG36: 26913.07096 | CH36: 1623579.648 | CI36: 0.7899998499 | CJ36: 0.7899998499 | CN36: 15 | CO36: 2025-10-01 | CP36: 30 | CQ36: 457 | CR36: 1632251.757 | CS36: -2734.464496 | CT36: 24988.91012 | CU36: 465.1917507 | CV36: 450.45 | CW36: 0 | CX36: 23170.08738 | CY36: 1634986.221 | CZ36: 0.7899998499 | DA36: 0.7899998499
B37: 16 | C37: 2025-11-01 | D37: 31 | E37: 488 | F37: 1623579.648 | G37: 293.2700362 | H37: 25691.20445 | I37: 478.1464774 | J37: 450.45 | K37: 0 | L37: 26913.07096 | M37: 1623286.378 | N37: 0.7774682638 | O37: 0.7774682638 | Q37: =IFERROR(IF('Simulación Cliente'!$H$21="Simple",G37+H37+I37+J37+K37,AC37+AD37+AE37+AF37+AG37),"") -> 26913.07096 | R37: 488 | S37: =IFERROR((1+'Simulación Cliente'!$E$21)^(R37/360),"") -> 1.292224492 | T37: 20826.93 | X37: 16 | Y37: 2025-11-01 | Z37: 31 | AA37: 488 | AB37: 1634986.221 | AC37: -3633.568166 | AD37: 25871.69981 | AE37: 481.5057291 | AF37: 450.45 | AG37: 0 | AH37: 23170.08738 | AI37: 1638619.79 | AJ37: 0.7774682638 | AK37: 0.7774682638 | AO37: 16 | AP37: 2025-11-01 | AQ37: 31 | AR37: 488 | AS37: 1606515.412 | AT37: 1585.271904 | AU37: 25421.18334 | AV37: 473.121036 | AW37: 450.45 | AX37: 0 | AY37: 27930.02628 | AZ37: 1604930.14 | BA37: 0.7774682638 | BB37: 0.7774682638 | BF37: 16 | BG37: 2025-11-01 | BH37: 31 | BI37: 488 | BJ37: 1618353.024 | BK37: -2489.949998 | BL37: 25608.49938 | BM37: 476.6072293 | BN37: 450.45 | BO37: 0 | BP37: 24045.60661 | BQ37: 1620842.974 | BR37: 0.7774682638 | BS37: 0.7774682638 | BW37: 16 | BX37: 2025-11-01 | BY37: 31 | BZ37: 488 | CA37: 1623579.648 | CB37: 293.2700362 | CC37: 25691.20445 | CD37: 478.1464774 | CE37: 450.45 | CF37: 0 | CG37: 26913.07096 | CH37: 1623286.378 | CI37: 0.7774682638 | CJ37: 0.7774682638 | CN37: 16 | CO37: 2025-11-01 | CP37: 31 | CQ37: 488 | CR37: 1634986.221 | CS37: -3633.568166 | CT37: 25871.69981 | CU37: 481.5057291 | CV37: 450.45 | CW37: 0 | CX37: 23170.08738 | CY37: 1638619.79 | CZ37: 0.7774682638 | DA37: 0.7774682638
B38: 17 | C38: 2025-12-01 | D38: 30 | E38: 518 | F38: 1623286.378 | G38: 1148.329422 | H38: 24851.65492 | I38: 462.6366178 | J38: 450.45 | K38: 0 | L38: 26913.07096 | M38: 1622138.049 | N38: 0.7655302253 | O38: 0.7655302253 | Q38: =IFERROR(IF('Simulación Cliente'!$H$21="Simple",G38+H38+I38+J38+K38,AC38+AD38+AE38+AF38+AG38),"") -> 26913.07096 | R38: 518 | S38: =IFERROR((1+'Simulación Cliente'!$E$21)^(R38/360),"") -> 1.312751476 | T38: 20501.27 | X38: 17 | Y38: 2025-12-01 | Z38: 30 | AA38: 518 | AB38: 1638619.79 | AC38: 20336.31678 | AD38: 25086.40133 | AE38: 467.00664 | AF38: 450.45 | AG38: 0 | AH38: 46340.17475 | AI38: 1618283.473 | AJ38: 1.531060451 | AK38: 0.7655302253 | AO38: 17 | AP38: 2025-12-01 | AQ38: 30 | AR38: 518 | AS38: 1604930.14 | AT38: 2451.54055 | AU38: 24570.63064 | AV38: 457.40509 | AW38: 450.45 | AX38: 0 | AY38: 27930.02628 | AZ38: 1602478.6 | BA38: 0.7655302253 | BB38: 0.7655302253 | BF38: 17 | BG38: 2025-12-01 | BH38: 30 | BI38: 518 | BJ38: 1620842.974 | BK38: 22364.57527 | BL38: 24814.2477 | BM38: 461.9402477 | BN38: 450.45 | BO38: 0 | BP38: 48091.21322 | BQ38: 1598478.399 | BR38: 1.531060451 | BS38: 0.7655302253 | BW38: 17 | BX38: 2025-12-01 | BY38: 30 | BZ38: 518 | CA38: 1623286.378 | CB38: 1148.329422 | CC38: 24851.65492 | CD38: 462.6366178 | CE38: 450.45 | CF38: 0 | CG38: 26913.07096 | CH38: 1622138.049 | CI38: 0.7655302253 | CJ38: 0.7655302253 | CN38: 17 | CO38: 2025-12-01 | CP38: 30 | CQ38: 518 | CR38: 1638619.79 | CS38: 20336.31678 | CT38: 25086.40133 | CU38: 467.00664 | CV38: 450.45 | CW38: 0 | CX38: 46340.17475 | CY38: 1618283.473 | CZ38: 1.531060451 | DA38: 0.7655302253
B39: 18 | C39: 2026-01-01 | D39: 31 | E39: 549 | F39: 1622138.049 | G39: 316.506175 | H39: 25668.39286 | I39: 477.7219244 | J39: 450.45 | K39: 0 | L39: 26913.07096 | M39: 1621821.543 | N39: 0.7533867953 | O39: 0.7533867953 | Q39: =IFERROR(IF('Simulación Cliente'!$H$21="Simple",G39+H39+I39+J39+K39,AC39+AD39+AE39+AF39+AG39),"") -> 26913.07096 | R39: 549 | S39: =IFERROR((1+'Simulación Cliente'!$E$21)^(R39/360),"") -> 1.334305309 | T39: 20170.1 | X39: 18 | Y39: 2026-01-01 | Z39: 31 | AA39: 549 | AB39: 1618283.473 | AC39: -3364.34818 | AD39: 25607.39881 | AE39: 476.5867463 | AF39: 450.45 | AG39: 0 | AH39: 23170.08738 | AI39: 1621647.821 | AJ39: 0.7533867953 | AK39: 0.7533867953 | AO39: 18 | AP39: 2026-01-01 | AQ39: 31 | AR39: 549 | AS39: 1602478.6 | AT39: 1650.338475 | AU39: 25357.30561 | AV39: 471.9321891 | AW39: 450.45 | AX39: 0 | AY39: 27930.02628 | AZ39: 1600828.261 | BA39: 0.7533867953 | BB39: 0.7533867953 | BF39: 18 | BG39: 2026-01-01 | BH39: 31 | BI39: 549 | BJ39: 1598478.399 | BK39: -2169.604739 | BL39: 25294.00723 | BM39: 470.7541244 | BN39: 450.45 | BO39: 0 | BP39: 24045.60661 | BQ39: 1600648.004 | BR39: 0.7533867953 | BS39: 0.7533867953 | BW39: 18 | BX39: 2026-01-01 | BY39: 31 | BZ39: 549 | CA39: 1622138.049 | CB39: 316.506175 | CC39: 25668.39286 | CD39: 477.7219244 | CE39: 450.45 | CF39: 0 | CG39: 26913.07096 | CH39: 1621821.543 | CI39: 0.7533867953 | CJ39: 0.7533867953 | CN39: 18 | CO39: 2026-01-01 | CP39: 31 | CQ39: 549 | CR39: 1618283.473 | CS39: -3364.34818 | CT39: 25607.39881 | CU39: 476.5867463 | CV39: 450.45 | CW39: 0 | CX39: 23170.08738 | CY39: 1621647.821 | CZ39: 0.7533867953 | DA39: 0.7533867953
B40: 19 | C40: 2026-02-01 | D40: 31 | E40: 580 | F40: 1621821.543 | G40: 321.6077179 | H40: 25663.38453 | I40: 477.6287129 | J40: 450.45 | K40: 0 | L40: 26913.07096 | M40: 1621499.935 | N40: 0.7414359937 | O40: 0.7414359937 | Q40: =IFERROR(IF('Simulación Cliente'!$H$21="Simple",G40+H40+I40+J40+K40,AC40+AD40+AE40+AF40+AG40),"") -> 26913.07096 | R40: 580 | S40: =IFERROR((1+'Simulación Cliente'!$E$21)^(R40/360),"") -> 1.356213031 | T40: 19844.28 | X40: 19 | Y40: 2026-02-01 | Z40: 31 | AA40: 580 | AB40: 1621647.821 | AC40: -3418.575768 | AD40: 25660.63559 | AE40: 477.5775516 | AF40: 450.45 | AG40: 0 | AH40: 23170.08738 | AI40: 1625066.397 | AJ40: 0.7414359937 | AK40: 0.7414359937 | AO40: 19 | AP40: 2026-02-01 | AQ40: 31 | AR40: 580 | AS40: 1600828.261 | AT40: 1676.939133 | AU40: 25331.19098 | AV40: 471.4461621 | AW40: 450.45 | AX40: 0 | AY40: 27930.02628 | AZ40: 1599151.322 | BA40: 0.7414359937 | BB40: 0.7414359937 | BF40: 19 | BG40: 2026-02-01 | BH40: 31 | BI40: 580 | BJ40: 1600648.004 | BK40: -2204.575088 | BL40: 25328.33862 | BM40: 471.393076 | BN40: 450.45 | BO40: 0 | BP40: 24045.60661 | BQ40: 1602852.579 | BR40: 0.7414359937 | BS40: 0.7414359937 | BW40: 19 | BX40: 2026-02-01 | BY40: 31 | BZ40: 580 | CA40: 1621821.543 | CB40: 321.6077179 | CC40: 25663.38453 | CD40: 477.6287129 | CE40: 450.45 | CF40: 0 | CG40: 26913.07096 | CH40: 1621499.935 | CI40: 0.7414359937 | CJ40: 0.7414359937 | CN40: 19 | CO40: 2026-02-01 | CP40: 31 | CQ40: 580 | CR40: 1621647.821 | CS40: -3418.575768 | CT40: 25660.63559 | CU40: 477.5775516 | CV40: 450.45 | CW40: 0 | CX40: 23170.08738 | CY40: 1625066.397 | CZ40: 0.7414359937 | DA40: 0.7414359937
B41: 20 | C41: 2026-03-01 | D41: 28 | E41: 608 | F41: 1621499.935 | G41: 2873.714178 | H41: 23157.5919 | I41: 431.3148856 | J41: 450.45 | K41: 0 | L41: 26913.07096 | M41: 1618626.221 | N41: 0.7308047469 | O41: 0.7308047469 | Q41: =IFERROR(IF('Simulación Cliente'!$H$21="Simple",G41+H41+I41+J41+K41,AC41+AD41+AE41+AF41+AG41),"") -> 26913.07096 | R41: 608 | S41: =IFERROR((1+'Simulación Cliente'!$E$21)^(R41/360),"") -> 1.376309656 | T41: 19554.52 | X41: 20 | Y41: 2026-03-01 | Z41: 28 | AA41: 608 | AB41: 1625066.397 | AC41: -921.1528104 | AD41: 23208.52663 | AE41: 432.2635554 | AF41: 450.45 | AG41: 0 | AH41: 23170.08738 | AI41: 1625987.55 | AJ41: 0.7308047469 | AK41: 0.7308047469 | AO41: 20 | AP41: 2026-03-01 | AQ41: 28 | AR41: 608 | AS41: 1599151.322 | AT41: 4215.78782 | AU41: 22838.41825 | AV41: 425.3702111 | AW41: 450.45 | AX41: 0 | AY41: 27930.02628 | AZ41: 1594935.534 | BA41: 0.7308047469 | BB41: 0.7308047469 | BF41: 20 | BG41: 2026-03-01 | BH41: 28 | BI41: 608 | BJ41: 1602852.579 | BK41: 277.5238094 | BL41: 22891.27807 | BM41: 426.354736 | BN41: 450.45 | BO41: 0 | BP41: 24045.60661 | BQ41: 1602575.055 | BR41: 0.7308047469 | BS41: 0.7308047469 | BW41: 20 | BX41: 2026-03-01 | BY41: 28 | BZ41: 608 | CA41: 1621499.935 | CB41: 2873.714178 | CC41: 23157.5919 | CD41: 431.3148856 | CE41: 450.45 | CF41: 0 | CG41: 26913.07096 | CH41: 1618626.221 | CI41: 0.7308047469 | CJ41: 0.7308047469 | CN41: 20 | CO41: 2026-03-01 | CP41: 28 | CQ41: 608 | CR41: 1625066.397 | CS41: -921.1528104 | CT41: 23208.52663 | CU41: 432.2635554 | CV41: 450.45 | CW41: 0 | CX41: 23170.08738 | CY41: 1625987.55 | CZ41: 0.7308047469 | DA41: 0.7308047469
B42: 21 | C42: 2026-04-01 | D42: 31 | E42: 639 | F42: 1618626.221 | G42: 373.1108887 | H42: 25612.82239 | I42: 476.6876861 | J42: 450.45 | K42: 0 | L42: 26913.07096 | M42: 1618253.11 | N42: 0.7192121591 | O42: 0.7192121591 | Q42: =IFERROR(IF('Simulación Cliente'!$H$21="Simple",G42+H42+I42+J42+K42,AC42+AD42+AE42+AF42+AG42),"") -> 26913.07096 | R42: 639 | S42: =IFERROR((1+'Simulación Cliente'!$E$21)^(R42/360),"") -> 1.39890704 | T42: 19238.64 | X42: 21 | Y42: 2026-04-01 | Z42: 31 | AA42: 639 | AB42: 1625987.55 | AC42: -3488.524834 | AD42: 25729.3066 | AE42: 478.8556077 | AF42: 450.45 | AG42: 0 | AH42: 23170.08738 | AI42: 1629476.074 | AJ42: 0.7192121591 | AK42: 0.7192121591 | AO42: 21 | AP42: 2026-04-01 | AQ42: 31 | AR42: 639 | AS42: 1594935.534 | AT42: 1771.9199 | AU42: 25237.94563 | AV42: 469.7107458 | AW42: 450.45 | AX42: 0 | AY42: 27930.02628 | AZ42: 1593163.614 | BA42: 0.7192121591 | BB42: 0.7192121591 | BF42: 21 | BG42: 2026-04-01 | BH42: 31 | BI42: 639 | BJ42: 1602575.055 | BK42: -2235.635887 | BL42: 25358.8319 | BM42: 471.9605953 | BN42: 450.45 | BO42: 0 | BP42: 24045.60661 | BQ42: 1604810.691 | BR42: 0.7192121591 | BS42: 0.7192121591 | BW42: 21 | BX42: 2026-04-01 | BY42: 31 | BZ42: 639 | CA42: 1618626.221 | CB42: 373.1108887 | CC42: 25612.82239 | CD42: 476.6876861 | CE42: 450.45 | CF42: 0 | CG42: 26913.07096 | CH42: 1618253.11 | CI42: 0.7192121591 | CJ42: 0.7192121591 | CN42: 21 | CO42: 2026-04-01 | CP42: 31 | CQ42: 639 | CR42: 1625987.55 | CS42: -3488.524834 | CT42: 25729.3066 | CU42: 478.8556077 | CV42: 450.45 | CW42: 0 | CX42: 23170.08738 | CY42: 1629476.074 | CZ42: 0.7192121591 | DA42: 0.7192121591
B43: 22 | C43: 2026-05-01 | D43: 30 | E43: 669 | F43: 1618253.11 | G43: 1226.820578 | H43: 24774.59825 | I43: 461.2021364 | J43: 450.45 | K43: 0 | L43: 26913.07096 | M43: 1617026.289 | N43: 0.7081686441 | O43: 0.7081686441 | Q43: =IFERROR(IF('Simulación Cliente'!$H$21="Simple",G43+H43+I43+J43+K43,AC43+AD43+AE43+AF43+AG43),"") -> 26913.07096 | R43: 669 | S43: =IFERROR((1+'Simulación Cliente'!$E$21)^(R43/360),"") -> 1.421128676 | T43: 18937.81 | X43: 22 | Y43: 2026-05-01 | Z43: 30 | AA43: 669 | AB43: 1629476.074 | AC43: -2691.179196 | AD43: 24946.41589 | AE43: 464.4006812 | AF43: 450.45 | AG43: 0 | AH43: 23170.08738 | AI43: 1632167.254 | AJ43: 0.7081686441 | AK43: 0.7081686441 | AO43: 22 | AP43: 2026-05-01 | AQ43: 30 | AR43: 669 | AS43: 1593163.614 | AT43: 2635.033291 | AU43: 24390.49136 | AV43: 454.0516301 | AW43: 450.45 | AX43: 0 | AY43: 27930.02628 | AZ43: 1590528.581 | BA43: 0.7081686441 | BB43: 0.7081686441 | BF43: 22 | BG43: 2026-05-01 | BH43: 30 | BI43: 669 | BJ43: 1604810.691 | BK43: -1431.016367 | BL43: 24568.80193 | BM43: 457.3710469 | BN43: 450.45 | BO43: 0 | BP43: 24045.60661 | BQ43: 1606241.707 | BR43: 0.7081686441 | BS43: 0.7081686441 | BW43: 22 | BX43: 2026-05-01 | BY43: 30 | BZ43: 669 | CA43: 1618253.11 | CB43: 1226.820578 | CC43: 24774.59825 | CD43: 461.2021364 | CE43: 450.45 | CF43: 0 | CG43: 26913.07096 | CH43: 1617026.289 | CI43: 0.7081686441 | CJ43: 0.7081686441 | CN43: 22 | CO43: 2026-05-01 | CP43: 30 | CQ43: 669 | CR43: 1629476.074 | CS43: -2691.179196 | CT43: 24946.41589 | CU43: 464.4006812 | CV43: 450.45 | CW43: 0 | CX43: 23170.08738 | CY43: 1632167.254 | CZ43: 0.7081686441 | DA43: 0.7081686441
B44: 23 | C44: 2026-06-01 | D44: 31 | E44: 700 | F44: 1617026.289 | G44: 398.899071 | H44: 25587.50539 | I44: 476.216504 | J44: 450.45 | K44: 0 | L44: 26913.07096 | M44: 1616627.39 | N44: 0.6969351276 | O44: 0.6969351276 | Q44: =IFERROR(IF('Simulación Cliente'!$H$21="Simple",G44+H44+I44+J44+K44,AC44+AD44+AE44+AF44+AG44),"") -> 26913.07096 | R44: 700 | S44: =IFERROR((1+'Simulación Cliente'!$E$21)^(R44/360),"") -> 1.444461935 | T44: 18631.9 | X44: 23 | Y44: 2026-06-01 | Z44: 31 | AA44: 700 | AB44: 1632167.254 | AC44: -3588.131184 | AD44: 25827.09302 | AE44: 480.6755392 | AF44: 450.45 | AG44: 0 | AH44: 23170.08738 | AI44: 1635755.385 | AJ44: 0.6969351276 | AK44: 0.6969351276 | AO44: 23 | AP44: 2026-06-01 | AQ44: 31 | AR44: 700 | AS44: 1590528.581 | AT44: 1842.952513 | AU44: 25168.21087 | AV44: 468.4128919 | AW44: 450.45 | AX44: 0 | AY44: 27930.02628 | AZ44: 1588685.629 | BA44: 0.6969351276 | BB44: 0.6969351276 | BF44: 23 | BG44: 2026-06-01 | BH44: 31 | BI44: 700 | BJ44: 1606241.707 | BK44: -2294.736105 | BL44: 25416.85229 | BM44: 473.0404295 | BN44: 450.45 | BO44: 0 | BP44: 24045.60661 | BQ44: 1608536.443 | BR44: 0.6969351276 | BS44: 0.6969351276 | BW44: 23 | BX44: 2026-06-01 | BY44: 31 | BZ44: 700 | CA44: 1617026.289 | CB44: 398.899071 | CC44: 25587.50539 | CD44: 476.216504 | CE44: 450.45 | CF44: 0 | CG44: 26913.07096 | CH44: 1616627.39 | CI44: 0.6969351276 | CJ44: 0.6969351276 | CN44: 23 | CO44: 2026-06-01 | CP44: 31 | CQ44: 700 | CR44: 1632167.254 | CS44: -3588.131184 | CT44: 25827.09302 | CU44: 480.6755392 | CV44: 450.45 | CW44: 0 | CX44: 23170.08738 | CY44: 1635755.385 | CZ44: 0.6969351276 | DA44: 0.6969351276
B45: 24 | C45: 2026-07-01 | D45: 30 | E45: 730 | F45: 1616627.39 | G45: 1252.172815 | H45: 24749.70934 | I45: 460.7388063 | J45: 450.45 | K45: 0 | L45: 26913.07096 | M45: 1615375.218 | N45: 0.6862336768 | O45: 0.6862336768 | Q45: =IFERROR(IF('Simulación Cliente'!$H$21="Simple",G45+H45+I45+J45+K45,AC45+AD45+AE45+AF45+AG45),"") -> 26913.07096 | R45: 730 | S45: =IFERROR((1+'Simulación Cliente'!$E$21)^(R45/360),"") -> 1.467407211 | T45: 18340.56 | X45: 24 | Y45: 2026-07-01 | Z45: 30 | AA45: 730 | AB45: 1635755.385 | AC45: 20380.98566 | AD45: 25042.54881 | AE45: 466.1902847 | AF45: 450.45 | AG45: 0 | AH45: 46340.17475 | AI45: 1615374.399 | AJ45: 1.372467354 | AK45: 0.6862336768 | AO45: 24 | AP45: 2026-07-01 | AQ45: 30 | AR45: 730 | AS45: 1588685.629 | AT45: 2704.865108 | AU45: 24321.93577 | AV45: 452.7754042 | AW45: 450.45 | AX45: 0 | AY45: 27930.02628 | AZ45: 1585980.764 | BA45: 0.6862336768 | BB45: 0.6862336768 | BF45: 24 | BG45: 2026-07-01 | BH45: 30 | BI45: 730 | BJ45: 1608536.443 | BK45: 22556.48911 | BL45: 24625.84123 | BM45: 458.4328864 | BN45: 450.45 | BO45: 0 | BP45: 48091.21322 | BQ45: 1585979.954 | BR45: 1.372467354 | BS45: 0.6862336768 | BW45: 24 | BX45: 2026-07-01 | BY45: 30 | BZ45: 730 | CA45: 1616627.39 | CB45: 1252.172815 | CC45: 24749.70934 | CD45: 460.7388063 | CE45: 450.45 | CF45: 0 | CG45: 26913.07096 | CH45: 1615375.218 | CI45: 0.6862336768 | CJ45: 0.6862336768 | CN45: 24 | CO45: 2026-07-01 | CP45: 30 | CQ45: 730 | CR45: 1635755.385 | CS45: 20380.98566 | CT45: 25042.54881 | CU45: 466.1902847 | CV45: 450.45 | CW45: 0 | CX45: 46340.17475 | CY45: 1615374.399 | CZ45: 1.372467354 | DA45: 0.6862336768
B46: 25 | C46: 2026-08-01 | D46: 31 | E46: 761 | F46: 1615375.218 | G46: 425.5115502 | H46: 25561.37915 | I46: 475.7302611 | J46: 450.45 | K46: 0 | L46: 26913.07096 | M46: 1614949.706 | N46: 0.6753481097 | O46: 0.6753481097 | Q46: =IFERROR(IF('Simulación Cliente'!$H$21="Simple",G46+H46+I46+J46+K46,AC46+AD46+AE46+AF46+AG46),"") -> 26913.07096 | R46: 761 | S46: =IFERROR((1+'Simulación Cliente'!$E$21)^(R46/360),"") -> 1.491500309 | T46: 18044.29 | X46: 25 | Y46: 2026-08-01 | Z46: 31 | AA46: 761 | AB46: 1615374.399 | AC46: -3317.458845 | AD46: 25561.3662 | AE46: 475.73002 | AF46: 450.45 | AG46: 0 | AH46: 23170.08738 | AI46: 1618691.858 | AJ46: 0.6753481097 | AK46: 0.6753481097 | AO46: 25 | AP46: 2026-08-01 | AQ46: 31 | AR46: 761 | AS46: 1585980.764 | AT46: 1916.255621 | AU46: 25096.2471 | AV46: 467.0735532 | AW46: 450.45 | AX46: 0 | AY46: 27930.02628 | AZ46: 1584064.508 | BA46: 0.6753481097 | BB46: 0.6753481097 | BF46: 25 | BG46: 2026-08-01 | BH46: 31 | BI46: 761 | BJ46: 1585979.954 | BK46: -1968.151003 | BL46: 25096.2343 | BM46: 467.0733149 | BN46: 450.45 | BO46: 0 | BP46: 24045.60661 | BQ46: 1587948.105 | BR46: 0.6753481097 | BS46: 0.6753481097 | BW46: 25 | BX46: 2026-08-01 | BY46: 31 | BZ46: 761 | CA46: 1615375.218 | CB46: 425.5115502 | CC46: 25561.37915 | CD46: 475.7302611 | CE46: 450.45 | CF46: 0 | CG46: 26913.07096 | CH46: 1614949.706 | CI46: 0.6753481097 | CJ46: 0.6753481097 | CN46: 25 | CO46: 2026-08-01 | CP46: 31 | CQ46: 761 | CR46: 1615374.399 | CS46: -3317.458845 | CT46: 25561.3662 | CU46: 475.73002 | CV46: 450.45 | CW46: 0 | CX46: 23170.08738 | CY46: 1618691.858 | CZ46: 0.6753481097 | DA46: 0.6753481097
B47: 26 | C47: 2026-09-01 | D47: 31 | E47: 792 | F47: 1614949.706 | G47: 432.3700749 | H47: 25554.64594 | I47: 475.6049473 | J47: 450.45 | K47: 0 | L47: 26913.07096 | M47: 1614517.336 | N47: 0.6646352178 | O47: 0.6646352178 | Q47: =IFERROR(IF('Simulación Cliente'!$H$21="Simple",G47+H47+I47+J47+K47,AC47+AD47+AE47+AF47+AG47),"") -> 26913.07096 | R47: 792 | S47: =IFERROR((1+'Simulación Cliente'!$E$21)^(R47/360),"") -> 1.515988987 | T47: 17752.81 | X47: 26 | Y47: 2026-09-01 | Z47: 31 | AA47: 792 | AB47: 1618691.858 | AC47: -3370.930656 | AD47: 25613.86102 | AE47: 476.7070163 | AF47: 450.45 | AG47: 0 | AH47: 23170.08738 | AI47: 1622062.789 | AJ47: 0.6646352178 | AK47: 0.6646352178 | AO47: 26 | AP47: 2026-09-01 | AQ47: 31 | AR47: 792 | AS47: 1584064.508 | AT47: 1947.142412 | AU47: 25065.92465 | AV47: 466.5092133 | AW47: 450.45 | AX47: 0 | AY47: 27930.02628 | AZ47: 1582117.366 | BA47: 0.6646352178 | BB47: 0.6646352178 | BF47: 26 | BG47: 2026-09-01 | BH47: 31 | BI47: 792 | BJ47: 1587948.105 | BK47: -1999.87426 | BL47: 25127.37793 | BM47: 467.6529382 | BN47: 450.45 | BO47: 0 | BP47: 24045.60661 | BQ47: 1589947.98 | BR47: 0.6646352178 | BS47: 0.6646352178 | BW47: 26 | BX47: 2026-09-01 | BY47: 31 | BZ47: 792 | CA47: 1614949.706 | CB47: 432.3700749 | CC47: 25554.64594 | CD47: 475.6049473 | CE47: 450.45 | CF47: 0 | CG47: 26913.07096 | CH47: 1614517.336 | CI47: 0.6646352178 | CJ47: 0.6646352178 | CN47: 26 | CO47: 2026-09-01 | CP47: 31 | CQ47: 792 | CR47: 1618691.858 | CS47: -3370.930656 | CT47: 25613.86102 | CU47: 476.7070163 | CV47: 450.45 | CW47: 0 | CX47: 23170.08738 | CY47: 1622062.789 | CZ47: 0.6646352178 | DA47: 0.6646352178
B48: 27 | C48: 2026-10-01 | D48: 30 | E48: 822 | F48: 1614517.336 | G48: 1285.077996 | H48: 24717.40553 | I48: 460.1374407 | J48: 450.45 | K48: 0 | L48: 26913.07096 | M48: 1613232.258 | N48: 0.6544297326 | O48: 0.6544297326 | Q48: =IFERROR(IF('Simulación Cliente'!$H$21="Simple",G48+H48+I48+J48+K48,AC48+AD48+AE48+AF48+AG48),"") -> 26913.07096 | R48: 822 | S48: =IFERROR((1+'Simulación Cliente'!$E$21)^(R48/360),"") -> 1.54007047 | T48: 17475.22 | X48: 27 | Y48: 2026-10-01 | Z48: 30 | AA48: 822 | AB48: 1622062.789 | AC48: -2575.57293 | AD48: 24832.92241 | AE48: 462.2878948 | AF48: 450.45 | AG48: 0 | AH48: 23170.08738 | AI48: 1624638.362 | AJ48: 0.6544297326 | AK48: 0.6544297326 | AO48: 27 | AP48: 2026-10-01 | AQ48: 30 | AR48: 822 | AS48: 1582117.366 | AT48: 2807.293694 | AU48: 24221.37913 | AV48: 450.9034492 | AW48: 450.45 | AX48: 0 | AY48: 27930.02628 | AZ48: 1579310.072 | BA48: 0.6544297326 | BB48: 0.6544297326 | BF48: 27 | BG48: 2026-10-01 | BH48: 30 | BI48: 822 | BJ48: 1589947.98 | BK48: -1199.240253 | BL48: 24341.26169 | BM48: 453.1351742 | BN48: 450.45 | BO48: 0 | BP48: 24045.60661 | BQ48: 1591147.22 | BR48: 0.6544297326 | BS48: 0.6544297326 | BW48: 27 | BX48: 2026-10-01 | BY48: 30 | BZ48: 822 | CA48: 1614517.336 | CB48: 1285.077996 | CC48: 24717.40553 | CD48: 460.1374407 | CE48: 450.45 | CF48: 0 | CG48: 26913.07096 | CH48: 1613232.258 | CI48: 0.6544297326 | CJ48: 0.6544297326 | CN48: 27 | CO48: 2026-10-01 | CP48: 30 | CQ48: 822 | CR48: 1622062.789 | CS48: -2575.57293 | CT48: 24832.92241 | CU48: 462.2878948 | CV48: 450.45 | CW48: 0 | CX48: 23170.08738 | CY48: 1624638.362 | CZ48: 0.6544297326 | DA48: 0.6544297326
B49: 28 | C49: 2026-11-01 | D49: 31 | E49: 853 | F49: 1613232.258 | G49: 460.0524256 | H49: 25527.46938 | I49: 475.0991565 | J49: 450.45 | K49: 0 | L49: 26913.07096 | M49: 1612772.205 | N49: 0.6440486642 | O49: 0.6440486642 | Q49: =IFERROR(IF('Simulación Cliente'!$H$21="Simple",G49+H49+I49+J49+K49,AC49+AD49+AE49+AF49+AG49),"") -> 26913.07096 | R49: 853 | S49: =IFERROR((1+'Simulación Cliente'!$E$21)^(R49/360),"") -> 1.565356613 | T49: 17192.93 | X49: 28 | Y49: 2026-11-01 | Z49: 31 | AA49: 853 | AB49: 1624638.362 | AC49: -3466.778211 | AD49: 25707.95732 | AE49: 478.4582699 | AF49: 450.45 | AG49: 0 | AH49: 23170.08738 | AI49: 1628105.14 | AJ49: 0.6440486642 | AK49: 0.6440486642 | AO49: 28 | AP49: 2026-11-01 | AQ49: 31 | AR49: 853 | AS49: 1579310.072 | AT49: 2023.775861 | AU49: 24990.69139 | AV49: 465.1090252 | AW49: 450.45 | AX49: 0 | AY49: 27930.02628 | AZ49: 1577286.296 | BA49: 0.6440486642 | BB49: 0.6440486642 | BF49: 28 | BG49: 2026-11-01 | BH49: 31 | BI49: 853 | BJ49: 1591147.22 | BK49: -2051.438561 | BL49: 25178.00009 | BM49: 468.5950819 | BN49: 450.45 | BO49: 0 | BP49: 24045.60661 | BQ49: 1593198.658 | BR49: 0.6440486642 | BS49: 0.6440486642 | BW49: 28 | BX49: 2026-11-01 | BY49: 31 | BZ49: 853 | CA49: 1613232.258 | CB49: 460.0524256 | CC49: 25527.46938 | CD49: 475.0991565 | CE49: 450.45 | CF49: 0 | CG49: 26913.07096 | CH49: 1612772.205 | CI49: 0.6440486642 | CJ49: 0.6440486642 | CN49: 28 | CO49: 2026-11-01 | CP49: 31 | CQ49: 853 | CR49: 1624638.362 | CS49: -3466.778211 | CT49: 25707.95732 | CU49: 478.4582699 | CV49: 450.45 | CW49: 0 | CX49: 23170.08738 | CY49: 1628105.14 | CZ49: 0.6440486642 | DA49: 0.6440486642
B50: 29 | C50: 2026-12-01 | D50: 30 | E50: 883 | F50: 1612772.205 | G50: 1312.292381 | H50: 24690.6885 | I50: 459.6400786 | J50: 450.45 | K50: 0 | L50: 26913.07096 | M50: 1611459.913 | N50: 0.6341592859 | O50: 0.6341592859 | Q50: =IFERROR(IF('Simulación Cliente'!$H$21="Simple",G50+H50+I50+J50+K50,AC50+AD50+AE50+AF50+AG50),"") -> 26913.07096 | R50: 883 | S50: =IFERROR((1+'Simulación Cliente'!$E$21)^(R50/360),"") -> 1.590222301 | T50: 16924.09 | X50: 29 | Y50: 2026-12-01 | Z50: 30 | AA50: 883 | AB50: 1628105.14 | AC50: 20500.28718 | AD50: 24925.42761 | AE50: 464.0099648 | AF50: 450.45 | AG50: 0 | AH50: 46340.17475 | AI50: 1607604.853 | AJ50: 1.268318572 | AK50: 0.6341592859 | AO50: 29 | AP50: 2026-12-01 | AQ50: 30 | AR50: 883 | AS50: 1577286.296 | AT50: 2882.631666 | AU50: 24147.41802 | AV50: 449.5265943 | AW50: 450.45 | AX50: 0 | AY50: 27930.02628 | AZ50: 1574403.664 | BA50: 0.6341592859 | BB50: 0.6341592859 | BF50: 29 | BG50: 2026-12-01 | BH50: 30 | BI50: 883 | BJ50: 1593198.658 | BK50: 22795.67374 | BL50: 24391.02786 | BM50: 454.0616177 | BN50: 450.45 | BO50: 0 | BP50: 48091.21322 | BQ50: 1570402.985 | BR50: 1.268318572 | BS50: 0.6341592859 | BW50: 29 | BX50: 2026-12-01 | BY50: 30 | BZ50: 883 | CA50: 1612772.205 | CB50: 1312.292381 | CC50: 24690.6885 | CD50: 459.6400786 | CE50: 450.45 | CF50: 0 | CG50: 26913.07096 | CH50: 1611459.913 | CI50: 0.6341592859 | CJ50: 0.6341592859 | CN50: 29 | CO50: 2026-12-01 | CP50: 30 | CQ50: 883 | CR50: 1628105.14 | CS50: 20500.28718 | CT50: 24925.42761 | CU50: 464.0099648 | CV50: 450.45 | CW50: 0 | CX50: 46340.17475 | CY50: 1607604.853 | CZ50: 1.268318572 | DA50: 0.6341592859
B51: 30 | C51: 2027-01-01 | D51: 31 | E51: 914 | F51: 1611459.913 | G51: 488.6196187 | H51: 25499.42415 | I51: 474.5771984 | J51: 450.45 | K51: 0 | L51: 26913.07096 | M51: 1610971.293 | N51: 0.6240997629 | O51: 0.6240997629 | Q51: =IFERROR(IF('Simulación Cliente'!$H$21="Simple",G51+H51+I51+J51+K51,AC51+AD51+AE51+AF51+AG51),"") -> 26913.07096 | R51: 914 | S51: =IFERROR((1+'Simulación Cliente'!$E$21)^(R51/360),"") -> 1.616331878 | T51: 16650.71 | X51: 30 | Y51: 2027-01-01 | Z51: 31 | AA51: 914 | AB51: 1607604.853 | AC51: -3192.226929 | AD51: 25438.42243 | AE51: 473.4418777 | AF51: 450.45 | AG51: 0 | AH51: 23170.08738 | AI51: 1610797.08 | AJ51: 0.6240997629 | AK51: 0.6240997629 | AO51: 30 | AP51: 2027-01-01 | AQ51: 31 | AR51: 914 | AS51: 1574403.664 | AT51: 2102.858831 | AU51: 24913.05337 | AV51: 463.6640813 | AW51: 450.45 | AX51: 0 | AY51: 27930.02628 | AZ51: 1572300.805 | BA51: 0.6240997629 | BB51: 0.6240997629 | BF51: 30 | BG51: 2027-01-01 | BH51: 31 | BI51: 914 | BJ51: 1570402.985 | BK51: -1717.076665 | BL51: 24849.7474 | BM51: 462.4858756 | BN51: 450.45 | BO51: 0 | BP51: 24045.60661 | BQ51: 1572120.061 | BR51: 0.6240997629 | BS51: 0.6240997629 | BW51: 30 | BX51: 2027-01-01 | BY51: 31 | BZ51: 914 | CA51: 1611459.913 | CB51: 488.6196187 | CC51: 25499.42415 | CD51: 474.5771984 | CE51: 450.45 | CF51: 0 | CG51: 26913.07096 | CH51: 1610971.293 | CI51: 0.6240997629 | CJ51: 0.6240997629 | CN51: 30 | CO51: 2027-01-01 | CP51: 31 | CQ51: 914 | CR51: 1607604.853 | CS51: -3192.226929 | CT51: 25438.42243 | CU51: 473.4418777 | CV51: 450.45 | CW51: 0 | CX51: 23170.08738 | CY51: 1610797.08 | CZ51: 0.6240997629 | DA51: 0.6240997629
B52: 31 | C52: 2027-02-01 | D52: 31 | E52: 945 | F52: 1610971.293 | G52: 496.4953384 | H52: 25491.69233 | I52: 474.4332993 | J52: 450.45 | K52: 0 | L52: 26913.07096 | M52: 1610474.798 | N52: 0.6141998118 | O52: 0.6141998118 | Q52: =IFERROR(IF('Simulación Cliente'!$H$21="Simple",G52+H52+I52+J52+K52,AC52+AD52+AE52+AF52+AG52),"") -> 26913.07096 | R52: 945 | S52: =IFERROR((1+'Simulación Cliente'!$E$21)^(R52/360),"") -> 1.642870144 | T52: 16381.74 | X52: 31 | Y52: 2027-02-01 | Z52: 31 | AA52: 945 | AB52: 1610797.08 | AC52: -3243.680214 | AD52: 25488.9356 | AE52: 474.381993 | AF52: 450.45 | AG52: 0 | AH52: 23170.08738 | AI52: 1614040.76 | AJ52: 0.6141998118 | AK52: 0.6141998118 | AO52: 31 | AP52: 2027-02-01 | AQ52: 31 | AR52: 945 | AS52: 1572300.805 | AT52: 2136.753349 | AU52: 24879.77814 | AV52: 463.0447865 | AW52: 450.45 | AX52: 0 | AY52: 27930.02628 | AZ52: 1570164.052 | BA52: 0.6141998118 | BB52: 0.6141998118 | BF52: 31 | BG52: 2027-02-01 | BH52: 31 | BI52: 945 | BJ52: 1572120.061 | BK52: -1744.753029 | BL52: 24876.91808 | BM52: 462.9915571 | BN52: 450.45 | BO52: 0 | BP52: 24045.60661 | BQ52: 1573864.814 | BR52: 0.6141998118 | BS52: 0.6141998118 | BW52: 31 | BX52: 2027-02-01 | BY52: 31 | BZ52: 945 | CA52: 1610971.293 | CB52: 496.4953384 | CC52: 25491.69233 | CD52: 474.4332993 | CE52: 450.45 | CF52: 0 | CG52: 26913.07096 | CH52: 1610474.798 | CI52: 0.6141998118 | CJ52: 0.6141998118 | CN52: 31 | CO52: 2027-02-01 | CP52: 31 | CQ52: 945 | CR52: 1610797.08 | CS52: -3243.680214 | CT52: 25488.9356 | CU52: 474.381993 | CV52: 450.45 | CW52: 0 | CX52: 23170.08738 | CY52: 1614040.76 | CZ52: 0.6141998118 | DA52: 0.6141998118
B53: 32 | C53: 2027-03-01 | D53: 28 | E53: 973 | F53: 1610474.798 | G53: 3034.103285 | H53: 23000.13545 | I53: 428.3822271 | J53: 450.45 | K53: 0 | L53: 26913.07096 | M53: 1607440.695 | N53: 0.6053929696 | O53: 0.6053929696 | Q53: =IFERROR(IF('Simulación Cliente'!$H$21="Simple",G53+H53+I53+J53+K53,AC53+AD53+AE53+AF53+AG53),"") -> 26913.07096 | R53: 973 | S53: =IFERROR((1+'Simulación Cliente'!$E$21)^(R53/360),"") -> 1.66721451 | T53: 16142.54 | X53: 32 | Y53: 2027-03-01 | Z53: 28 | AA53: 973 | AB53: 1614040.76 | AC53: -760.7564277 | AD53: 23051.06304 | AE53: 429.3307638 | AF53: 450.45 | AG53: 0 | AH53: 23170.08738 | AI53: 1614801.516 | AJ53: 0.6053929696 | AK53: 0.6053929696 | AO53: 32 | AP53: 2027-03-01 | AQ53: 28 | AR53: 973 | AS53: 1570164.052 | AT53: 4637.482571 | AU53: 22424.43404 | AV53: 417.6596705 | AW53: 450.45 | AX53: 0 | AY53: 27930.02628 | AZ53: 1565526.57 | BA53: 0.6053929696 | BB53: 0.6053929696 | BF53: 32 | BG53: 2027-03-01 | BH53: 28 | BI53: 973 | BJ53: 1573864.814 | BK53: 699.2257537 | BL53: 22477.28679 | BM53: 418.6440639 | BN53: 450.45 | BO53: 0 | BP53: 24045.60661 | BQ53: 1573165.589 | BR53: 0.6053929696 | BS53: 0.6053929696 | BW53: 32 | BX53: 2027-03-01 | BY53: 28 | BZ53: 973 | CA53: 1610474.798 | CB53: 3034.103285 | CC53: 23000.13545 | CD53: 428.3822271 | CE53: 450.45 | CF53: 0 | CG53: 26913.07096 | CH53: 1607440.695 | CI53: 0.6053929696 | CJ53: 0.6053929696 | CN53: 32 | CO53: 2027-03-01 | CP53: 28 | CQ53: 973 | CR53: 1614040.76 | CS53: -760.7564277 | CT53: 23051.06304 | CU53: 429.3307638 | CV53: 450.45 | CW53: 0 | CX53: 23170.08738 | CY53: 1614801.516 | CZ53: 0.6053929696 | DA53: 0.6053929696
B54: 33 | C54: 2027-04-01 | D54: 31 | E54: 1004 | F54: 1607440.695 | G54: 553.4026016 | H54: 25435.82483 | I54: 473.393533 | J54: 450.45 | K54: 0 | L54: 26913.07096 | M54: 1606887.292 | N54: 0.59578976 | O54: 0.59578976 | Q54: =IFERROR(IF('Simulación Cliente'!$H$21="Simple",G54+H54+I54+J54+K54,AC54+AD54+AE54+AF54+AG54),"") -> 26913.07096 | R54: 1004 | S54: =IFERROR((1+'Simulación Cliente'!$E$21)^(R54/360),"") -> 1.694588208 | T54: 15881.78 | X54: 33 | Y54: 2027-04-01 | Z54: 31 | AA54: 1004 | AB54: 1614801.516 | AC54: -3308.224943 | AD54: 25552.30101 | AE54: 475.5613052 | AF54: 450.45 | AG54: 0 | AH54: 23170.08738 | AI54: 1618109.741 | AJ54: 0.59578976 | AK54: 0.59578976 | AO54: 33 | AP54: 2027-04-01 | AQ54: 31 | AR54: 1004 | AS54: 1565526.57 | AT54: 2245.942546 | AU54: 24772.58397 | AV54: 461.0497645 | AW54: 450.45 | AX54: 0 | AY54: 27930.02628 | AZ54: 1563280.627 | BA54: 0.59578976 | BB54: 0.59578976 | BF54: 33 | BG54: 2027-04-01 | BH54: 31 | BI54: 1004 | BJ54: 1573165.589 | BK54: -1761.605156 | BL54: 24893.4623 | BM54: 463.2994663 | BN54: 450.45 | BO54: 0 | BP54: 24045.60661 | BQ54: 1574927.194 | BR54: 0.59578976 | BS54: 0.59578976 | BW54: 33 | BX54: 2027-04-01 | BY54: 31 | BZ54: 1004 | CA54: 1607440.695 | CB54: 553.4026016 | CC54: 25435.82483 | CD54: 473.393533 | CE54: 450.45 | CF54: 0 | CG54: 26913.07096 | CH54: 1606887.292 | CI54: 0.59578976 | CJ54: 0.59578976 | CN54: 33 | CO54: 2027-04-01 | CP54: 31 | CQ54: 1004 | CR54: 1614801.516 | CS54: -3308.224943 | CT54: 25552.30101 | CU54: 475.5613052 | CV54: 450.45 | CW54: 0 | CX54: 23170.08738 | CY54: 1618109.741 | CZ54: 0.59578976 | DA54: 0.59578976
B55: 34 | C55: 2027-05-01 | D55: 30 | E55: 1034 | F55: 1606887.292 | G55: 1404.064487 | H55: 24600.5936 | I55: 457.9628783 | J55: 450.45 | K55: 0 | L55: 26913.07096 | M55: 1605483.228 | N55: 0.586641398 | O55: 0.586641398 | Q55: =IFERROR(IF('Simulación Cliente'!$H$21="Simple",G55+H55+I55+J55+K55,AC55+AD55+AE55+AF55+AG55),"") -> 26913.07096 | R55: 1034 | S55: =IFERROR((1+'Simulación Cliente'!$E$21)^(R55/360),"") -> 1.72150674 | T55: 15633.44 | X55: 34 | Y55: 2027-05-01 | Z55: 30 | AA55: 1034 | AB55: 1618109.741 | AC55: -2513.927247 | AD55: 24772.40335 | AE55: 461.1612762 | AF55: 450.45 | AG55: 0 | AH55: 23170.08738 | AI55: 1620623.668 | AJ55: 0.586641398 | AK55: 0.586641398 | AO55: 34 | AP55: 2027-05-01 | AQ55: 30 | AR55: 1034 | AS55: 1563280.627 | AT55: 3101.042657 | AU55: 23932.99864 | AV55: 445.5349787 | AW55: 450.45 | AX55: 0 | AY55: 27930.02628 | AZ55: 1560179.584 | BA55: 0.586641398 | BB55: 0.586641398 | BF55: 34 | BG55: 2027-05-01 | BH55: 30 | BI55: 1034 | BJ55: 1574927.194 | BK55: -964.9990517 | BL55: 24111.30141 | BM55: 448.8542502 | BN55: 450.45 | BO55: 0 | BP55: 24045.60661 | BQ55: 1575892.193 | BR55: 0.586641398 | BS55: 0.586641398 | BW55: 34 | BX55: 2027-05-01 | BY55: 30 | BZ55: 1034 | CA55: 1606887.292 | CB55: 1404.064487 | CC55: 24600.5936 | CD55: 457.9628783 | CE55: 450.45 | CF55: 0 | CG55: 26913.07096 | CH55: 1605483.228 | CI55: 0.586641398 | CJ55: 0.586641398 | CN55: 34 | CO55: 2027-05-01 | CP55: 30 | CQ55: 1034 | CR55: 1618109.741 | CS55: -2513.927247 | CT55: 24772.40335 | CU55: 461.1612762 | CV55: 450.45 | CW55: 0 | CX55: 23170.08738 | CY55: 1620623.668 | CZ55: 0.586641398 | DA55: 0.586641398
B56: 35 | C56: 2027-06-01 | D56: 31 | E56: 1065 | F56: 1605483.228 | G56: 584.9536519 | H56: 25404.85025 | I56: 472.8170562 | J56: 450.45 | K56: 0 | L56: 26913.07096 | M56: 1604898.274 | N56: 0.5773356404 | O56: 0.5773356404 | Q56: =IFERROR(IF('Simulación Cliente'!$H$21="Simple",G56+H56+I56+J56+K56,AC56+AD56+AE56+AF56+AG56),"") -> 26913.07096 | R56: 1065 | S56: =IFERROR((1+'Simulación Cliente'!$E$21)^(R56/360),"") -> 1.749771853 | T56: 15380.9 | X56: 35 | Y56: 2027-06-01 | Z56: 31 | AA56: 1065 | AB56: 1620623.668 | AC56: -3402.068164 | AD56: 25644.4296 | AE56: 477.2759372 | AF56: 450.45 | AG56: 0 | AH56: 23170.08738 | AI56: 1624025.737 | AJ56: 0.5773356404 | AK56: 0.5773356404 | AO56: 35 | AP56: 2027-06-01 | AQ56: 31 | AR56: 1065 | AS56: 1560179.584 | AT56: 2332.12688 | AU56: 24687.97433 | AV56: 459.4750699 | AW56: 450.45 | AX56: 0 | AY56: 27930.02628 | AZ56: 1557847.457 | BA56: 0.5773356404 | BB56: 0.5773356404 | BF56: 35 | BG56: 2027-06-01 | BH56: 31 | BI56: 1065 | BJ56: 1575892.193 | BK56: -1805.553392 | BL56: 24936.60755 | BM56: 464.1024551 | BN56: 450.45 | BO56: 0 | BP56: 24045.60661 | BQ56: 1577697.746 | BR56: 0.5773356404 | BS56: 0.5773356404 | BW56: 35 | BX56: 2027-06-01 | BY56: 31 | BZ56: 1065 | CA56: 1605483.228 | CB56: 584.9536519 | CC56: 25404.85025 | CD56: 472.8170562 | CE56: 450.45 | CF56: 0 | CG56: 26913.07096 | CH56: 1604898.274 | CI56: 0.5773356404 | CJ56: 0.5773356404 | CN56: 35 | CO56: 2027-06-01 | CP56: 31 | CQ56: 1065 | CR56: 1620623.668 | CS56: -3402.068164 | CT56: 25644.4296 | CU56: 477.2759372 | CV56: 450.45 | CW56: 0 | CX56: 23170.08738 | CY56: 1624025.737 | CZ56: 0.5773356404 | DA56: 0.5773356404
B57: 36 | C57: 2027-07-01 | D57: 30 | E57: 1095 | F57: 1604898.274 | G57: 1435.082172 | H57: 24570.14278 | I57: 457.3960081 | J57: 450.45 | K57: 0 | L57: 26913.07096 | M57: 1603463.192 | N57: 0.5684706417 | O57: 0.5684706417 | Q57: =IFERROR(IF('Simulación Cliente'!$H$21="Simple",G57+H57+I57+J57+K57,AC57+AD57+AE57+AF57+AG57),"") -> 26913.07096 | R57: 1095 | S57: =IFERROR((1+'Simulación Cliente'!$E$21)^(R57/360),"") -> 1.777566976 | T57: 15140.4 | X57: 36 | Y57: 2027-07-01 | Z57: 30 | AA57: 1095 | AB57: 1624025.737 | AC57: 20563.90331 | AD57: 24862.9741 | AE57: 462.8473349 | AF57: 450.45 | AG57: 0 | AH57: 46340.17475 | AI57: 1603461.833 | AJ57: 1.136941283 | AK57: 0.5684706417 | AO57: 36 | AP57: 2027-07-01 | AQ57: 30 | AR57: 1095 | AS57: 1557847.457 | AT57: 3185.770059 | AU57: 23849.81969 | AV57: 443.9865254 | AW57: 450.45 | AX57: 0 | AY57: 27930.02628 | AZ57: 1554661.687 | BA57: 0.5684706417 | BB57: 0.5684706417 | BF57: 36 | BG57: 2027-07-01 | BH57: 30 | BI57: 1095 | BJ57: 1577697.746 | BK57: 23037.40226 | BL57: 24153.7171 | BM57: 449.6438577 | BN57: 450.45 | BO57: 0 | BP57: 48091.21322 | BQ57: 1554660.344 | BR57: 1.136941283 | BS57: 0.5684706417 | BW57: 36 | BX57: 2027-07-01 | BY57: 30 | BZ57: 1095 | CA57: 1604898.274 | CB57: 1435.082172 | CC57: 24570.14278 | CD57: 457.3960081 | CE57: 450.45 | CF57: 0 | CG57: 26913.07096 | CH57: 1603463.192 | CI57: 0.5684706417 | CJ57: 0.5684706417 | CN57: 36 | CO57: 2027-07-01 | CP57: 30 | CQ57: 1095 | CR57: 1624025.737 | CS57: 20563.90331 | CT57: 24862.9741 | CU57: 462.8473349 | CV57: 450.45 | CW57: 0 | CX57: 46340.17475 | CY57: 1603461.833 | CZ57: 1.136941283 | DA57: 0.5684706417
B58: 37 | C58: 2027-08-01 | D58: 31 | E58: 1126 | F58: 1603463.192 | G58: 617.5132041 | H58: 25372.88561 | I58: 472.2221529 | J58: 450.45 | K58: 0 | L58: 26913.07096 | M58: 1602845.679 | N58: 0.5594531226 | O58: 0.5594531226 | Q58: =IFERROR(IF('Simulación Cliente'!$H$21="Simple",G58+H58+I58+J58+K58,AC58+AD58+AE58+AF58+AG58),"") -> 26913.07096 | R58: 1126 | S58: =IFERROR((1+'Simulación Cliente'!$E$21)^(R58/360),"") -> 1.806752532 | T58: 14895.83 | X58: 37 | Y58: 2027-08-01 | Z58: 31 | AA58: 1126 | AB58: 1603461.833 | AC58: -3125.448482 | AD58: 25372.8641 | AE58: 472.2217527 | AF58: 450.45 | AG58: 0 | AH58: 23170.08738 | AI58: 1606587.282 | AJ58: 0.5594531226 | AK58: 0.5594531226 | AO58: 37 | AP58: 2027-08-01 | AQ58: 31 | AR58: 1126 | AS58: 1554661.687 | AT58: 2421.066023 | AU58: 24600.66021 | AV58: 457.8500415 | AW58: 450.45 | AX58: 0 | AY58: 27930.02628 | AZ58: 1552240.621 | BA58: 0.5594531226 | BB58: 0.5594531226 | BF58: 37 | BG58: 2027-08-01 | BH58: 31 | BI58: 1126 | BJ58: 1554660.344 | BK58: -1463.33199 | BL58: 24600.63896 | BM58: 457.8496459 | BN58: 450.45 | BO58: 0 | BP58: 24045.60661 | BQ58: 1556123.676 | BR58: 0.5594531226 | BS58: 0.5594531226 | BW58: 37 | BX58: 2027-08-01 | BY58: 31 | BZ58: 1126 | CA58: 1603463.192 | CB58: 617.5132041 | CC58: 25372.88561 | CD58: 472.2221529 | CE58: 450.45 | CF58: 0 | CG58: 26913.07096 | CH58: 1602845.679 | CI58: 0.5594531226 | CJ58: 0.5594531226 | CN58: 37 | CO58: 2027-08-01 | CP58: 31 | CQ58: 1126 | CR58: 1603461.833 | CS58: -3125.448482 | CT58: 25372.8641 | CU58: 472.2217527 | CV58: 450.45 | CW58: 0 | CX58: 23170.08738 | CY58: 1606587.282 | CZ58: 0.5594531226 | DA58: 0.5594531226
B59: 38 | C59: 2027-09-01 | D59: 31 | E59: 1157 | F59: 1602845.679 | G59: 627.4664699 | H59: 25363.1142 | I59: 472.0402944 | J59: 450.45 | K59: 0 | L59: 26913.07096 | M59: 1602218.212 | N59: 0.5505786462 | O59: 0.5505786462 | Q59: =IFERROR(IF('Simulación Cliente'!$H$21="Simple",G59+H59+I59+J59+K59,AC59+AD59+AE59+AF59+AG59),"") -> 26913.07096 | R59: 1157 | S59: =IFERROR((1+'Simulación Cliente'!$E$21)^(R59/360),"") -> 1.836417281 | T59: 14655.2 | X59: 38 | Y59: 2027-09-01 | Z59: 31 | AA59: 1157 | AB59: 1606587.282 | AC59: -3175.825412 | AD59: 25422.32059 | AE59: 473.1422017 | AF59: 450.45 | AG59: 0 | AH59: 23170.08738 | AI59: 1609763.107 | AJ59: 0.5505786462 | AK59: 0.5505786462 | AO59: 38 | AP59: 2027-09-01 | AQ59: 31 | AR59: 1157 | AS59: 1552240.621 | AT59: 2460.089502 | AU59: 24562.34974 | AV59: 457.1370342 | AW59: 450.45 | AX59: 0 | AY59: 27930.02628 | AZ59: 1549780.532 | BA59: 0.5505786462 | BB59: 0.5505786462 | BF59: 38 | BG59: 2027-09-01 | BH59: 31 | BI59: 1157 | BJ59: 1556123.676 | BK59: -1486.91842 | BL59: 24623.79443 | BM59: 458.2805992 | BN59: 450.45 | BO59: 0 | BP59: 24045.60661 | BQ59: 1557610.594 | BR59: 0.5505786462 | BS59: 0.5505786462 | BW59: 38 | BX59: 2027-09-01 | BY59: 31 | BZ59: 1157 | CA59: 1602845.679 | CB59: 627.4664699 | CC59: 25363.1142 | CD59: 472.0402944 | CE59: 450.45 | CF59: 0 | CG59: 26913.07096 | CH59: 1602218.212 | CI59: 0.5505786462 | CJ59: 0.5505786462 | CN59: 38 | CO59: 2027-09-01 | CP59: 31 | CQ59: 1157 | CR59: 1606587.282 | CS59: -3175.825412 | CT59: 25422.32059 | CU59: 473.1422017 | CV59: 450.45 | CW59: 0 | CX59: 23170.08738 | CY59: 1609763.107 | CZ59: 0.5505786462 | DA59: 0.5505786462
B60: 39 | C60: 2027-10-01 | D60: 30 | E60: 1187 | F60: 1602218.212 | G60: 1476.876317 | H60: 24529.11246 | I60: 456.6321905 | J60: 450.45 | K60: 0 | L60: 26913.07096 | M60: 1600741.336 | N60: 0.5421245017 | O60: 0.5421245017 | Q60: =IFERROR(IF('Simulación Cliente'!$H$21="Simple",G60+H60+I60+J60+K60,AC60+AD60+AE60+AF60+AG60),"") -> 26913.07096 | R60: 1187 | S60: =IFERROR((1+'Simulación Cliente'!$E$21)^(R60/360),"") -> 1.865588767 | T60: 14426.05 | X60: 39 | Y60: 2027-10-01 | Z60: 30 | AA60: 1187 | AB60: 1609763.107 | AC60: -2383.765909 | AD60: 24644.6208 | AE60: 458.7824855 | AF60: 450.45 | AG60: 0 | AH60: 23170.08738 | AI60: 1612146.873 | AJ60: 0.5421245017 | AK60: 0.5421245017 | AO60: 39 | AP60: 2027-10-01 | AQ60: 30 | AR60: 1187 | AS60: 1549780.532 | AT60: 3311.569492 | AU60: 23726.31933 | AV60: 441.6874516 | AW60: 450.45 | AX60: 0 | AY60: 27930.02628 | AZ60: 1546468.962 | BA60: 0.5421245017 | BB60: 0.5421245017 | BF60: 39 | BG60: 2027-10-01 | BH60: 30 | BI60: 1187 | BJ60: 1557610.594 | BK60: -694.9558531 | BL60: 23846.19344 | BM60: 443.9190194 | BN60: 450.45 | BO60: 0 | BP60: 24045.60661 | BQ60: 1558305.55 | BR60: 0.5421245017 | BS60: 0.5421245017 | BW60: 39 | BX60: 2027-10-01 | BY60: 30 | BZ60: 1187 | CA60: 1602218.212 | CB60: 1476.876317 | CC60: 24529.11246 | CD60: 456.6321905 | CE60: 450.45 | CF60: 0 | CG60: 26913.07096 | CH60: 1600741.336 | CI60: 0.5421245017 | CJ60: 0.5421245017 | CN60: 39 | CO60: 2027-10-01 | CP60: 30 | CQ60: 1187 | CR60: 1609763.107 | CS60: -2383.765909 | CT60: 24644.6208 | CU60: 458.7824855 | CV60: 450.45 | CW60: 0 | CX60: 23170.08738 | CY60: 1612146.873 | CZ60: 0.5421245017 | DA60: 0.5421245017
B61: 40 | C61: 2027-11-01 | D61: 31 | E61: 1218 | F61: 1600741.336 | G61: 661.3849074 | H61: 25329.81549 | I61: 471.4205625 | J61: 450.45 | K61: 0 | L61: 26913.07096 | M61: 1600079.951 | N61: 0.5335249053 | O61: 0.5335249053 | Q61: =IFERROR(IF('Simulación Cliente'!$H$21="Simple",G61+H61+I61+J61+K61,AC61+AD61+AE61+AF61+AG61),"") -> 26913.07096 | R61: 1218 | S61: =IFERROR((1+'Simulación Cliente'!$E$21)^(R61/360),"") -> 1.896219537 | T61: 14193.01 | X61: 40 | Y61: 2027-11-01 | Z61: 31 | AA61: 1218 | AB61: 1612146.873 | AC61: -3265.436597 | AD61: 25510.29446 | AE61: 474.7795091 | AF61: 450.45 | AG61: 0 | AH61: 23170.08738 | AI61: 1615412.31 | AJ61: 0.5335249053 | AK61: 0.5335249053 | AO61: 40 | AP61: 2027-11-01 | AQ61: 31 | AR61: 1218 | AS61: 1546468.962 | AT61: 2553.118858 | AU61: 24471.02015 | AV61: 455.4372725 | AW61: 450.45 | AX61: 0 | AY61: 27930.02628 | AZ61: 1543915.844 | BA61: 0.5335249053 | BB61: 0.5335249053 | BF61: 40 | BG61: 2027-11-01 | BH61: 31 | BI61: 1218 | BJ61: 1558305.55 | BK61: -1522.086534 | BL61: 24658.31998 | BM61: 458.9231642 | BN61: 450.45 | BO61: 0 | BP61: 24045.60661 | BQ61: 1559827.637 | BR61: 0.5335249053 | BS61: 0.5335249053 | BW61: 40 | BX61: 2027-11-01 | BY61: 31 | BZ61: 1218 | CA61: 1600741.336 | CB61: 661.3849074 | CC61: 25329.81549 | CD61: 471.4205625 | CE61: 450.45 | CF61: 0 | CG61: 26913.07096 | CH61: 1600079.951 | CI61: 0.5335249053 | CJ61: 0.5335249053 | CN61: 40 | CO61: 2027-11-01 | CP61: 31 | CQ61: 1218 | CR61: 1612146.873 | CS61: -3265.436597 | CT61: 25510.29446 | CU61: 474.7795091 | CV61: 450.45 | CW61: 0 | CX61: 23170.08738 | CY61: 1615412.31 | CZ61: 0.5335249053 | DA61: 0.5335249053
B62: 41 | C62: 2027-12-01 | D62: 30 | E62: 1248 | F62: 1600079.951 | G62: 1510.221369 | H62: 24496.37681 | I62: 456.0227861 | J62: 450.45 | K62: 0 | L62: 26913.07096 | M62: 1598569.73 | N62: 0.5253326212 | O62: 0.5253326212 | Q62: =IFERROR(IF('Simulación Cliente'!$H$21="Simple",G62+H62+I62+J62+K62,AC62+AD62+AE62+AF62+AG62),"") -> 26913.07096 | R62: 1248 | S62: =IFERROR((1+'Simulación Cliente'!$E$21)^(R62/360),"") -> 1.926340982 | T62: 13971.08 | X62: 41 | Y62: 2027-12-01 | Z62: 30 | AA62: 1248 | AB62: 1615412.31 | AC62: 20698.22515 | AD62: 24731.1071 | AE62: 460.3925082 | AF62: 450.45 | AG62: 0 | AH62: 46340.17475 | AI62: 1594714.084 | AJ62: 1.050665242 | AK62: 0.5253326212 | AO62: 41 | AP62: 2027-12-01 | AQ62: 30 | AR62: 1248 | AS62: 1543915.844 | AT62: 3403.026202 | AU62: 23636.53406 | AV62: 440.0160154 | AW62: 450.45 | AX62: 0 | AY62: 27930.02628 | AZ62: 1540512.817 | BA62: 0.5253326212 | BB62: 0.5253326212 | BF62: 41 | BG62: 2027-12-01 | BH62: 30 | BI62: 1248 | BJ62: 1559827.637 | BK62: 23316.07716 | BL62: 23880.13519 | BM62: 444.5508765 | BN62: 450.45 | BO62: 0 | BP62: 48091.21322 | BQ62: 1536511.56 | BR62: 1.050665242 | BS62: 0.5253326212 | BW62: 41 | BX62: 2027-12-01 | BY62: 30 | BZ62: 1248 | CA62: 1600079.951 | CB62: 1510.221369 | CC62: 24496.37681 | CD62: 456.0227861 | CE62: 450.45 | CF62: 0 | CG62: 26913.07096 | CH62: 1598569.73 | CI62: 0.5253326212 | CJ62: 0.5253326212 | CN62: 41 | CO62: 2027-12-01 | CP62: 30 | CQ62: 1248 | CR62: 1615412.31 | CS62: 20698.22515 | CT62: 24731.1071 | CU62: 460.3925082 | CV62: 450.45 | CW62: 0 | CX62: 46340.17475 | CY62: 1594714.084 | CZ62: 1.050665242 | DA62: 0.5253326212
B63: 42 | C63: 2028-01-01 | D63: 31 | E63: 1279 | F63: 1598569.73 | G63: 696.3875183 | H63: 25295.45242 | I63: 470.7810214 | J63: 450.45 | K63: 0 | L63: 26913.07096 | M63: 1597873.342 | N63: 0.5169993906 | O63: 0.5169993906 | Q63: =IFERROR(IF('Simulación Cliente'!$H$21="Simple",G63+H63+I63+J63+K63,AC63+AD63+AE63+AF63+AG63),"") -> 26913.07096 | R63: 1279 | S63: =IFERROR((1+'Simulación Cliente'!$E$21)^(R63/360),"") -> 1.957969232 | T63: 13745.4 | X63: 42 | Y63: 2028-01-01 | Z63: 31 | AA63: 1279 | AB63: 1594714.084 | AC63: -2984.449605 | AD63: 25234.44145 | AE63: 469.6455285 | AF63: 450.45 | AG63: 0 | AH63: 23170.08738 | AI63: 1597698.534 | AJ63: 0.5169993906 | AK63: 0.5169993906 | AO63: 42 | AP63: 2028-01-01 | AQ63: 31 | AR63: 1279 | AS63: 1540512.817 | AT63: 2649.121817 | AU63: 24376.77128 | AV63: 453.6831795 | AW63: 450.45 | AX63: 0 | AY63: 27930.02628 | AZ63: 1537863.695 | BA63: 0.5169993906 | BB63: 0.5169993906 | BF63: 42 | BG63: 2028-01-01 | BH63: 31 | BI63: 1279 | BJ63: 1536511.56 | BK63: -1170.80436 | BL63: 24313.45617 | BM63: 452.5048035 | BN63: 450.45 | BO63: 0 | BP63: 24045.60661 | BQ63: 1537682.364 | BR63: 0.5169993906 | BS63: 0.5169993906 | BW63: 42 | BX63: 2028-01-01 | BY63: 31 | BZ63: 1279 | CA63: 1598569.73 | CB63: 696.3875183 | CC63: 25295.45242 | CD63: 470.7810214 | CE63: 450.45 | CF63: 0 | CG63: 26913.07096 | CH63: 1597873.342 | CI63: 0.5169993906 | CJ63: 0.5169993906 | CN63: 42 | CO63: 2028-01-01 | CP63: 31 | CQ63: 1279 | CR63: 1594714.084 | CS63: -2984.449605 | CT63: 25234.44145 | CU63: 469.6455285 | CV63: 450.45 | CW63: 0 | CX63: 23170.08738 | CY63: 1597698.534 | CZ63: 0.5169993906 | DA63: 0.5169993906
B64: 43 | C64: 2028-02-01 | D64: 31 | E64: 1310 | F64: 1597873.342 | G64: 707.6121043 | H64: 25284.43292 | I64: 470.5759343 | J64: 450.45 | K64: 0 | L64: 26913.07096 | M64: 1597165.73 | N64: 0.508798348 | O64: 0.508798348 | Q64: =IFERROR(IF('Simulación Cliente'!$H$21="Simple",G64+H64+I64+J64+K64,AC64+AD64+AE64+AF64+AG64),"") -> 26913.07096 | R64: 1310 | S64: =IFERROR((1+'Simulación Cliente'!$E$21)^(R64/360),"") -> 1.990116781 | T64: 13523.36 | X64: 43 | Y64: 2028-02-01 | Z64: 31 | AA64: 1310 | AB64: 1597698.534 | AC64: -3032.553872 | AD64: 25281.66679 | AE64: 470.5244531 | AF64: 450.45 | AG64: 0 | AH64: 23170.08738 | AI64: 1600731.088 | AJ64: 0.508798348 | AK64: 0.508798348 | AO64: 43 | AP64: 2028-02-01 | AQ64: 31 | AR64: 1310 | AS64: 1537863.695 | AT64: 2691.821169 | AU64: 24334.8521 | AV64: 452.9030094 | AW64: 450.45 | AX64: 0 | AY64: 27930.02628 | AZ64: 1535171.874 | BA64: 0.508798348 | BB64: 0.508798348 | BF64: 43 | BG64: 2028-02-01 | BH64: 31 | BI64: 1310 | BJ64: 1537682.364 | BK64: -1189.675741 | BL64: 24331.98275 | BM64: 452.849607 | BN64: 450.45 | BO64: 0 | BP64: 24045.60661 | BQ64: 1538872.04 | BR64: 0.508798348 | BS64: 0.508798348 | BW64: 43 | BX64: 2028-02-01 | BY64: 31 | BZ64: 1310 | CA64: 1597873.342 | CB64: 707.6121043 | CC64: 25284.43292 | CD64: 470.5759343 | CE64: 450.45 | CF64: 0 | CG64: 26913.07096 | CH64: 1597165.73 | CI64: 0.508798348 | CJ64: 0.508798348 | CN64: 43 | CO64: 2028-02-01 | CP64: 31 | CQ64: 1310 | CR64: 1597698.534 | CS64: -3032.553872 | CT64: 25281.66679 | CU64: 470.5244531 | CV64: 450.45 | CW64: 0 | CX64: 23170.08738 | CY64: 1600731.088 | CZ64: 0.508798348 | DA64: 0.508798348
B65: 44 | C65: 2028-03-01 | D65: 29 | E65: 1339 | F65: 1597165.73 | G65: 2391.900519 | H65: 23630.70337 | I65: 440.0170687 | J65: 450.45 | K65: 0 | L65: 26913.07096 | M65: 1594773.83 | N65: 0.5012442179 | O65: 0.5012442179 | Q65: =IFERROR(IF('Simulación Cliente'!$H$21="Simple",G65+H65+I65+J65+K65,AC65+AD65+AE65+AF65+AG65),"") -> 26913.07096 | R65: 1339 | S65: =IFERROR((1+'Simulación Cliente'!$E$21)^(R65/360),"") -> 2.020667969 | T65: 13318.9 | X65: 44 | Y65: 2028-03-01 | Z65: 29 | AA65: 1339 | AB65: 1600731.088 | AC65: -1404.816209 | AD65: 23683.45427 | AE65: 440.9993202 | AF65: 450.45 | AG65: 0 | AH65: 23170.08738 | AI65: 1602135.904 | AJ65: 0.5012442179 | AK65: 0.5012442179 | AO65: 44 | AP65: 2028-03-01 | AQ65: 29 | AR65: 1339 | AS65: 1535171.874 | AT65: 4343.158857 | AU65: 22713.47958 | AV65: 422.9378426 | AW65: 450.45 | AX65: 0 | AY65: 27930.02628 | AZ65: 1530828.715 | BA65: 0.5012442179 | BB65: 0.5012442179 | BF65: 44 | BG65: 2028-03-01 | BH65: 29 | BI65: 1339 | BJ65: 1538872.04 | BK65: 402.974379 | BL65: 22768.225 | BM65: 423.9572333 | BN65: 450.45 | BO65: 0 | BP65: 24045.60661 | BQ65: 1538469.065 | BR65: 0.5012442179 | BS65: 0.5012442179 | BW65: 44 | BX65: 2028-03-01 | BY65: 29 | BZ65: 1339 | CA65: 1597165.73 | CB65: 2391.900519 | CC65: 23630.70337 | CD65: 440.0170687 | CE65: 450.45 | CF65: 0 | CG65: 26913.07096 | CH65: 1594773.83 | CI65: 0.5012442179 | CJ65: 0.5012442179 | CN65: 44 | CO65: 2028-03-01 | CP65: 29 | CQ65: 1339 | CR65: 1600731.088 | CS65: -1404.816209 | CT65: 23683.45427 | CU65: 440.9993202 | CV65: 450.45 | CW65: 0 | CX65: 23170.08738 | CY65: 1602135.904 | CZ65: 0.5012442179 | DA65: 0.5012442179
B66: 45 | C66: 2028-04-01 | D66: 31 | E66: 1370 | F66: 1594773.83 | G66: 757.5709921 | H66: 25235.38685 | I66: 469.6631235 | J66: 450.45 | K66: 0 | L66: 26913.07096 | M66: 1594016.259 | N66: 0.4932930961 | O66: 0.4932930961 | Q66: =IFERROR(IF('Simulación Cliente'!$H$21="Simple",G66+H66+I66+J66+K66,AC66+AD66+AE66+AF66+AG66),"") -> 26913.07096 | R66: 1370 | S66: =IFERROR((1+'Simulación Cliente'!$E$21)^(R66/360),"") -> 2.053844958 | T66: 13103.75 | X66: 45 | Y66: 2028-04-01 | Z66: 31 | AA66: 1370 | AB66: 1602135.904 | AC66: -3104.076753 | AD66: 25351.88286 | AE66: 471.8312647 | AF66: 450.45 | AG66: 0 | AH66: 23170.08738 | AI66: 1605239.981 | AJ66: 0.4932930961 | AK66: 0.4932930961 | AO66: 45 | AP66: 2028-04-01 | AQ66: 31 | AR66: 1370 | AS66: 1530828.715 | AT66: 2805.213118 | AU66: 24223.53196 | AV66: 450.8311979 | AW66: 450.45 | AX66: 0 | AY66: 27930.02628 | AZ66: 1528023.502 | BA66: 0.4932930961 | BB66: 0.4932930961 | BF66: 45 | BG66: 2028-04-01 | BH66: 31 | BI66: 1370 | BJ66: 1538469.065 | BK66: -1202.356033 | BL66: 24344.43135 | BM66: 453.0812917 | BN66: 450.45 | BO66: 0 | BP66: 24045.60661 | BQ66: 1539671.421 | BR66: 0.4932930961 | BS66: 0.4932930961 | BW66: 45 | BX66: 2028-04-01 | BY66: 31 | BZ66: 1370 | CA66: 1594773.83 | CB66: 757.5709921 | CC66: 25235.38685 | CD66: 469.6631235 | CE66: 450.45 | CF66: 0 | CG66: 26913.07096 | CH66: 1594016.259 | CI66: 0.4932930961 | CJ66: 0.4932930961 | CN66: 45 | CO66: 2028-04-01 | CP66: 31 | CQ66: 1370 | CR66: 1602135.904 | CS66: -3104.076753 | CT66: 25351.88286 | CU66: 471.8312647 | CV66: 450.45 | CW66: 0 | CX66: 23170.08738 | CY66: 1605239.981 | CZ66: 0.4932930961 | DA66: 0.4932930961
B67: 46 | C67: 2028-05-01 | D67: 30 | E67: 1400 | F67: 1594016.259 | G67: 1604.781443 | H67: 24403.54489 | I67: 454.2946337 | J67: 450.45 | K67: 0 | L67: 26913.07096 | M67: 1592411.477 | N67: 0.4857185721 | O67: 0.4857185721 | Q67: =IFERROR(IF('Simulación Cliente'!$H$21="Simple",G67+H67+I67+J67+K67,AC67+AD67+AE67+AF67+AG67),"") -> 26913.07096 | R67: 1400 | S67: =IFERROR((1+'Simulación Cliente'!$E$21)^(R67/360),"") -> 2.086470282 | T67: 12898.85 | X67: 46 | Y67: 2028-05-01 | Z67: 30 | AA67: 1400 | AB67: 1605239.981 | AC67: -2313.230151 | AD67: 24575.37413 | AE67: 457.4933946 | AF67: 450.45 | AG67: 0 | AH67: 23170.08738 | AI67: 1607553.211 | AJ67: 0.4857185721 | AK67: 0.4857185721 | AO67: 46 | AP67: 2028-05-01 | AQ67: 30 | AR67: 1400 | AS67: 1528023.502 | AT67: 3650.858847 | AU67: 23393.23073 | AV67: 435.4866982 | AW67: 450.45 | AX67: 0 | AY67: 27930.02628 | AZ67: 1524372.644 | BA67: 0.4857185721 | BB67: 0.4857185721 | BF67: 46 | BG67: 2028-05-01 | BH67: 30 | BI67: 1400 | BJ67: 1539671.421 | BK67: -415.2039487 | BL67: 23571.5542 | BM67: 438.8063551 | BN67: 450.45 | BO67: 0 | BP67: 24045.60661 | BQ67: 1540086.625 | BR67: 0.4857185721 | BS67: 0.4857185721 | BW67: 46 | BX67: 2028-05-01 | BY67: 30 | BZ67: 1400 | CA67: 1594016.259 | CB67: 1604.781443 | CC67: 24403.54489 | CD67: 454.2946337 | CE67: 450.45 | CF67: 0 | CG67: 26913.07096 | CH67: 1592411.477 | CI67: 0.4857185721 | CJ67: 0.4857185721 | CN67: 46 | CO67: 2028-05-01 | CP67: 30 | CQ67: 1400 | CR67: 1605239.981 | CS67: -2313.230151 | CT67: 24575.37413 | CU67: 457.4933946 | CV67: 450.45 | CW67: 0 | CX67: 23170.08738 | CY67: 1607553.211 | CZ67: 0.4857185721 | DA67: 0.4857185721
B68: 47 | C68: 2028-06-01 | D68: 31 | E68: 1431 | F68: 1592411.477 | G68: 795.6481077 | H68: 25198.00545 | I68: 468.9674074 | J68: 450.45 | K68: 0 | L68: 26913.07096 | M68: 1591615.829 | N68: 0.47801373 | O68: 0.47801373 | Q68: =IFERROR(IF('Simulación Cliente'!$H$21="Simple",G68+H68+I68+J68+K68,AC68+AD68+AE68+AF68+AG68),"") -> 26913.07096 | R68: 1431 | S68: =IFERROR((1+'Simulación Cliente'!$E$21)^(R68/360),"") -> 2.120727666 | T68: 12690.49 | X68: 47 | Y68: 2028-06-01 | Z68: 31 | AA68: 1431 | AB68: 1607553.211 | AC68: -3191.394555 | AD68: 25437.60526 | AE68: 473.4266692 | AF68: 450.45 | AG68: 0 | AH68: 23170.08738 | AI68: 1610744.606 | AJ68: 0.47801373 | AK68: 0.47801373 | AO68: 47 | AP68: 2028-06-01 | AQ68: 31 | AR68: 1431 | AS68: 1524372.644 | AT68: 2909.274051 | AU68: 24121.37235 | AV68: 448.9298757 | AW68: 450.45 | AX68: 0 | AY68: 27930.02628 | AZ68: 1521463.369 | BA68: 0.47801373 | BB68: 0.47801373 | BF68: 47 | BG68: 2028-06-01 | BH68: 31 | BI68: 1431 | BJ68: 1540086.625 | BK68: -1228.428357 | BL68: 24370.0273 | BM68: 453.5576653 | BN68: 450.45 | BO68: 0 | BP68: 24045.60661 | BQ68: 1541315.054 | BR68: 0.47801373 | BS68: 0.47801373 | BW68: 47 | BX68: 2028-06-01 | BY68: 31 | BZ68: 1431 | CA68: 1592411.477 | CB68: 795.6481077 | CC68: 25198.00545 | CD68: 468.9674074 | CE68: 450.45 | CF68: 0 | CG68: 26913.07096 | CH68: 1591615.829 | CI68: 0.47801373 | CJ68: 0.47801373 | CN68: 47 | CO68: 2028-06-01 | CP68: 31 | CQ68: 1431 | CR68: 1607553.211 | CS68: -3191.394555 | CT68: 25437.60526 | CU68: 473.4266692 | CV68: 450.45 | CW68: 0 | CX68: 23170.08738 | CY68: 1610744.606 | CZ68: 0.47801373 | DA68: 0.47801373
B69: 48 | C69: 2028-07-01 | D69: 30 | E69: 1461 | F69: 1591615.829 | G69: 1642.21487 | H69: 24366.79558 | I69: 453.6105113 | J69: 450.45 | K69: 0 | L69: 26913.07096 | M69: 1589973.614 | N69: 0.470673821 | O69: 0.470673821 | Q69: =IFERROR(IF('Simulación Cliente'!$H$21="Simple",G69+H69+I69+J69+K69,AC69+AD69+AE69+AF69+AG69),"") -> 26913.07096 | R69: 1461 | S69: =IFERROR((1+'Simulación Cliente'!$E$21)^(R69/360),"") -> 2.154415422 | T69: 12492.05 | X69: 48 | Y69: 2028-07-01 | Z69: 30 | AA69: 1461 | AB69: 1610744.606 | AC69: 20771.01552 | AD69: 24659.64702 | AE69: 459.0622126 | AF69: 450.45 | AG69: 0 | AH69: 46340.17475 | AI69: 1589973.59 | AJ69: 0.941347642 | AK69: 0.470673821 | AO69: 48 | AP69: 2028-07-01 | AQ69: 30 | AR69: 1461 | AS69: 1521463.369 | AT69: 3753.160646 | AU69: 23292.79857 | AV69: 433.6170603 | AW69: 450.45 | AX69: 0 | AY69: 27930.02628 | AZ69: 1517710.209 | BA69: 0.470673821 | BB69: 0.470673821 | BF69: 48 | BG69: 2028-07-01 | BH69: 30 | BI69: 1461 | BJ69: 1541315.054 | BK69: 23604.77109 | BL69: 23596.71735 | BM69: 439.2747903 | BN69: 450.45 | BO69: 0 | BP69: 48091.21322 | BQ69: 1517710.283 | BR69: 0.941347642 | BS69: 0.470673821 | BW69: 48 | BX69: 2028-07-01 | BY69: 30 | BZ69: 1461 | CA69: 1591615.829 | CB69: 1642.21487 | CC69: 24366.79558 | CD69: 453.6105113 | CE69: 450.45 | CF69: 0 | CG69: 26913.07096 | CH69: 1589973.614 | CI69: 0.470673821 | CJ69: 0.470673821 | CN69: 48 | CO69: 2028-07-01 | CP69: 30 | CQ69: 1461 | CR69: 1610744.606 | CS69: 20771.01552 | CT69: 24659.64702 | CU69: 459.0622126 | CV69: 450.45 | CW69: 0 | CX69: 46340.17475 | CY69: 1589973.59 | CZ69: 0.941347642 | DA69: 0.470673821
B70: 49 | C70: 2028-08-01 | D70: 31 | E70: 1492 | F70: 1589973.614 | G70: 834.9423251 | H70: 25159.42918 | I70: 468.2494533 | J70: 450.45 | K70: 0 | L70: 26913.07096 | M70: 1589138.672 | N70: 0.4632076303 | O70: 0.4632076303 | Q70: =IFERROR(IF('Simulación Cliente'!$H$21="Simple",G70+H70+I70+J70+K70,AC70+AD70+AE70+AF70+AG70),"") -> 26913.07096 | R70: 1492 | S70: =IFERROR((1+'Simulación Cliente'!$E$21)^(R70/360),"") -> 2.189788386 | T70: 12290.26 | X70: 49 | Y70: 2028-08-01 | Z70: 31 | AA70: 1492 | AB70: 1589973.59 | AC70: -2908.040874 | AD70: 25159.4288 | AE70: 468.2494462 | AF70: 450.45 | AG70: 0 | AH70: 23170.08738 | AI70: 1592881.631 | AJ70: 0.4632076303 | AK70: 0.4632076303 | AO70: 49 | AP70: 2028-08-01 | AQ70: 31 | AR70: 1492 | AS70: 1517710.209 | AT70: 3016.661201 | AU70: 24015.9473 | AV70: 446.9677794 | AW70: 450.45 | AX70: 0 | AY70: 27930.02628 | AZ70: 1514693.548 | BA70: 0.4632076303 | BB70: 0.4632076303 | BF70: 49 | BG70: 2028-08-01 | BH70: 31 | BI70: 1492 | BJ70: 1517710.283 | BK70: -867.7596545 | BL70: 24015.94846 | BM70: 446.9678011 | BN70: 450.45 | BO70: 0 | BP70: 24045.60661 | BQ70: 1518578.042 | BR70: 0.4632076303 | BS70: 0.4632076303 | BW70: 49 | BX70: 2028-08-01 | BY70: 31 | BZ70: 1492 | CA70: 1589973.614 | CB70: 834.9423251 | CC70: 25159.42918 | CD70: 468.2494533 | CE70: 450.45 | CF70: 0 | CG70: 26913.07096 | CH70: 1589138.672 | CI70: 0.4632076303 | CJ70: 0.4632076303 | CN70: 49 | CO70: 2028-08-01 | CP70: 31 | CQ70: 1492 | CR70: 1589973.59 | CS70: -2908.040874 | CT70: 25159.4288 | CU70: 468.2494462 | CV70: 450.45 | CW70: 0 | CX70: 23170.08738 | CY70: 1592881.631 | CZ70: 0.4632076303 | DA70: 0.4632076303
B71: 50 | C71: 2028-09-01 | D71: 31 | E71: 1523 | F71: 1589138.672 | G71: 848.4001797 | H71: 25146.21722 | I71: 468.0035616 | J71: 450.45 | K71: 0 | L71: 26913.07096 | M71: 1588290.272 | N71: 0.4558598741 | O71: 0.4558598741 | Q71: =IFERROR(IF('Simulación Cliente'!$H$21="Simple",G71+H71+I71+J71+K71,AC71+AD71+AE71+AF71+AG71),"") -> 26913.07096 | R71: 1523 | S71: =IFERROR((1+'Simulación Cliente'!$E$21)^(R71/360),"") -> 2.225742132 | T71: 12091.73 | X71: 50 | Y71: 2028-09-01 | Z71: 31 | AA71: 1523 | AB71: 1592881.631 | AC71: -2954.913562 | AD71: 25205.44507 | AE71: 469.1058684 | AF71: 450.45 | AG71: 0 | AH71: 23170.08738 | AI71: 1595836.545 | AJ71: 0.4558598741 | AK71: 0.4558598741 | AO71: 50 | AP71: 2028-09-01 | AQ71: 31 | AR71: 1523 | AS71: 1514693.548 | AT71: 3065.284665 | AU71: 23968.21224 | AV71: 446.0793684 | AW71: 450.45 | AX71: 0 | AY71: 27930.02628 | AZ71: 1511628.263 | BA71: 0.4558598741 | BB71: 0.4558598741 | BF71: 50 | BG71: 2028-09-01 | BH71: 31 | BI71: 1523 | BJ71: 1518578.042 | BK71: -881.7464688 | BL71: 24029.67972 | BM71: 447.2233575 | BN71: 450.45 | BO71: 0 | BP71: 24045.60661 | BQ71: 1519459.789 | BR71: 0.4558598741 | BS71: 0.4558598741 | BW71: 50 | BX71: 2028-09-01 | BY71: 31 | BZ71: 1523 | CA71: 1589138.672 | CB71: 848.4001797 | CC71: 25146.21722 | CD71: 468.0035616 | CE71: 450.45 | CF71: 0 | CG71: 26913.07096 | CH71: 1588290.272 | CI71: 0.4558598741 | CJ71: 0.4558598741 | CN71: 50 | CO71: 2028-09-01 | CP71: 31 | CQ71: 1523 | CR71: 1592881.631 | CS71: -2954.913562 | CT71: 25205.44507 | CU71: 469.1058684 | CV71: 450.45 | CW71: 0 | CX71: 23170.08738 | CY71: 1595836.545 | CZ71: 0.4558598741 | DA71: 0.4558598741
B72: 51 | C72: 2028-10-01 | D72: 30 | E72: 1553 | F72: 1588290.272 | G72: 1694.075177 | H72: 24315.88306 | I72: 452.6627274 | J72: 450.45 | K72: 0 | L72: 26913.07096 | M72: 1586596.196 | N72: 0.448860138 | O72: 0.448860138 | Q72: =IFERROR(IF('Simulación Cliente'!$H$21="Simple",G72+H72+I72+J72+K72,AC72+AD72+AE72+AF72+AG72),"") -> 26913.07096 | R72: 1553 | S72: =IFERROR((1+'Simulación Cliente'!$E$21)^(R72/360),"") -> 2.261098043 | T72: 11902.66 | X72: 51 | Y72: 2028-10-01 | Z72: 30 | AA72: 1553 | AB72: 1595836.545 | AC72: -2166.58854 | AD72: 24431.4125 | AE72: 454.8134152 | AF72: 450.45 | AG72: 0 | AH72: 23170.08738 | AI72: 1598003.133 | AJ72: 0.448860138 | AK72: 0.448860138 | AO72: 51 | AP72: 2028-10-01 | AQ72: 30 | AR72: 1553 | AS72: 1511628.263 | AT72: 3906.533925 | AU72: 23142.2283 | AV72: 430.8140549 | AW72: 450.45 | AX72: 0 | AY72: 27930.02628 | AZ72: 1507721.729 | BA72: 0.448860138 | BB72: 0.448860138 | BF72: 51 | BG72: 2028-10-01 | BH72: 30 | BI72: 1553 | BJ72: 1519459.789 | BK72: -100.0142395 | BL72: 23262.12481 | BM72: 433.0460398 | BN72: 450.45 | BO72: 0 | BP72: 24045.60661 | BQ72: 1519559.803 | BR72: 0.448860138 | BS72: 0.448860138 | BW72: 51 | BX72: 2028-10-01 | BY72: 30 | BZ72: 1553 | CA72: 1588290.272 | CB72: 1694.075177 | CC72: 24315.88306 | CD72: 452.6627274 | CE72: 450.45 | CF72: 0 | CG72: 26913.07096 | CH72: 1586596.196 | CI72: 0.448860138 | CJ72: 0.448860138 | CN72: 51 | CO72: 2028-10-01 | CP72: 30 | CQ72: 1553 | CR72: 1595836.545 | CS72: -2166.58854 | CT72: 24431.4125 | CU72: 454.8134152 | CV72: 450.45 | CW72: 0 | CX72: 23170.08738 | CY72: 1598003.133 | CZ72: 0.448860138 | DA72: 0.448860138
B73: 52 | C73: 2028-11-01 | D73: 31 | E73: 1584 | F73: 1586596.196 | G73: 889.3805713 | H73: 25105.98559 | I73: 467.2547991 | J73: 450.45 | K73: 0 | L73: 26913.07096 | M73: 1585706.816 | N73: 0.4417399727 | O73: 0.4417399727 | Q73: =IFERROR(IF('Simulación Cliente'!$H$21="Simple",G73+H73+I73+J73+K73,AC73+AD73+AE73+AF73+AG73),"") -> 26913.07096 | R73: 1584 | S73: =IFERROR((1+'Simulación Cliente'!$E$21)^(R73/360),"") -> 2.29822261 | T73: 11710.38 | X73: 52 | Y73: 2028-11-01 | Z73: 31 | AA73: 1584 | AB73: 1598003.133 | AC73: -3037.463491 | AD73: 25286.48671 | AE73: 470.6141579 | AF73: 450.45 | AG73: 0 | AH73: 23170.08738 | AI73: 1601040.597 | AJ73: 0.4417399727 | AK73: 0.4417399727 | AO73: 52 | AP73: 2028-11-01 | AQ73: 31 | AR73: 1584 | AS73: 1507721.729 | AT73: 3177.658558 | AU73: 23857.89156 | AV73: 444.0261581 | AW73: 450.45 | AX73: 0 | AY73: 27930.02628 | AZ73: 1504544.07 | BA73: 0.4417399727 | BB73: 0.4417399727 | BF73: 52 | BG73: 2028-11-01 | BH73: 31 | BI73: 1584 | BJ73: 1519559.803 | BK73: -897.5707867 | BL73: 24045.21491 | BM73: 447.5124874 | BN73: 450.45 | BO73: 0 | BP73: 24045.60661 | BQ73: 1520457.374 | BR73: 0.4417399727 | BS73: 0.4417399727 | BW73: 52 | BX73: 2028-11-01 | BY73: 31 | BZ73: 1584 | CA73: 1586596.196 | CB73: 889.3805713 | CC73: 25105.98559 | CD73: 467.2547991 | CE73: 450.45 | CF73: 0 | CG73: 26913.07096 | CH73: 1585706.816 | CI73: 0.4417399727 | CJ73: 0.4417399727 | CN73: 52 | CO73: 2028-11-01 | CP73: 31 | CQ73: 1584 | CR73: 1598003.133 | CS73: -3037.463491 | CT73: 25286.48671 | CU73: 470.6141579 | CV73: 450.45 | CW73: 0 | CX73: 23170.08738 | CY73: 1601040.597 | CZ73: 0.4417399727 | DA73: 0.4417399727
B74: 53 | C74: 2028-12-01 | D74: 30 | E74: 1614 | F74: 1585706.816 | G74: 1734.362801 | H74: 24276.33172 | I74: 451.9264425 | J74: 450.45 | K74: 0 | L74: 26913.07096 | M74: 1583972.453 | N74: 0.4349570479 | O74: 0.4349570479 | Q74: =IFERROR(IF('Simulación Cliente'!$H$21="Simple",G74+H74+I74+J74+K74,AC74+AD74+AE74+AF74+AG74),"") -> 26913.07096 | R74: 1614 | S74: =IFERROR((1+'Simulación Cliente'!$E$21)^(R74/360),"") -> 2.334729873 | T74: 11527.27 | X74: 53 | Y74: 2028-12-01 | Z74: 30 | AA74: 1614 | AB74: 1601040.597 | AC74: 20922.3444 | AD74: 24511.08378 | AE74: 456.29657 | AF74: 450.45 | AG74: 0 | AH74: 46340.17475 | AI74: 1580118.252 | AJ74: 0.8699140958 | AK74: 0.4349570479 | AO74: 53 | AP74: 2028-12-01 | AQ74: 30 | AR74: 1614 | AS74: 1504544.07 | AT74: 4017.008155 | AU74: 23033.77306 | AV74: 428.7950601 | AW74: 450.45 | AX74: 0 | AY74: 27930.02628 | AZ74: 1500527.062 | BA74: 0.4349570479 | BB74: 0.4349570479 | BF74: 53 | BG74: 2028-12-01 | BH74: 30 | BI74: 1614 | BJ74: 1520457.374 | BK74: 23930.03556 | BL74: 23277.39731 | BM74: 433.3303515 | BN74: 450.45 | BO74: 0 | BP74: 48091.21322 | BQ74: 1496527.338 | BR74: 0.8699140958 | BS74: 0.4349570479 | BW74: 53 | BX74: 2028-12-01 | BY74: 30 | BZ74: 1614 | CA74: 1585706.816 | CB74: 1734.362801 | CC74: 24276.33172 | CD74: 451.9264425 | CE74: 450.45 | CF74: 0 | CG74: 26913.07096 | CH74: 1583972.453 | CI74: 0.4349570479 | CJ74: 0.4349570479 | CN74: 53 | CO74: 2028-12-01 | CP74: 30 | CQ74: 1614 | CR74: 1601040.597 | CS74: 20922.3444 | CT74: 24511.08378 | CU74: 456.29657 | CV74: 450.45 | CW74: 0 | CX74: 46340.17475 | CY74: 1580118.252 | CZ74: 0.8699140958 | DA74: 0.4349570479
B75: 54 | C75: 2029-01-01 | D75: 31 | E75: 1645 | F75: 1583972.453 | G75: 931.6708655 | H75: 25064.46799 | I75: 466.482103 | J75: 450.45 | K75: 0 | L75: 26913.07096 | M75: 1583040.782 | N75: 0.4280574242 | O75: 0.4280574242 | Q75: =IFERROR(IF('Simulación Cliente'!$H$21="Simple",G75+H75+I75+J75+K75,AC75+AD75+AE75+AF75+AG75),"") -> 26913.07096 | R75: 1645 | S75: =IFERROR((1+'Simulación Cliente'!$E$21)^(R75/360),"") -> 2.373063387 | T75: 11341.07 | X75: 54 | Y75: 2029-01-01 | Z75: 31 | AA75: 1645 | AB75: 1580118.252 | AC75: -2749.189537 | AD75: 25003.47988 | AE75: 465.3470354 | AF75: 450.45 | AG75: 0 | AH75: 23170.08738 | AI75: 1582867.442 | AJ75: 0.4280574242 | AK75: 0.4280574242 | AO75: 54 | AP75: 2029-01-01 | AQ75: 31 | AR75: 1645 | AS75: 1500527.062 | AT75: 3293.624386 | AU75: 23744.04457 | AV75: 441.9073187 | AW75: 450.45 | AX75: 0 | AY75: 27930.02628 | AZ75: 1497233.438 | BA75: 0.4280574242 | BB75: 0.4280574242 | BF75: 54 | BG75: 2029-01-01 | BH75: 31 | BI75: 1645 | BJ75: 1496527.338 | BK75: -526.3265093 | BL75: 23680.75373 | BM75: 440.7293944 | BN75: 450.45 | BO75: 0 | BP75: 24045.60661 | BQ75: 1497053.665 | BR75: 0.4280574242 | BS75: 0.4280574242 | BW75: 54 | BX75: 2029-01-01 | BY75: 31 | BZ75: 1645 | CA75: 1583972.453 | CB75: 931.6708655 | CC75: 25064.46799 | CD75: 466.482103 | CE75: 450.45 | CF75: 0 | CG75: 26913.07096 | CH75: 1583040.782 | CI75: 0.4280574242 | CJ75: 0.4280574242 | CN75: 54 | CO75: 2029-01-01 | CP75: 31 | CQ75: 1645 | CR75: 1580118.252 | CS75: -2749.189537 | CT75: 25003.47988 | CU75: 465.3470354 | CV75: 450.45 | CW75: 0 | CX75: 23170.08738 | CY75: 1582867.442 | CZ75: 0.4280574242 | DA75: 0.4280574242
B76: 55 | C76: 2029-02-01 | D76: 31 | E76: 1676 | F76: 1583040.782 | G76: 946.6878201 | H76: 25049.72542 | I76: 466.2077246 | J76: 450.45 | K76: 0 | L76: 26913.07096 | M76: 1582094.094 | N76: 0.4212672476 | O76: 0.4212672476 | Q76: =IFERROR(IF('Simulación Cliente'!$H$21="Simple",G76+H76+I76+J76+K76,AC76+AD76+AE76+AF76+AG76),"") -> 26913.07096 | R76: 1676 | S76: =IFERROR((1+'Simulación Cliente'!$E$21)^(R76/360),"") -> 2.412026293 | T76: 11157.87 | X76: 55 | Y76: 2029-02-01 | Z76: 31 | AA76: 1676 | AB76: 1582867.442 | AC76: -2793.501811 | AD76: 25046.98251 | AE76: 466.1566756 | AF76: 450.45 | AG76: 0 | AH76: 23170.08738 | AI76: 1585660.943 | AJ76: 0.4212672476 | AK76: 0.4212672476 | AO76: 55 | AP76: 2029-02-01 | AQ76: 31 | AR76: 1676 | AS76: 1497233.438 | AT76: 3346.712027 | AU76: 23691.92691 | AV76: 440.9373417 | AW76: 450.45 | AX76: 0 | AY76: 27930.02628 | AZ76: 1493886.726 | BA76: 0.4212672476 | BB76: 0.4212672476 | BF76: 55 | BG76: 2029-02-01 | BH76: 31 | BI76: 1676 | BJ76: 1497053.665 | BK76: -534.8100001 | BL76: 23689.08221 | BM76: 440.8843982 | BN76: 450.45 | BO76: 0 | BP76: 24045.60661 | BQ76: 1497588.475 | BR76: 0.4212672476 | BS76: 0.4212672476 | BW76: 55 | BX76: 2029-02-01 | BY76: 31 | BZ76: 1676 | CA76: 1583040.782 | CB76: 946.6878201 | CC76: 25049.72542 | CD76: 466.2077246 | CE76: 450.45 | CF76: 0 | CG76: 26913.07096 | CH76: 1582094.094 | CI76: 0.4212672476 | CJ76: 0.4212672476 | CN76: 55 | CO76: 2029-02-01 | CP76: 31 | CQ76: 1676 | CR76: 1582867.442 | CS76: -2793.501811 | CT76: 25046.98251 | CU76: 466.1566756 | CV76: 450.45 | CW76: 0 | CX76: 23170.08738 | CY76: 1585660.943 | CZ76: 0.4212672476 | DA76: 0.4212672476
B77: 56 | C77: 2029-03-01 | D77: 28 | E77: 1704 | F77: 1582094.094 | G77: 3446.973962 | H77: 22594.81397 | I77: 420.8330316 | J77: 450.45 | K77: 0 | L77: 26913.07096 | M77: 1578647.12 | N77: 0.4152268124 | O77: 0.4152268124 | Q77: =IFERROR(IF('Simulación Cliente'!$H$21="Simple",G77+H77+I77+J77+K77,AC77+AD77+AE77+AF77+AG77),"") -> 26913.07096 | R77: 1704 | S77: =IFERROR((1+'Simulación Cliente'!$E$21)^(R77/360),"") -> 2.447768163 | T77: 10994.94 | X77: 56 | Y77: 2029-03-01 | Z77: 28 | AA77: 1704 | AB77: 1585660.943 | AC77: -347.8986623 | AD77: 22645.75423 | AE77: 421.7818044 | AF77: 450.45 | AG77: 0 | AH77: 23170.08738 | AI77: 1586008.842 | AJ77: 0.4152268124 | AK77: 0.4152268124 | AO77: 56 | AP77: 2029-03-01 | AQ77: 28 | AR77: 1704 | AS77: 1493886.726 | AT77: 5747.133394 | AU77: 21335.07279 | AV77: 397.3700944 | AW77: 450.45 | AX77: 0 | AY77: 27930.02628 | AZ77: 1488139.592 | BA77: 0.4152268124 | BB77: 0.4152268124 | BF77: 56 | BG77: 2029-03-01 | BH77: 28 | BI77: 1704 | BJ77: 1497588.475 | BK77: 1808.862226 | BL77: 21387.93964 | BM77: 398.3547502 | BN77: 450.45 | BO77: 0 | BP77: 24045.60661 | BQ77: 1495779.612 | BR77: 0.4152268124 | BS77: 0.4152268124 | BW77: 56 | BX77: 2029-03-01 | BY77: 28 | BZ77: 1704 | CA77: 1582094.094 | CB77: 3446.973962 | CC77: 22594.81397 | CD77: 420.8330316 | CE77: 450.45 | CF77: 0 | CG77: 26913.07096 | CH77: 1578647.12 | CI77: 0.4152268124 | CJ77: 0.4152268124 | CN77: 56 | CO77: 2029-03-01 | CP77: 28 | CQ77: 1704 | CR77: 1585660.943 | CS77: -347.8986623 | CT77: 22645.75423 | CU77: 421.7818044 | CV77: 450.45 | CW77: 0 | CX77: 23170.08738 | CY77: 1586008.842 | CZ77: 0.4152268124 | DA77: 0.4152268124
B78: 57 | C78: 2029-04-01 | D78: 31 | E78: 1735 | F78: 1578647.12 | G78: 1017.506198 | H78: 24980.20098 | I78: 464.9137851 | J78: 450.45 | K78: 0 | L78: 26913.07096 | M78: 1577629.614 | N78: 0.4086401649 | O78: 0.4086401649 | Q78: =IFERROR(IF('Simulación Cliente'!$H$21="Simple",G78+H78+I78+J78+K78,AC78+AD78+AE78+AF78+AG78),"") -> 26913.07096 | R78: 1735 | S78: =IFERROR((1+'Simulación Cliente'!$E$21)^(R78/360),"") -> 2.487957633 | T78: 10817.33 | X78: 57 | Y78: 2029-04-01 | Z78: 31 | AA78: 1735 | AB78: 1586008.842 | AC78: -2844.13586 | AD78: 25096.69141 | AE78: 467.0818224 | AF78: 450.45 | AG78: 0 | AH78: 23170.08738 | AI78: 1588852.978 | AJ78: 0.4086401649 | AK78: 0.4086401649 | AO78: 57 | AP78: 2029-04-01 | AQ78: 31 | AR78: 1735 | AS78: 1488139.592 | AT78: 3493.289395 | AU78: 23548.02769 | AV78: 438.2591915 | AW78: 450.45 | AX78: 0 | AY78: 27930.02628 | AZ78: 1484646.303 | BA78: 0.4086401649 | BB78: 0.4086401649 | BF78: 57 | BG78: 2029-04-01 | BH78: 31 | BI78: 1735 | BJ78: 1495779.612 | BK78: -514.2744386 | BL78: 23668.92186 | BM78: 440.5091881 | BN78: 450.45 | BO78: 0 | BP78: 24045.60661 | BQ78: 1496293.887 | BR78: 0.4086401649 | BS78: 0.4086401649 | BW78: 57 | BX78: 2029-04-01 | BY78: 31 | BZ78: 1735 | CA78: 1578647.12 | CB78: 1017.506198 | CC78: 24980.20098 | CD78: 464.9137851 | CE78: 450.45 | CF78: 0 | CG78: 26913.07096 | CH78: 1577629.614 | CI78: 0.4086401649 | CJ78: 0.4086401649 | CN78: 57 | CO78: 2029-04-01 | CP78: 31 | CQ78: 1735 | CR78: 1586008.842 | CS78: -2844.13586 | CT78: 25096.69141 | CU78: 467.0818224 | CV78: 450.45 | CW78: 0 | CX78: 23170.08738 | CY78: 1588852.978 | CZ78: 0.4086401649 | DA78: 0.4086401649
B79: 58 | C79: 2029-05-01 | D79: 30 | E79: 1765 | F79: 1577629.614 | G79: 1860.322484 | H79: 24152.67404 | I79: 449.6244401 | J79: 450.45 | K79: 0 | L79: 26913.07096 | M79: 1575769.292 | N79: 0.4023654882 | O79: 0.4023654882 | Q79: =IFERROR(IF('Simulación Cliente'!$H$21="Simple",G79+H79+I79+J79+K79,AC79+AD79+AE79+AF79+AG79),"") -> 26913.07096 | R79: 1765 | S79: =IFERROR((1+'Simulación Cliente'!$E$21)^(R79/360),"") -> 2.527478836 | T79: 10648.19 | X79: 58 | Y79: 2029-05-01 | Z79: 30 | AA79: 1765 | AB79: 1588852.978 | AC79: -2057.683518 | AD79: 24324.4978 | AE79: 452.8230987 | AF79: 450.45 | AG79: 0 | AH79: 23170.08738 | AI79: 1590910.662 | AJ79: 0.4023654882 | AK79: 0.4023654882 | AO79: 58 | AP79: 2029-05-01 | AQ79: 30 | AR79: 1765 | AS79: 1484646.303 | AT79: 4327.303301 | AU79: 22729.14878 | AV79: 423.1241964 | AW79: 450.45 | AX79: 0 | AY79: 27930.02628 | AZ79: 1480319 | BA79: 0.4023654882 | BB79: 0.4023654882 | BF79: 58 | BG79: 2029-05-01 | BH79: 30 | BI79: 1765 | BJ79: 1496293.887 | BK79: 261.2457329 | BL79: 22907.46712 | BM79: 426.4437578 | BN79: 450.45 | BO79: 0 | BP79: 24045.60661 | BQ79: 1496032.641 | BR79: 0.4023654882 | BS79: 0.4023654882 | BW79: 58 | BX79: 2029-05-01 | BY79: 30 | BZ79: 1765 | CA79: 1577629.614 | CB79: 1860.322484 | CC79: 24152.67404 | CD79: 449.6244401 | CE79: 450.45 | CF79: 0 | CG79: 26913.07096 | CH79: 1575769.292 | CI79: 0.4023654882 | CJ79: 0.4023654882 | CN79: 58 | CO79: 2029-05-01 | CP79: 30 | CQ79: 1765 | CR79: 1588852.978 | CS79: -2057.683518 | CT79: 24324.4978 | CU79: 452.8230987 | CV79: 450.45 | CW79: 0 | CX79: 23170.08738 | CY79: 1590910.662 | CZ79: 0.4023654882 | DA79: 0.4023654882
B80: 59 | C80: 2029-06-01 | D80: 31 | E80: 1796 | F80: 1575769.292 | G80: 1063.891917 | H80: 24934.66279 | I80: 464.0662605 | J80: 450.45 | K80: 0 | L80: 26913.07096 | M80: 1574705.4 | N80: 0.3959828569 | O80: 0.3959828569 | Q80: =IFERROR(IF('Simulación Cliente'!$H$21="Simple",G80+H80+I80+J80+K80,AC80+AD80+AE80+AF80+AG80),"") -> 26913.07096 | R80: 1796 | S80: =IFERROR((1+'Simulación Cliente'!$E$21)^(R80/360),"") -> 2.568977062 | T80: 10476.18 | X80: 59 | Y80: 2029-06-01 | Z80: 31 | AA80: 1796 | AB80: 1590910.662 | AC80: -2923.144877 | AD80: 25174.25684 | AE80: 468.5254151 | AF80: 450.45 | AG80: 0 | AH80: 23170.08738 | AI80: 1593833.806 | AJ80: 0.3959828569 | AK80: 0.3959828569 | AO80: 59 | AP80: 2029-06-01 | AQ80: 31 | AR80: 1796 | AS80: 1480319 | AT80: 3619.344088 | AU80: 23424.27617 | AV80: 435.956016 | AW80: 450.45 | AX80: 0 | AY80: 27930.02628 | AZ80: 1476699.656 | BA80: 0.3959828569 | BB80: 0.3959828569 | BF80: 59 | BG80: 2029-06-01 | BH80: 31 | BI80: 1796 | BJ80: 1496032.641 | BK80: -518.3528323 | BL80: 23672.92574 | BM80: 440.5837054 | BN80: 450.45 | BO80: 0 | BP80: 24045.60661 | BQ80: 1496550.994 | BR80: 0.3959828569 | BS80: 0.3959828569 | BW80: 59 | BX80: 2029-06-01 | BY80: 31 | BZ80: 1796 | CA80: 1575769.292 | CB80: 1063.891917 | CC80: 24934.66279 | CD80: 464.0662605 | CE80: 450.45 | CF80: 0 | CG80: 26913.07096 | CH80: 1574705.4 | CI80: 0.3959828569 | CJ80: 0.3959828569 | CN80: 59 | CO80: 2029-06-01 | CP80: 31 | CQ80: 1796 | CR80: 1590910.662 | CS80: -2923.144877 | CT80: 25174.25684 | CU80: 468.5254151 | CV80: 450.45 | CW80: 0 | CX80: 23170.08738 | CY80: 1593833.806 | CZ80: 0.3959828569 | DA80: 0.3959828569
B81: 60 | C81: 2029-07-01 | D81: 30 | E81: 1826 | F81: 1574705.4 | G81: 1905.924059 | H81: 24107.90586 | I81: 448.791039 | J81: 450.45 | K81: 0 | L81: 26913.07096 | M81: 1572799.476 | N81: 0.3899025334 | O81: 0.3899025334 | Q81: =IFERROR(IF('Simulación Cliente'!$H$21="Simple",G81+H81+I81+J81+K81,AC81+AD81+AE81+AF81+AG81),"") -> 26913.07096 | R81: 1826 | S81: =IFERROR((1+'Simulación Cliente'!$E$21)^(R81/360),"") -> 2.609785259 | T81: 10312.37 | X81: 60 | Y81: 2029-07-01 | Z81: 30 | AA81: 1826 | AB81: 1593833.806 | AC81: 21034.73048 | AD81: 24400.75164 | AE81: 454.2426348 | AF81: 450.45 | AG81: 0 | AH81: 46340.17475 | AI81: 1572799.076 | AJ81: 0.7798050667 | AK81: 0.3899025334 | AO81: 60 | AP81: 2029-07-01 | AQ81: 30 | AR81: 1826 | AS81: 1476699.656 | AT81: 4451.22706 | AU81: 22607.48982 | AV81: 420.8594019 | AW81: 450.45 | AX81: 0 | AY81: 27930.02628 | AZ81: 1472248.429 | BA81: 0.3899025334 | BB81: 0.3899025334 | BF81: 60 | BG81: 2029-07-01 | BH81: 30 | BI81: 1826 | BJ81: 1496550.994 | BK81: 24302.84289 | BL81: 22911.40329 | BM81: 426.5170333 | BN81: 450.45 | BO81: 0 | BP81: 48091.21322 | BQ81: 1472248.151 | BR81: 0.7798050667 | BS81: 0.3899025334 | BW81: 60 | BX81: 2029-07-01 | BY81: 30 | BZ81: 1826 | CA81: 1574705.4 | CB81: 1905.924059 | CC81: 24107.90586 | CD81: 448.791039 | CE81: 450.45 | CF81: 0 | CG81: 26913.07096 | CH81: 1572799.476 | CI81: 0.3899025334 | CJ81: 0.3899025334 | CN81: 60 | CO81: 2029-07-01 | CP81: 30 | CQ81: 1826 | CR81: 1593833.806 | CS81: 21034.73048 | CT81: 24400.75164 | CU81: 454.2426348 | CV81: 450.45 | CW81: 0 | CX81: 46340.17475 | CY81: 1572799.076 | CZ81: 0.7798050667 | DA81: 0.3899025334
B82: 61 | C82: 2029-08-01 | D82: 31 | E82: 1857 | F82: 1572799.476 | G82: 1111.760314 | H82: 24887.669 | I82: 463.1916456 | J82: 450.45 | K82: 0 | L82: 26913.07096 | M82: 1571687.715 | N82: 0.3837175991 | O82: 0.3837175991 | Q82: =IFERROR(IF('Simulación Cliente'!$H$21="Simple",G82+H82+I82+J82+K82,AC82+AD82+AE82+AF82+AG82),"") -> 26913.07096 | R82: 1857 | S82: =IFERROR((1+'Simulación Cliente'!$E$21)^(R82/360),"") -> 2.652634859 | T82: 10145.79 | X82: 61 | Y82: 2029-08-01 | Z82: 31 | AA82: 1857 | AB82: 1572799.076 | AC82: -2631.216828 | AD82: 24887.66268 | AE82: 463.1915278 | AF82: 450.45 | AG82: 0 | AH82: 23170.08738 | AI82: 1575430.293 | AJ82: 0.3837175991 | AK82: 0.3837175991 | AO82: 61 | AP82: 2029-08-01 | AQ82: 31 | AR82: 1857 | AS82: 1472248.429 | AT82: 3749.42801 | AU82: 23296.56905 | AV82: 433.5792215 | AW82: 450.45 | AX82: 0 | AY82: 27930.02628 | AZ82: 1468499.001 | BA82: 0.3837175991 | BB82: 0.3837175991 | BF82: 61 | BG82: 2029-08-01 | BH82: 31 | BI82: 1857 | BJ82: 1472248.151 | BK82: -134.9871824 | BL82: 23296.56465 | BM82: 433.5791398 | BN82: 450.45 | BO82: 0 | BP82: 24045.60661 | BQ82: 1472383.138 | BR82: 0.3837175991 | BS82: 0.3837175991 | BW82: 61 | BX82: 2029-08-01 | BY82: 31 | BZ82: 1857 | CA82: 1572799.476 | CB82: 1111.760314 | CC82: 24887.669 | CD82: 463.1916456 | CE82: 450.45 | CF82: 0 | CG82: 26913.07096 | CH82: 1571687.715 | CI82: 0.3837175991 | CJ82: 0.3837175991 | CN82: 61 | CO82: 2029-08-01 | CP82: 31 | CQ82: 1857 | CR82: 1572799.076 | CS82: -2631.216828 | CT82: 24887.66268 | CU82: 463.1915278 | CV82: 450.45 | CW82: 0 | CX82: 23170.08738 | CY82: 1575430.293 | CZ82: 0.3837175991 | DA82: 0.3837175991
B83: 62 | C83: 2029-09-01 | D83: 31 | E83: 1888 | F83: 1571687.715 | G83: 1129.680005 | H83: 24870.07673 | I83: 462.8642306 | J83: 450.45 | K83: 0 | L83: 26913.07096 | M83: 1570558.035 | N83: 0.377630775 | O83: 0.377630775 | Q83: =IFERROR(IF('Simulación Cliente'!$H$21="Simple",G83+H83+I83+J83+K83,AC83+AD83+AE83+AF83+AG83),"") -> 26913.07096 | R83: 1888 | S83: =IFERROR((1+'Simulación Cliente'!$E$21)^(R83/360),"") -> 2.696187999 | T83: 9981.9 | X83: 62 | Y83: 2029-09-01 | Z83: 31 | AA83: 1888 | AB83: 1575430.293 | AC83: -2673.627581 | AD83: 24929.29853 | AE83: 463.9664248 | AF83: 450.45 | AG83: 0 | AH83: 23170.08738 | AI83: 1578103.92 | AJ83: 0.377630775 | AK83: 0.377630775 | AO83: 62 | AP83: 2029-09-01 | AQ83: 31 | AR83: 1888 | AS83: 1468499.001 | AT83: 3809.862432 | AU83: 23237.23884 | AV83: 432.4750097 | AW83: 450.45 | AX83: 0 | AY83: 27930.02628 | AZ83: 1464689.138 | BA83: 0.377630775 | BB83: 0.377630775 | BF83: 62 | BG83: 2029-09-01 | BH83: 31 | BI83: 1888 | BJ83: 1472383.138 | BK83: -137.1629469 | BL83: 23298.70066 | BM83: 433.6188937 | BN83: 450.45 | BO83: 0 | BP83: 24045.60661 | BQ83: 1472520.301 | BR83: 0.377630775 | BS83: 0.377630775 | BW83: 62 | BX83: 2029-09-01 | BY83: 31 | BZ83: 1888 | CA83: 1571687.715 | CB83: 1129.680005 | CC83: 24870.07673 | CD83: 462.8642306 | CE83: 450.45 | CF83: 0 | CG83: 26913.07096 | CH83: 1570558.035 | CI83: 0.377630775 | CJ83: 0.377630775 | CN83: 62 | CO83: 2029-09-01 | CP83: 31 | CQ83: 1888 | CR83: 1575430.293 | CS83: -2673.627581 | CT83: 24929.29853 | CU83: 463.9664248 | CV83: 450.45 | CW83: 0 | CX83: 23170.08738 | CY83: 1578103.92 | CZ83: 0.377630775 | DA83: 0.377630775
B84: 63 | C84: 2029-10-01 | D84: 30 | E84: 1918 | F84: 1570558.035 | G84: 1970.600011 | H84: 24044.41191 | I84: 447.6090401 | J84: 450.45 | K84: 0 | L84: 26913.07096 | M84: 1568587.435 | N84: 0.371832248 | O84: 0.371832248 | Q84: =IFERROR(IF('Simulación Cliente'!$H$21="Simple",G84+H84+I84+J84+K84,AC84+AD84+AE84+AF84+AG84),"") -> 26913.07096 | R84: 1918 | S84: =IFERROR((1+'Simulación Cliente'!$E$21)^(R84/360),"") -> 2.739016942 | T84: 9825.81 | X84: 63 | Y84: 2029-10-01 | Z84: 30 | AA84: 1918 | AB84: 1578103.92 | AC84: -1890.057655 | AD84: 24159.93541 | AE84: 449.7596173 | AF84: 450.45 | AG84: 0 | AH84: 23170.08738 | AI84: 1579993.978 | AJ84: 0.371832248 | AK84: 0.371832248 | AO84: 63 | AP84: 2029-10-01 | AQ84: 30 | AR84: 1918 | AS84: 1464689.138 | AT84: 4638.52472 | AU84: 22423.61515 | AV84: 417.4364044 | AW84: 450.45 | AX84: 0 | AY84: 27930.02628 | AZ84: 1460050.613 | BA84: 0.371832248 | BB84: 0.371832248 | BF84: 63 | BG84: 2029-10-01 | BH84: 30 | BI84: 1918 | BJ84: 1472520.301 | BK84: 631.9822132 | BL84: 22543.50611 | BM84: 419.6682859 | BN84: 450.45 | BO84: 0 | BP84: 24045.60661 | BQ84: 1471888.319 | BR84: 0.371832248 | BS84: 0.371832248 | BW84: 63 | BX84: 2029-10-01 | BY84: 30 | BZ84: 1918 | CA84: 1570558.035 | CB84: 1970.600011 | CC84: 24044.41191 | CD84: 447.6090401 | CE84: 450.45 | CF84: 0 | CG84: 26913.07096 | CH84: 1568587.435 | CI84: 0.371832248 | CJ84: 0.371832248 | CN84: 63 | CO84: 2029-10-01 | CP84: 30 | CQ84: 1918 | CR84: 1578103.92 | CS84: -1890.057655 | CT84: 24159.93541 | CU84: 449.7596173 | CV84: 450.45 | CW84: 0 | CX84: 23170.08738 | CY84: 1579993.978 | CZ84: 0.371832248 | DA84: 0.371832248
B85: 64 | C85: 2029-11-01 | D85: 31 | E85: 1949 | F85: 1568587.435 | G85: 1179.651262 | H85: 24821.01851 | I85: 461.9511938 | J85: 450.45 | K85: 0 | L85: 26913.07096 | M85: 1567407.784 | N85: 0.3659339585 | O85: 0.3659339585 | Q85: =IFERROR(IF('Simulación Cliente'!$H$21="Simple",G85+H85+I85+J85+K85,AC85+AD85+AE85+AF85+AG85),"") -> 26913.07096 | R85: 1949 | S85: =IFERROR((1+'Simulación Cliente'!$E$21)^(R85/360),"") -> 2.783988374 | T85: 9667.09 | X85: 64 | Y85: 2029-11-01 | Z85: 31 | AA85: 1949 | AB85: 1579993.978 | AC85: -2747.186449 | AD85: 25001.51339 | AE85: 465.3104365 | AF85: 450.45 | AG85: 0 | AH85: 23170.08738 | AI85: 1582741.164 | AJ85: 0.3659339585 | AK85: 0.3659339585 | AO85: 64 | AP85: 2029-11-01 | AQ85: 31 | AR85: 1949 | AS85: 1460050.613 | AT85: 3946.036108 | AU85: 23103.55322 | AV85: 429.9869479 | AW85: 450.45 | AX85: 0 | AY85: 27930.02628 | AZ85: 1456104.577 | BA85: 0.3659339585 | BB85: 0.3659339585 | BF85: 64 | BG85: 2029-11-01 | BH85: 31 | BI85: 1949 | BJ85: 1471888.319 | BK85: -129.1872993 | BL85: 23290.87074 | BM85: 433.4731688 | BN85: 450.45 | BO85: 0 | BP85: 24045.60661 | BQ85: 1472017.506 | BR85: 0.3659339585 | BS85: 0.3659339585 | BW85: 64 | BX85: 2029-11-01 | BY85: 31 | BZ85: 1949 | CA85: 1568587.435 | CB85: 1179.651262 | CC85: 24821.01851 | CD85: 461.9511938 | CE85: 450.45 | CF85: 0 | CG85: 26913.07096 | CH85: 1567407.784 | CI85: 0.3659339585 | CJ85: 0.3659339585 | CN85: 64 | CO85: 2029-11-01 | CP85: 31 | CQ85: 1949 | CR85: 1579993.978 | CS85: -2747.186449 | CT85: 25001.51339 | CU85: 465.3104365 | CV85: 450.45 | CW85: 0 | CX85: 23170.08738 | CY85: 1582741.164 | CZ85: 0.3659339585 | DA85: 0.3659339585
B86: 65 | C86: 2029-12-01 | D86: 30 | E86: 1979 | F86: 1567407.784 | G86: =IF(B86>C$6,"",L86-K86-J86-I86-H86) -> 2019.726511 | H86: 23996.18323 | I86: =IF(B86>C$6,"",((1+C$12)^(D86/30)-1)*F86) -> 446.7112185 | J86: 450.45 | K86: =IF(B86>C$6,"",C$15) -> 0 | L86: =IF(B86>C$6,"",IF(B86=C$6,F86+H86+I86+J86+K86,IF(AND(C$9=2,MONTH(C86)=7),2*C$17,IF(AND(C$10=2,MONTH(C86)=12),2*C$17,C$17)))) -> 26913.07096 | M86: =IF(B86>C$6,"",F86-G86) -> 1565388.058 | N86: 0.3603150363 | O86: 0.3603150363 | Q86: =IFERROR(IF('Simulación Cliente'!$H$21="Simple",G86+H86+I86+J86+K86,AC86+AD86+AE86+AF86+AG86),"") -> 26913.07096 | R86: 1979 | S86: =IFERROR((1+'Simulación Cliente'!$E$21)^(R86/360),"") -> 2.828212025 | T86: 9515.93 | X86: 65 | Y86: 2029-12-01 | Z86: 30 | AA86: 1979 | AB86: 1582741.164 | AC86: 21207.71435 | AD86: 24230.92917 | AE86: =IF(X86>Y$6,"",((1+Y$12)^(Z86/30)-1)*AB86) -> 451.0812319 | AF86: 450.45 | AG86: =IF(X86>Y$6,"",Y$15) -> 0 | AH86: =IF(X86>Y$6,"",IF(X86=Y$6,AB86+AD86+AE86+AF86+AG86,IF(AND(Y$9=2,MONTH(Y86)=7),2*Y$17,IF(AND(Y$10=2,MONTH(Y86)=12),2*Y$17,Y$17)))) -> 46340.17475 | AI86: =IF(X86>Y$6,"",AB86-AC86) -> 1561533.45 | AJ86: 0.7206300725 | AK86: 0.3603150363 | AO86: 65 | AP86: 2029-12-01 | AQ86: 30 | AR86: 1979 | AS86: 1456104.577 | AT86: 4772.396401 | AU86: 22292.19007 | AV86: =IF(AO86>AP$6,"",((1+AP$12)^(AQ86/30)-1)*AS86) -> 414.9898046 | AW86: 450.45 | AX86: =IF(AO86>AP$6,"",AP$15) -> 0 | AY86: =IF(AO86>AP$6,"",IF(AO86=AP$6,AS86+AU86+AV86+AW86+AX86,IF(AND(AP$9=2,MONTH(AP86)=7),2*AP$17,IF(AND(AP$10=2,MONTH(AP86)=12),2*AP$17,AP$17)))) -> 27930.02628 | AZ86: =IF(AO86>AP$6,"",AS86-AT86) -> 1451332.181 | BA86: 0.3603150363 | BB86: 0.3603150363 | BF86: 65 | BG86: 2029-12-01 | BH86: 30 | BI86: 1979 | BJ86: 1472017.506 | BK86: 24685.42964 | BL86: 22535.80859 | BM86: =IF(BF86>BG$6,"",((1+BG$12)^(BH86/30)-1)*BJ86) -> 419.5249893 | BN86: 450.45 | BO86: =IF(BF86>BG$6,"",BG$15) -> 0 | BP86: =IF(BF86>BG$6,"",IF(BF86=BG$6,BJ86+BL86+BM86+BN86+BO86,IF(AND(BG$9=2,MONTH(BG86)=7),2*BG$17,IF(AND(BG$10=2,MONTH(BG86)=12),2*BG$17,BG$17)))) -> 48091.21322 | BQ86: =IF(BF86>BG$6,"",BJ86-BK86) -> 1447332.077 | BR86: 0.7206300725 | BS86: 0.3603150363 | BW86: 65 | BX86: 2029-12-01 | BY86: 30 | BZ86: 1979 | CA86: 1567407.784 | CB86: 2019.726511 | CC86: 23996.18323 | CD86: =IF(BW86>BX$6,"",((1+BX$12)^(BY86/30)-1)*CA86) -> 446.7112185 | CE86: 450.45 | CF86: =IF(BW86>BX$6,"",BX$15) -> 0 | CG86: =IF(BW86>BX$6,"",IF(BW86=BX$6,CA86+CC86+CD86+CE86+CF86,IF(AND(BX$9=2,MONTH(BX86)=7),2*BX$17,IF(AND(BX$10=2,MONTH(BX86)=12),2*BX$17,BX$17)))) -> 26913.07096 | CH86: =IF(BW86>BX$6,"",CA86-CB86) -> 1565388.058 | CI86: 0.3603150363 | CJ86: 0.3603150363 | CN86: 65 | CO86: 2029-12-01 | CP86: 30 | CQ86: 1979 | CR86: 1582741.164 | CS86: 21207.71435 | CT86: 24230.92917 | CU86: =IF(CN86>CO$6,"",((1+CO$12)^(CP86/30)-1)*CR86) -> 451.0812319 | CV86: 450.45 | CW86: =IF(CN86>CO$6,"",CO$15) -> 0 | CX86: =IF(CN86>CO$6,"",IF(CN86=CO$6,CR86+CT86+CU86+CV86+CW86,IF(AND(CO$9=2,MONTH(CO86)=7),2*CO$17,IF(AND(CO$10=2,MONTH(CO86)=12),2*CO$17,CO$17)))) -> 46340.17475 | CY86: =IF(CN86>CO$6,"",CR86-CS86) -> 1561533.45 | CZ86: 0.7206300725 | DA86: 0.3603150363
B87: 66 | C87: =IF(B87>C$6,"",EDATE(C$22,B86)) -> 2030-01-01 | D87: =IF(B87>C$6,"",C87-C86) -> 31 | E87: =IFERROR(D87+E86,"") -> 2010 | F87: =IF(B87>C$6,"",M86) -> 1565388.058 | G87: 1231.219807 | H87: 24770.39218 | I87: 461.0089726 | J87: =IF(B87>C$6,"",D$4*C$14) -> 450.45 | K87: 0 | L87: 26913.07096 | M87: 1564156.838 | N87: =IFERROR(IF(AND(MONTH(C87)=7,C$9=2),2/(1+C$13)^(E87/360),IF(AND(MONTH(C87)=12,C$10=2),2/(1+C$13)^(E87/360),1/(1+C$13)^(E87/360))),"") -> 0.3545994416 | O87: =IFERROR(1/(1+C$13)^(E87/360),"") -> 0.3545994416 | Q87: =IFERROR(IF('Simulación Cliente'!$H$21="Simple",G87+H87+I87+J87+K87,AC87+AD87+AE87+AF87+AG87),"") -> 26913.07096 | R87: =E87 -> 2010 | S87: =IFERROR((1+'Simulación Cliente'!$E$21)^(R87/360),"") -> 2.874647936 | T87: =IFERROR(ROUND(Q87/S87,2),"") -> 9362.21 | X87: 66 | Y87: =IF(X87>Y$6,"",EDATE(Y$22,X86)) -> 2030-01-01 | Z87: 31 | AA87: =IFERROR(Z87+AA86,"") -> 2010 | AB87: =IF(X87>Y$6,"",AI86) -> 1561533.45 | AC87: -2449.634041 | AD87: 24709.39763 | AE87: 459.8737852 | AF87: =IF(X87>Y$6,"",Z$4*Y$14) -> 450.45 | AG87: 0 | AH87: 23170.08738 | AI87: 1563983.084 | AJ87: =IFERROR(IF(AND(MONTH(Y87)=7,Y$9=2),2/(1+Y$13)^(AA87/360),IF(AND(MONTH(Y87)=12,Y$10=2),2/(1+Y$13)^(AA87/360),1/(1+Y$13)^(AA87/360))),"") -> 0.3545994416 | AK87: =IFERROR(1/(1+Y$13)^(AA87/360),"") -> 0.3545994416 | AO87: 66 | AP87: =IF(AO87>AP$6,"",EDATE(AP$22,AO86)) -> 2030-01-01 | AQ87: 31 | AR87: =IFERROR(AQ87+AR86,"") -> 2010 | AS87: =IF(AO87>AP$6,"",AZ86) -> 1451332.181 | AT87: 4086.562456 | AU87: 22965.59446 | AV87: 427.4193573 | AW87: =IF(AO87>AP$6,"",AQ$4*AP$14) -> 450.45 | AX87: 0 | AY87: 27930.02628 | AZ87: 1447245.619 | BA87: =IFERROR(IF(AND(MONTH(AP87)=7,AP$9=2),2/(1+AP$13)^(AR87/360),IF(AND(MONTH(AP87)=12,AP$10=2),2/(1+AP$13)^(AR87/360),1/(1+AP$13)^(AR87/360))),"") -> 0.3545994416 | BB87: =IFERROR(1/(1+AP$13)^(AR87/360),"") -> 0.3545994416 | BF87: 66 | BG87: =IF(BF87>BG$6,"",EDATE(BG$22,BF86)) -> 2030-01-01 | BH87: 31 | BI87: =IFERROR(BH87+BI86,"") -> 2010 | BJ87: =IF(BF87>BG$6,"",BQ86) -> 1447332.077 | BK87: 266.6176887 | BL87: 22902.2976 | BM87: 426.241321 | BN87: =IF(BF87>BG$6,"",BH$4*BG$14) -> 450.45 | BO87: 0 | BP87: 24045.60661 | BQ87: 1447065.459 | BR87: =IFERROR(IF(AND(MONTH(BG87)=7,BG$9=2),2/(1+BG$13)^(BI87/360),IF(AND(MONTH(BG87)=12,BG$10=2),2/(1+BG$13)^(BI87/360),1/(1+BG$13)^(BI87/360))),"") -> 0.3545994416 | BS87: =IFERROR(1/(1+BG$13)^(BI87/360),"") -> 0.3545994416 | BW87: 66 | BX87: =IF(BW87>BX$6,"",EDATE(BX$22,BW86)) -> 2030-01-01 | BY87: 31 | BZ87: =IFERROR(BY87+BZ86,"") -> 2010 | CA87: =IF(BW87>BX$6,"",CH86) -> 1565388.058 | CB87: 1231.219807 | CC87: 24770.39218 | CD87: 461.0089726 | CE87: =IF(BW87>BX$6,"",BY$4*BX$14) -> 450.45 | CF87: 0 | CG87: 26913.07096 | CH87: 1564156.838 | CI87: =IFERROR(IF(AND(MONTH(BX87)=7,BX$9=2),2/(1+BX$13)^(BZ87/360),IF(AND(MONTH(BX87)=12,BX$10=2),2/(1+BX$13)^(BZ87/360),1/(1+BX$13)^(BZ87/360))),"") -> 0.3545994416 | CJ87: =IFERROR(1/(1+BX$13)^(BZ87/360),"") -> 0.3545994416 | CN87: 66 | CO87: =IF(CN87>CO$6,"",EDATE(CO$22,CN86)) -> 2030-01-01 | CP87: 31 | CQ87: =IFERROR(CP87+CQ86,"") -> 2010 | CR87: =IF(CN87>CO$6,"",CY86) -> 1561533.45 | CS87: -2449.634041 | CT87: 24709.39763 | CU87: 459.8737852 | CV87: =IF(CN87>CO$6,"",CP$4*CO$14) -> 450.45 | CW87: 0 | CX87: 23170.08738 | CY87: 1563983.084 | CZ87: =IFERROR(IF(AND(MONTH(CO87)=7,CO$9=2),2/(1+CO$13)^(CQ87/360),IF(AND(MONTH(CO87)=12,CO$10=2),2/(1+CO$13)^(CQ87/360),1/(1+CO$13)^(CQ87/360))),"") -> 0.3545994416 | DA87: =IFERROR(1/(1+CO$13)^(CQ87/360),"") -> 0.3545994416
B88: 67 | C88: 2030-02-01 | D88: 31 | E88: 2041 | F88: 1564156.838 | G88: 1251.064983 | H88: =IF(B88>C$6,"",((1+C$11)^(D88/360)-1)*F88) -> 24750.9096 | I88: 460.6463766 | J88: 450.45 | K88: 0 | L88: 26913.07096 | M88: 1562905.773 | N88: 0.3489745122 | O88: 0.3489745122 | Q88: =IFERROR(IF('Simulación Cliente'!$H$21="Simple",G88+H88+I88+J88+K88,AC88+AD88+AE88+AF88+AG88),"") -> 26913.07096 | R88: 2041 | S88: =IFERROR((1+'Simulación Cliente'!$E$21)^(R88/360),"") -> 2.921846269 | T88: 9210.98 | X88: 67 | Y88: 2030-02-01 | Z88: 31 | AA88: 2041 | AB88: 1563983.084 | AC88: -2489.117988 | AD88: =IF(X88>Y$6,"",((1+Y$11)^(Z88/360)-1)*AB88) -> 24748.16016 | AE88: 460.5952059 | AF88: 450.45 | AG88: 0 | AH88: 23170.08738 | AI88: 1566472.202 | AJ88: 0.3489745122 | AK88: 0.3489745122 | AO88: 67 | AP88: 2030-02-01 | AQ88: 31 | AR88: 2041 | AS88: 1447245.619 | AT88: 4152.430914 | AU88: =IF(AO88>AP$6,"",((1+AP$11)^(AQ88/360)-1)*AS88) -> 22900.9295 | AV88: 426.215859 | AW88: 450.45 | AX88: 0 | AY88: 27930.02628 | AZ88: 1443093.188 | BA88: 0.3489745122 | BB88: 0.3489745122 | BF88: 67 | BG88: 2030-02-01 | BH88: 31 | BI88: 2041 | BJ88: 1447065.459 | BK88: 270.9151138 | BL88: =IF(BF88>BG$6,"",((1+BG$11)^(BH88/360)-1)*BJ88) -> 22898.0787 | BM88: 426.1628018 | BN88: 450.45 | BO88: 0 | BP88: 24045.60661 | BQ88: 1446794.544 | BR88: 0.3489745122 | BS88: 0.3489745122 | BW88: 67 | BX88: 2030-02-01 | BY88: 31 | BZ88: 2041 | CA88: 1564156.838 | CB88: 1251.064983 | CC88: =IF(BW88>BX$6,"",((1+BX$11)^(BY88/360)-1)*CA88) -> 24750.9096 | CD88: 460.6463766 | CE88: 450.45 | CF88: 0 | CG88: 26913.07096 | CH88: 1562905.773 | CI88: 0.3489745122 | CJ88: 0.3489745122 | CN88: 67 | CO88: 2030-02-01 | CP88: 31 | CQ88: 2041 | CR88: 1563983.084 | CS88: -2489.117988 | CT88: =IF(CN88>CO$6,"",((1+CO$11)^(CP88/360)-1)*CR88) -> 24748.16016 | CU88: 460.5952059 | CV88: 450.45 | CW88: 0 | CX88: 23170.08738 | CY88: 1566472.202 | CZ88: 0.3489745122 | DA88: 0.3489745122
B89: 68 | C89: 2030-03-01 | D89: 28 | E89: 2069 | F89: 1562905.773 | G89: 3726.117684 | H89: 22320.77429 | I89: 415.7289865 | J89: 450.45 | K89: 0 | L89: 26913.07096 | M89: 1559179.655 | N89: 0.3439706626 | O89: 0.3439706626 | Q89: =IFERROR(IF('Simulación Cliente'!$H$21="Simple",G89+H89+I89+J89+K89,AC89+AD89+AE89+AF89+AG89),"") -> 26913.07096 | R89: 2069 | S89: =IFERROR((1+'Simulación Cliente'!$E$21)^(R89/360),"") -> 2.965142749 | T89: 9076.48 | X89: 68 | Y89: 2030-03-01 | Z89: =IF(X89>Y$6,"",Y89-Y88) -> 28 | AA89: 2069 | AB89: 1566472.202 | AC89: =IF(X89>Y$6,"",AH89-AG89-AF89-AE89-AD89) -> -68.74883214 | AD89: 22371.70856 | AE89: 416.6776477 | AF89: 450.45 | AG89: 0 | AH89: 23170.08738 | AI89: 1566540.951 | AJ89: 0.3439706626 | AK89: 0.3439706626 | AO89: 68 | AP89: 2030-03-01 | AQ89: =IF(AO89>AP$6,"",AP89-AP88) -> 28 | AR89: 2069 | AS89: 1443093.188 | AT89: =IF(AO89>AP$6,"",AY89-AX89-AW89-AV89-AU89) -> 6486.056668 | AU89: 20609.66047 | AV89: 383.8591416 | AW89: 450.45 | AX89: 0 | AY89: 27930.02628 | AZ89: 1436607.131 | BA89: 0.3439706626 | BB89: 0.3439706626 | BF89: 68 | BG89: 2030-03-01 | BH89: =IF(BF89>BG$6,"",BG89-BG88) -> 28 | BI89: 2069 | BJ89: 1446794.544 | BK89: =IF(BF89>BG$6,"",BP89-BO89-BN89-BM89-BL89) -> 2547.791209 | BL89: 20662.52171 | BM89: 384.843693 | BN89: 450.45 | BO89: 0 | BP89: 24045.60661 | BQ89: 1444246.753 | BR89: 0.3439706626 | BS89: 0.3439706626 | BW89: 68 | BX89: 2030-03-01 | BY89: =IF(BW89>BX$6,"",BX89-BX88) -> 28 | BZ89: 2069 | CA89: 1562905.773 | CB89: =IF(BW89>BX$6,"",CG89-CF89-CE89-CD89-CC89) -> 3726.117684 | CC89: 22320.77429 | CD89: 415.7289865 | CE89: 450.45 | CF89: 0 | CG89: 26913.07096 | CH89: 1559179.655 | CI89: 0.3439706626 | CJ89: 0.3439706626 | CN89: 68 | CO89: 2030-03-01 | CP89: =IF(CN89>CO$6,"",CO89-CO88) -> 28 | CQ89: 2069 | CR89: 1566472.202 | CS89: =IF(CN89>CO$6,"",CX89-CW89-CV89-CU89-CT89) -> -68.74883214 | CT89: 22371.70856 | CU89: 416.6776477 | CV89: 450.45 | CW89: 0 | CX89: 23170.08738 | CY89: 1566540.951 | CZ89: 0.3439706626 | DA89: 0.3439706626
B90: 69 | C90: 2030-04-01 | D90: 31 | E90: 2100 | F90: 1559179.655 | G90: 1331.288728 | H90: 24672.15165 | I90: 459.1805894 | J90: 450.45 | K90: 0 | L90: 26913.07096 | M90: 1557848.366 | N90: 0.338514335 | O90: 0.338514335 | Q90: =IFERROR(IF('Simulación Cliente'!$H$21="Simple",G90+H90+I90+J90+K90,AC90+AD90+AE90+AF90+AG90),"") -> 26913.07096 | R90: 2100 | S90: =IFERROR((1+'Simulación Cliente'!$E$21)^(R90/360),"") -> 3.013826901 | T90: 8929.87 | X90: 69 | Y90: 2030-04-01 | Z90: 31 | AA90: 2100 | AB90: 1566540.951 | AC90: -2530.346464 | AD90: 24788.63534 | AE90: 461.3485012 | AF90: 450.45 | AG90: 0 | AH90: 23170.08738 | AI90: 1569071.297 | AJ90: 0.338514335 | AK90: 0.338514335 | AO90: 69 | AP90: 2030-04-01 | AQ90: 31 | AR90: 2100 | AS90: 1436607.131 | AT90: 4323.905295 | AU90: 22732.58817 | AV90: 423.0828095 | AW90: 450.45 | AX90: 0 | AY90: 27930.02628 | AZ90: 1432283.226 | BA90: 0.338514335 | BB90: 0.338514335 | BF90: 69 | BG90: 2030-04-01 | BH90: 31 | BI90: 2100 | BJ90: 1444246.753 | BK90: 316.3478802 | BL90: 22853.47604 | BM90: 425.3326888 | BN90: 450.45 | BO90: 0 | BP90: 24045.60661 | BQ90: 1443930.405 | BR90: 0.338514335 | BS90: 0.338514335 | BW90: 69 | BX90: 2030-04-01 | BY90: 31 | BZ90: 2100 | CA90: 1559179.655 | CB90: 1331.288728 | CC90: 24672.15165 | CD90: 459.1805894 | CE90: 450.45 | CF90: 0 | CG90: 26913.07096 | CH90: 1557848.366 | CI90: 0.338514335 | CJ90: 0.338514335 | CN90: 69 | CO90: 2030-04-01 | CP90: 31 | CQ90: 2100 | CR90: 1566540.951 | CS90: -2530.346464 | CT90: 24788.63534 | CU90: 461.3485012 | CV90: 450.45 | CW90: 0 | CX90: 23170.08738 | CY90: 1569071.297 | CZ90: 0.338514335 | DA90: 0.338514335
B91: 70 | C91: 2030-05-01 | D91: 30 | E91: 2130 | F91: 1557848.366 | G91: 2168.800569 | H91: 23849.83361 | I91: 443.9867844 | J91: 450.45 | K91: 0 | L91: 26913.07096 | M91: 1555679.566 | N91: 0.3333164416 | O91: 0.3333164416 | Q91: =IFERROR(IF('Simulación Cliente'!$H$21="Simple",G91+H91+I91+J91+K91,AC91+AD91+AE91+AF91+AG91),"") -> 26913.07096 | R91: 2130 | S91: =IFERROR((1+'Simulación Cliente'!$E$21)^(R91/360),"") -> 3.061701537 | T91: 8790.23 | X91: 70 | Y91: 2030-05-01 | Z91: 30 | AA91: 2130 | AB91: 1569071.297 | AC91: -1749.198684 | AD91: 24021.65074 | AE91: 447.1853198 | AF91: 450.45 | AG91: 0 | AH91: 23170.08738 | AI91: 1570820.496 | AJ91: 0.3333164416 | AK91: 0.3333164416 | AO91: 70 | AP91: 2030-05-01 | AQ91: 30 | AR91: 2130 | AS91: 1432283.226 | AT91: 5143.877768 | AU91: 21927.49779 | AV91: 408.2007193 | AW91: 450.45 | AX91: 0 | AY91: 27930.02628 | AZ91: 1427139.348 | BA91: 0.3333164416 | BB91: 0.3333164416 | BF91: 70 | BG91: 2030-05-01 | BH91: 30 | BI91: 2130 | BJ91: 1443930.405 | BK91: 1077.82651 | BL91: 22105.80994 | BM91: 411.5201654 | BN91: 450.45 | BO91: 0 | BP91: 24045.60661 | BQ91: 1442852.578 | BR91: 0.3333164416 | BS91: 0.3333164416 | BW91: 70 | BX91: 2030-05-01 | BY91: 30 | BZ91: 2130 | CA91: 1557848.366 | CB91: 2168.800569 | CC91: 23849.83361 | CD91: 443.9867844 | CE91: 450.45 | CF91: 0 | CG91: 26913.07096 | CH91: 1555679.566 | CI91: 0.3333164416 | CJ91: 0.3333164416 | CN91: 70 | CO91: 2030-05-01 | CP91: 30 | CQ91: 2130 | CR91: 1569071.297 | CS91: -1749.198684 | CT91: 24021.65074 | CU91: 447.1853198 | CV91: 450.45 | CW91: 0 | CX91: 23170.08738 | CY91: 1570820.496 | CZ91: 0.3333164416 | DA91: 0.3333164416
B92: 71 | C92: 2030-06-01 | D92: 31 | E92: 2161 | F92: 1555679.566 | G92: 1387.704232 | H92: 24616.76692 | I92: 458.1498082 | J92: 450.45 | K92: 0 | L92: 26913.07096 | M92: 1554291.862 | N92: 0.3280291195 | O92: 0.3280291195 | Q92: =IFERROR(IF('Simulación Cliente'!$H$21="Simple",G92+H92+I92+J92+K92,AC92+AD92+AE92+AF92+AG92),"") -> 26913.07096 | R92: 2161 | S92: =IFERROR((1+'Simulación Cliente'!$E$21)^(R92/360),"") -> 3.11197107 | T92: 8648.24 | X92: 71 | Y92: 2030-06-01 | Z92: 31 | AA92: 2161 | AB92: 1570820.496 | AC92: -2599.325476 | AD92: 24856.35402 | AE92: 462.6088333 | AF92: 450.45 | AG92: 0 | AH92: 23170.08738 | AI92: 1573419.822 | AJ92: 0.3280291195 | AK92: 0.3280291195 | AO92: 71 | AP92: 2030-06-01 | AQ92: 31 | AR92: 2161 | AS92: 1427139.348 | AT92: 4476.509904 | AU92: 22582.77184 | AV92: 420.2945342 | AW92: 450.45 | AX92: 0 | AY92: 27930.02628 | AZ92: 1422662.838 | BA92: 0.3280291195 | BB92: 0.3280291195 | BF92: 71 | BG92: 2030-06-01 | BH92: 31 | BI92: 2161 | BJ92: 1442852.578 | BK92: 338.8196074 | BL92: 22831.4149 | BM92: 424.9221025 | BN92: 450.45 | BO92: 0 | BP92: 24045.60661 | BQ92: 1442513.759 | BR92: 0.3280291195 | BS92: 0.3280291195 | BW92: 71 | BX92: 2030-06-01 | BY92: 31 | BZ92: 2161 | CA92: 1555679.566 | CB92: 1387.704232 | CC92: 24616.76692 | CD92: 458.1498082 | CE92: 450.45 | CF92: 0 | CG92: 26913.07096 | CH92: 1554291.862 | CI92: 0.3280291195 | CJ92: 0.3280291195 | CN92: 71 | CO92: 2030-06-01 | CP92: 31 | CQ92: 2161 | CR92: 1570820.496 | CS92: -2599.325476 | CT92: 24856.35402 | CU92: 462.6088333 | CV92: 450.45 | CW92: 0 | CX92: 23170.08738 | CY92: 1573419.822 | CZ92: 0.3280291195 | DA92: 0.3280291195
B93: 72 | C93: 2030-07-01 | D93: 30 | E93: 2191 | F93: 1554291.862 | G93: 2224.262378 | H93: 23795.3854 | I93: 442.9731806 | J93: 450.45 | K93: 0 | L93: 26913.07096 | M93: 1552067.599 | N93: 0.3229922268 | O93: 0.3229922268 | Q93: =IFERROR(IF('Simulación Cliente'!$H$21="Simple",G93+H93+I93+J93+K93,AC93+AD93+AE93+AF93+AG93),"") -> 26913.07096 | R93: 2191 | S93: =IFERROR((1+'Simulación Cliente'!$E$21)^(R93/360),"") -> 3.161404726 | T93: 8513.01 | X93: 72 | Y93: 2030-07-01 | Z93: 30 | AA93: 2191 | AB93: 1573419.822 | AC93: 21353.07576 | AD93: 24088.22434 | AE93: 448.4246491 | AF93: 450.45 | AG93: 0 | AH93: 46340.17475 | AI93: 1552066.746 | AJ93: 0.6459844535 | AK93: 0.3229922268 | AO93: 72 | AP93: 2030-07-01 | AQ93: 30 | AR93: 2191 | AS93: 1422662.838 | AT93: 5293.90262 | AU93: 21780.21475 | AV93: 405.4589088 | AW93: 450.45 | AX93: 0 | AY93: 27930.02628 | AZ93: 1417368.935 | BA93: 0.3229922268 | BB93: 0.3229922268 | BF93: 72 | BG93: 2030-07-01 | BH93: 30 | BI93: 2191 | BJ93: 1442513.759 | BK93: 25145.52497 | BL93: 22084.12183 | BM93: 411.1164212 | BN93: 450.45 | BO93: 0 | BP93: 48091.21322 | BQ93: 1417368.234 | BR93: 0.6459844535 | BS93: 0.3229922268 | BW93: 72 | BX93: 2030-07-01 | BY93: 30 | BZ93: 2191 | CA93: 1554291.862 | CB93: 2224.262378 | CC93: 23795.3854 | CD93: 442.9731806 | CE93: 450.45 | CF93: 0 | CG93: 26913.07096 | CH93: 1552067.599 | CI93: 0.3229922268 | CJ93: 0.3229922268 | CN93: 72 | CO93: 2030-07-01 | CP93: 30 | CQ93: 2191 | CR93: 1573419.822 | CS93: 21353.07576 | CT93: 24088.22434 | CU93: 448.4246491 | CV93: 450.45 | CW93: 0 | CX93: 46340.17475 | CY93: 1552066.746 | CZ93: 0.6459844535 | DA93: 0.3229922268
B94: 73 | C94: 2030-08-01 | D94: 31 | E94: 2222 | F94: 1552067.599 | G94: 1445.923009 | H94: 24559.61187 | I94: 457.0860789 | J94: 450.45 | K94: 0 | L94: 26913.07096 | M94: 1550621.676 | N94: 0.3178686753 | O94: 0.3178686753 | Q94: =IFERROR(IF('Simulación Cliente'!$H$21="Simple",G94+H94+I94+J94+K94,AC94+AD94+AE94+AF94+AG94),"") -> 26913.07096 | R94: 2222 | S94: =IFERROR((1+'Simulación Cliente'!$E$21)^(R94/360),"") -> 3.213311268 | T94: 8375.49 | X94: 73 | Y94: 2030-08-01 | Z94: 31 | AA94: 2222 | AB94: 1552066.746 | AC94: -2297.046821 | AD94: 24559.59837 | AE94: 457.0858276 | AF94: 450.45 | AG94: 0 | AH94: 23170.08738 | AI94: 1554363.793 | AJ94: 0.3178686753 | AK94: 0.3178686753 | AO94: 73 | AP94: 2030-08-01 | AQ94: 31 | AR94: 2222 | AS94: 1417368.935 | AT94: 4633.992387 | AU94: 22428.16676 | AV94: 417.417134 | AW94: 450.45 | AX94: 0 | AY94: 27930.02628 | AZ94: 1412734.943 | BA94: 0.3178686753 | BB94: 0.3178686753 | BF94: 73 | BG94: 2030-08-01 | BH94: 31 | BI94: 2222 | BJ94: 1417368.234 | BK94: 749.5840296 | BL94: 22428.15565 | BM94: 417.4169274 | BN94: 450.45 | BO94: 0 | BP94: 24045.60661 | BQ94: 1416618.65 | BR94: 0.3178686753 | BS94: 0.3178686753 | BW94: 73 | BX94: 2030-08-01 | BY94: 31 | BZ94: 2222 | CA94: 1552067.599 | CB94: 1445.923009 | CC94: 24559.61187 | CD94: 457.0860789 | CE94: 450.45 | CF94: 0 | CG94: 26913.07096 | CH94: 1550621.676 | CI94: 0.3178686753 | CJ94: 0.3178686753 | CN94: 73 | CO94: 2030-08-01 | CP94: 31 | CQ94: 2222 | CR94: 1552066.746 | CS94: -2297.046821 | CT94: 24559.59837 | CU94: 457.0858276 | CV94: 450.45 | CW94: 0 | CX94: 23170.08738 | CY94: 1554363.793 | CZ94: 0.3178686753 | DA94: 0.3178686753
B95: 74 | C95: 2030-09-01 | D95: 31 | E95: 2253 | F95: 1550621.676 | G95: 1469.228837 | H95: 24536.73187 | I95: 456.6602526 | J95: 450.45 | K95: 0 | L95: 26913.07096 | M95: 1549152.447 | N95: 0.3128263975 | O95: 0.3128263975 | Q95: =IFERROR(IF('Simulación Cliente'!$H$21="Simple",G95+H95+I95+J95+K95,AC95+AD95+AE95+AF95+AG95),"") -> 26913.07096 | R95: 2253 | S95: =IFERROR((1+'Simulación Cliente'!$E$21)^(R95/360),"") -> 3.266070054 | T95: 8240.2 | X95: 74 | Y95: 2030-09-01 | Z95: 31 | AA95: 2253 | AB95: 1554363.793 | AC95: -2334.07132 | AD95: 24595.94639 | AE95: 457.7623111 | AF95: 450.45 | AG95: 0 | AH95: 23170.08738 | AI95: 1556697.864 | AJ95: 0.3128263975 | AK95: 0.3128263975 | AO95: 74 | AP95: 2030-09-01 | AQ95: 31 | AR95: 2253 | AS95: 1412734.943 | AT95: 4708.684486 | AU95: 22354.83937 | AV95: 416.0524168 | AW95: 450.45 | AX95: 0 | AY95: 27930.02628 | AZ95: 1408026.258 | BA95: 0.3128263975 | BB95: 0.3128263975 | BF95: 74 | BG95: 2030-09-01 | BH95: 31 | BI95: 2253 | BJ95: 1416618.65 | BK95: 761.6660532 | BL95: 22416.29438 | BM95: 417.1961738 | BN95: 450.45 | BO95: 0 | BP95: 24045.60661 | BQ95: 1415856.984 | BR95: 0.3128263975 | BS95: 0.3128263975 | BW95: 74 | BX95: 2030-09-01 | BY95: 31 | BZ95: 2253 | CA95: 1550621.676 | CB95: 1469.228837 | CC95: 24536.73187 | CD95: 456.6602526 | CE95: 450.45 | CF95: 0 | CG95: 26913.07096 | CH95: 1549152.447 | CI95: 0.3128263975 | CJ95: 0.3128263975 | CN95: 74 | CO95: 2030-09-01 | CP95: 31 | CQ95: 2253 | CR95: 1554363.793 | CS95: -2334.07132 | CT95: 24595.94639 | CU95: 457.7623111 | CV95: 450.45 | CW95: 0 | CX95: 23170.08738 | CY95: 1556697.864 | CZ95: 0.3128263975 | DA95: 0.3128263975
B96: 75 | C96: 2030-10-01 | D96: 30 | E96: 2283 | F96: 1549152.447 | G96: 2304.408821 | H96: 23716.70369 | I96: 441.5084475 | J96: 450.45 | K96: 0 | L96: 26913.07096 | M96: 1546848.039 | N96: 0.3080229428 | O96: 0.3080229428 | Q96: =IFERROR(IF('Simulación Cliente'!$H$21="Simple",G96+H96+I96+J96+K96,AC96+AD96+AE96+AF96+AG96),"") -> 26913.07096 | R96: 2283 | S96: =IFERROR((1+'Simulación Cliente'!$E$21)^(R96/360),"") -> 3.317951573 | T96: 8111.35 | X96: 75 | Y96: 2030-10-01 | Z96: 30 | AA96: 2283 | AB96: 1556697.864 | AC96: -1556.24154 | AD96: 23832.22003 | AE96: 443.6588912 | AF96: 450.45 | AG96: 0 | AH96: 23170.08738 | AI96: 1558254.105 | AJ96: 0.3080229428 | AK96: 0.3080229428 | AO96: 75 | AP96: 2030-10-01 | AQ96: 30 | AR96: 2283 | AS96: 1408026.258 | AT96: 5522.152327 | AU96: 21556.13647 | AV96: 401.2874837 | AW96: 450.45 | AX96: 0 | AY96: 27930.02628 | AZ96: 1402504.106 | BA96: 0.3080229428 | BB96: 0.3080229428 | BF96: 75 | BG96: 2030-10-01 | BH96: 30 | BI96: 2283 | BJ96: 1415856.984 | BK96: 1515.616648 | BL96: 21676.02072 | BM96: 403.5192403 | BN96: 450.45 | BO96: 0 | BP96: 24045.60661 | BQ96: 1414341.367 | BR96: 0.3080229428 | BS96: 0.3080229428 | BW96: 75 | BX96: 2030-10-01 | BY96: 30 | BZ96: 2283 | CA96: 1549152.447 | CB96: 2304.408821 | CC96: 23716.70369 | CD96: 441.5084475 | CE96: 450.45 | CF96: 0 | CG96: 26913.07096 | CH96: 1546848.039 | CI96: 0.3080229428 | CJ96: 0.3080229428 | CN96: 75 | CO96: 2030-10-01 | CP96: 30 | CQ96: 2283 | CR96: 1556697.864 | CS96: -1556.24154 | CT96: 23832.22003 | CU96: 443.6588912 | CV96: 450.45 | CW96: 0 | CX96: 23170.08738 | CY96: 1558254.105 | CZ96: 0.3080229428 | DA96: 0.3080229428
B97: 76 | C97: 2030-11-01 | D97: 31 | E97: 2314 | F97: 1546848.039 | G97: 1530.053477 | H97: 24477.01857 | I97: 455.548911 | J97: 450.45 | K97: 0 | L97: 26913.07096 | M97: 1545317.985 | N97: 0.3031368457 | O97: 0.3031368457 | Q97: =IFERROR(IF('Simulación Cliente'!$H$21="Simple",G97+H97+I97+J97+K97,AC97+AD97+AE97+AF97+AG97),"") -> 26913.07096 | R97: 2314 | S97: =IFERROR((1+'Simulación Cliente'!$E$21)^(R97/360),"") -> 3.37242843 | T97: 7980.32 | X97: 76 | Y97: 2030-11-01 | Z97: 31 | AA97: 2314 | AB97: 1558254.105 | AC97: -2396.776567 | AD97: 24657.50593 | AE97: 458.9080137 | AF97: 450.45 | AG97: 0 | AH97: 23170.08738 | AI97: 1560650.882 | AJ97: 0.3031368457 | AK97: 0.3031368457 | AO97: 76 | AP97: 2030-11-01 | AQ97: 31 | AR97: 2314 | AS97: 1402504.106 | AT97: 4873.588228 | AU97: 22192.94863 | AV97: 413.039421 | AW97: 450.45 | AX97: 0 | AY97: 27930.02628 | AZ97: 1397630.518 | BA97: 0.3031368457 | BB97: 0.3031368457 | BF97: 76 | BG97: 2030-11-01 | BH97: 31 | BI97: 2314 | BJ97: 1414341.367 | BK97: 798.3719889 | BL97: 22380.25911 | BM97: 416.5255109 | BN97: 450.45 | BO97: 0 | BP97: 24045.60661 | BQ97: 1413542.995 | BR97: 0.3031368457 | BS97: 0.3031368457 | BW97: 76 | BX97: 2030-11-01 | BY97: 31 | BZ97: 2314 | CA97: 1546848.039 | CB97: 1530.053477 | CC97: 24477.01857 | CD97: 455.548911 | CE97: 450.45 | CF97: 0 | CG97: 26913.07096 | CH97: 1545317.985 | CI97: 0.3031368457 | CJ97: 0.3031368457 | CN97: 76 | CO97: 2030-11-01 | CP97: 31 | CQ97: 2314 | CR97: 1558254.105 | CS97: -2396.776567 | CT97: 24657.50593 | CU97: 458.9080137 | CV97: 450.45 | CW97: 0 | CX97: 23170.08738 | CY97: 1560650.882 | CZ97: 0.3031368457 | DA97: 0.3031368457
B98: 77 | C98: 2030-12-01 | D98: 30 | E98: 2344 | F98: 1545317.985 | G98: 2364.205231 | H98: 23658.00011 | I98: 440.4156258 | J98: 450.45 | K98: 0 | L98: 26913.07096 | M98: 1542953.78 | N98: 0.2984821742 | O98: 0.2984821742 | Q98: =IFERROR(IF('Simulación Cliente'!$H$21="Simple",G98+H98+I98+J98+K98,AC98+AD98+AE98+AF98+AG98),"") -> 26913.07096 | R98: 2344 | S98: =IFERROR((1+'Simulación Cliente'!$E$21)^(R98/360),"") -> 3.42599945 | T98: 7855.54 | X98: 77 | Y98: 2030-12-01 | Z98: 30 | AA98: 2344 | AB98: 1560650.882 | AC98: 21552.20061 | AD98: 23892.73864 | AE98: 444.7855014 | AF98: 450.45 | AG98: 0 | AH98: 46340.17475 | AI98: 1539098.681 | AJ98: 0.5969643484 | AK98: 0.2984821742 | AO98: 77 | AP98: 2030-12-01 | AQ98: 30 | AR98: 2344 | AS98: 1397630.518 | AT98: 5684.268396 | AU98: 21396.98318 | AV98: 398.3246976 | AW98: 450.45 | AX98: 0 | AY98: 27930.02628 | AZ98: 1391946.25 | BA98: 0.2984821742 | BB98: 0.2984821742 | BF98: 77 | BG98: 2030-12-01 | BH98: 30 | BI98: 2344 | BJ98: 1413542.995 | BK98: 25597.30869 | BL98: 21640.59478 | BM98: 402.8597536 | BN98: 450.45 | BO98: 0 | BP98: 48091.21322 | BQ98: 1387945.686 | BR98: 0.5969643484 | BS98: 0.2984821742 | BW98: 77 | BX98: 2030-12-01 | BY98: 30 | BZ98: 2344 | CA98: 1545317.985 | CB98: 2364.205231 | CC98: 23658.00011 | CD98: 440.4156258 | CE98: 450.45 | CF98: 0 | CG98: 26913.07096 | CH98: 1542953.78 | CI98: 0.2984821742 | CJ98: 0.2984821742 | CN98: 77 | CO98: 2030-12-01 | CP98: 30 | CQ98: 2344 | CR98: 1560650.882 | CS98: 21552.20061 | CT98: 23892.73864 | CU98: 444.7855014 | CV98: 450.45 | CW98: 0 | CX98: 46340.17475 | CY98: 1539098.681 | CZ98: 0.5969643484 | DA98: 0.2984821742
B99: 78 | C99: 2031-01-01 | D99: 31 | E99: 2375 | F99: 1542953.78 | G99: 1592.822324 | H99: 24415.39659 | I99: 454.4020464 | J99: 450.45 | K99: 0 | L99: 26913.07096 | M99: 1541360.958 | N99: 0.2937474201 | O99: 0.2937474201 | Q99: =IFERROR(IF('Simulación Cliente'!$H$21="Simple",G99+H99+I99+J99+K99,AC99+AD99+AE99+AF99+AG99),"") -> 26913.07096 | R99: 2375 | S99: =IFERROR((1+'Simulación Cliente'!$E$21)^(R99/360),"") -> 3.482250326 | T99: 7728.64 | X99: 78 | Y99: 2031-01-01 | Z99: 31 | AA99: 2375 | AB99: 1539098.681 | AC99: -2088.023612 | AD99: 24354.39427 | AE99: 453.2667145 | AF99: 450.45 | AG99: 0 | AH99: 23170.08738 | AI99: 1541186.705 | AJ99: 0.2937474201 | AK99: 0.2937474201 | AO99: 78 | AP99: 2031-01-01 | AQ99: 31 | AR99: 2375 | AS99: 1391946.25 | AT99: 5043.762974 | AU99: 22025.88319 | AV99: 409.9301175 | AW99: 450.45 | AX99: 0 | AY99: 27930.02628 | AZ99: 1386902.487 | BA99: 0.2937474201 | BB99: 0.2937474201 | BF99: 78 | BG99: 2031-01-01 | BH99: 31 | BI99: 2375 | BJ99: 1387945.686 | BK99: 1223.825604 | BL99: 21962.57906 | BM99: 408.751946 | BN99: 450.45 | BO99: 0 | BP99: 24045.60661 | BQ99: 1386721.861 | BR99: 0.2937474201 | BS99: 0.2937474201 | BW99: 78 | BX99: 2031-01-01 | BY99: 31 | BZ99: 2375 | CA99: 1542953.78 | CB99: 1592.822324 | CC99: 24415.39659 | CD99: 454.4020464 | CE99: 450.45 | CF99: 0 | CG99: 26913.07096 | CH99: 1541360.958 | CI99: 0.2937474201 | CJ99: 0.2937474201 | CN99: 78 | CO99: 2031-01-01 | CP99: 31 | CQ99: 2375 | CR99: 1539098.681 | CS99: -2088.023612 | CT99: 24354.39427 | CU99: 453.2667145 | CV99: 450.45 | CW99: 0 | CX99: 23170.08738 | CY99: 1541186.705 | CZ99: 0.2937474201 | DA99: 0.2937474201
B100: 79 | C100: 2031-02-01 | D100: 31 | E100: 2406 | F100: 1541360.958 | G100: 1618.495919 | H100: 24390.19209 | I100: 453.932958 | J100: 450.45 | K100: 0 | L100: 26913.07096 | M100: 1539742.462 | N100: 0.2890877723 | O100: 0.2890877723 | Q100: =IFERROR(IF('Simulación Cliente'!$H$21="Simple",G100+H100+I100+J100+K100,AC100+AD100+AE100+AF100+AG100),"") -> 26913.07096 | R100: 2406 | S100: =IFERROR((1+'Simulación Cliente'!$E$21)^(R100/360),"") -> 3.539424775 | T100: 7603.8 | X100: 79 | Y100: 2031-02-01 | Z100: 31 | AA100: 2406 | AB100: 1541186.705 | AC100: -2121.679012 | AD100: 24387.43475 | AE100: 453.8816404 | AF100: 450.45 | AG100: 0 | AH100: 23170.08738 | AI100: 1543308.384 | AJ100: 0.2890877723 | AK100: 0.2890877723 | AO100: 79 | AP100: 2031-02-01 | AQ100: 31 | AR100: 2406 | AS100: 1386902.487 | AT100: 5125.059881 | AU100: 21946.07167 | AV100: 408.4447222 | AW100: 450.45 | AX100: 0 | AY100: 27930.02628 | AZ100: 1381777.427 | BA100: 0.2890877723 | BB100: 0.2890877723 | BF100: 79 | BG100: 2031-02-01 | BH100: 31 | BI100: 2406 | BJ100: 1386721.861 | BK100: 1243.551597 | BL100: 21943.21349 | BM100: 408.3915276 | BN100: 450.45 | BO100: 0 | BP100: 24045.60661 | BQ100: 1385478.309 | BR100: 0.2890877723 | BS100: 0.2890877723 | BW100: 79 | BX100: 2031-02-01 | BY100: 31 | BZ100: 2406 | CA100: 1541360.958 | CB100: 1618.495919 | CC100: 24390.19209 | CD100: 453.932958 | CE100: 450.45 | CF100: 0 | CG100: 26913.07096 | CH100: 1539742.462 | CI100: 0.2890877723 | CJ100: 0.2890877723 | CN100: 79 | CO100: 2031-02-01 | CP100: 31 | CQ100: 2406 | CR100: 1541186.705 | CS100: -2121.679012 | CT100: 24387.43475 | CU100: 453.8816404 | CV100: 450.45 | CW100: 0 | CX100: 23170.08738 | CY100: 1543308.384 | CZ100: 0.2890877723 | DA100: 0.2890877723
B101: 80 | C101: 2031-03-01 | D101: 28 | E101: 2434 | F101: 1539742.462 | G101: 4063.087903 | H101: 21989.96545 | I101: 409.5676043 | J101: 450.45 | K101: 0 | L101: 26913.07096 | M101: 1535679.374 | N101: 0.2849426222 | O101: 0.2849426222 | Q101: =IFERROR(IF('Simulación Cliente'!$H$21="Simple",G101+H101+I101+J101+K101,AC101+AD101+AE101+AF101+AG101),"") -> 26913.07096 | R101: 2434 | S101: =IFERROR((1+'Simulación Cliente'!$E$21)^(R101/360),"") -> 3.591872652 | T101: 7492.77 | X101: 80 | Y101: 2031-03-01 | Z101: 28 | AA101: 2434 | AB101: 1543308.384 | AC101: 268.2287605 | AD101: 22040.89248 | AE101: 410.5161306 | AF101: 450.45 | AG101: 0 | AH101: 23170.08738 | AI101: 1543040.155 | AJ101: 0.2849426222 | AK101: 0.2849426222 | AO101: 80 | AP101: 2031-03-01 | AQ101: 28 | AR101: 2434 | AS101: 1381777.427 | AT101: 7378.052861 | AU101: 19733.97411 | AV101: 367.5493041 | AW101: 450.45 | AX101: 0 | AY101: 27930.02628 | AZ101: 1374399.374 | BA101: 0.2849426222 | BB101: 0.2849426222 | BF101: 80 | BG101: 2031-03-01 | BH101: 28 | BI101: 2434 | BJ101: 1385478.309 | BK101: 3439.794296 | BL101: 19786.82859 | BM101: 368.5337295 | BN101: 450.45 | BO101: 0 | BP101: 24045.60661 | BQ101: 1382038.515 | BR101: 0.2849426222 | BS101: 0.2849426222 | BW101: 80 | BX101: 2031-03-01 | BY101: 28 | BZ101: 2434 | CA101: 1539742.462 | CB101: 4063.087903 | CC101: 21989.96545 | CD101: 409.5676043 | CE101: 450.45 | CF101: 0 | CG101: 26913.07096 | CH101: 1535679.374 | CI101: 0.2849426222 | CJ101: 0.2849426222 | CN101: 80 | CO101: 2031-03-01 | CP101: 28 | CQ101: 2434 | CR101: 1543308.384 | CS101: 268.2287605 | CT101: 22040.89248 | CU101: 410.5161306 | CV101: 450.45 | CW101: 0 | CX101: 23170.08738 | CY101: 1543040.155 | CZ101: 0.2849426222 | DA101: 0.2849426222
B102: 81 | C102: 2031-04-01 | D102: 31 | E102: 2465 | F102: 1535679.374 | G102: 1710.073416 | H102: 24300.28782 | I102: 452.2597236 | J102: 450.45 | K102: 0 | L102: 26913.07096 | M102: 1533969.3 | N102: 0.2804226429 | O102: 0.2804226429 | Q102: =IFERROR(IF('Simulación Cliente'!$H$21="Simple",G102+H102+I102+J102+K102,AC102+AD102+AE102+AF102+AG102),"") -> 26913.07096 | R102: 2465 | S102: =IFERROR((1+'Simulación Cliente'!$E$21)^(R102/360),"") -> 3.650846971 | T102: 7371.73 | X102: 81 | Y102: 2031-04-01 | Z102: 31 | AA102: 2465 | AB102: 1543040.155 | AC102: -2151.553488 | AD102: 24416.76338 | AE102: 454.4274841 | AF102: 450.45 | AG102: 0 | AH102: 23170.08738 | AI102: 1545191.709 | AJ102: 0.2804226429 | AK102: 0.2804226429 | AO102: 81 | AP102: 2031-04-01 | AQ102: 31 | AR102: 2465 | AS102: 1374399.374 | AT102: 5326.588858 | AU102: 21748.22488 | AV102: 404.762538 | AW102: 450.45 | AX102: 0 | AY102: 27930.02628 | AZ102: 1369072.785 | BA102: 0.2804226429 | BB102: 0.2804226429 | BF102: 81 | BG102: 2031-04-01 | BH102: 31 | BI102: 2465 | BJ102: 1382038.515 | BK102: 1319.039192 | BL102: 21869.10514 | BM102: 407.0122757 | BN102: 450.45 | BO102: 0 | BP102: 24045.60661 | BQ102: 1380719.476 | BR102: 0.2804226429 | BS102: 0.2804226429 | BW102: 81 | BX102: 2031-04-01 | BY102: 31 | BZ102: 2465 | CA102: 1535679.374 | CB102: 1710.073416 | CC102: 24300.28782 | CD102: 452.2597236 | CE102: 450.45 | CF102: 0 | CG102: 26913.07096 | CH102: 1533969.3 | CI102: 0.2804226429 | CJ102: 0.2804226429 | CN102: 81 | CO102: 2031-04-01 | CP102: 31 | CQ102: 2465 | CR102: 1543040.155 | CS102: -2151.553488 | CT102: 24416.76338 | CU102: 454.4274841 | CV102: 450.45 | CW102: 0 | CX102: 23170.08738 | CY102: 1545191.709 | CZ102: 0.2804226429 | DA102: 0.2804226429
B103: 82 | C103: 2031-05-01 | D103: 30 | E103: 2495 | F103: 1533969.3 | G103: 2541.181961 | H103: 23484.25775 | I103: 437.1812506 | J103: 450.45 | K103: 0 | L103: 26913.07096 | M103: 1531428.118 | N103: 0.2761167484 | O103: 0.2761167484 | Q103: =IFERROR(IF('Simulación Cliente'!$H$21="Simple",G103+H103+I103+J103+K103,AC103+AD103+AE103+AF103+AG103),"") -> 26913.07096 | R103: 2495 | S103: =IFERROR((1+'Simulación Cliente'!$E$21)^(R103/360),"") -> 3.70884067 | T103: 7256.46 | X103: 82 | Y103: 2031-05-01 | Z103: 30 | AA103: 2495 | AB103: 1545191.709 | AC103: -1376.809143 | AD103: 23656.06688 | AE103: 440.379637 | AF103: 450.45 | AG103: 0 | AH103: 23170.08738 | AI103: 1546568.518 | AJ103: 0.2761167484 | AK103: 0.2761167484 | AO103: 82 | AP103: 2031-05-01 | AQ103: 30 | AR103: 2495 | AS103: 1369072.785 | AT103: 6129.61112 | AU103: 20959.77941 | AV103: 390.1857437 | AW103: 450.45 | AX103: 0 | AY103: 27930.02628 | AZ103: 1362943.174 | BA103: 0.2761167484 | BB103: 0.2761167484 | BF103: 82 | BG103: 2031-05-01 | BH103: 30 | BI103: 2495 | BJ103: 1380719.476 | BK103: 2063.56748 | BL103: 21138.08408 | BM103: 393.5050505 | BN103: 450.45 | BO103: 0 | BP103: 24045.60661 | BQ103: 1378655.908 | BR103: 0.2761167484 | BS103: 0.2761167484 | BW103: 82 | BX103: 2031-05-01 | BY103: 30 | BZ103: 2495 | CA103: 1533969.3 | CB103: 2541.181961 | CC103: 23484.25775 | CD103: 437.1812506 | CE103: 450.45 | CF103: 0 | CG103: 26913.07096 | CH103: 1531428.118 | CI103: 0.2761167484 | CJ103: 0.2761167484 | CN103: 82 | CO103: 2031-05-01 | CP103: 30 | CQ103: 2495 | CR103: 1545191.709 | CS103: -1376.809143 | CT103: 23656.06688 | CU103: 440.379637 | CV103: 450.45 | CW103: 0 | CX103: 23170.08738 | CY103: 1546568.518 | CZ103: 0.2761167484 | DA103: 0.2761167484
B104: 83 | C104: 2031-06-01 | D104: 31 | E104: 2526 | F104: 1531428.118 | G104: 1778.596444 | H104: 24233.0168 | I104: 451.0077229 | J104: 450.45 | K104: 0 | L104: 26913.07096 | M104: 1529649.522 | N104: 0.2717367719 | O104: 0.2717367719 | Q104: =IFERROR(IF('Simulación Cliente'!$H$21="Simple",G104+H104+I104+J104+K104,AC104+AD104+AE104+AF104+AG104),"") -> 26913.07096 | R104: 2526 | S104: =IFERROR((1+'Simulación Cliente'!$E$21)^(R104/360),"") -> 3.769735465 | T104: 7139.25 | X104: 83 | Y104: 2031-06-01 | Z104: 31 | AA104: 2526 | AB104: 1546568.518 | AC104: -2208.42471 | AD104: 24472.59549 | AE104: 455.4665918 | AF104: 450.45 | AG104: 0 | AH104: 23170.08738 | AI104: 1548776.943 | AJ104: 0.2717367719 | AK104: 0.2717367719 | AO104: 83 | AP104: 2031-06-01 | AQ104: 31 | AR104: 2526 | AS104: 1362943.174 | AT104: 5511.243376 | AU104: 21566.94423 | AV104: 401.3886711 | AW104: 450.45 | AX104: 0 | AY104: 27930.02628 | AZ104: 1357431.93 | BA104: 0.2717367719 | BB104: 0.2717367719 | BF104: 83 | BG104: 2031-06-01 | BH104: 31 | BI104: 2526 | BJ104: 1378655.908 | BK104: 1373.561076 | BL104: 21815.57944 | BM104: 406.0160933 | BN104: 450.45 | BO104: 0 | BP104: 24045.60661 | BQ104: 1377282.347 | BR104: 0.2717367719 | BS104: 0.2717367719 | BW104: 83 | BX104: 2031-06-01 | BY104: 31 | BZ104: 2526 | CA104: 1531428.118 | CB104: 1778.596444 | CC104: 24233.0168 | CD104: 451.0077229 | CE104: 450.45 | CF104: 0 | CG104: 26913.07096 | CH104: 1529649.522 | CI104: 0.2717367719 | CJ104: 0.2717367719 | CN104: 83 | CO104: 2031-06-01 | CP104: 31 | CQ104: 2526 | CR104: 1546568.518 | CS104: -2208.42471 | CT104: 24472.59549 | CU104: 455.4665918 | CV104: 450.45 | CW104: 0 | CX104: 23170.08738 | CY104: 1548776.943 | CZ104: 0.2717367719 | DA104: 0.2717367719
B105: 84 | C105: 2031-07-01 | D105: 30 | E105: 2556 | F105: 1529649.522 | G105: 2608.546618 | H105: 23418.12423 | I105: 435.9501138 | J105: 450.45 | K105: 0 | L105: 26913.07096 | M105: 1527040.975 | N105: 0.2675642491 | O105: 0.2675642491 | Q105: =IFERROR(IF('Simulación Cliente'!$H$21="Simple",G105+H105+I105+J105+K105,AC105+AD105+AE105+AF105+AG105),"") -> 26913.07096 | R105: 2556 | S105: =IFERROR((1+'Simulación Cliente'!$E$21)^(R105/360),"") -> 3.829617708 | T105: 7027.61 | X105: 84 | Y105: 2031-07-01 | Z105: 30 | AA105: 2556 | AB105: 1548776.943 | AC105: 21737.36841 | AD105: 23710.95491 | AE105: 441.4014287 | AF105: 450.45 | AG105: 0 | AH105: 46340.17475 | AI105: 1527039.574 | AJ105: 0.5351284981 | AK105: 0.2675642491 | AO105: 84 | AP105: 2031-07-01 | AQ105: 30 | AR105: 2556 | AS105: 1357431.93 | AT105: 6311.144083 | AU105: 20781.56409 | AV105: 386.8681002 | AW105: 450.45 | AX105: 0 | AY105: 27930.02628 | AZ105: 1351120.786 | BA105: 0.2675642491 | BB105: 0.2675642491 | BF105: 84 | BG105: 2031-07-01 | BH105: 30 | BI105: 2556 | BJ105: 1377282.347 | BK105: 26162.77429 | BL105: 21085.46346 | BM105: 392.5254689 | BN105: 450.45 | BO105: 0 | BP105: 48091.21322 | BQ105: 1351119.573 | BR105: 0.5351284981 | BS105: 0.2675642491 | BW105: 84 | BX105: 2031-07-01 | BY105: 30 | BZ105: 2556 | CA105: 1529649.522 | CB105: 2608.546618 | CC105: 23418.12423 | CD105: 435.9501138 | CE105: 450.45 | CF105: 0 | CG105: 26913.07096 | CH105: 1527040.975 | CI105: 0.2675642491 | CJ105: 0.2675642491 | CN105: 84 | CO105: 2031-07-01 | CP105: 30 | CQ105: 2556 | CR105: 1548776.943 | CS105: 21737.36841 | CT105: 23710.95491 | CU105: 441.4014287 | CV105: 450.45 | CW105: 0 | CX105: 46340.17475 | CY105: 1527039.574 | CZ105: 0.5351284981 | DA105: 0.2675642491
B106: 85 | C106: 2031-08-01 | D106: 31 | E106: 2587 | F106: 1527040.975 | G106: 1849.309752 | H106: 24163.59551 | I106: 449.7157032 | J106: 450.45 | K106: 0 | L106: 26913.07096 | M106: 1525191.666 | N106: 0.2633199389 | O106: 0.2633199389 | Q106: =IFERROR(IF('Simulación Cliente'!$H$21="Simple",G106+H106+I106+J106+K106,AC106+AD106+AE106+AF106+AG106),"") -> 26913.07096 | R106: 2587 | S106: =IFERROR((1+'Simulación Cliente'!$E$21)^(R106/360),"") -> 3.89249552 | T106: 6914.09 | X106: 85 | Y106: 2031-08-01 | Z106: 31 | AA106: 2587 | AB106: 1527039.574 | AC106: -1893.651252 | AD106: 24163.57334 | AE106: 449.7152906 | AF106: 450.45 | AG106: 0 | AH106: 23170.08738 | AI106: 1528933.225 | AJ106: 0.2633199389 | AK106: 0.2633199389 | AO106: 85 | AP106: 2031-08-01 | AQ106: 31 | AR106: 2587 | AS106: 1351120.786 | AT106: 5701.800215 | AU106: 21379.8691 | AV106: 397.9069615 | AW106: 450.45 | AX106: 0 | AY106: 27930.02628 | AZ106: 1345418.986 | BA106: 0.2633199389 | BB106: 0.2633199389 | BF106: 85 | BG106: 2031-08-01 | BH106: 31 | BI106: 2587 | BJ106: 1351119.573 | BK106: 1817.40011 | BL106: 21379.8499 | BM106: 397.9066041 | BN106: 450.45 | BO106: 0 | BP106: 24045.60661 | BQ106: 1349302.173 | BR106: 0.2633199389 | BS106: 0.2633199389 | BW106: 85 | BX106: 2031-08-01 | BY106: 31 | BZ106: 2587 | CA106: 1527040.975 | CB106: 1849.309752 | CC106: 24163.59551 | CD106: 449.7157032 | CE106: 450.45 | CF106: 0 | CG106: 26913.07096 | CH106: 1525191.666 | CI106: 0.2633199389 | CJ106: 0.2633199389 | CN106: 85 | CO106: 2031-08-01 | CP106: 31 | CQ106: 2587 | CR106: 1527039.574 | CS106: -1893.651252 | CT106: 24163.57334 | CU106: 449.7152906 | CV106: 450.45 | CW106: 0 | CX106: 23170.08738 | CY106: 1528933.225 | CZ106: 0.2633199389 | DA106: 0.2633199389
B107: 86 | C107: 2031-09-01 | D107: 31 | E107: 2618 | F107: 1525191.666 | G107: 1879.117489 | H107: 24134.33239 | I107: 449.1710789 | J107: 450.45 | K107: 0 | L107: 26913.07096 | M107: 1523312.548 | N107: 0.2591429552 | O107: 0.2591429552 | Q107: =IFERROR(IF('Simulación Cliente'!$H$21="Simple",G107+H107+I107+J107+K107,AC107+AD107+AE107+AF107+AG107),"") -> 26913.07096 | R107: 2618 | S107: =IFERROR((1+'Simulación Cliente'!$E$21)^(R107/360),"") -> 3.956405712 | T107: 6802.4 | X107: 86 | Y107: 2031-09-01 | Z107: 31 | AA107: 2618 | AB107: 1528933.225 | AC107: -1924.173699 | AD107: 24193.5381 | AE107: 450.2729735 | AF107: 450.45 | AG107: 0 | AH107: 23170.08738 | AI107: 1530857.399 | AJ107: 0.2591429552 | AK107: 0.2591429552 | AO107: 86 | AP107: 2031-09-01 | AQ107: 31 | AR107: 2618 | AS107: 1345418.986 | AT107: 5793.703566 | AU107: 21289.64494 | AV107: 396.2277733 | AW107: 450.45 | AX107: 0 | AY107: 27930.02628 | AZ107: 1339625.283 | BA107: 0.2591429552 | BB107: 0.2591429552 | BF107: 86 | BG107: 2031-09-01 | BH107: 31 | BI107: 2618 | BJ107: 1349302.173 | BK107: 1846.693518 | BL107: 21351.09172 | BM107: 397.3713772 | BN107: 450.45 | BO107: 0 | BP107: 24045.60661 | BQ107: 1347455.479 | BR107: 0.2591429552 | BS107: 0.2591429552 | BW107: 86 | BX107: 2031-09-01 | BY107: 31 | BZ107: 2618 | CA107: 1525191.666 | CB107: 1879.117489 | CC107: 24134.33239 | CD107: 449.1710789 | CE107: 450.45 | CF107: 0 | CG107: 26913.07096 | CH107: 1523312.548 | CI107: 0.2591429552 | CJ107: 0.2591429552 | CN107: 86 | CO107: 2031-09-01 | CP107: 31 | CQ107: 2618 | CR107: 1528933.225 | CS107: -1924.173699 | CT107: 24193.5381 | CU107: 450.2729735 | CV107: 450.45 | CW107: 0 | CX107: 23170.08738 | CY107: 1530857.399 | CZ107: 0.2591429552 | DA107: 0.2591429552
B108: 87 | C108: 2031-10-01 | D108: 30 | E108: 2648 | F108: 1523312.548 | G108: 2707.36837 | H108: 23321.10852 | I108: 434.1440762 | J108: 450.45 | K108: 0 | L108: 26913.07096 | M108: 1520605.18 | N108: 0.2551638107 | O108: 0.2551638107 | Q108: =IFERROR(IF('Simulación Cliente'!$H$21="Simple",G108+H108+I108+J108+K108,AC108+AD108+AE108+AF108+AG108),"") -> 26913.07096 | R108: 2648 | S108: =IFERROR((1+'Simulación Cliente'!$E$21)^(R108/360),"") -> 4.019253211 | T108: 6696.04 | X108: 87 | Y108: 2031-10-01 | Z108: 30 | AA108: 2648 | AB108: 1530857.399 | AC108: -1153.273175 | AD108: 23436.61619 | AE108: 436.2943588 | AF108: 450.45 | AG108: 0 | AH108: 23170.08738 | AI108: 1532010.672 | AJ108: 0.2551638107 | AK108: 0.2551638107 | AO108: 87 | AP108: 2031-10-01 | AQ108: 30 | AR108: 2648 | AS108: 1339625.283 | AT108: 6588.829327 | AU108: 20508.95374 | AV108: 381.7932055 | AW108: 450.45 | AX108: 0 | AY108: 27930.02628 | AZ108: 1333036.453 | BA108: 0.2551638107 | BB108: 0.2551638107 | BF108: 87 | BG108: 2031-10-01 | BH108: 30 | BI108: 2648 | BJ108: 1347455.479 | BK108: 2582.301892 | BL108: 20628.82991 | BM108: 384.0248116 | BN108: 450.45 | BO108: 0 | BP108: 24045.60661 | BQ108: 1344873.177 | BR108: 0.2551638107 | BS108: 0.2551638107 | BW108: 87 | BX108: 2031-10-01 | BY108: 30 | BZ108: 2648 | CA108: 1523312.548 | CB108: 2707.36837 | CC108: 23321.10852 | CD108: 434.1440762 | CE108: 450.45 | CF108: 0 | CG108: 26913.07096 | CH108: 1520605.18 | CI108: 0.2551638107 | CJ108: 0.2551638107 | CN108: 87 | CO108: 2031-10-01 | CP108: 30 | CQ108: 2648 | CR108: 1530857.399 | CS108: -1153.273175 | CT108: 23436.61619 | CU108: 436.2943588 | CV108: 450.45 | CW108: 0 | CX108: 23170.08738 | CY108: 1532010.672 | CZ108: 0.2551638107 | DA108: 0.2551638107
B109: 88 | C109: 2031-11-01 | D109: 31 | E109: 2679 | F109: 1520605.18 | G109: 1953.043864 | H109: 24061.75675 | I109: 447.8203524 | J109: 450.45 | K109: 0 | L109: 26913.07096 | M109: 1518652.136 | N109: 0.2511162058 | O109: 0.2511162058 | Q109: =IFERROR(IF('Simulación Cliente'!$H$21="Simple",G109+H109+I109+J109+K109,AC109+AD109+AE109+AF109+AG109),"") -> 26913.07096 | R109: 2679 | S109: =IFERROR((1+'Simulación Cliente'!$E$21)^(R109/360),"") -> 4.085244615 | T109: 6587.87 | X109: 88 | Y109: 2031-11-01 | Z109: 31 | AA109: 2679 | AB109: 1532010.672 | AC109: -1973.776925 | AD109: 24242.23501 | AE109: 451.1792859 | AF109: 450.45 | AG109: 0 | AH109: 23170.08738 | AI109: 1533984.449 | AJ109: 0.2511162058 | AK109: 0.2511162058 | AO109: 88 | AP109: 2031-11-01 | AQ109: 31 | AR109: 2679 | AS109: 1333036.453 | AT109: 5993.289 | AU109: 21093.70618 | AV109: 392.5811001 | AW109: 450.45 | AX109: 0 | AY109: 27930.02628 | AZ109: 1327043.164 | BA109: 0.2511162058 | BB109: 0.2511162058 | BF109: 88 | BG109: 2031-11-01 | BH109: 31 | BI109: 2679 | BJ109: 1344873.177 | BK109: 1918.081414 | BL109: 21281.00816 | BM109: 396.0670318 | BN109: 450.45 | BO109: 0 | BP109: 24045.60661 | BQ109: 1342955.096 | BR109: 0.2511162058 | BS109: 0.2511162058 | BW109: 88 | BX109: 2031-11-01 | BY109: 31 | BZ109: 2679 | CA109: 1520605.18 | CB109: 1953.043864 | CC109: 24061.75675 | CD109: 447.8203524 | CE109: 450.45 | CF109: 0 | CG109: 26913.07096 | CH109: 1518652.136 | CI109: 0.2511162058 | CJ109: 0.2511162058 | CN109: 88 | CO109: 2031-11-01 | CP109: 31 | CQ109: 2679 | CR109: 1532010.672 | CS109: -1973.776925 | CT109: 24242.23501 | CU109: 451.1792859 | CV109: 450.45 | CW109: 0 | CX109: 23170.08738 | CY109: 1533984.449 | CZ109: 0.2511162058 | DA109: 0.2511162058
B110: 89 | C110: 2031-12-01 | D110: 30 | E110: 2709 | F110: 1518652.136 | G110: 2780.045031 | H110: 23249.76007 | I110: 432.8158587 | J110: 450.45 | K110: 0 | L110: 26913.07096 | M110: 1515872.091 | N110: 0.2472603121 | O110: 0.2472603121 | Q110: =IFERROR(IF('Simulación Cliente'!$H$21="Simple",G110+H110+I110+J110+K110,AC110+AD110+AE110+AF110+AG110),"") -> 26913.07096 | R110: 2709 | S110: =IFERROR((1+'Simulación Cliente'!$E$21)^(R110/360),"") -> 4.15013872 | T110: 6484.86 | X110: 89 | Y110: 2031-12-01 | Z110: 30 | AA110: 2709 | AB110: 1533984.449 | AC110: 21968.04951 | AD110: 23484.48967 | AE110: 437.1855681 | AF110: 450.45 | AG110: 0 | AH110: 46340.17475 | AI110: 1512016.4 | AJ110: 0.4945206243 | AK110: 0.2472603121 | AO110: 89 | AP110: 2031-12-01 | AQ110: 30 | AR110: 2709 | AS110: 1327043.164 | AT110: 6785.0408 | AU110: 20316.32818 | AV110: 378.2073018 | AW110: 450.45 | AX110: 0 | AY110: 27930.02628 | AZ110: 1320258.123 | BA110: 0.2472603121 | BB110: 0.2472603121 | BF110: 89 | BG110: 2031-12-01 | BH110: 30 | BI110: 2709 | BJ110: 1342955.096 | BK110: 26698.0896 | BL110: 20559.93142 | BM110: 382.7422023 | BN110: 450.45 | BO110: 0 | BP110: 48091.21322 | BQ110: 1316257.006 | BR110: 0.4945206243 | BS110: 0.2472603121 | BW110: 89 | BX110: 2031-12-01 | BY110: 30 | BZ110: 2709 | CA110: 1518652.136 | CB110: 2780.045031 | CC110: 23249.76007 | CD110: 432.8158587 | CE110: 450.45 | CF110: 0 | CG110: 26913.07096 | CH110: 1515872.091 | CI110: 0.2472603121 | CJ110: 0.2472603121 | CN110: 89 | CO110: 2031-12-01 | CP110: 30 | CQ110: 2709 | CR110: 1533984.449 | CS110: 21968.04951 | CT110: 23484.48967 | CU110: 437.1855681 | CV110: 450.45 | CW110: 0 | CX110: 46340.17475 | CY110: 1512016.4 | CZ110: 0.4945206243 | DA110: 0.2472603121
B111: 90 | C111: 2032-01-01 | D111: 31 | E111: 2740 | F111: 1515872.091 | G111: 2029.333231 | H111: 23986.86128 | I111: 446.4264511 | J111: 450.45 | K111: 0 | L111: 26913.07096 | M111: 1513842.758 | N111: 0.2433380786 | O111: 0.2433380786 | Q111: =IFERROR(IF('Simulación Cliente'!$H$21="Simple",G111+H111+I111+J111+K111,AC111+AD111+AE111+AF111+AG111),"") -> 26913.07096 | R111: 2740 | S111: =IFERROR((1+'Simulación Cliente'!$E$21)^(R111/360),"") -> 4.21827911 | T111: 6380.11 | X111: 90 | Y111: 2032-01-01 | Z111: 31 | AA111: 2740 | AB111: 1512016.4 | AC111: -1651.503154 | AD111: 23925.84958 | AE111: 445.2909447 | AF111: 450.45 | AG111: 0 | AH111: 23170.08738 | AI111: 1513667.903 | AJ111: 0.2433380786 | AK111: 0.2433380786 | AO111: 90 | AP111: 2032-01-01 | AQ111: 31 | AR111: 2740 | AS111: 1320258.123 | AT111: 6199.254009 | AU111: 20891.5044 | AV111: 388.8178641 | AW111: 450.45 | AX111: 0 | AY111: 27930.02628 | AZ111: 1314058.869 | BA111: 0.2433380786 | BB111: 0.2433380786 | BF111: 90 | BG111: 2032-01-01 | BH111: 31 | BI111: 2740 | BJ111: 1316257.006 | BK111: 2379.325568 | BL111: 20828.19151 | BM111: 387.6395294 | BN111: 450.45 | BO111: 0 | BP111: 24045.60661 | BQ111: 1313877.681 | BR111: 0.2433380786 | BS111: 0.2433380786 | BW111: 90 | BX111: 2032-01-01 | BY111: 31 | BZ111: 2740 | CA111: 1515872.091 | CB111: 2029.333231 | CC111: 23986.86128 | CD111: 446.4264511 | CE111: 450.45 | CF111: 0 | CG111: 26913.07096 | CH111: 1513842.758 | CI111: 0.2433380786 | CJ111: 0.2433380786 | CN111: 90 | CO111: 2032-01-01 | CP111: 31 | CQ111: 2740 | CR111: 1512016.4 | CS111: -1651.503154 | CT111: 23925.84958 | CU111: 445.2909447 | CV111: 450.45 | CW111: 0 | CX111: 23170.08738 | CY111: 1513667.903 | CZ111: 0.2433380786 | DA111: 0.2433380786
B112: 91 | C112: 2032-02-01 | D112: 31 | E112: 2771 | F112: 1513842.758 | G112: 2062.042642 | H112: 23954.74951 | I112: 445.8288096 | J112: 450.45 | K112: 0 | L112: 26913.07096 | M112: 1511780.715 | N112: 0.2394780626 | O112: 0.2394780626 | Q112: =IFERROR(IF('Simulación Cliente'!$H$21="Simple",G112+H112+I112+J112+K112,AC112+AD112+AE112+AF112+AG112),"") -> 26913.07096 | R112: 2771 | S112: =IFERROR((1+'Simulación Cliente'!$E$21)^(R112/360),"") -> 4.287538284 | T112: 6277.05 | X112: 91 | Y112: 2032-02-01 | Z112: 31 | AA112: 2771 | AB112: 1513667.903 | AC112: -1678.122584 | AD112: 23951.98265 | AE112: 445.7773147 | AF112: 450.45 | AG112: 0 | AH112: 23170.08738 | AI112: 1515346.026 | AJ112: 0.2394780626 | AK112: 0.2394780626 | AO112: 91 | AP112: 2032-02-01 | AQ112: 31 | AR112: 2771 | AS112: 1314058.869 | AT112: 6299.175472 | AU112: 20793.40863 | AV112: 386.9921751 | AW112: 450.45 | AX112: 0 | AY112: 27930.02628 | AZ112: 1307759.694 | BA112: 0.2394780626 | BB112: 0.2394780626 | BF112: 91 | BG112: 2032-02-01 | BH112: 31 | BI112: 2771 | BJ112: 1313877.681 | BK112: 2417.676262 | BL112: 20790.54153 | BM112: 386.9388147 | BN112: 450.45 | BO112: 0 | BP112: 24045.60661 | BQ112: 1311460.004 | BR112: 0.2394780626 | BS112: 0.2394780626 | BW112: 91 | BX112: 2032-02-01 | BY112: 31 | BZ112: 2771 | CA112: 1513842.758 | CB112: 2062.042642 | CC112: 23954.74951 | CD112: 445.8288096 | CE112: 450.45 | CF112: 0 | CG112: 26913.07096 | CH112: 1511780.715 | CI112: 0.2394780626 | CJ112: 0.2394780626 | CN112: 91 | CO112: 2032-02-01 | CP112: 31 | CQ112: 2771 | CR112: 1513667.903 | CS112: -1678.122584 | CT112: 23951.98265 | CU112: 445.7773147 | CV112: 450.45 | CW112: 0 | CX112: 23170.08738 | CY112: 1515346.026 | CZ112: 0.2394780626 | DA112: 0.2394780626
B113: 92 | C113: 2032-03-01 | D113: 29 | E113: 2800 | F113: 1511780.715 | G113: 3678.7293 | H113: 22367.39805 | I113: 416.4936088 | J113: 450.45 | K113: 0 | L113: 26913.07096 | M113: 1508101.986 | N113: 0.2359225313 | O113: 0.2359225313 | Q113: =IFERROR(IF('Simulación Cliente'!$H$21="Simple",G113+H113+I113+J113+K113,AC113+AD113+AE113+AF113+AG113),"") -> 26913.07096 | R113: 2800 | S113: =IFERROR((1+'Simulación Cliente'!$E$21)^(R113/360),"") -> 4.353358237 | T113: 6182.14 | X113: 92 | Y113: 2032-03-01 | Z113: 29 | AA113: 2800 | AB113: 1515346.026 | AC113: -117.986716 | AD113: 22420.14824 | AE113: 417.4758472 | AF113: 450.45 | AG113: 0 | AH113: 23170.08738 | AI113: 1515464.012 | AJ113: 0.2359225313 | AK113: 0.2359225313 | AO113: 92 | AP113: 2032-03-01 | AQ113: 29 | AR113: 2800 | AS113: 1307759.694 | AT113: 7770.464437 | AU113: 19348.82576 | AV113: 360.2860845 | AW113: 450.45 | AX113: 0 | AY113: 27930.02628 | AZ113: 1299989.23 | BA113: 0.2359225313 | BB113: 0.2359225313 | BF113: 92 | BG113: 2032-03-01 | BH113: 29 | BI113: 2800 | BJ113: 1311460.004 | BK113: 3830.277773 | BL113: 19403.57332 | BM113: 361.3055152 | BN113: 450.45 | BO113: 0 | BP113: 24045.60661 | BQ113: 1307629.727 | BR113: 0.2359225313 | BS113: 0.2359225313 | BW113: 92 | BX113: 2032-03-01 | BY113: 29 | BZ113: 2800 | CA113: 1511780.715 | CB113: 3678.7293 | CC113: 22367.39805 | CD113: 416.4936088 | CE113: 450.45 | CF113: 0 | CG113: 26913.07096 | CH113: 1508101.986 | CI113: 0.2359225313 | CJ113: 0.2359225313 | CN113: 92 | CO113: 2032-03-01 | CP113: 29 | CQ113: 2800 | CR113: 1515346.026 | CS113: -117.986716 | CT113: 22420.14824 | CU113: 417.4758472 | CV113: 450.45 | CW113: 0 | CX113: 23170.08738 | CY113: 1515464.012 | CZ113: 0.2359225313 | DA113: 0.2359225313
B114: 93 | C114: 2032-04-01 | D114: 31 | E114: 2831 | F114: 1508101.986 | G114: 2154.574152 | H114: 23863.90867 | I114: 444.1381442 | J114: 450.45 | K114: 0 | L114: 26913.07096 | M114: 1505947.411 | N114: 0.2321801464 | O114: 0.2321801464 | Q114: =IFERROR(IF('Simulación Cliente'!$H$21="Simple",G114+H114+I114+J114+K114,AC114+AD114+AE114+AF114+AG114),"") -> 26913.07096 | R114: 2831 | S114: =IFERROR((1+'Simulación Cliente'!$E$21)^(R114/360),"") -> 4.424835252 | T114: 6082.28 | X114: 93 | Y114: 2032-04-01 | Z114: 31 | AA114: 2831 | AB114: 1515464.012 | AC114: -1707.07282 | AD114: 23980.40393 | AE114: 446.3062714 | AF114: 450.45 | AG114: 0 | AH114: 23170.08738 | AI114: 1517171.085 | AJ114: 0.2321801464 | AK114: 0.2321801464 | AO114: 93 | AP114: 2032-04-01 | AQ114: 31 | AR114: 2831 | AS114: 1299989.23 | AT114: 6525.95421 | AU114: 20570.77342 | AV114: 382.8486465 | AW114: 450.45 | AX114: 0 | AY114: 27930.02628 | AZ114: 1293463.275 | BA114: 0.2321801464 | BB114: 0.2321801464 | BF114: 93 | BG114: 2032-04-01 | BH114: 31 | BI114: 2831 | BJ114: 1307629.727 | BK114: 2518.382687 | BL114: 20691.67514 | BM114: 385.0987835 | BN114: 450.45 | BO114: 0 | BP114: 24045.60661 | BQ114: 1305111.344 | BR114: 0.2321801464 | BS114: 0.2321801464 | BW114: 93 | BX114: 2032-04-01 | BY114: 31 | BZ114: 2831 | CA114: 1508101.986 | CB114: 2154.574152 | CC114: 23863.90867 | CD114: 444.1381442 | CE114: 450.45 | CF114: 0 | CG114: 26913.07096 | CH114: 1505947.411 | CI114: 0.2321801464 | CJ114: 0.2321801464 | CN114: 93 | CO114: 2032-04-01 | CP114: 31 | CQ114: 2831 | CR114: 1515464.012 | CS114: -1707.07282 | CT114: 23980.40393 | CU114: 446.3062714 | CV114: 450.45 | CW114: 0 | CX114: 23170.08738 | CY114: 1517171.085 | CZ114: 0.2321801464 | DA114: 0.2321801464
B115: 94 | C115: 2032-05-01 | D115: 30 | E115: 2861 | F115: 1505947.411 | G115: 2978.16848 | H115: 23055.25747 | I115: 429.1950123 | J115: 450.45 | K115: 0 | L115: 26913.07096 | M115: 1502969.243 | N115: 0.2286150163 | O115: 0.2286150163 | Q115: =IFERROR(IF('Simulación Cliente'!$H$21="Simple",G115+H115+I115+J115+K115,AC115+AD115+AE115+AF115+AG115),"") -> 26913.07096 | R115: 2861 | S115: =IFERROR((1+'Simulación Cliente'!$E$21)^(R115/360),"") -> 4.495123753 | T115: 5987.17 | X115: 94 | Y115: 2032-05-01 | Z115: 30 | AA115: 2861 | AB115: 1517171.085 | AC115: -939.842353 | AD115: 23227.08597 | AE115: 432.3937592 | AF115: 450.45 | AG115: 0 | AH115: 23170.08738 | AI115: 1518110.927 | AJ115: 0.2286150163 | AK115: 0.2286150163 | AO115: 94 | AP115: 2032-05-01 | AQ115: 30 | AR115: 2861 | AS115: 1293463.275 | AT115: 7308.701388 | AU115: 19802.23786 | AV115: 368.6370335 | AW115: 450.45 | AX115: 0 | AY115: 27930.02628 | AZ115: 1286154.574 | BA115: 0.2286150163 | BB115: 0.2286150163 | BF115: 94 | BG115: 2032-05-01 | BH115: 30 | BI115: 2861 | BJ115: 1305111.344 | BK115: 3242.636259 | BL115: 19980.56362 | BM115: 371.956733 | BN115: 450.45 | BO115: 0 | BP115: 24045.60661 | BQ115: 1301868.708 | BR115: 0.2286150163 | BS115: 0.2286150163 | BW115: 94 | BX115: 2032-05-01 | BY115: 30 | BZ115: 2861 | CA115: 1505947.411 | CB115: 2978.16848 | CC115: 23055.25747 | CD115: 429.1950123 | CE115: 450.45 | CF115: 0 | CG115: 26913.07096 | CH115: 1502969.243 | CI115: 0.2286150163 | CJ115: 0.2286150163 | CN115: 94 | CO115: 2032-05-01 | CP115: 30 | CQ115: 2861 | CR115: 1517171.085 | CS115: -939.842353 | CT115: 23227.08597 | CU115: 432.3937592 | CV115: 450.45 | CW115: 0 | CX115: 23170.08738 | CY115: 1518110.927 | CZ115: 0.2286150163 | DA115: 0.2286150163
B116: 95 | C116: 2032-06-01 | D116: 31 | E116: 2892 | F116: 1502969.243 | G116: 2237.305259 | H116: 23782.68916 | I116: 442.6265443 | J116: 450.45 | K116: 0 | L116: 26913.07096 | M116: 1500731.938 | N116: 0.2249885488 | O116: 0.2249885488 | Q116: =IFERROR(IF('Simulación Cliente'!$H$21="Simple",G116+H116+I116+J116+K116,AC116+AD116+AE116+AF116+AG116),"") -> 26913.07096 | R116: 2892 | S116: =IFERROR((1+'Simulación Cliente'!$E$21)^(R116/360),"") -> 4.568928391 | T116: 5890.46 | X116: 95 | Y116: 2032-06-01 | Z116: 31 | AA116: 2892 | AB116: 1518110.927 | AC116: -1749.736605 | AD116: 24022.28819 | AE116: 447.0857916 | AF116: 450.45 | AG116: 0 | AH116: 23170.08738 | AI116: 1519860.664 | AJ116: 0.2249885488 | AK116: 0.2249885488 | AO116: 95 | AP116: 2032-06-01 | AQ116: 31 | AR116: 2892 | AS116: 1286154.574 | AT116: 6748.9454 | AU116: 20351.85656 | AV116: 378.774321 | AW116: 450.45 | AX116: 0 | AY116: 27930.02628 | AZ116: 1279405.629 | BA116: 0.2249885488 | BB116: 0.2249885488 | BF116: 95 | BG116: 2032-06-01 | BH116: 31 | BI116: 2892 | BJ116: 1301868.708 | BK116: 2611.240544 | BL116: 20600.51391 | BM116: 383.4021554 | BN116: 450.45 | BO116: 0 | BP116: 24045.60661 | BQ116: 1299257.467 | BR116: 0.2249885488 | BS116: 0.2249885488 | BW116: 95 | BX116: 2032-06-01 | BY116: 31 | BZ116: 2892 | CA116: 1502969.243 | CB116: 2237.305259 | CC116: 23782.68916 | CD116: 442.6265443 | CE116: 450.45 | CF116: 0 | CG116: 26913.07096 | CH116: 1500731.938 | CI116: 0.2249885488 | CJ116: 0.2249885488 | CN116: 95 | CO116: 2032-06-01 | CP116: 31 | CQ116: 2892 | CR116: 1518110.927 | CS116: -1749.736605 | CT116: 24022.28819 | CU116: 447.0857916 | CV116: 450.45 | CW116: 0 | CX116: 23170.08738 | CY116: 1519860.664 | CZ116: 0.2249885488 | DA116: 0.2249885488
B117: 96 | C117: 2032-07-01 | D117: 30 | E117: 2922 | F117: 1500731.938 | G117: 3059.501031 | H117: 22975.41133 | I117: 427.7086023 | J117: 450.45 | K117: 0 | L117: 26913.07096 | M117: 1497672.437 | N117: 0.2215338458 | O117: 0.2215338458 | Q117: =IFERROR(IF('Simulación Cliente'!$H$21="Simple",G117+H117+I117+J117+K117,AC117+AD117+AE117+AF117+AG117),"") -> 26913.07096 | R117: 2922 | S117: =IFERROR((1+'Simulación Cliente'!$E$21)^(R117/360),"") -> 4.641505812 | T117: 5798.35 | X117: 96 | Y117: 2032-07-01 | Z117: 30 | AA117: 2922 | AB117: 1519860.664 | AC117: 22188.30246 | AD117: 23268.262 | AE117: 433.1602892 | AF117: 450.45 | AG117: 0 | AH117: 46340.17475 | AI117: 1497672.362 | AJ117: 0.4430676916 | AK117: 0.2215338458 | AO117: 96 | AP117: 2032-07-01 | AQ117: 30 | AR117: 2922 | AS117: 1279405.629 | AT117: 7527.922946 | AU117: 19587.02273 | AV117: 364.6306041 | AW117: 450.45 | AX117: 0 | AY117: 27930.02628 | AZ117: 1271877.706 | BA117: 0.2215338458 | BB117: 0.2215338458 | BF117: 96 | BG117: 2032-07-01 | BH117: 30 | BI117: 2922 | BJ117: 1299257.467 | BK117: 27379.53098 | BL117: 19890.94386 | BM117: 370.2883781 | BN117: 450.45 | BO117: 0 | BP117: 48091.21322 | BQ117: 1271877.936 | BR117: 0.4430676916 | BS117: 0.2215338458 | BW117: 96 | BX117: 2032-07-01 | BY117: 30 | BZ117: 2922 | CA117: 1500731.938 | CB117: 3059.501031 | CC117: 22975.41133 | CD117: 427.7086023 | CE117: 450.45 | CF117: 0 | CG117: 26913.07096 | CH117: 1497672.437 | CI117: 0.2215338458 | CJ117: 0.2215338458 | CN117: 96 | CO117: 2032-07-01 | CP117: 30 | CQ117: 2922 | CR117: 1519860.664 | CS117: 22188.30246 | CT117: 23268.262 | CU117: 433.1602892 | CV117: 450.45 | CW117: 0 | CX117: 46340.17475 | CY117: 1497672.362 | CZ117: 0.4430676916 | DA117: 0.2215338458
B118: 97 | C118: 2032-08-01 | D118: 31 | E118: 2953 | F118: 1497672.437 | G118: 2322.680795 | H118: 23698.87354 | I118: 441.0666275 | J118: 450.45 | K118: 0 | L118: 26913.07096 | M118: 1495349.756 | N118: 0.2180197053 | O118: 0.2180197053 | Q118: =IFERROR(IF('Simulación Cliente'!$H$21="Simple",G118+H118+I118+J118+K118,AC118+AD118+AE118+AF118+AG118),"") -> 26913.07096 | R118: 2953 | S118: =IFERROR((1+'Simulación Cliente'!$E$21)^(R118/360),"") -> 4.717713871 | T118: 5704.68 | X118: 97 | Y118: 2032-08-01 | Z118: 31 | AA118: 2953 | AB118: 1497672.362 | AC118: -1420.30158 | AD118: 23698.87235 | AE118: 441.0666053 | AF118: 450.45 | AG118: 0 | AH118: 23170.08738 | AI118: 1499092.663 | AJ118: 0.2180197053 | AK118: 0.2180197053 | AO118: 97 | AP118: 2032-08-01 | AQ118: 31 | AR118: 2953 | AS118: 1271877.706 | AT118: 6979.064309 | AU118: 20125.9422 | AV118: 374.5697633 | AW118: 450.45 | AX118: 0 | AY118: 27930.02628 | AZ118: 1264898.641 | BA118: 0.2180197053 | BB118: 0.2180197053 | BF118: 97 | BG118: 2032-08-01 | BH118: 31 | BI118: 2953 | BJ118: 1271877.936 | BK118: 3094.640927 | BL118: 20125.94585 | BM118: 374.5698312 | BN118: 450.45 | BO118: 0 | BP118: 24045.60661 | BQ118: 1268783.295 | BR118: 0.2180197053 | BS118: 0.2180197053 | BW118: 97 | BX118: 2032-08-01 | BY118: 31 | BZ118: 2953 | CA118: 1497672.437 | CB118: 2322.680795 | CC118: 23698.87354 | CD118: 441.0666275 | CE118: 450.45 | CF118: 0 | CG118: 26913.07096 | CH118: 1495349.756 | CI118: 0.2180197053 | CJ118: 0.2180197053 | CN118: 97 | CO118: 2032-08-01 | CP118: 31 | CQ118: 2953 | CR118: 1497672.362 | CS118: -1420.30158 | CT118: 23698.87235 | CU118: 441.0666053 | CV118: 450.45 | CW118: 0 | CX118: 23170.08738 | CY118: 1499092.663 | CZ118: 0.2180197053 | DA118: 0.2180197053
B119: 98 | C119: 2032-09-01 | D119: 31 | E119: 2984 | F119: 1495349.756 | G119: 2360.118471 | H119: 23662.1199 | I119: 440.3825947 | J119: 450.45 | K119: 0 | L119: 26913.07096 | M119: 1492989.637 | N119: 0.2145613088 | O119: 0.2145613088 | Q119: =IFERROR(IF('Simulación Cliente'!$H$21="Simple",G119+H119+I119+J119+K119,AC119+AD119+AE119+AF119+AG119),"") -> 26913.07096 | R119: 2984 | S119: =IFERROR((1+'Simulación Cliente'!$E$21)^(R119/360),"") -> 4.795173176 | T119: 5612.53 | X119: 98 | Y119: 2032-09-01 | Z119: 31 | AA119: 2984 | AB119: 1499092.663 | AC119: -1443.194433 | AD119: 23721.34692 | AE119: 441.4848861 | AF119: 450.45 | AG119: 0 | AH119: 23170.08738 | AI119: 1500535.858 | AJ119: 0.2145613088 | AK119: 0.2145613088 | AO119: 98 | AP119: 2032-09-01 | AQ119: 31 | AR119: 2984 | AS119: 1264898.641 | AT119: 7091.554992 | AU119: 20015.50687 | AV119: 372.5144191 | AW119: 450.45 | AX119: 0 | AY119: 27930.02628 | AZ119: 1257807.086 | BA119: 0.2145613088 | BB119: 0.2145613088 | BF119: 98 | BG119: 2032-09-01 | BH119: 31 | BI119: 2984 | BJ119: 1268783.295 | BK119: 3144.521291 | BL119: 20076.97686 | BM119: 373.6584552 | BN119: 450.45 | BO119: 0 | BP119: 24045.60661 | BQ119: 1265638.774 | BR119: 0.2145613088 | BS119: 0.2145613088 | BW119: 98 | BX119: 2032-09-01 | BY119: 31 | BZ119: 2984 | CA119: 1495349.756 | CB119: 2360.118471 | CC119: 23662.1199 | CD119: 440.3825947 | CE119: 450.45 | CF119: 0 | CG119: 26913.07096 | CH119: 1492989.637 | CI119: 0.2145613088 | CJ119: 0.2145613088 | CN119: 98 | CO119: 2032-09-01 | CP119: 31 | CQ119: 2984 | CR119: 1499092.663 | CS119: -1443.194433 | CT119: 23721.34692 | CU119: 441.4848861 | CV119: 450.45 | CW119: 0 | CX119: 23170.08738 | CY119: 1500535.858 | CZ119: 0.2145613088 | DA119: 0.2145613088
B120: 99 | C120: 2032-10-01 | D120: 30 | E120: 3014 | F120: 1492989.637 | G120: 3180.238105 | H120: 22856.88081 | I120: 425.5020467 | J120: 450.45 | K120: 0 | L120: 26913.07096 | M120: 1489809.399 | N120: 0.2112667162 | O120: 0.2112667162 | Q120: =IFERROR(IF('Simulación Cliente'!$H$21="Simple",G120+H120+I120+J120+K120,AC120+AD120+AE120+AF120+AG120),"") -> 26913.07096 | R120: 3014 | S120: =IFERROR((1+'Simulación Cliente'!$E$21)^(R120/360),"") -> 4.871344495 | T120: 5524.77 | X120: 99 | Y120: 2032-10-01 | Z120: 30 | AA120: 3014 | AB120: 1500535.858 | AC120: -680.4247886 | AD120: 22972.40945 | AE120: 427.6527194 | AF120: 450.45 | AG120: 0 | AH120: 23170.08738 | AI120: 1501216.282 | AJ120: 0.2112667162 | AK120: 0.2112667162 | AO120: 99 | AP120: 2032-10-01 | AQ120: 30 | AR120: 3014 | AS120: 1257807.086 | AT120: 7864.740776 | AU120: 19256.36048 | AV120: 358.4750196 | AW120: 450.45 | AX120: 0 | AY120: 27930.02628 | AZ120: 1249942.346 | BA120: 0.2112667162 | BB120: 0.2112667162 | BF120: 99 | BG120: 2032-10-01 | BH120: 30 | BI120: 3014 | BJ120: 1265638.774 | BK120: 3858.190088 | BL120: 19376.25947 | BM120: 360.7070506 | BN120: 450.45 | BO120: 0 | BP120: 24045.60661 | BQ120: 1261780.584 | BR120: 0.2112667162 | BS120: 0.2112667162 | BW120: 99 | BX120: 2032-10-01 | BY120: 30 | BZ120: 3014 | CA120: 1492989.637 | CB120: 3180.238105 | CC120: 22856.88081 | CD120: 425.5020467 | CE120: 450.45 | CF120: 0 | CG120: 26913.07096 | CH120: 1489809.399 | CI120: 0.2112667162 | CJ120: 0.2112667162 | CN120: 99 | CO120: 2032-10-01 | CP120: 30 | CQ120: 3014 | CR120: 1500535.858 | CS120: -680.4247886 | CT120: 22972.40945 | CU120: 427.6527194 | CV120: 450.45 | CW120: 0 | CX120: 23170.08738 | CY120: 1501216.282 | CZ120: 0.2112667162 | DA120: 0.2112667162
B121: 100 | C121: 2032-11-01 | D121: 31 | E121: 3045 | F121: 1489809.399 | G121: 2449.419625 | H121: 23574.45039 | I121: 438.750952 | J121: 450.45 | K121: 0 | L121: 26913.07096 | M121: 1487359.98 | N121: 0.2079154409 | O121: 0.2079154409 | Q121: =IFERROR(IF('Simulación Cliente'!$H$21="Simple",G121+H121+I121+J121+K121,AC121+AD121+AE121+AF121+AG121),"") -> 26913.07096 | R121: 3045 | S121: =IFERROR((1+'Simulación Cliente'!$E$21)^(R121/360),"") -> 4.951326234 | T121: 5435.53 | X121: 100 | Y121: 2032-11-01 | Z121: 31 | AA121: 3045 | AB121: 1501216.282 | AC121: -1477.423574 | AD121: 23754.95065 | AE121: 442.110295 | AF121: 450.45 | AG121: 0 | AH121: 23170.08738 | AI121: 1502693.706 | AJ121: 0.2079154409 | AK121: 0.2079154409 | AO121: 100 | AP121: 2032-11-01 | AQ121: 31 | AR121: 3045 | AS121: 1249942.346 | AT121: 7332.625119 | AU121: 19778.84139 | AV121: 368.1097691 | AW121: 450.45 | AX121: 0 | AY121: 27930.02628 | AZ121: 1242609.72 | BA121: 0.2079154409 | BB121: 0.2079154409 | BF121: 100 | BG121: 2032-11-01 | BH121: 31 | BI121: 3045 | BJ121: 1261780.584 | BK121: 3257.393125 | BL121: 19966.16734 | BM121: 371.5961469 | BN121: 450.45 | BO121: 0 | BP121: 24045.60661 | BQ121: 1258523.191 | BR121: 0.2079154409 | BS121: 0.2079154409 | BW121: 100 | BX121: 2032-11-01 | BY121: 31 | BZ121: 3045 | CA121: 1489809.399 | CB121: 2449.419625 | CC121: 23574.45039 | CD121: 438.750952 | CE121: 450.45 | CF121: 0 | CG121: 26913.07096 | CH121: 1487359.98 | CI121: 0.2079154409 | CJ121: 0.2079154409 | CN121: 100 | CO121: 2032-11-01 | CP121: 31 | CQ121: 3045 | CR121: 1501216.282 | CS121: -1477.423574 | CT121: 23754.95065 | CU121: 442.110295 | CV121: 450.45 | CW121: 0 | CX121: 23170.08738 | CY121: 1502693.706 | CZ121: 0.2079154409 | DA121: 0.2079154409
B122: 101 | C122: 2032-12-01 | D122: 30 | E122: 3075 | F122: 1487359.98 | G122: 3268.029636 | H122: 22770.69373 | I122: 423.8975942 | J122: 450.45 | K122: 0 | L122: 26913.07096 | M122: 1484091.95 | N122: 0.2047228957 | O122: 0.2047228957 | Q122: =IFERROR(IF('Simulación Cliente'!$H$21="Simple",G122+H122+I122+J122+K122,AC122+AD122+AE122+AF122+AG122),"") -> 26913.07096 | R122: 3075 | S122: =IFERROR((1+'Simulación Cliente'!$E$21)^(R122/360),"") -> 5.029978045 | T122: 5350.53 | X122: 101 | Y122: 2032-12-01 | Z122: 30 | AA122: 3075 | AB122: 1502693.706 | AC122: 22456.01208 | AD122: 23005.44496 | AE122: 428.2677062 | AF122: 450.45 | AG122: 0 | AH122: 46340.17475 | AI122: 1480237.694 | AJ122: 0.4094457914 | AK122: 0.2047228957 | AO122: 101 | AP122: 2032-12-01 | AQ122: 30 | AR122: 3075 | AS122: 1242609.72 | AT122: 8101.73565 | AU122: 19023.69686 | AV122: 354.1437703 | AW122: 450.45 | AX122: 0 | AY122: 27930.02628 | AZ122: 1234507.985 | BA122: 0.2047228957 | BB122: 0.2047228957 | BF122: 101 | BG122: 2032-12-01 | BH122: 30 | BI122: 3075 | BJ122: 1258523.191 | BK122: 28014.76045 | BL122: 19267.32366 | BM122: 358.6791094 | BN122: 450.45 | BO122: 0 | BP122: 48091.21322 | BQ122: 1230508.43 | BR122: 0.4094457914 | BS122: 0.2047228957 | BW122: 101 | BX122: 2032-12-01 | BY122: 30 | BZ122: 3075 | CA122: 1487359.98 | CB122: 3268.029636 | CC122: 22770.69373 | CD122: 423.8975942 | CE122: 450.45 | CF122: 0 | CG122: 26913.07096 | CH122: 1484091.95 | CI122: 0.2047228957 | CJ122: 0.2047228957 | CN122: 101 | CO122: 2032-12-01 | CP122: 30 | CQ122: 3075 | CR122: 1502693.706 | CS122: 22456.01208 | CT122: 23005.44496 | CU122: 428.2677062 | CV122: 450.45 | CW122: 0 | CX122: 46340.17475 | CY122: 1480237.694 | CZ122: 0.4094457914 | DA122: 0.2047228957
B123: 102 | C123: 2033-01-01 | D123: 31 | E123: 3106 | F123: 1484091.95 | G123: 2541.575212 | H123: 23483.9786 | I123: 437.0671552 | J123: 450.45 | K123: 0 | L123: 26913.07096 | M123: 1481550.375 | N123: 0.2014754235 | O123: 0.2014754235 | Q123: =IFERROR(IF('Simulación Cliente'!$H$21="Simple",G123+H123+I123+J123+K123,AC123+AD123+AE123+AF123+AG123),"") -> 26913.07096 | R123: 3106 | S123: =IFERROR((1+'Simulación Cliente'!$E$21)^(R123/360),"") -> 5.11256436 | T123: 5264.1 | X123: 102 | Y123: 2033-01-01 | Z123: 31 | AA123: 3106 | AB123: 1480237.694 | AC123: -1139.284299 | AD123: 23422.9896 | AE123: 435.9320713 | AF123: 450.45 | AG123: 0 | AH123: 23170.08738 | AI123: 1481376.978 | AJ123: 0.2014754235 | AK123: 0.2014754235 | AO123: 102 | AP123: 2033-01-01 | AQ123: 31 | AR123: 3106 | AS123: 1234507.985 | AT123: 7581.400844 | AU123: 19534.61111 | AV123: 363.5643283 | AW123: 450.45 | AX123: 0 | AY123: 27930.02628 | AZ123: 1226926.584 | BA123: 0.2014754235 | BB123: 0.2014754235 | BF123: 102 | BG123: 2033-01-01 | BH123: 31 | BI123: 3106 | BJ123: 1230508.43 | BK123: 3761.447214 | BL123: 19471.32294 | BM123: 362.3864539 | BN123: 450.45 | BO123: 0 | BP123: 24045.60661 | BQ123: 1226746.983 | BR123: 0.2014754235 | BS123: 0.2014754235 | BW123: 102 | BX123: 2033-01-01 | BY123: 31 | BZ123: 3106 | CA123: 1484091.95 | CB123: 2541.575212 | CC123: 23483.9786 | CD123: 437.0671552 | CE123: 450.45 | CF123: 0 | CG123: 26913.07096 | CH123: 1481550.375 | CI123: 0.2014754235 | CJ123: 0.2014754235 | CN123: 102 | CO123: 2033-01-01 | CP123: 31 | CQ123: 3106 | CR123: 1480237.694 | CS123: -1139.284299 | CT123: 23422.9896 | CU123: 435.9320713 | CV123: 450.45 | CW123: 0 | CX123: 23170.08738 | CY123: 1481376.978 | CZ123: 0.2014754235 | DA123: 0.2014754235
B124: 103 | C124: 2033-02-01 | D124: 31 | E124: 3137 | F124: 1481550.375 | G124: 2582.541095 | H124: 23443.76121 | I124: 436.3186577 | J124: 450.45 | K124: 0 | L124: 26913.07096 | M124: 1478967.834 | N124: 0.1982794651 | O124: 0.1982794651 | Q124: =IFERROR(IF('Simulación Cliente'!$H$21="Simple",G124+H124+I124+J124+K124,AC124+AD124+AE124+AF124+AG124),"") -> 26913.07096 | R124: 3137 | S124: =IFERROR((1+'Simulación Cliente'!$E$21)^(R124/360),"") -> 5.196506645 | T124: 5179.07 | X124: 103 | Y124: 2033-02-01 | Z124: 31 | AA124: 3137 | AB124: 1481376.978 | AC124: -1157.64763 | AD124: 23441.01741 | AE124: 436.2675921 | AF124: 450.45 | AG124: 0 | AH124: 23170.08738 | AI124: 1482534.626 | AJ124: 0.1982794651 | AK124: 0.1982794651 | AO124: 103 | AP124: 2033-02-01 | AQ124: 31 | AR124: 3137 | AS124: 1226926.584 | AT124: 7703.60017 | AU124: 19414.64451 | AV124: 361.3315951 | AW124: 450.45 | AX124: 0 | AY124: 27930.02628 | AZ124: 1219222.984 | BA124: 0.1982794651 | BB124: 0.1982794651 | BF124: 103 | BG124: 2033-02-01 | BH124: 31 | BI124: 3137 | BJ124: 1226746.983 | BK124: 3822.075365 | BL124: 19411.80254 | BM124: 361.2787024 | BN124: 450.45 | BO124: 0 | BP124: 24045.60661 | BQ124: 1222924.908 | BR124: 0.1982794651 | BS124: 0.1982794651 | BW124: 103 | BX124: 2033-02-01 | BY124: 31 | BZ124: 3137 | CA124: 1481550.375 | CB124: 2582.541095 | CC124: 23443.76121 | CD124: 436.3186577 | CE124: 450.45 | CF124: 0 | CG124: 26913.07096 | CH124: 1478967.834 | CI124: 0.1982794651 | CJ124: 0.1982794651 | CN124: 103 | CO124: 2033-02-01 | CP124: 31 | CQ124: 3137 | CR124: 1481376.978 | CS124: -1157.64763 | CT124: 23441.01741 | CU124: 436.2675921 | CV124: 450.45 | CW124: 0 | CX124: 23170.08738 | CY124: 1482534.626 | CZ124: 0.1982794651 | DA124: 0.1982794651
B125: 104 | C125: 2033-03-01 | D125: 28 | E125: 3165 | F125: 1478967.834 | G125: 4947.211918 | H125: 21122.00734 | I125: 393.4017068 | J125: 450.45 | K125: 0 | L125: 26913.07096 | M125: 1474020.622 | N125: 0.1954363904 | O125: 0.1954363904 | Q125: =IFERROR(IF('Simulación Cliente'!$H$21="Simple",G125+H125+I125+J125+K125,AC125+AD125+AE125+AF125+AG125),"") -> 26913.07096 | R125: 3165 | S125: =IFERROR((1+'Simulación Cliente'!$E$21)^(R125/360),"") -> 5.27350948 | T125: 5103.45 | X125: 104 | Y125: 2033-03-01 | Z125: 28 | AA125: 3165 | AB125: 1482534.626 | AC125: 1152.340125 | AD125: 21172.94679 | AE125: 394.3504645 | AF125: 450.45 | AG125: 0 | AH125: 23170.08738 | AI125: 1481382.286 | AJ125: 0.1954363904 | AK125: 0.1954363904 | AO125: 104 | AP125: 2033-03-01 | AQ125: 28 | AR125: 3165 | AS125: 1219222.984 | AT125: 9742.827301 | AU125: 17412.43874 | AV125: 324.310233 | AW125: 450.45 | AX125: 0 | AY125: 27930.02628 | AZ125: 1209480.156 | BA125: 0.1954363904 | BB125: 0.1954363904 | BF125: 104 | BG125: 2033-03-01 | BH125: 28 | BI125: 3165 | BJ125: 1222924.908 | BK125: 5804.553585 | BL125: 17465.30809 | BM125: 325.2949354 | BN125: 450.45 | BO125: 0 | BP125: 24045.60661 | BQ125: 1217120.354 | BR125: 0.1954363904 | BS125: 0.1954363904 | BW125: 104 | BX125: 2033-03-01 | BY125: 28 | BZ125: 3165 | CA125: 1478967.834 | CB125: 4947.211918 | CC125: 21122.00734 | CD125: 393.4017068 | CE125: 450.45 | CF125: 0 | CG125: 26913.07096 | CH125: 1474020.622 | CI125: 0.1954363904 | CJ125: 0.1954363904 | CN125: 104 | CO125: 2033-03-01 | CP125: 28 | CQ125: 3165 | CR125: 1482534.626 | CS125: 1152.340125 | CT125: 21172.94679 | CU125: 394.3504645 | CV125: 450.45 | CW125: 0 | CX125: 23170.08738 | CY125: 1481382.286 | CZ125: 0.1954363904 | DA125: 0.1954363904
B126: 105 | C126: 2033-04-01 | D126: 31 | E126: 3196 | F126: 1474020.622 | G126: 2703.907946 | H126: 23324.61188 | I126: 434.1011349 | J126: 450.45 | K126: 0 | L126: 26913.07096 | M126: 1471316.714 | N126: 0.1923362278 | O126: 0.1923362278 | Q126: =IFERROR(IF('Simulación Cliente'!$H$21="Simple",G126+H126+I126+J126+K126,AC126+AD126+AE126+AF126+AG126),"") -> 26913.07096 | R126: 3196 | S126: =IFERROR((1+'Simulación Cliente'!$E$21)^(R126/360),"") -> 5.360094294 | T126: 5021.01 | X126: 105 | Y126: 2033-04-01 | Z126: 31 | AA126: 3196 | AB126: 1481382.286 | AC126: -1157.733178 | AD126: 23441.1014 | AE126: 436.2691552 | AF126: 450.45 | AG126: 0 | AH126: 23170.08738 | AI126: 1482540.019 | AJ126: 0.1923362278 | AK126: 0.1923362278 | AO126: 105 | AP126: 2033-04-01 | AQ126: 31 | AR126: 3196 | AS126: 1209480.156 | AT126: 7984.806998 | AU126: 19138.57568 | AV126: 356.1935978 | AW126: 450.45 | AX126: 0 | AY126: 27930.02628 | AZ126: 1201495.349 | BA126: 0.1923362278 | BB126: 0.1923362278 | BF126: 105 | BG126: 2033-04-01 | BH126: 31 | BI126: 3196 | BJ126: 1217120.354 | BK126: 3977.2403 | BL126: 19259.47266 | BM126: 358.4436467 | BN126: 450.45 | BO126: 0 | BP126: 24045.60661 | BQ126: 1213143.114 | BR126: 0.1923362278 | BS126: 0.1923362278 | BW126: 105 | BX126: 2033-04-01 | BY126: 31 | BZ126: 3196 | CA126: 1474020.622 | CB126: 2703.907946 | CC126: 23324.61188 | CD126: 434.1011349 | CE126: 450.45 | CF126: 0 | CG126: 26913.07096 | CH126: 1471316.714 | CI126: 0.1923362278 | CJ126: 0.1923362278 | CN126: 105 | CO126: 2033-04-01 | CP126: 31 | CQ126: 3196 | CR126: 1481382.286 | CS126: -1157.733178 | CT126: 23441.1014 | CU126: 436.2691552 | CV126: 450.45 | CW126: 0 | CX126: 23170.08738 | CY126: 1482540.019 | CZ126: 0.1923362278 | DA126: 0.1923362278
B127: 106 | C127: 2033-05-01 | D127: 30 | E127: 3226 | F127: 1471316.714 | G127: 3518.215872 | H127: 22525.07983 | I127: 419.3252635 | J127: 450.45 | K127: 0 | L127: 26913.07096 | M127: 1467798.498 | N127: 0.1893829018 | O127: 0.1893829018 | Q127: =IFERROR(IF('Simulación Cliente'!$H$21="Simple",G127+H127+I127+J127+K127,AC127+AD127+AE127+AF127+AG127),"") -> 26913.07096 | R127: 3226 | S127: =IFERROR((1+'Simulación Cliente'!$E$21)^(R127/360),"") -> 5.445239385 | T127: 4942.5 | X127: 106 | Y127: 2033-05-01 | Z127: 30 | AA127: 3226 | AB127: 1482540.019 | AC127: -399.7892123 | AD127: 22696.90268 | AE127: 422.5239054 | AF127: 450.45 | AG127: 0 | AH127: 23170.08738 | AI127: 1482939.808 | AJ127: 0.1893829018 | AK127: 0.1893829018 | AO127: 106 | AP127: 2033-05-01 | AQ127: 30 | AR127: 3226 | AS127: 1201495.349 | AT127: 8742.892495 | AU127: 18394.25761 | AV127: 342.4261746 | AW127: 450.45 | AX127: 0 | AY127: 27930.02628 | AZ127: 1192752.457 | BA127: 0.1893829018 | BB127: 0.1893829018 | BF127: 106 | BG127: 2033-05-01 | BH127: 30 | BI127: 3226 | BJ127: 1213143.114 | BK127: 4676.832111 | BL127: 18572.57871 | BM127: 345.7457874 | BN127: 450.45 | BO127: 0 | BP127: 24045.60661 | BQ127: 1208466.282 | BR127: 0.1893829018 | BS127: 0.1893829018 | BW127: 106 | BX127: 2033-05-01 | BY127: 30 | BZ127: 3226 | CA127: 1471316.714 | CB127: 3518.215872 | CC127: 22525.07983 | CD127: 419.3252635 | CE127: 450.45 | CF127: 0 | CG127: 26913.07096 | CH127: 1467798.498 | CI127: 0.1893829018 | CJ127: 0.1893829018 | CN127: 106 | CO127: 2033-05-01 | CP127: 30 | CQ127: 3226 | CR127: 1482540.019 | CS127: -399.7892123 | CT127: 22696.90268 | CU127: 422.5239054 | CV127: 450.45 | CW127: 0 | CX127: 23170.08738 | CY127: 1482939.808 | CZ127: 0.1893829018 | DA127: 0.1893829018
B128: 107 | C128: 2033-06-01 | D128: 31 | E128: 3257 | F128: 1467798.498 | G128: 2804.198031 | H128: 23226.15422 | I128: 432.2687108 | J128: 450.45 | K128: 0 | L128: 26913.07096 | M128: 1464994.3 | N128: 0.1863787643 | O128: 0.1863787643 | Q128: =IFERROR(IF('Simulación Cliente'!$H$21="Simple",G128+H128+I128+J128+K128,AC128+AD128+AE128+AF128+AG128),"") -> 26913.07096 | R128: 3257 | S128: =IFERROR((1+'Simulación Cliente'!$E$21)^(R128/360),"") -> 5.534643802 | T128: 4862.66 | X128: 107 | Y128: 2033-06-01 | Z128: 31 | AA128: 3257 | AB128: 1482939.808 | AC128: -1182.837798 | AD128: 23465.74733 | AE128: 436.7278477 | AF128: 450.45 | AG128: 0 | AH128: 23170.08738 | AI128: 1484122.646 | AJ128: 0.1863787643 | AK128: 0.1863787643 | AO128: 107 | AP128: 2033-06-01 | AQ128: 31 | AR128: 3257 | AS128: 1192752.457 | AT128: 8254.42915 | AU128: 18873.87986 | AV128: 351.2672669 | AW128: 450.45 | AX128: 0 | AY128: 27930.02628 | AZ128: 1184498.028 | BA128: 0.1863787643 | BB128: 0.1863787643 | BF128: 107 | BG128: 2033-06-01 | BH128: 31 | BI128: 3257 | BJ128: 1208466.282 | BK128: 4116.729274 | BL128: 19122.53233 | BM128: 355.8950103 | BN128: 450.45 | BO128: 0 | BP128: 24045.60661 | BQ128: 1204349.552 | BR128: 0.1863787643 | BS128: 0.1863787643 | BW128: 107 | BX128: 2033-06-01 | BY128: 31 | BZ128: 3257 | CA128: 1467798.498 | CB128: 2804.198031 | CC128: 23226.15422 | CD128: 432.2687108 | CE128: 450.45 | CF128: 0 | CG128: 26913.07096 | CH128: 1464994.3 | CI128: 0.1863787643 | CJ128: 0.1863787643 | CN128: 107 | CO128: 2033-06-01 | CP128: 31 | CQ128: 3257 | CR128: 1482939.808 | CS128: -1182.837798 | CT128: 23465.74733 | CU128: 436.7278477 | CV128: 450.45 | CW128: 0 | CX128: 23170.08738 | CY128: 1484122.646 | CZ128: 0.1863787643 | DA128: 0.1863787643
B129: 108 | C129: 2033-07-01 | D129: 30 | E129: 3287 | F129: 1464994.3 | G129: 3616.810569 | H129: 22428.28702 | I129: 417.5233755 | J129: 450.45 | K129: 0 | L129: 26913.07096 | M129: 1461377.489 | N129: 0.1835169152 | O129: 0.1835169152 | Q129: =IFERROR(IF('Simulación Cliente'!$H$21="Simple",G129+H129+I129+J129+K129,AC129+AD129+AE129+AF129+AG129),"") -> 26913.07096 | R129: 3287 | S129: =IFERROR((1+'Simulación Cliente'!$E$21)^(R129/360),"") -> 5.622561611 | T129: 4786.62 | X129: 108 | Y129: 2033-07-01 | Z129: 30 | AA129: 3287 | AB129: 1484122.646 | AC129: 22745.61793 | AD129: 22721.13186 | AE129: 422.9749541 | AF129: 450.45 | AG129: 0 | AH129: 46340.17475 | AI129: 1461377.028 | AJ129: 0.3670338304 | AK129: 0.1835169152 | AO129: 108 | AP129: 2033-07-01 | AQ129: 30 | AR129: 3287 | AS129: 1184498.028 | AT129: 9007.956726 | AU129: 18134.03761 | AV129: 337.5819379 | AW129: 450.45 | AX129: 0 | AY129: 27930.02628 | AZ129: 1175490.071 | BA129: 0.1835169152 | BB129: 0.1835169152 | BF129: 108 | BG129: 2033-07-01 | BH129: 30 | BI129: 3287 | BJ129: 1204349.552 | BK129: 28859.56966 | BL129: 18437.95394 | BM129: 343.2396224 | BN129: 450.45 | BO129: 0 | BP129: 48091.21322 | BQ129: 1175489.983 | BR129: 0.3670338304 | BS129: 0.1835169152 | BW129: 108 | BX129: 2033-07-01 | BY129: 30 | BZ129: 3287 | CA129: 1464994.3 | CB129: 3616.810569 | CC129: 22428.28702 | CD129: 417.5233755 | CE129: 450.45 | CF129: 0 | CG129: 26913.07096 | CH129: 1461377.489 | CI129: 0.1835169152 | CJ129: 0.1835169152 | CN129: 108 | CO129: 2033-07-01 | CP129: 30 | CQ129: 3287 | CR129: 1484122.646 | CS129: 22745.61793 | CT129: 22721.13186 | CU129: 422.9749541 | CV129: 450.45 | CW129: 0 | CX129: 46340.17475 | CY129: 1461377.028 | CZ129: 0.3670338304 | DA129: 0.1835169152
B130: 109 | C130: 2033-08-01 | D130: 31 | E130: 3318 | F130: 1461377.489 | G130: 2907.693802 | H130: 23124.54945 | I130: 430.3777147 | J130: 450.45 | K130: 0 | L130: 26913.07096 | M130: 1458469.796 | N130: 0.1806058285 | O130: 0.1806058285 | Q130: =IFERROR(IF('Simulación Cliente'!$H$21="Simple",G130+H130+I130+J130+K130,AC130+AD130+AE130+AF130+AG130),"") -> 26913.07096 | R130: 3318 | S130: =IFERROR((1+'Simulación Cliente'!$E$21)^(R130/360),"") -> 5.714877451 | T130: 4709.3 | X130: 109 | Y130: 2033-08-01 | Z130: 31 | AA130: 3318 | AB130: 1461377.028 | AC130: -835.282345 | AD130: 23124.54214 | AE130: 430.3775788 | AF130: 450.45 | AG130: 0 | AH130: 23170.08738 | AI130: 1462212.31 | AJ130: 0.1806058285 | AK130: 0.1806058285 | AO130: 109 | AP130: 2033-08-01 | AQ130: 31 | AR130: 3318 | AS130: 1175490.071 | AT130: 8532.669539 | AU130: 18600.72327 | AV130: 346.1834701 | AW130: 450.45 | AX130: 0 | AY130: 27930.02628 | AZ130: 1166957.402 | BA130: 0.1806058285 | BB130: 0.1806058285 | BF130: 109 | BG130: 2033-08-01 | BH130: 31 | BI130: 3318 | BJ130: 1175489.983 | BK130: 4648.251296 | BL130: 18600.72187 | BM130: 346.1834441 | BN130: 450.45 | BO130: 0 | BP130: 24045.60661 | BQ130: 1170841.731 | BR130: 0.1806058285 | BS130: 0.1806058285 | BW130: 109 | BX130: 2033-08-01 | BY130: 31 | BZ130: 3318 | CA130: 1461377.489 | CB130: 2907.693802 | CC130: 23124.54945 | CD130: 430.3777147 | CE130: 450.45 | CF130: 0 | CG130: 26913.07096 | CH130: 1458469.796 | CI130: 0.1806058285 | CJ130: 0.1806058285 | CN130: 109 | CO130: 2033-08-01 | CP130: 31 | CQ130: 3318 | CR130: 1461377.028 | CS130: -835.282345 | CT130: 23124.54214 | CU130: 430.3775788 | CV130: 450.45 | CW130: 0 | CX130: 23170.08738 | CY130: 1462212.31 | CZ130: 0.1806058285 | DA130: 0.1806058285
B131: 110 | C131: 2033-09-01 | D131: 31 | E131: 3349 | F131: 1458469.796 | G131: 2954.560896 | H131: 23078.53867 | I131: 429.5213948 | J131: 450.45 | K131: 0 | L131: 26913.07096 | M131: 1455515.235 | N131: 0.1777409198 | O131: 0.1777409198 | Q131: =IFERROR(IF('Simulación Cliente'!$H$21="Simple",G131+H131+I131+J131+K131,AC131+AD131+AE131+AF131+AG131),"") -> 26913.07096 | R131: 3349 | S131: =IFERROR((1+'Simulación Cliente'!$E$21)^(R131/360),"") -> 5.808709007 | T131: 4633.23 | X131: 110 | Y131: 2033-09-01 | Z131: 31 | AA131: 3349 | AB131: 1462212.31 | AC131: -848.7456801 | AD131: 23137.75949 | AE131: 430.6235706 | AF131: 450.45 | AG131: 0 | AH131: 23170.08738 | AI131: 1463061.056 | AJ131: 0.1777409198 | AK131: 0.1777409198 | AO131: 110 | AP131: 2033-09-01 | AQ131: 31 | AR131: 3349 | AS131: 1166957.402 | AT131: 8670.201704 | AU131: 18465.70399 | AV131: 343.670587 | AW131: 450.45 | AX131: 0 | AY131: 27930.02628 | AZ131: 1158287.2 | BA131: 0.1777409198 | BB131: 0.1777409198 | BF131: 110 | BG131: 2033-09-01 | BH131: 31 | BI131: 3349 | BJ131: 1170841.731 | BK131: 4723.173226 | BL131: 18527.16886 | BM131: 344.8145276 | BN131: 450.45 | BO131: 0 | BP131: 24045.60661 | BQ131: 1166118.558 | BR131: 0.1777409198 | BS131: 0.1777409198 | BW131: 110 | BX131: 2033-09-01 | BY131: 31 | BZ131: 3349 | CA131: 1458469.796 | CB131: 2954.560896 | CC131: 23078.53867 | CD131: 429.5213948 | CE131: 450.45 | CF131: 0 | CG131: 26913.07096 | CH131: 1455515.235 | CI131: 0.1777409198 | CJ131: 0.1777409198 | CN131: 110 | CO131: 2033-09-01 | CP131: 31 | CQ131: 3349 | CR131: 1462212.31 | CS131: -848.7456801 | CT131: 23137.75949 | CU131: 430.6235706 | CV131: 450.45 | CW131: 0 | CX131: 23170.08738 | CY131: 1463061.056 | CZ131: 0.1777409198 | DA131: 0.1777409198
B132: 111 | C132: 2033-10-01 | D132: 30 | E132: 3379 | F132: 1455515.235 | G132: 3764.631572 | H132: 22283.16755 | I132: 414.8218419 | J132: 450.45 | K132: 0 | L132: 26913.07096 | M132: 1451750.603 | N132: 0.1750117049 | O132: 0.1750117049 | Q132: =IFERROR(IF('Simulación Cliente'!$H$21="Simple",G132+H132+I132+J132+K132,AC132+AD132+AE132+AF132+AG132),"") -> 26913.07096 | R132: 3379 | S132: =IFERROR((1+'Simulación Cliente'!$E$21)^(R132/360),"") -> 5.900980342 | T132: 4560.78 | X132: 111 | Y132: 2033-10-01 | Z132: 30 | AA132: 3379 | AB132: 1463061.056 | AC132: -96.02510002 | AD132: 22398.69008 | AE132: 416.9724009 | AF132: 450.45 | AG132: 0 | AH132: 23170.08738 | AI132: 1463157.081 | AJ132: 0.1750117049 | AK132: 0.1750117049 | AO132: 111 | AP132: 2033-10-01 | AQ132: 30 | AR132: 3379 | AS132: 1158287.2 | AT132: 9416.700709 | AU132: 17732.76372 | AV132: 330.111852 | AW132: 450.45 | AX132: 0 | AY132: 27930.02628 | AZ132: 1148870.499 | BA132: 0.1750117049 | BB132: 0.1750117049 | BF132: 111 | BG132: 2033-10-01 | BH132: 30 | BI132: 3379 | BJ132: 1166118.558 | BK132: 5410.155155 | BL132: 17852.65767 | BM132: 332.3437891 | BN132: 450.45 | BO132: 0 | BP132: 24045.60661 | BQ132: 1160708.403 | BR132: 0.1750117049 | BS132: 0.1750117049 | BW132: 111 | BX132: 2033-10-01 | BY132: 30 | BZ132: 3379 | CA132: 1455515.235 | CB132: 3764.631572 | CC132: 22283.16755 | CD132: 414.8218419 | CE132: 450.45 | CF132: 0 | CG132: 26913.07096 | CH132: 1451750.603 | CI132: 0.1750117049 | CJ132: 0.1750117049 | CN132: 111 | CO132: 2033-10-01 | CP132: 30 | CQ132: 3379 | CR132: 1463061.056 | CS132: -96.02510002 | CT132: 22398.69008 | CU132: 416.9724009 | CV132: 450.45 | CW132: 0 | CX132: 23170.08738 | CY132: 1463157.081 | CZ132: 0.1750117049 | DA132: 0.1750117049
B133: 112 | C133: 2033-11-01 | D133: 31 | E133: 3410 | F133: 1451750.603 | G133: 3062.862885 | H133: 22972.21549 | I133: 427.5425833 | J133: 450.45 | K133: 0 | L133: 26913.07096 | M133: 1448687.74 | N133: 0.1722355345 | O133: 0.1722355345 | Q133: =IFERROR(IF('Simulación Cliente'!$H$21="Simple",G133+H133+I133+J133+K133,AC133+AD133+AE133+AF133+AG133),"") -> 26913.07096 | R133: 3410 | S133: =IFERROR((1+'Simulación Cliente'!$E$21)^(R133/360),"") -> 5.997867489 | T133: 4487.11 | X133: 112 | Y133: 2033-11-01 | Z133: 31 | AA133: 3410 | AB133: 1463157.081 | AC133: -863.9737831 | AD133: 23152.70935 | AE133: 430.9018069 | AF133: 450.45 | AG133: 0 | AH133: 23170.08738 | AI133: 1464021.055 | AJ133: 0.1722355345 | AK133: 0.1722355345 | AO133: 112 | AP133: 2033-11-01 | AQ133: 31 | AR133: 3410 | AS133: 1148870.499 | AT133: 8961.731902 | AU133: 18179.50041 | AV133: 338.343969 | AW133: 450.45 | AX133: 0 | AY133: 27930.02628 | AZ133: 1139908.767 | BA133: 0.1722355345 | BB133: 0.1722355345 | BF133: 112 | BG133: 2033-11-01 | BH133: 31 | BI133: 3410 | BJ133: 1160708.403 | BK133: 4886.505297 | BL133: 18366.82107 | BM133: 341.8302482 | BN133: 450.45 | BO133: 0 | BP133: 24045.60661 | BQ133: 1155821.898 | BR133: 0.1722355345 | BS133: 0.1722355345 | BW133: 112 | BX133: 2033-11-01 | BY133: 31 | BZ133: 3410 | CA133: 1451750.603 | CB133: 3062.862885 | CC133: 22972.21549 | CD133: 427.5425833 | CE133: 450.45 | CF133: 0 | CG133: 26913.07096 | CH133: 1448687.74 | CI133: 0.1722355345 | CJ133: 0.1722355345 | CN133: 112 | CO133: 2033-11-01 | CP133: 31 | CQ133: 3410 | CR133: 1463157.081 | CS133: -863.9737831 | CT133: 23152.70935 | CU133: 430.9018069 | CV133: 450.45 | CW133: 0 | CX133: 23170.08738 | CY133: 1464021.055 | CZ133: 0.1722355345 | DA133: 0.1722355345
B134: 113 | C134: 2033-12-01 | D134: 30 | E134: 3440 | F134: 1448687.74 | G134: 3871.102733 | H134: 22178.64222 | I134: 412.876006 | J134: 450.45 | K134: 0 | L134: 26913.07096 | M134: 1444816.638 | N134: 0.1695908549 | O134: 0.1695908549 | Q134: =IFERROR(IF('Simulación Cliente'!$H$21="Simple",G134+H134+I134+J134+K134,AC134+AD134+AE134+AF134+AG134),"") -> 26913.07096 | R134: 3440 | S134: =IFERROR((1+'Simulación Cliente'!$E$21)^(R134/360),"") -> 6.093143605 | T134: 4416.94 | X134: 113 | Y134: 2033-12-01 | Z134: 30 | AA134: 3440 | AB134: 1464021.055 | AC134: 23059.0916 | AD134: 22413.38715 | AE134: 417.2460006 | AF134: 450.45 | AG134: 0 | AH134: 46340.17475 | AI134: 1440961.963 | AJ134: 0.3391817098 | AK134: 0.1695908549 | AO134: 113 | AP134: 2033-12-01 | AQ134: 30 | AR134: 3440 | AS134: 1139908.767 | AT134: 9703.302635 | AU134: 17451.39964 | AV134: 324.8739987 | AW134: 450.45 | AX134: 0 | AY134: 27930.02628 | AZ134: 1130205.465 | BA134: 0.1695908549 | BB134: 0.1695908549 | BF134: 113 | BG134: 2033-12-01 | BH134: 30 | BI134: 3440 | BJ134: 1155821.898 | BK134: 29616.33273 | BL134: 17695.02125 | BM134: 329.4092409 | BN134: 450.45 | BO134: 0 | BP134: 48091.21322 | BQ134: 1126205.565 | BR134: 0.3391817098 | BS134: 0.1695908549 | BW134: 113 | BX134: 2033-12-01 | BY134: 30 | BZ134: 3440 | CA134: 1448687.74 | CB134: 3871.102733 | CC134: 22178.64222 | CD134: 412.876006 | CE134: 450.45 | CF134: 0 | CG134: 26913.07096 | CH134: 1444816.638 | CI134: 0.1695908549 | CJ134: 0.1695908549 | CN134: 113 | CO134: 2033-12-01 | CP134: 30 | CQ134: 3440 | CR134: 1464021.055 | CS134: 23059.0916 | CT134: 22413.38715 | CU134: 417.2460006 | CV134: 450.45 | CW134: 0 | CX134: 46340.17475 | CY134: 1440961.963 | CZ134: 0.3391817098 | DA134: 0.1695908549
B135: 114 | C135: 2034-01-01 | D135: 31 | E135: 3471 | F135: 1444816.638 | G135: 3174.626654 | H135: 22862.49379 | I135: 425.5005207 | J135: 450.45 | K135: 0 | L135: 26913.07096 | M135: 1441642.011 | N135: 0.1669006741 | O135: 0.1669006741 | Q135: =IFERROR(IF('Simulación Cliente'!$H$21="Simple",G135+H135+I135+J135+K135,AC135+AD135+AE135+AF135+AG135),"") -> 26913.07096 | R135: 3471 | S135: =IFERROR((1+'Simulación Cliente'!$E$21)^(R135/360),"") -> 6.193185847 | T135: 4345.59 | X135: 114 | Y135: 2034-01-01 | Z135: 31 | AA135: 3471 | AB135: 1440961.963 | AC135: -506.2261188 | AD135: 22801.49818 | AE135: 424.3653137 | AF135: 450.45 | AG135: 0 | AH135: 23170.08738 | AI135: 1441468.189 | AJ135: 0.1669006741 | AK135: 0.1669006741 | AO135: 114 | AP135: 2034-01-01 | AQ135: 31 | AR135: 3471 | AS135: 1130205.465 | AT135: 9262.580609 | AU135: 17884.14858 | AV135: 332.8470902 | AW135: 450.45 | AX135: 0 | AY135: 27930.02628 | AZ135: 1120942.884 | BA135: 0.1669006741 | BB135: 0.1669006741 | BF135: 114 | BG135: 2034-01-01 | BH135: 31 | BI135: 3471 | BJ135: 1126205.565 | BK135: 5442.632541 | BL135: 17820.85496 | BM135: 331.6691142 | BN135: 450.45 | BO135: 0 | BP135: 24045.60661 | BQ135: 1120762.933 | BR135: 0.1669006741 | BS135: 0.1669006741 | BW135: 114 | BX135: 2034-01-01 | BY135: 31 | BZ135: 3471 | CA135: 1444816.638 | CB135: 3174.626654 | CC135: 22862.49379 | CD135: 425.5005207 | CE135: 450.45 | CF135: 0 | CG135: 26913.07096 | CH135: 1441642.011 | CI135: 0.1669006741 | CJ135: 0.1669006741 | CN135: 114 | CO135: 2034-01-01 | CP135: 31 | CQ135: 3471 | CR135: 1440961.963 | CS135: -506.2261188 | CT135: 22801.49818 | CU135: 424.3653137 | CV135: 450.45 | CW135: 0 | CX135: 23170.08738 | CY135: 1441468.189 | CZ135: 0.1669006741 | DA135: 0.1669006741
B136: 115 | C136: 2034-02-01 | D136: 31 | E136: 3502 | F136: 1441642.011 | G136: 3225.796252 | H136: 22812.25912 | I136: 424.5655887 | J136: 450.45 | K136: 0 | L136: 26913.07096 | M136: 1438416.215 | N136: 0.1642531671 | O136: 0.1642531671 | Q136: =IFERROR(IF('Simulación Cliente'!$H$21="Simple",G136+H136+I136+J136+K136,AC136+AD136+AE136+AF136+AG136),"") -> 26913.07096 | R136: 3502 | S136: =IFERROR((1+'Simulación Cliente'!$E$21)^(R136/360),"") -> 6.294870664 | T136: 4275.4 | X136: 115 | Y136: 2034-02-01 | Z136: 31 | AA136: 3502 | AB136: 1441468.189 | AC136: -514.3856254 | AD136: 22809.5086 | AE136: 424.514398 | AF136: 450.45 | AG136: 0 | AH136: 23170.08738 | AI136: 1441982.575 | AJ136: 0.1642531671 | AK136: 0.1642531671 | AO136: 115 | AP136: 2034-02-01 | AQ136: 31 | AR136: 3502 | AS136: 1120942.884 | AT136: 9411.877703 | AU136: 17737.57933 | AV136: 330.1192472 | AW136: 450.45 | AX136: 0 | AY136: 27930.02628 | AZ136: 1111531.006 | BA136: 0.1642531671 | BB136: 0.1642531671 | BF136: 115 | BG136: 2034-02-01 | BH136: 31 | BI136: 3502 | BJ136: 1120762.933 | BK136: 5530.358549 | BL136: 17734.73181 | BM136: 330.0662513 | BN136: 450.45 | BO136: 0 | BP136: 24045.60661 | BQ136: 1115232.574 | BR136: 0.1642531671 | BS136: 0.1642531671 | BW136: 115 | BX136: 2034-02-01 | BY136: 31 | BZ136: 3502 | CA136: 1441642.011 | CB136: 3225.796252 | CC136: 22812.25912 | CD136: 424.5655887 | CE136: 450.45 | CF136: 0 | CG136: 26913.07096 | CH136: 1438416.215 | CI136: 0.1642531671 | CJ136: 0.1642531671 | CN136: 115 | CO136: 2034-02-01 | CP136: 31 | CQ136: 3502 | CR136: 1441468.189 | CS136: -514.3856254 | CT136: 22809.5086 | CU136: 424.514398 | CV136: 450.45 | CW136: 0 | CX136: 23170.08738 | CY136: 1441982.575 | CZ136: 0.1642531671 | DA136: 0.1642531671
B137: 116 | C137: 2034-03-01 | D137: 28 | E137: 3530 | F137: 1438416.215 | G137: 5537.14001 | H137: 20542.86587 | I137: 382.6150786 | J137: 450.45 | K137: 0 | L137: 26913.07096 | M137: 1432879.075 | N137: 0.1618979861 | O137: 0.1618979861 | Q137: =IFERROR(IF('Simulación Cliente'!$H$21="Simple",G137+H137+I137+J137+K137,AC137+AD137+AE137+AF137+AG137),"") -> 26913.07096 | R137: 3530 | S137: =IFERROR((1+'Simulación Cliente'!$E$21)^(R137/360),"") -> 6.388149268 | T137: 4212.97 | X137: 116 | Y137: 2034-03-01 | Z137: 28 | AA137: 3530 | AB137: 1441982.575 | AC137: 1742.274497 | AD137: 20593.79916 | AE137: 383.5637214 | AF137: 450.45 | AG137: 0 | AH137: 23170.08738 | AI137: 1440240.3 | AJ137: 0.1618979861 | AK137: 0.1618979861 | AO137: 116 | AP137: 2034-03-01 | AQ137: 28 | AR137: 3530 | AS137: 1111531.006 | AT137: 11309.48541 | AU137: 15874.42643 | AV137: 295.6644391 | AW137: 450.45 | AX137: 0 | AY137: 27930.02628 | AZ137: 1100221.521 | BA137: 0.1618979861 | BB137: 0.1618979861 | BF137: 116 | BG137: 2034-03-01 | BH137: 28 | BI137: 3530 | BJ137: 1115232.574 | BK137: 7371.216874 | BL137: 15927.29069 | BM137: 296.6490468 | BN137: 450.45 | BO137: 0 | BP137: 24045.60661 | BQ137: 1107861.357 | BR137: 0.1618979861 | BS137: 0.1618979861 | BW137: 116 | BX137: 2034-03-01 | BY137: 28 | BZ137: 3530 | CA137: 1438416.215 | CB137: 5537.14001 | CC137: 20542.86587 | CD137: 382.6150786 | CE137: 450.45 | CF137: 0 | CG137: 26913.07096 | CH137: 1432879.075 | CI137: 0.1618979861 | CJ137: 0.1618979861 | CN137: 116 | CO137: 2034-03-01 | CP137: 28 | CQ137: 3530 | CR137: 1441982.575 | CS137: 1742.274497 | CT137: 20593.79916 | CU137: 383.5637214 | CV137: 450.45 | CW137: 0 | CX137: 23170.08738 | CY137: 1440240.3 | CZ137: 0.1618979861 | DA137: 0.1618979861
B138: 117 | C138: 2034-04-01 | D138: 31 | E138: 3561 | F138: 1432879.075 | G138: 3367.039926 | H138: 22673.59615 | I138: 421.9848917 | J138: 450.45 | K138: 0 | L138: 26913.07096 | M138: 1429512.035 | N138: 0.1593298355 | O138: 0.1593298355 | Q138: =IFERROR(IF('Simulación Cliente'!$H$21="Simple",G138+H138+I138+J138+K138,AC138+AD138+AE138+AF138+AG138),"") -> 26913.07096 | R138: 3561 | S138: =IFERROR((1+'Simulación Cliente'!$E$21)^(R138/360),"") -> 6.493035155 | T138: 4144.91 | X138: 117 | Y138: 2034-04-01 | Z138: 31 | AA138: 3561 | AB138: 1440240.3 | AC138: -494.5941389 | AD138: 22790.07873 | AE138: 424.152783 | AF138: 450.45 | AG138: 0 | AH138: 23170.08738 | AI138: 1440734.895 | AJ138: 0.1593298355 | AK138: 0.1593298355 | AO138: 117 | AP138: 2034-04-01 | AQ138: 31 | AR138: 3561 | AS138: 1100221.521 | AT138: 9745.87094 | AU138: 17409.68856 | AV138: 324.0167768 | AW138: 450.45 | AX138: 0 | AY138: 27930.02628 | AZ138: 1090475.65 | BA138: 0.1593298355 | BB138: 0.1593298355 | BF138: 117 | BG138: 2034-04-01 | BH138: 31 | BI138: 3561 | BJ138: 1107861.357 | BK138: 5738.310068 | BL138: 17530.57982 | BM138: 326.2667193 | BN138: 450.45 | BO138: 0 | BP138: 24045.60661 | BQ138: 1102123.047 | BR138: 0.1593298355 | BS138: 0.1593298355 | BW138: 117 | BX138: 2034-04-01 | BY138: 31 | BZ138: 3561 | CA138: 1432879.075 | CB138: 3367.039926 | CC138: 22673.59615 | CD138: 421.9848917 | CE138: 450.45 | CF138: 0 | CG138: 26913.07096 | CH138: 1429512.035 | CI138: 0.1593298355 | CJ138: 0.1593298355 | CN138: 117 | CO138: 2034-04-01 | CP138: 31 | CQ138: 3561 | CR138: 1440240.3 | CS138: -494.5941389 | CT138: 22790.07873 | CU138: 424.152783 | CV138: 450.45 | CW138: 0 | CX138: 23170.08738 | CY138: 1440734.895 | CZ138: 0.1593298355 | DA138: 0.1593298355
B139: 118 | C139: 2034-05-01 | D139: 30 | E139: 3591 | F139: 1429512.035 | G139: 4170.137708 | H139: 21885.07232 | I139: 407.4109299 | J139: 450.45 | K139: 0 | L139: 26913.07096 | M139: 1425341.897 | N139: 0.1568833232 | O139: 0.1568833232 | Q139: =IFERROR(IF('Simulación Cliente'!$H$21="Simple",G139+H139+I139+J139+K139,AC139+AD139+AE139+AF139+AG139),"") -> 26913.07096 | R139: 3591 | S139: =IFERROR((1+'Simulación Cliente'!$E$21)^(R139/360),"") -> 6.59617701 | T139: 4080.1 | X139: 118 | Y139: 2034-05-01 | Z139: 30 | AA139: 3591 | AB139: 1440734.895 | AC139: 252.1395643 | AD139: 22056.88837 | AE139: 410.609445 | AF139: 450.45 | AG139: 0 | AH139: 23170.08738 | AI139: 1440482.755 | AJ139: 0.1568833232 | AK139: 0.1568833232 | AO139: 118 | AP139: 2034-05-01 | AQ139: 30 | AR139: 3591 | AS139: 1090475.65 | AT139: 10474.18592 | AU139: 16694.60479 | AV139: 310.7855602 | AW139: 450.45 | AX139: 0 | AY139: 27930.02628 | AZ139: 1080001.464 | BA139: 0.1568833232 | BB139: 0.1568833232 | BF139: 118 | BG139: 2034-05-01 | BH139: 30 | BI139: 3591 | BJ139: 1102123.047 | BK139: 6408.131267 | BL139: 16872.92028 | BM139: 314.1050684 | BN139: 450.45 | BO139: 0 | BP139: 24045.60661 | BQ139: 1095714.916 | BR139: 0.1568833232 | BS139: 0.1568833232 | BW139: 118 | BX139: 2034-05-01 | BY139: 30 | BZ139: 3591 | CA139: 1429512.035 | CB139: 4170.137708 | CC139: 21885.07232 | CD139: 407.4109299 | CE139: 450.45 | CF139: 0 | CG139: 26913.07096 | CH139: 1425341.897 | CI139: 0.1568833232 | CJ139: 0.1568833232 | CN139: 118 | CO139: 2034-05-01 | CP139: 30 | CQ139: 3591 | CR139: 1440734.895 | CS139: 252.1395643 | CT139: 22056.88837 | CU139: 410.609445 | CV139: 450.45 | CW139: 0 | CX139: 23170.08738 | CY139: 1440482.755 | CZ139: 0.1568833232 | DA139: 0.1568833232
B140: 119 | C140: 2034-06-01 | D140: 31 | E140: 3622 | F140: 1425341.897 | G140: 3488.526449 | H140: 22554.32933 | I140: 419.7651824 | J140: 450.45 | K140: 0 | L140: 26913.07096 | M140: 1421853.371 | N140: 0.1543947191 | O140: 0.1543947191 | Q140: =IFERROR(IF('Simulación Cliente'!$H$21="Simple",G140+H140+I140+J140+K140,AC140+AD140+AE140+AF140+AG140),"") -> 26913.07096 | R140: 3622 | S140: =IFERROR((1+'Simulación Cliente'!$E$21)^(R140/360),"") -> 6.704478467 | T140: 4014.19 | X140: 119 | Y140: 2034-06-01 | Z140: 31 | AA140: 3622 | AB140: 1440482.755 | AC140: -498.5020955 | AD140: 22793.91529 | AE140: 424.2241862 | AF140: 450.45 | AG140: 0 | AH140: 23170.08738 | AI140: 1440981.257 | AJ140: 0.1543947191 | AK140: 0.1543947191 | AO140: 119 | AP140: 2034-06-01 | AQ140: 31 | AR140: 3622 | AS140: 1080001.464 | AT140: 10071.78397 | AU140: 17089.73036 | AV140: 318.0619418 | AW140: 450.45 | AX140: 0 | AY140: 27930.02628 | AZ140: 1069929.68 | BA140: 0.1543947191 | BB140: 0.1543947191 | BF140: 119 | BG140: 2034-06-01 | BH140: 31 | BI140: 3622 | BJ140: 1095714.916 | BK140: 5934.090107 | BL140: 17338.37693 | BM140: 322.6895753 | BN140: 450.45 | BO140: 0 | BP140: 24045.60661 | BQ140: 1089780.826 | BR140: 0.1543947191 | BS140: 0.1543947191 | BW140: 119 | BX140: 2034-06-01 | BY140: 31 | BZ140: 3622 | CA140: 1425341.897 | CB140: 3488.526449 | CC140: 22554.32933 | CD140: 419.7651824 | CE140: 450.45 | CF140: 0 | CG140: 26913.07096 | CH140: 1421853.371 | CI140: 0.1543947191 | CJ140: 0.1543947191 | CN140: 119 | CO140: 2034-06-01 | CP140: 31 | CQ140: 3622 | CR140: 1440482.755 | CS140: -498.5020955 | CT140: 22793.91529 | CU140: 424.2241862 | CV140: 450.45 | CW140: 0 | CX140: 23170.08738 | CY140: 1440981.257 | CZ140: 0.1543947191 | DA140: 0.1543947191
B141: 120 | C141: 2034-07-01 | D141: 30 | E141: 3652 | F141: 1421853.371 | G141: 4289.57052 | H141: 21767.82223 | I141: 405.2282106 | J141: 450.45 | K141: 0 | L141: 26913.07096 | M141: 1417563.8 | N141: 0.1520239855 | O141: 0.1520239855 | Q141: =IFERROR(IF('Simulación Cliente'!$H$21="Simple",G141+H141+I141+J141+K141,AC141+AD141+AE141+AF141+AG141),"") -> 26913.07096 | R141: 3652 | S141: =IFERROR((1+'Simulación Cliente'!$E$21)^(R141/360),"") -> 6.810979098 | T141: 3951.42 | X141: 120 | Y141: 2034-07-01 | Z141: 30 | AA141: 3652 | AB141: 1440981.257 | AC141: 23418.38505 | AD141: 22060.66005 | AE141: 410.6796583 | AF141: 450.45 | AG141: 0 | AH141: 46340.17475 | AI141: 1417562.872 | AJ141: 0.304047971 | AK141: 0.1520239855 | AO141: 120 | AP141: 2034-07-01 | AQ141: 30 | AR141: 3652 | AS141: 1069929.68 | AT141: 10794.58945 | AU141: 16380.05687 | AV141: 304.9299588 | AW141: 450.45 | AX141: 0 | AY141: 27930.02628 | AZ141: 1059135.091 | BA141: 0.1520239855 | BB141: 0.1520239855 | BF141: 120 | BG141: 2034-07-01 | BH141: 30 | BI141: 3652 | BJ141: 1089780.826 | BK141: 30646.20829 | BL141: 16683.9674 | BM141: 310.5875353 | BN141: 450.45 | BO141: 0 | BP141: 48091.21322 | BQ141: 1059134.617 | BR141: 0.304047971 | BS141: 0.1520239855 | BW141: 120 | BX141: 2034-07-01 | BY141: 30 | BZ141: 3652 | CA141: 1421853.371 | CB141: 4289.57052 | CC141: 21767.82223 | CD141: 405.2282106 | CE141: 450.45 | CF141: 0 | CG141: 26913.07096 | CH141: 1417563.8 | CI141: 0.1520239855 | CJ141: 0.1520239855 | CN141: 120 | CO141: 2034-07-01 | CP141: 30 | CQ141: 3652 | CR141: 1440981.257 | CS141: 23418.38505 | CT141: 22060.66005 | CU141: 410.6796583 | CV141: 450.45 | CW141: 0 | CX141: 46340.17475 | CY141: 1417562.872 | CZ141: 0.304047971 | DA141: 0.1520239855
B142: 121 | C142: 2034-08-01 | D142: 31 | E142: 3683 | F142: 1417563.8 | G142: 3613.896183 | H142: 22431.25026 | I142: 417.4745219 | J142: 450.45 | K142: 0 | L142: 26913.07096 | M142: 1413949.904 | N142: 0.149612464 | O142: 0.149612464 | Q142: =IFERROR(IF('Simulación Cliente'!$H$21="Simple",G142+H142+I142+J142+K142,AC142+AD142+AE142+AF142+AG142),"") -> 26913.07096 | R142: 3683 | S142: =IFERROR((1+'Simulación Cliente'!$E$21)^(R142/360),"") -> 6.922807353 | T142: 3887.59 | X142: 121 | Y142: 2034-08-01 | Z142: 31 | AA142: 3683 | AB142: 1417562.872 | AC142: -129.0724462 | AD142: 22431.23557 | AE142: 417.4742486 | AF142: 450.45 | AG142: 0 | AH142: 23170.08738 | AI142: 1417691.945 | AJ142: 0.149612464 | AK142: 0.149612464 | AO142: 121 | AP142: 2034-08-01 | AQ142: 31 | AR142: 3683 | AS142: 1059135.091 | AT142: 10408.11453 | AU142: 16759.54498 | AV142: 311.9167656 | AW142: 450.45 | AX142: 0 | AY142: 27930.02628 | AZ142: 1048726.976 | BA142: 0.149612464 | BB142: 0.149612464 | BF142: 121 | BG142: 2034-08-01 | BH142: 31 | BI142: 3683 | BJ142: 1059134.617 | BK142: 6523.70249 | BL142: 16759.5375 | BM142: 311.9166263 | BN142: 450.45 | BO142: 0 | BP142: 24045.60661 | BQ142: 1052610.915 | BR142: 0.149612464 | BS142: 0.149612464 | BW142: 121 | BX142: 2034-08-01 | BY142: 31 | BZ142: 3683 | CA142: 1417563.8 | CB142: 3613.896183 | CC142: 22431.25026 | CD142: 417.4745219 | CE142: 450.45 | CF142: 0 | CG142: 26913.07096 | CH142: 1413949.904 | CI142: 0.149612464 | CJ142: 0.149612464 | CN142: 121 | CO142: 2034-08-01 | CP142: 31 | CQ142: 3683 | CR142: 1417562.872 | CS142: -129.0724462 | CT142: 22431.23557 | CU142: 417.4742486 | CV142: 450.45 | CW142: 0 | CX142: 23170.08738 | CY142: 1417691.945 | CZ142: 0.149612464 | DA142: 0.149612464
B143: 122 | C143: 2034-09-01 | D143: 31 | E143: 3714 | F143: 1413949.904 | G143: 3672.146062 | H143: 22374.06468 | I143: 416.4102244 | J143: 450.45 | K143: 0 | L143: 26913.07096 | M143: 1410277.758 | N143: 0.1472391958 | O143: 0.1472391958 | Q143: =IFERROR(IF('Simulación Cliente'!$H$21="Simple",G143+H143+I143+J143+K143,AC143+AD143+AE143+AF143+AG143),"") -> 26913.07096 | R143: 3714 | S143: =IFERROR((1+'Simulación Cliente'!$E$21)^(R143/360),"") -> 7.036471696 | T143: 3824.8 | X143: 122 | Y143: 2034-09-01 | Z143: 31 | AA143: 3714 | AB143: 1417691.945 | AC143: -131.1528752 | AD143: 22433.27799 | AE143: 417.5122607 | AF143: 450.45 | AG143: 0 | AH143: 23170.08738 | AI143: 1417823.097 | AJ143: 0.1472391958 | AK143: 0.1472391958 | AO143: 122 | AP143: 2034-09-01 | AQ143: 31 | AR143: 3714 | AS143: 1048726.976 | AT143: 10575.87569 | AU143: 16594.84903 | AV143: 308.8515614 | AW143: 450.45 | AX143: 0 | AY143: 27930.02628 | AZ143: 1038151.1 | BA143: 0.1472391958 | BB143: 0.1472391958 | BF143: 122 | BG143: 2034-09-01 | BH143: 31 | BI143: 3714 | BJ143: 1052610.915 | BK143: 6628.853512 | BL143: 16656.30771 | BM143: 309.9953868 | BN143: 450.45 | BO143: 0 | BP143: 24045.60661 | BQ143: 1045982.061 | BR143: 0.1472391958 | BS143: 0.1472391958 | BW143: 122 | BX143: 2034-09-01 | BY143: 31 | BZ143: 3714 | CA143: 1413949.904 | CB143: 3672.146062 | CC143: 22374.06468 | CD143: 416.4102244 | CE143: 450.45 | CF143: 0 | CG143: 26913.07096 | CH143: 1410277.758 | CI143: 0.1472391958 | CJ143: 0.1472391958 | CN143: 122 | CO143: 2034-09-01 | CP143: 31 | CQ143: 3714 | CR143: 1417691.945 | CS143: -131.1528752 | CT143: 22433.27799 | CU143: 417.5122607 | CV143: 450.45 | CW143: 0 | CX143: 23170.08738 | CY143: 1417823.097 | CZ143: 0.1472391958 | DA143: 0.1472391958
B144: 123 | C144: 2034-10-01 | D144: 30 | E144: 3744 | F144: 1410277.758 | G144: 4470.086072 | H144: 21590.60573 | I144: 401.929161 | J144: 450.45 | K144: 0 | L144: 26913.07096 | M144: 1405807.672 | N144: 0.1449783355 | O144: 0.1449783355 | Q144: =IFERROR(IF('Simulación Cliente'!$H$21="Simple",G144+H144+I144+J144+K144,AC144+AD144+AE144+AF144+AG144),"") -> 26913.07096 | R144: 3744 | S144: =IFERROR((1+'Simulación Cliente'!$E$21)^(R144/360),"") -> 7.148246039 | T144: 3764.99 | X144: 123 | Y144: 2034-10-01 | Z144: 30 | AA144: 3744 | AB144: 1417823.097 | AC144: 609.4369097 | AD144: 21706.12088 | AE144: 404.0795828 | AF144: 450.45 | AG144: 0 | AH144: 23170.08738 | AI144: 1417213.66 | AJ144: 0.1449783355 | AK144: 0.1449783355 | AO144: 123 | AP144: 2034-10-01 | AQ144: 30 | AR144: 3744 | AS144: 1038151.1 | AT144: 11290.15957 | AU144: 15893.54365 | AV144: 295.8730636 | AW144: 450.45 | AX144: 0 | AY144: 27930.02628 | AZ144: 1026860.941 | BA144: 0.1449783355 | BB144: 0.1449783355 | BF144: 123 | BG144: 2034-10-01 | BH144: 30 | BI144: 3744 | BJ144: 1045982.061 | BK144: 7283.620212 | BL144: 16013.43151 | BM144: 298.1048875 | BN144: 450.45 | BO144: 0 | BP144: 24045.60661 | BQ144: 1038698.441 | BR144: 0.1449783355 | BS144: 0.1449783355 | BW144: 123 | BX144: 2034-10-01 | BY144: 30 | BZ144: 3744 | CA144: 1410277.758 | CB144: 4470.086072 | CC144: 21590.60573 | CD144: 401.929161 | CE144: 450.45 | CF144: 0 | CG144: 26913.07096 | CH144: 1405807.672 | CI144: 0.1449783355 | CJ144: 0.1449783355 | CN144: 123 | CO144: 2034-10-01 | CP144: 30 | CQ144: 3744 | CR144: 1417823.097 | CS144: 609.4369097 | CT144: 21706.12088 | CU144: 404.0795828 | CV144: 450.45 | CW144: 0 | CX144: 23170.08738 | CY144: 1417213.66 | CZ144: 0.1449783355 | DA144: 0.1449783355
B145: 124 | C145: 2034-11-01 | D145: 31 | E145: 3775 | F145: 1405807.672 | G145: 3803.385038 | H145: 22245.2236 | I145: 414.0123257 | J145: 450.45 | K145: 0 | L145: 26913.07096 | M145: 1402004.287 | N145: 0.1426785774 | O145: 0.1426785774 | Q145: =IFERROR(IF('Simulación Cliente'!$H$21="Simple",G145+H145+I145+J145+K145,AC145+AD145+AE145+AF145+AG145),"") -> 26913.07096 | R145: 3775 | S145: =IFERROR((1+'Simulación Cliente'!$E$21)^(R145/360),"") -> 7.26561182 | T145: 3704.17 | X145: 124 | Y145: 2034-11-01 | Z145: 31 | AA145: 3775 | AB145: 1417213.66 | AC145: -123.4437475 | AD145: 22425.70972 | AE145: 417.3714053 | AF145: 450.45 | AG145: 0 | AH145: 23170.08738 | AI145: 1417337.104 | AJ145: 0.1426785774 | AK145: 0.1426785774 | AO145: 124 | AP145: 2034-11-01 | AQ145: 31 | AR145: 3775 | AS145: 1026860.941 | AT145: 10928.3191 | AU145: 16248.8452 | AV145: 302.4119834 | AW145: 450.45 | AX145: 0 | AY145: 27930.02628 | AZ145: 1015932.622 | BA145: 0.1426785774 | BB145: 0.1426785774 | BF145: 124 | BG145: 2034-11-01 | BH145: 31 | BI145: 3775 | BJ145: 1038698.441 | BK145: 6853.098998 | BL145: 16436.15947 | BM145: 305.8981438 | BN145: 450.45 | BO145: 0 | BP145: 24045.60661 | BQ145: 1031845.342 | BR145: 0.1426785774 | BS145: 0.1426785774 | BW145: 124 | BX145: 2034-11-01 | BY145: 31 | BZ145: 3775 | CA145: 1405807.672 | CB145: 3803.385038 | CC145: 22245.2236 | CD145: 414.0123257 | CE145: 450.45 | CF145: 0 | CG145: 26913.07096 | CH145: 1402004.287 | CI145: 0.1426785774 | CJ145: 0.1426785774 | CN145: 124 | CO145: 2034-11-01 | CP145: 31 | CQ145: 3775 | CR145: 1417213.66 | CS145: -123.4437475 | CT145: 22425.70972 | CU145: 417.3714053 | CV145: 450.45 | CW145: 0 | CX145: 23170.08738 | CY145: 1417337.104 | CZ145: 0.1426785774 | DA145: 0.1426785774
B146: 125 | C146: 2034-12-01 | D146: 30 | E146: 3805 | F146: 1402004.287 | G146: 4599.106473 | H146: 21463.94327 | I146: 399.5712217 | J146: 450.45 | K146: 0 | L146: 26913.07096 | M146: 1397405.18 | N146: 0.1404877454 | O146: 0.1404877454 | Q146: =IFERROR(IF('Simulación Cliente'!$H$21="Simple",G146+H146+I146+J146+K146,AC146+AD146+AE146+AF146+AG146),"") -> 26913.07096 | R146: 3805 | S146: =IFERROR((1+'Simulación Cliente'!$E$21)^(R146/360),"") -> 7.381026053 | T146: 3646.25 | X146: 125 | Y146: 2034-12-01 | Z146: 30 | AA146: 3805 | AB146: 1417337.104 | AC146: 23787.10309 | AD146: 21698.68059 | AE146: 403.9410747 | AF146: 450.45 | AG146: 0 | AH146: 46340.17475 | AI146: 1393550.001 | AJ146: 0.2809754909 | AK146: 0.1404877454 | AO146: 125 | AP146: 2034-12-01 | AQ146: 30 | AR146: 3805 | AS146: 1015932.622 | AT146: 11636.64498 | AU146: 15553.3905 | AV146: 289.5407972 | AW146: 450.45 | AX146: 0 | AY146: 27930.02628 | AZ146: 1004295.977 | BA146: 0.1404877454 | BB146: 0.1404877454 | BF146: 125 | BG146: 2034-12-01 | BH146: 30 | BI146: 3805 | BJ146: 1031845.342 | BK146: 31549.68147 | BL146: 15797.00583 | BM146: 294.0759225 | BN146: 450.45 | BO146: 0 | BP146: 48091.21322 | BQ146: 1000295.661 | BR146: 0.2809754909 | BS146: 0.1404877454 | BW146: 125 | BX146: 2034-12-01 | BY146: 30 | BZ146: 3805 | CA146: 1402004.287 | CB146: 4599.106473 | CC146: 21463.94327 | CD146: 399.5712217 | CE146: 450.45 | CF146: 0 | CG146: 26913.07096 | CH146: 1397405.18 | CI146: 0.1404877454 | CJ146: 0.1404877454 | CN146: 125 | CO146: 2034-12-01 | CP146: 30 | CQ146: 3805 | CR146: 1417337.104 | CS146: 23787.10309 | CT146: 21698.68059 | CU146: 403.9410747 | CV146: 450.45 | CW146: 0 | CX146: 46340.17475 | CY146: 1393550.001 | CZ146: 0.2809754909 | DA146: 0.1404877454
B147: 126 | C147: 2035-01-01 | D147: 31 | E147: 3836 | F147: 1397405.18 | G147: 3938.818953 | H147: 22112.26423 | I147: 411.5377802 | J147: 450.45 | K147: 0 | L147: 26913.07096 | M147: 1393466.361 | N147: 0.1382592206 | O147: 0.1382592206 | Q147: =IFERROR(IF('Simulación Cliente'!$H$21="Simple",G147+H147+I147+J147+K147,AC147+AD147+AE147+AF147+AG147),"") -> 26913.07096 | R147: 3836 | S147: =IFERROR((1+'Simulación Cliente'!$E$21)^(R147/360),"") -> 7.502213808 | T147: 3587.35 | X147: 126 | Y147: 2035-01-01 | Z147: 31 | AA147: 3836 | AB147: 1393550.001 | AC147: 257.9743161 | AD147: 22051.26064 | AE147: 410.4024246 | AF147: 450.45 | AG147: 0 | AH147: 23170.08738 | AI147: 1393292.027 | AJ147: 0.1382592206 | AK147: 0.1382592206 | AO147: 126 | AP147: 2035-01-01 | AQ147: 31 | AR147: 3836 | AS147: 1004295.977 | AT147: 11292.02806 | AU147: 15891.78165 | AV147: 295.7665699 | AW147: 450.45 | AX147: 0 | AY147: 27930.02628 | AZ147: 993003.9487 | BA147: 0.1382592206 | BB147: 0.1382592206 | BF147: 126 | BG147: 2035-01-01 | BH147: 31 | BI147: 3836 | BJ147: 1000295.661 | BK147: 7472.086702 | BL147: 15828.48144 | BM147: 294.5884712 | BN147: 450.45 | BO147: 0 | BP147: 24045.60661 | BQ147: 992823.574 | BR147: 0.1382592206 | BS147: 0.1382592206 | BW147: 126 | BX147: 2035-01-01 | BY147: 31 | BZ147: 3836 | CA147: 1397405.18 | CB147: 3938.818953 | CC147: 22112.26423 | CD147: 411.5377802 | CE147: 450.45 | CF147: 0 | CG147: 26913.07096 | CH147: 1393466.361 | CI147: 0.1382592206 | CJ147: 0.1382592206 | CN147: 126 | CO147: 2035-01-01 | CP147: 31 | CQ147: 3836 | CR147: 1393550.001 | CS147: 257.9743161 | CT147: 22051.26064 | CU147: 410.4024246 | CV147: 450.45 | CW147: 0 | CX147: 23170.08738 | CY147: 1393292.027 | CZ147: 0.1382592206 | DA147: 0.1382592206
B148: 127 | C148: 2035-02-01 | D148: 31 | E148: 3867 | F148: 1393466.361 | G148: 4002.306036 | H148: 22049.93713 | I148: 410.3777925 | J148: 450.45 | K148: 0 | L148: 26913.07096 | M148: 1389464.055 | N148: 0.1360660464 | O148: 0.1360660464 | Q148: =IFERROR(IF('Simulación Cliente'!$H$21="Simple",G148+H148+I148+J148+K148,AC148+AD148+AE148+AF148+AG148),"") -> 26913.07096 | R148: 3867 | S148: =IFERROR((1+'Simulación Cliente'!$E$21)^(R148/360),"") -> 7.625391322 | T148: 3529.4 | X148: 127 | Y148: 2035-02-01 | Z148: 31 | AA148: 3867 | AB148: 1393292.027 | AC148: 262.1324246 | AD148: 22047.1785 | AE148: 410.3264508 | AF148: 450.45 | AG148: 0 | AH148: 23170.08738 | AI148: 1393029.894 | AJ148: 0.1360660464 | AK148: 0.1360660464 | AO148: 127 | AP148: 2035-02-01 | AQ148: 31 | AR148: 3867 | AS148: 993003.9487 | AT148: 11474.0364 | AU148: 15713.09882 | AV148: 292.4410518 | AW148: 450.45 | AX148: 0 | AY148: 27930.02628 | AZ148: 981529.9123 | BA148: 0.1360660464 | BB148: 0.1360660464 | BF148: 127 | BG148: 2035-02-01 | BH148: 31 | BI148: 3867 | BJ148: 992823.574 | BK148: 7592.52407 | BL148: 15710.24461 | BM148: 292.3879312 | BN148: 450.45 | BO148: 0 | BP148: 24045.60661 | BQ148: 985231.0499 | BR148: 0.1360660464 | BS148: 0.1360660464 | BW148: 127 | BX148: 2035-02-01 | BY148: 31 | BZ148: 3867 | CA148: 1393466.361 | CB148: 4002.306036 | CC148: 22049.93713 | CD148: 410.3777925 | CE148: 450.45 | CF148: 0 | CG148: 26913.07096 | CH148: 1389464.055 | CI148: 0.1360660464 | CJ148: 0.1360660464 | CN148: 127 | CO148: 2035-02-01 | CP148: 31 | CQ148: 3867 | CR148: 1393292.027 | CS148: 262.1324246 | CT148: 22047.1785 | CU148: 410.3264508 | CV148: 450.45 | CW148: 0 | CX148: 23170.08738 | CY148: 1393029.894 | CZ148: 0.1360660464 | DA148: 0.1360660464
B149: 128 | C149: 2035-03-01 | D149: 28 | E149: 3895 | F149: 1389464.055 | G149: 6249.27567 | H149: 19843.75136 | I149: 369.5939279 | J149: 450.45 | K149: 0 | L149: 26913.07096 | M149: 1383214.78 | N149: 0.1341150328 | O149: 0.1341150328 | Q149: =IFERROR(IF('Simulación Cliente'!$H$21="Simple",G149+H149+I149+J149+K149,AC149+AD149+AE149+AF149+AG149),"") -> 26913.07096 | R149: 3895 | S149: =IFERROR((1+'Simulación Cliente'!$E$21)^(R149/360),"") -> 7.738385837 | T149: 3477.87 | X149: 128 | Y149: 2035-03-01 | Z149: 28 | AA149: 3895 | AB149: 1393029.894 | AC149: 2454.417738 | AD149: 19894.67721 | AE149: 370.5424321 | AF149: 450.45 | AG149: 0 | AH149: 23170.08738 | AI149: 1390575.477 | AJ149: 0.1341150328 | AK149: 0.1341150328 | AO149: 128 | AP149: 2035-03-01 | AQ149: 28 | AR149: 3895 | AS149: 981529.9123 | AT149: 13200.68726 | AU149: 14017.80454 | AV149: 261.0844766 | AW149: 450.45 | AX149: 0 | AY149: 27930.02628 | AZ149: 968329.225 | BA149: 0.1341150328 | BB149: 0.1341150328 | BF149: 128 | BG149: 2035-03-01 | BH149: 28 | BI149: 3895 | BJ149: 985231.0499 | BK149: 9262.424987 | BL149: 14070.66265 | BM149: 262.0689698 | BN149: 450.45 | BO149: 0 | BP149: 24045.60661 | BQ149: 975968.6249 | BR149: 0.1341150328 | BS149: 0.1341150328 | BW149: 128 | BX149: 2035-03-01 | BY149: 28 | BZ149: 3895 | CA149: 1389464.055 | CB149: 6249.27567 | CC149: 19843.75136 | CD149: 369.5939279 | CE149: 450.45 | CF149: 0 | CG149: 26913.07096 | CH149: 1383214.78 | CI149: 0.1341150328 | CJ149: 0.1341150328 | CN149: 128 | CO149: 2035-03-01 | CP149: 28 | CQ149: 3895 | CR149: 1393029.894 | CS149: 2454.417738 | CT149: 19894.67721 | CU149: 370.5424321 | CV149: 450.45 | CW149: 0 | CX149: 23170.08738 | CY149: 1390575.477 | CZ149: 0.1341150328 | DA149: 0.1341150328
B150: 129 | C150: 2035-04-01 | D150: 31 | E150: 3926 | F150: 1383214.78 | G150: =IF(B150>C$6,"",L150-K150-J150-I150-H150) -> 4167.54415 | H150: 21887.71813 | I150: =IF(B150>C$6,"",((1+C$12)^(D150/30)-1)*F150) -> 407.3586873 | J150: 450.45 | K150: =IF(B150>C$6,"",C$15) -> 0 | L150: =IF(B150>C$6,"",IF(B150=C$6,F150+H150+I150+J150+K150,IF(AND(C$9=2,MONTH(C150)=7),2*C$17,IF(AND(C$10=2,MONTH(C150)=12),2*C$17,C$17)))) -> 26913.07096 | M150: =IF(B150>C$6,"",F150-G150) -> 1379047.235 | N150: 0.1319875968 | O150: 0.1319875968 | Q150: =IFERROR(IF('Simulación Cliente'!$H$21="Simple",G150+H150+I150+J150+K150,AC150+AD150+AE150+AF150+AG150),"") -> 26913.07096 | R150: 3926 | S150: =IFERROR((1+'Simulación Cliente'!$E$21)^(R150/360),"") -> 7.865441019 | T150: 3421.69 | X150: 129 | Y150: 2035-04-01 | Z150: 31 | AA150: 3926 | AB150: 1390575.477 | AC150: 305.9186069 | AD150: 22004.19235 | AE150: =IF(X150>Y$6,"",((1+Y$12)^(Z150/30)-1)*AB150) -> 409.5264229 | AF150: 450.45 | AG150: =IF(X150>Y$6,"",Y$15) -> 0 | AH150: =IF(X150>Y$6,"",IF(X150=Y$6,AB150+AD150+AE150+AF150+AG150,IF(AND(Y$9=2,MONTH(Y150)=7),2*Y$17,IF(AND(Y$10=2,MONTH(Y150)=12),2*Y$17,Y$17)))) -> 23170.08738 | AI150: =IF(X150>Y$6,"",AB150-AC150) -> 1390269.558 | AJ150: 0.1319875968 | AK150: 0.1319875968 | AO150: 129 | AP150: 2035-04-01 | AQ150: 31 | AR150: 3926 | AS150: 968329.225 | AT150: 11871.75111 | AU150: 15322.65086 | AV150: =IF(AO150>AP$6,"",((1+AP$12)^(AQ150/30)-1)*AS150) -> 285.1743112 | AW150: 450.45 | AX150: =IF(AO150>AP$6,"",AP$15) -> 0 | AY150: =IF(AO150>AP$6,"",IF(AO150=AP$6,AS150+AU150+AV150+AW150+AX150,IF(AND(AP$9=2,MONTH(AP150)=7),2*AP$17,IF(AND(AP$10=2,MONTH(AP150)=12),2*AP$17,AP$17)))) -> 27930.02628 | AZ150: =IF(AO150>AP$6,"",AS150-AT150) -> 956457.4739 | BA150: 0.1319875968 | BB150: 0.1319875968 | BF150: 129 | BG150: 2035-04-01 | BH150: 31 | BI150: 3926 | BJ150: 975968.6249 | BK150: 7864.197268 | BL150: 15443.53522 | BM150: =IF(BF150>BG$6,"",((1+BG$12)^(BH150/30)-1)*BJ150) -> 287.4241252 | BN150: 450.45 | BO150: =IF(BF150>BG$6,"",BG$15) -> 0 | BP150: =IF(BF150>BG$6,"",IF(BF150=BG$6,BJ150+BL150+BM150+BN150+BO150,IF(AND(BG$9=2,MONTH(BG150)=7),2*BG$17,IF(AND(BG$10=2,MONTH(BG150)=12),2*BG$17,BG$17)))) -> 24045.60661 | BQ150: =IF(BF150>BG$6,"",BJ150-BK150) -> 968104.4277 | BR150: 0.1319875968 | BS150: 0.1319875968 | BW150: 129 | BX150: 2035-04-01 | BY150: 31 | BZ150: 3926 | CA150: 1383214.78 | CB150: 4167.54415 | CC150: 21887.71813 | CD150: =IF(BW150>BX$6,"",((1+BX$12)^(BY150/30)-1)*CA150) -> 407.3586873 | CE150: 450.45 | CF150: =IF(BW150>BX$6,"",BX$15) -> 0 | CG150: =IF(BW150>BX$6,"",IF(BW150=BX$6,CA150+CC150+CD150+CE150+CF150,IF(AND(BX$9=2,MONTH(BX150)=7),2*BX$17,IF(AND(BX$10=2,MONTH(BX150)=12),2*BX$17,BX$17)))) -> 26913.07096 | CH150: =IF(BW150>BX$6,"",CA150-CB150) -> 1379047.235 | CI150: 0.1319875968 | CJ150: 0.1319875968 | CN150: 129 | CO150: 2035-04-01 | CP150: 31 | CQ150: 3926 | CR150: 1390575.477 | CS150: 305.9186069 | CT150: 22004.19235 | CU150: =IF(CN150>CO$6,"",((1+CO$12)^(CP150/30)-1)*CR150) -> 409.5264229 | CV150: 450.45 | CW150: =IF(CN150>CO$6,"",CO$15) -> 0 | CX150: =IF(CN150>CO$6,"",IF(CN150=CO$6,CR150+CT150+CU150+CV150+CW150,IF(AND(CO$9=2,MONTH(CO150)=7),2*CO$17,IF(AND(CO$10=2,MONTH(CO150)=12),2*CO$17,CO$17)))) -> 23170.08738 | CY150: =IF(CN150>CO$6,"",CR150-CS150) -> 1390269.558 | CZ150: 0.1319875968 | DA150: 0.1319875968
B151: 130 | C151: =IF(B151>C$6,"",EDATE(C$22,B150)) -> 2035-05-01 | D151: =IF(B151>C$6,"",C151-C150) -> 30 | E151: =IFERROR(D151+E150,"") -> 3956 | F151: =IF(B151>C$6,"",M150) -> 1379047.235 | G151: 4957.109532 | H151: 21112.48297 | I151: 393.0284621 | J151: =IF(B151>C$6,"",D$4*C$14) -> 450.45 | K151: 0 | L151: 26913.07096 | M151: 1374090.126 | N151: =IFERROR(IF(AND(MONTH(C151)=7,C$9=2),2/(1+C$13)^(E151/360),IF(AND(MONTH(C151)=12,C$10=2),2/(1+C$13)^(E151/360),1/(1+C$13)^(E151/360))),"") -> 0.129960925 | O151: =IFERROR(1/(1+C$13)^(E151/360),"") -> 0.129960925 | Q151: =IFERROR(IF('Simulación Cliente'!$H$21="Simple",G151+H151+I151+J151+K151,AC151+AD151+AE151+AF151+AG151),"") -> 26913.07096 | R151: =E151 -> 3956 | S151: =IFERROR((1+'Simulación Cliente'!$E$21)^(R151/360),"") -> 7.990383538 | T151: =IFERROR(ROUND(Q151/S151,2),"") -> 3368.18 | X151: 130 | Y151: =IF(X151>Y$6,"",EDATE(Y$22,X150)) -> 2035-05-01 | Z151: 30 | AA151: =IFERROR(Z151+AA150,"") -> 3956 | AB151: =IF(X151>Y$6,"",AI150) -> 1390269.558 | AC151: 1039.119766 | AD151: 21284.29079 | AE151: 396.226824 | AF151: =IF(X151>Y$6,"",Z$4*Y$14) -> 450.45 | AG151: 0 | AH151: 23170.08738 | AI151: 1389230.438 | AJ151: =IFERROR(IF(AND(MONTH(Y151)=7,Y$9=2),2/(1+Y$13)^(AA151/360),IF(AND(MONTH(Y151)=12,Y$10=2),2/(1+Y$13)^(AA151/360),1/(1+Y$13)^(AA151/360))),"") -> 0.129960925 | AK151: =IFERROR(1/(1+Y$13)^(AA151/360),"") -> 0.129960925 | AO151: 130 | AP151: =IF(AO151>AP$6,"",EDATE(AP$22,AO150)) -> 2035-05-01 | AQ151: 30 | AR151: =IFERROR(AQ151+AR150,"") -> 3956 | AS151: =IF(AO151>AP$6,"",AZ150) -> 956457.4739 | AT151: 12564.12842 | AU151: 14642.85748 | AV151: 272.5903801 | AW151: =IF(AO151>AP$6,"",AQ$4*AP$14) -> 450.45 | AX151: 0 | AY151: 27930.02628 | AZ151: 943893.3455 | BA151: =IFERROR(IF(AND(MONTH(AP151)=7,AP$9=2),2/(1+AP$13)^(AR151/360),IF(AND(MONTH(AP151)=12,AP$10=2),2/(1+AP$13)^(AR151/360),1/(1+AP$13)^(AR151/360))),"") -> 0.129960925 | BB151: =IFERROR(1/(1+AP$13)^(AR151/360),"") -> 0.129960925 | BF151: 130 | BG151: =IF(BF151>BG$6,"",EDATE(BG$22,BF150)) -> 2035-05-01 | BH151: 30 | BI151: =IFERROR(BH151+BI150,"") -> 3956 | BJ151: =IF(BF151>BG$6,"",BQ150) -> 968104.4277 | BK151: 8498.080673 | BL151: 14821.16618 | BM151: 275.9097619 | BN151: =IF(BF151>BG$6,"",BH$4*BG$14) -> 450.45 | BO151: 0 | BP151: 24045.60661 | BQ151: 959606.347 | BR151: =IFERROR(IF(AND(MONTH(BG151)=7,BG$9=2),2/(1+BG$13)^(BI151/360),IF(AND(MONTH(BG151)=12,BG$10=2),2/(1+BG$13)^(BI151/360),1/(1+BG$13)^(BI151/360))),"") -> 0.129960925 | BS151: =IFERROR(1/(1+BG$13)^(BI151/360),"") -> 0.129960925 | BW151: 130 | BX151: =IF(BW151>BX$6,"",EDATE(BX$22,BW150)) -> 2035-05-01 | BY151: 30 | BZ151: =IFERROR(BY151+BZ150,"") -> 3956 | CA151: =IF(BW151>BX$6,"",CH150) -> 1379047.235 | CB151: 4957.109532 | CC151: 21112.48297 | CD151: 393.0284621 | CE151: =IF(BW151>BX$6,"",BY$4*BX$14) -> 450.45 | CF151: 0 | CG151: 26913.07096 | CH151: 1374090.126 | CI151: =IFERROR(IF(AND(MONTH(BX151)=7,BX$9=2),2/(1+BX$13)^(BZ151/360),IF(AND(MONTH(BX151)=12,BX$10=2),2/(1+BX$13)^(BZ151/360),1/(1+BX$13)^(BZ151/360))),"") -> 0.129960925 | CJ151: =IFERROR(1/(1+BX$13)^(BZ151/360),"") -> 0.129960925 | CN151: 130 | CO151: =IF(CN151>CO$6,"",EDATE(CO$22,CN150)) -> 2035-05-01 | CP151: 30 | CQ151: =IFERROR(CP151+CQ150,"") -> 3956 | CR151: =IF(CN151>CO$6,"",CY150) -> 1390269.558 | CS151: 1039.119766 | CT151: 21284.29079 | CU151: 396.226824 | CV151: =IF(CN151>CO$6,"",CP$4*CO$14) -> 450.45 | CW151: 0 | CX151: 23170.08738 | CY151: 1389230.438 | CZ151: =IFERROR(IF(AND(MONTH(CO151)=7,CO$9=2),2/(1+CO$13)^(CQ151/360),IF(AND(MONTH(CO151)=12,CO$10=2),2/(1+CO$13)^(CQ151/360),1/(1+CO$13)^(CQ151/360))),"") -> 0.129960925 | DA151: =IFERROR(1/(1+CO$13)^(CQ151/360),"") -> 0.129960925
B152: 131 | C152: 2035-06-01 | D152: 31 | E152: 3987 | F152: 1374090.126 | G152: 4314.618095 | H152: =IF(B152>C$6,"",((1+C$11)^(D152/360)-1)*F152) -> 21743.3314 | I152: 404.6714641 | J152: 450.45 | K152: 0 | L152: 26913.07096 | M152: 1369775.508 | N152: 0.1278993847 | O152: 0.1278993847 | Q152: =IFERROR(IF('Simulación Cliente'!$H$21="Simple",G152+H152+I152+J152+K152,AC152+AD152+AE152+AF152+AG152),"") -> 26913.07096 | R152: 3987 | S152: =IFERROR((1+'Simulación Cliente'!$E$21)^(R152/360),"") -> 8.121576225 | T152: 3313.77 | X152: 131 | Y152: 2035-06-01 | Z152: 31 | AA152: 3987 | AB152: 1389230.438 | AC152: 327.5983448 | AD152: =IF(X152>Y$6,"",((1+Y$11)^(Z152/360)-1)*AB152) -> 21982.90872 | AE152: 409.1303073 | AF152: 450.45 | AG152: 0 | AH152: 23170.08738 | AI152: 1388902.84 | AJ152: 0.1278993847 | AK152: 0.1278993847 | AO152: 131 | AP152: 2035-06-01 | AQ152: 31 | AR152: 3987 | AS152: 943893.3455 | AT152: 12265.61605 | AU152: =IF(AO152>AP$6,"",((1+AP$11)^(AQ152/360)-1)*AS152) -> 14935.98232 | AV152: 277.9779105 | AW152: 450.45 | AX152: 0 | AY152: 27930.02628 | AZ152: 931627.7294 | BA152: 0.1278993847 | BB152: 0.1278993847 | BF152: 131 | BG152: 2035-06-01 | BH152: 31 | BI152: 3987 | BJ152: 959606.347 | BK152: 8127.929444 | BL152: =IF(BF152>BG$6,"",((1+BG$11)^(BH152/360)-1)*BJ152) -> 15184.62176 | BM152: 282.6054114 | BN152: 450.45 | BO152: 0 | BP152: 24045.60661 | BQ152: 951478.4175 | BR152: 0.1278993847 | BS152: 0.1278993847 | BW152: 131 | BX152: 2035-06-01 | BY152: 31 | BZ152: 3987 | CA152: 1374090.126 | CB152: 4314.618095 | CC152: =IF(BW152>BX$6,"",((1+BX$11)^(BY152/360)-1)*CA152) -> 21743.3314 | CD152: 404.6714641 | CE152: 450.45 | CF152: 0 | CG152: 26913.07096 | CH152: 1369775.508 | CI152: 0.1278993847 | CJ152: 0.1278993847 | CN152: 131 | CO152: 2035-06-01 | CP152: 31 | CQ152: 3987 | CR152: 1389230.438 | CS152: 327.5983448 | CT152: =IF(CN152>CO$6,"",((1+CO$11)^(CP152/360)-1)*CR152) -> 21982.90872 | CU152: 409.1303073 | CV152: 450.45 | CW152: 0 | CX152: 23170.08738 | CY152: 1388902.84 | CZ152: 0.1278993847 | DA152: 0.1278993847
B153: 132 | C153: 2035-07-01 | D153: 30 | E153: 4017 | F153: 1369775.508 | G153: 5101.697215 | H153: 20970.53773 | I153: 390.3860197 | J153: 450.45 | K153: 0 | L153: 26913.07096 | M153: 1364673.811 | N153: 0.1259354875 | O153: 0.1259354875 | Q153: =IFERROR(IF('Simulación Cliente'!$H$21="Simple",G153+H153+I153+J153+K153,AC153+AD153+AE153+AF153+AG153),"") -> 26913.07096 | R153: 4017 | S153: =IFERROR((1+'Simulación Cliente'!$E$21)^(R153/360),"") -> 8.250587452 | T153: 3261.96 | X153: 132 | Y153: 2035-07-01 | Z153: =IF(X153>Y$6,"",Y153-Y152) -> 30 | AA153: 4017 | AB153: 1388902.84 | AC153: =IF(X153>Y$6,"",AH153-AG153-AF153-AE153-AD153) -> 24230.52039 | AD153: 21263.36706 | AE153: 395.8373094 | AF153: 450.45 | AG153: 0 | AH153: 46340.17475 | AI153: 1364672.32 | AJ153: 0.2518709749 | AK153: 0.1259354875 | AO153: 132 | AP153: 2035-07-01 | AQ153: =IF(AO153>AP$6,"",AP153-AP152) -> 30 | AR153: 4017 | AS153: 931627.7294 | AT153: =IF(AO153>AP$6,"",AY153-AX153-AW153-AV153-AU153) -> 12951.33513 | AU153: 14262.72724 | AV153: 265.5139029 | AW153: 450.45 | AX153: 0 | AY153: 27930.02628 | AZ153: 918676.3943 | BA153: 0.1259354875 | BB153: 0.1259354875 | BF153: 132 | BG153: 2035-07-01 | BH153: =IF(BF153>BG$6,"",BG153-BG152) -> 30 | BI153: 4017 | BJ153: 951478.4175 | BK153: =IF(BF153>BG$6,"",BP153-BO153-BN153-BM153-BL153) -> 32802.96111 | BL153: 14566.63076 | BM153: 271.171349 | BN153: 450.45 | BO153: 0 | BP153: 48091.21322 | BQ153: 918675.4564 | BR153: 0.2518709749 | BS153: 0.1259354875 | BW153: 132 | BX153: 2035-07-01 | BY153: =IF(BW153>BX$6,"",BX153-BX152) -> 30 | BZ153: 4017 | CA153: 1369775.508 | CB153: =IF(BW153>BX$6,"",CG153-CF153-CE153-CD153-CC153) -> 5101.697215 | CC153: 20970.53773 | CD153: 390.3860197 | CE153: 450.45 | CF153: 0 | CG153: 26913.07096 | CH153: 1364673.811 | CI153: 0.1259354875 | CJ153: 0.1259354875 | CN153: 132 | CO153: 2035-07-01 | CP153: =IF(CN153>CO$6,"",CO153-CO152) -> 30 | CQ153: 4017 | CR153: 1388902.84 | CS153: =IF(CN153>CO$6,"",CX153-CW153-CV153-CU153-CT153) -> 24230.52039 | CT153: 21263.36706 | CU153: 395.8373094 | CV153: 450.45 | CW153: 0 | CX153: 46340.17475 | CY153: 1364672.32 | CZ153: 0.2518709749 | DA153: 0.1259354875
B154: 133 | C154: 2035-08-01 | D154: 31 | E154: 4048 | F154: 1364673.811 | G154: 4466.393131 | H154: 21594.32949 | I154: 401.898346 | J154: 450.45 | K154: 0 | L154: 26913.07096 | M154: 1360207.417 | N154: 0.1239378018 | O154: 0.1239378018 | Q154: =IFERROR(IF('Simulación Cliente'!$H$21="Simple",G154+H154+I154+J154+K154,AC154+AD154+AE154+AF154+AG154),"") -> 26913.07096 | R154: 4048 | S154: =IFERROR((1+'Simulación Cliente'!$E$21)^(R154/360),"") -> 8.38605238 | T154: 3209.27 | X154: 133 | Y154: 2035-08-01 | Z154: 31 | AA154: 4048 | AB154: 1364672.32 | AC154: 723.4335771 | AD154: 21594.30589 | AE154: 401.8979069 | AF154: 450.45 | AG154: 0 | AH154: 23170.08738 | AI154: 1363948.886 | AJ154: 0.1239378018 | AK154: 0.1239378018 | AO154: 133 | AP154: 2035-08-01 | AQ154: 31 | AR154: 4048 | AS154: 918676.3943 | AT154: 12672.07055 | AU154: 14536.95425 | AV154: 270.5514831 | AW154: 450.45 | AX154: 0 | AY154: 27930.02628 | AZ154: 906004.3238 | BA154: 0.1239378018 | BB154: 0.1239378018 | BF154: 133 | BG154: 2035-08-01 | BH154: 31 | BI154: 4048 | BJ154: 918675.4564 | BK154: 8787.665996 | BL154: 14536.93941 | BM154: 270.5512069 | BN154: 450.45 | BO154: 0 | BP154: 24045.60661 | BQ154: 909887.7904 | BR154: 0.1239378018 | BS154: 0.1239378018 | BW154: 133 | BX154: 2035-08-01 | BY154: 31 | BZ154: 4048 | CA154: 1364673.811 | CB154: 4466.393131 | CC154: 21594.32949 | CD154: 401.898346 | CE154: 450.45 | CF154: 0 | CG154: 26913.07096 | CH154: 1360207.417 | CI154: 0.1239378018 | CJ154: 0.1239378018 | CN154: 133 | CO154: 2035-08-01 | CP154: 31 | CQ154: 4048 | CR154: 1364672.32 | CS154: 723.4335771 | CT154: 21594.30589 | CU154: 401.8979069 | CV154: 450.45 | CW154: 0 | CX154: 23170.08738 | CY154: 1363948.886 | CZ154: 0.1239378018 | DA154: 0.1239378018
B155: 134 | C155: 2035-09-01 | D155: 31 | E155: 4079 | F155: 1360207.417 | G155: 4538.383815 | H155: 21523.65416 | I155: 400.582987 | J155: 450.45 | K155: 0 | L155: 26913.07096 | M155: 1355669.034 | N155: 0.1219718049 | O155: 0.1219718049 | Q155: =IFERROR(IF('Simulación Cliente'!$H$21="Simple",G155+H155+I155+J155+K155,AC155+AD155+AE155+AF155+AG155),"") -> 26913.07096 | R155: 4079 | S155: =IFERROR((1+'Simulación Cliente'!$E$21)^(R155/360),"") -> 8.523741483 | T155: 3157.42 | X155: 134 | Y155: 2035-09-01 | Z155: 31 | AA155: 4079 | AB155: 1363948.886 | AC155: 735.0940996 | AD155: 21582.85842 | AE155: 401.6848547 | AF155: 450.45 | AG155: 0 | AH155: 23170.08738 | AI155: 1363213.792 | AJ155: 0.1219718049 | AK155: 0.1219718049 | AO155: 134 | AP155: 2035-09-01 | AQ155: 31 | AR155: 4079 | AS155: 906004.3238 | AT155: 12876.32284 | AU155: 14336.4339 | AV155: 266.8195406 | AW155: 450.45 | AX155: 0 | AY155: 27930.02628 | AZ155: 893128.0009 | BA155: 0.1219718049 | BB155: 0.1219718049 | BF155: 134 | BG155: 2035-09-01 | BH155: 31 | BI155: 4079 | BJ155: 909887.7904 | BK155: 8929.308271 | BL155: 14397.88511 | BM155: 267.963227 | BN155: 450.45 | BO155: 0 | BP155: 24045.60661 | BQ155: 900958.4822 | BR155: 0.1219718049 | BS155: 0.1219718049 | BW155: 134 | BX155: 2035-09-01 | BY155: 31 | BZ155: 4079 | CA155: 1360207.417 | CB155: 4538.383815 | CC155: 21523.65416 | CD155: 400.582987 | CE155: 450.45 | CF155: 0 | CG155: 26913.07096 | CH155: 1355669.034 | CI155: 0.1219718049 | CJ155: 0.1219718049 | CN155: 134 | CO155: 2035-09-01 | CP155: 31 | CQ155: 4079 | CR155: 1363948.886 | CS155: 735.0940996 | CT155: 21582.85842 | CU155: 401.6848547 | CV155: 450.45 | CW155: 0 | CX155: 23170.08738 | CY155: 1363213.792 | CZ155: 0.1219718049 | DA155: 0.1219718049
B156: 135 | C156: 2035-10-01 | D156: 30 | E156: 4109 | F156: 1355669.034 | G156: 5321.680211 | H156: 20754.57508 | I156: 386.3656746 | J156: 450.45 | K156: 0 | L156: 26913.07096 | M156: 1350347.353 | N156: 0.1200989257 | O156: 0.1200989257 | Q156: =IFERROR(IF('Simulación Cliente'!$H$21="Simple",G156+H156+I156+J156+K156,AC156+AD156+AE156+AF156+AG156),"") -> 26913.07096 | R156: 4109 | S156: =IFERROR((1+'Simulación Cliente'!$E$21)^(R156/360),"") -> 8.659141104 | T156: 3108.05 | X156: 135 | Y156: 2035-10-01 | Z156: 30 | AA156: 4109 | AB156: 1363213.792 | AC156: 1461.040114 | AD156: 20870.08133 | AE156: 388.5159307 | AF156: 450.45 | AG156: 0 | AH156: 23170.08738 | AI156: 1361752.752 | AJ156: 0.1200989257 | AK156: 0.1200989257 | AO156: 135 | AP156: 2035-10-01 | AQ156: 30 | AR156: 4109 | AS156: 893128.0009 | AT156: 13551.71801 | AU156: 13673.31678 | AV156: 254.5414803 | AW156: 450.45 | AX156: 0 | AY156: 27930.02628 | AZ156: 879576.2829 | BA156: 0.1200989257 | BB156: 0.1200989257 | BF156: 135 | BG156: 2035-10-01 | BH156: 30 | BI156: 4109 | BJ156: 900958.4822 | BK156: 9545.18614 | BL156: 13793.1973 | BM156: 256.7731674 | BN156: 450.45 | BO156: 0 | BP156: 24045.60661 | BQ156: 891413.296 | BR156: 0.1200989257 | BS156: 0.1200989257 | BW156: 135 | BX156: 2035-10-01 | BY156: 30 | BZ156: 4109 | CA156: 1355669.034 | CB156: 5321.680211 | CC156: 20754.57508 | CD156: 386.3656746 | CE156: 450.45 | CF156: 0 | CG156: 26913.07096 | CH156: 1350347.353 | CI156: 0.1200989257 | CJ156: 0.1200989257 | CN156: 135 | CO156: 2035-10-01 | CP156: 30 | CQ156: 4109 | CR156: 1363213.792 | CS156: 1461.040114 | CT156: 20870.08133 | CU156: 388.5159307 | CV156: 450.45 | CW156: 0 | CX156: 23170.08738 | CY156: 1361752.752 | CZ156: 0.1200989257 | DA156: 0.1200989257
B157: 136 | C157: 2035-11-01 | D157: 31 | E157: 4140 | F157: 1350347.353 | G157: 4697.311328 | H157: 21367.63045 | I157: 397.6791844 | J157: 450.45 | K157: 0 | L157: 26913.07096 | M157: 1345650.042 | N157: 0.1181938241 | O157: 0.1181938241 | Q157: =IFERROR(IF('Simulación Cliente'!$H$21="Simple",G157+H157+I157+J157+K157,AC157+AD157+AE157+AF157+AG157),"") -> 26913.07096 | R157: 4140 | S157: =IFERROR((1+'Simulación Cliente'!$E$21)^(R157/360),"") -> 8.801314003 | T157: 3057.85 | X157: 136 | Y157: 2035-11-01 | Z157: 31 | AA157: 4140 | AB157: 1361752.752 | AC157: 770.4920593 | AD157: 21548.10723 | AE157: 401.0380901 | AF157: 450.45 | AG157: 0 | AH157: 23170.08738 | AI157: 1360982.26 | AJ157: 0.1181938241 | AK157: 0.1181938241 | AO157: 136 | AP157: 2035-11-01 | AQ157: 31 | AR157: 4140 | AS157: 879576.2829 | AT157: 13302.29804 | AU157: 13918.24179 | AV157: 259.0364456 | AW157: 450.45 | AX157: 0 | AY157: 27930.02628 | AZ157: 866273.9849 | BA157: 0.1181938241 | BB157: 0.1181938241 | BF157: 136 | BG157: 2035-11-01 | BH157: 31 | BI157: 4140 | BJ157: 891413.296 | BK157: 9227.085795 | BL157: 14105.54835 | BM157: 262.5224625 | BN157: 450.45 | BO157: 0 | BP157: 24045.60661 | BQ157: 882186.2102 | BR157: 0.1181938241 | BS157: 0.1181938241 | BW157: 136 | BX157: 2035-11-01 | BY157: 31 | BZ157: 4140 | CA157: 1350347.353 | CB157: 4697.311328 | CC157: 21367.63045 | CD157: 397.6791844 | CE157: 450.45 | CF157: 0 | CG157: 26913.07096 | CH157: 1345650.042 | CI157: 0.1181938241 | CJ157: 0.1181938241 | CN157: 136 | CO157: 2035-11-01 | CP157: 31 | CQ157: 4140 | CR157: 1361752.752 | CS157: 770.4920593 | CT157: 21548.10723 | CU157: 401.0380901 | CV157: 450.45 | CW157: 0 | CX157: 23170.08738 | CY157: 1360982.26 | CZ157: 0.1181938241 | DA157: 0.1181938241
B158: 137 | C158: 2035-12-01 | D158: 30 | E158: 4170 | F158: 1345650.042 | G158: 5477.921079 | H158: 20601.18962 | I158: 383.510262 | J158: 450.45 | K158: 0 | L158: 26913.07096 | M158: 1340172.121 | N158: 0.1163789559 | O158: 0.1163789559 | Q158: =IFERROR(IF('Simulación Cliente'!$H$21="Simple",G158+H158+I158+J158+K158,AC158+AD158+AE158+AF158+AG158),"") -> 26913.07096 | R158: 4170 | S158: =IFERROR((1+'Simulación Cliente'!$E$21)^(R158/360),"") -> 8.941122863 | T158: 3010.03 | X158: 137 | Y158: 2035-12-01 | Z158: 30 | AA158: 4170 | AB158: 1360982.26 | AC158: 24665.92705 | AD158: 20835.91776 | AE158: 387.879944 | AF158: 450.45 | AG158: 0 | AH158: 46340.17475 | AI158: 1336316.333 | AJ158: 0.2327579118 | AK158: 0.1163789559 | AO158: 137 | AP158: 2035-12-01 | AQ158: 30 | AR158: 4170 | AS158: 866273.9849 | AT158: 13970.49218 | AU158: 13262.19602 | AV158: 246.8880857 | AW158: 450.45 | AX158: 0 | AY158: 27930.02628 | AZ158: 852303.4927 | BA158: 0.1163789559 | BB158: 0.1163789559 | BF158: 137 | BG158: 2035-12-01 | BH158: 30 | BI158: 4170 | BJ158: 882186.2102 | BK158: 33883.53639 | BL158: 13505.80376 | BM158: 251.4230699 | BN158: 450.45 | BO158: 0 | BP158: 48091.21322 | BQ158: 848302.6738 | BR158: 0.2327579118 | BS158: 0.1163789559 | BW158: 137 | BX158: 2035-12-01 | BY158: 30 | BZ158: 4170 | CA158: 1345650.042 | CB158: 5477.921079 | CC158: 20601.18962 | CD158: 383.510262 | CE158: 450.45 | CF158: 0 | CG158: 26913.07096 | CH158: 1340172.121 | CI158: 0.1163789559 | CJ158: 0.1163789559 | CN158: 137 | CO158: 2035-12-01 | CP158: 30 | CQ158: 4170 | CR158: 1360982.26 | CS158: 24665.92705 | CT158: 20835.91776 | CU158: 387.879944 | CV158: 450.45 | CW158: 0 | CX158: 46340.17475 | CY158: 1336316.333 | CZ158: 0.2327579118 | DA158: 0.1163789559
B159: 138 | C159: 2036-01-01 | D159: 31 | E159: 4201 | F159: 1340172.121 | G159: 4861.318821 | H159: 21206.61958 | I159: 394.6825642 | J159: 450.45 | K159: 0 | L159: 26913.07096 | M159: 1335310.802 | N159: 0.1145328633 | O159: 0.1145328633 | Q159: =IFERROR(IF('Simulación Cliente'!$H$21="Simple",G159+H159+I159+J159+K159,AC159+AD159+AE159+AF159+AG159),"") -> 26913.07096 | R159: 4201 | S159: =IFERROR((1+'Simulación Cliente'!$E$21)^(R159/360),"") -> 9.08792557 | T159: 2961.41 | X159: 138 | Y159: 2036-01-01 | Z159: 31 | AA159: 4201 | AB159: 1336316.333 | AC159: 1180.484004 | AD159: 21145.60634 | AE159: 393.5470291 | AF159: 450.45 | AG159: 0 | AH159: 23170.08738 | AI159: 1335135.849 | AJ159: 0.1145328633 | AK159: 0.1145328633 | AO159: 138 | AP159: 2036-01-01 | AQ159: 31 | AR159: 4201 | AS159: 852303.4927 | AT159: 13741.88918 | AU159: 13486.68253 | AV159: 251.0045708 | AW159: 450.45 | AX159: 0 | AY159: 27930.02628 | AZ159: 838561.6035 | BA159: 0.1145328633 | BB159: 0.1145328633 | BF159: 138 | BG159: 2036-01-01 | BH159: 31 | BI159: 4201 | BJ159: 848302.6738 | BK159: 9921.955925 | BL159: 13423.37436 | BM159: 249.826324 | BN159: 450.45 | BO159: 0 | BP159: 24045.60661 | BQ159: 838380.7179 | BR159: 0.1145328633 | BS159: 0.1145328633 | BW159: 138 | BX159: 2036-01-01 | BY159: 31 | BZ159: 4201 | CA159: 1340172.121 | CB159: 4861.318821 | CC159: 21206.61958 | CD159: 394.6825642 | CE159: 450.45 | CF159: 0 | CG159: 26913.07096 | CH159: 1335310.802 | CI159: 0.1145328633 | CJ159: 0.1145328633 | CN159: 138 | CO159: 2036-01-01 | CP159: 31 | CQ159: 4201 | CR159: 1336316.333 | CS159: 1180.484004 | CT159: 21145.60634 | CU159: 393.5470291 | CV159: 450.45 | CW159: 0 | CX159: 23170.08738 | CY159: 1335135.849 | CZ159: 0.1145328633 | DA159: 0.1145328633
B160: 139 | C160: 2036-02-01 | D160: 31 | E160: 4232 | F160: 1335310.802 | G160: 4939.675038 | H160: 21129.69503 | I160: 393.250899 | J160: 450.45 | K160: 0 | L160: 26913.07096 | M160: 1330371.127 | N160: 0.1127160548 | O160: 0.1127160548 | Q160: =IFERROR(IF('Simulación Cliente'!$H$21="Simple",G160+H160+I160+J160+K160,AC160+AD160+AE160+AF160+AG160),"") -> 26913.07096 | R160: 4232 | S160: =IFERROR((1+'Simulación Cliente'!$E$21)^(R160/360),"") -> 9.237138604 | T160: 2913.57 | X160: 139 | Y160: 2036-02-01 | Z160: 31 | AA160: 4232 | AB160: 1335135.849 | AC160: 1199.511405 | AD160: 21126.9266 | AE160: 393.1993749 | AF160: 450.45 | AG160: 0 | AH160: 23170.08738 | AI160: 1333936.337 | AJ160: 0.1127160548 | AK160: 0.1127160548 | AO160: 139 | AP160: 2036-02-01 | AQ160: 31 | AR160: 4232 | AS160: 838561.6035 | AT160: 13963.38513 | AU160: 13269.23359 | AV160: 246.9575652 | AW160: 450.45 | AX160: 0 | AY160: 27930.02628 | AZ160: 824598.2184 | BA160: 0.1127160548 | BB160: 0.1127160548 | BF160: 139 | BG160: 2036-02-01 | BH160: 31 | BI160: 4232 | BJ160: 838380.7179 | BK160: 10081.88103 | BL160: 13266.37129 | BM160: 246.9042941 | BN160: 450.45 | BO160: 0 | BP160: 24045.60661 | BQ160: 828298.8369 | BR160: 0.1127160548 | BS160: 0.1127160548 | BW160: 139 | BX160: 2036-02-01 | BY160: 31 | BZ160: 4232 | CA160: 1335310.802 | CB160: 4939.675038 | CC160: 21129.69503 | CD160: 393.250899 | CE160: 450.45 | CF160: 0 | CG160: 26913.07096 | CH160: 1330371.127 | CI160: 0.1127160548 | CJ160: 0.1127160548 | CN160: 139 | CO160: 2036-02-01 | CP160: 31 | CQ160: 4232 | CR160: 1335135.849 | CS160: 1199.511405 | CT160: 21126.9266 | CU160: 393.1993749 | CV160: 450.45 | CW160: 0 | CX160: 23170.08738 | CY160: 1333936.337 | CZ160: 0.1127160548 | DA160: 0.1127160548
B161: 140 | C161: 2036-03-01 | D161: 29 | E161: 4261 | F161: 1330371.127 | G161: 6412.734539 | H161: 19683.37092 | I161: 366.5155047 | J161: 450.45 | K161: 0 | L161: 26913.07096 | M161: 1323958.393 | N161: 0.1110425593 | O161: 0.1110425593 | Q161: =IFERROR(IF('Simulación Cliente'!$H$21="Simple",G161+H161+I161+J161+K161,AC161+AD161+AE161+AF161+AG161),"") -> 26913.07096 | R161: 4261 | S161: =IFERROR((1+'Simulación Cliente'!$E$21)^(R161/360),"") -> 9.378942125 | T161: 2869.52 | X161: 140 | Y161: 2036-03-01 | Z161: 29 | AA161: 4261 | AB161: 1333936.337 | AC161: 2616.020037 | AD161: 19736.11962 | AE161: 367.4977155 | AF161: 450.45 | AG161: 0 | AH161: 23170.08738 | AI161: 1331320.317 | AJ161: 0.1110425593 | AK161: 0.1110425593 | AO161: 140 | AP161: 2036-03-01 | AQ161: 29 | AR161: 4261 | AS161: 824598.2184 | AT161: 15052.14134 | AU161: 12200.25921 | AV161: 227.1757302 | AW161: 450.45 | AX161: 0 | AY161: 27930.02628 | AZ161: 809546.077 | BA161: 0.1110425593 | BB161: 0.1110425593 | BF161: 140 | BG161: 2036-03-01 | BH161: 29 | BI161: 4261 | BJ161: 828298.8369 | BK161: 11111.95003 | BL161: 12255.01133 | BM161: 228.1952457 | BN161: 450.45 | BO161: 0 | BP161: 24045.60661 | BQ161: 817186.8868 | BR161: 0.1110425593 | BS161: 0.1110425593 | BW161: 140 | BX161: 2036-03-01 | BY161: 29 | BZ161: 4261 | CA161: 1330371.127 | CB161: 6412.734539 | CC161: 19683.37092 | CD161: 366.5155047 | CE161: 450.45 | CF161: 0 | CG161: 26913.07096 | CH161: 1323958.393 | CI161: 0.1110425593 | CJ161: 0.1110425593 | CN161: 140 | CO161: 2036-03-01 | CP161: 29 | CQ161: 4261 | CR161: 1333936.337 | CS161: 2616.020037 | CT161: 19736.11962 | CU161: 367.4977155 | CV161: 450.45 | CW161: 0 | CX161: 23170.08738 | CY161: 1331320.317 | CZ161: 0.1110425593 | DA161: 0.1110425593
B162: 141 | C162: 2036-04-01 | D162: 31 | E162: 4292 | F162: 1323958.393 | G162: 5122.65663 | H162: 20950.05673 | I162: 389.9075985 | J162: 450.45 | K162: 0 | L162: 26913.07096 | M162: 1318835.736 | N162: 0.1092811167 | O162: 0.1092811167 | Q162: =IFERROR(IF('Simulación Cliente'!$H$21="Simple",G162+H162+I162+J162+K162,AC162+AD162+AE162+AF162+AG162),"") -> 26913.07096 | R162: 4292 | S162: =IFERROR((1+'Simulación Cliente'!$E$21)^(R162/360),"") -> 9.532933308 | T162: 2823.17 | X162: 141 | Y162: 2036-04-01 | Z162: 31 | AA162: 4292 | AB162: 1331320.317 | AC162: 1261.011302 | AD162: 21066.55038 | AE162: 392.0756956 | AF162: 450.45 | AG162: 0 | AH162: 23170.08738 | AI162: 1330059.306 | AJ162: 0.1092811167 | AK162: 0.1092811167 | AO162: 141 | AP162: 2036-04-01 | AQ162: 31 | AR162: 4292 | AS162: 809546.077 | AT162: 14431.06621 | AU162: 12810.09761 | AV162: 238.412452 | AW162: 450.45 | AX162: 0 | AY162: 27930.02628 | AZ162: 795115.0108 | BA162: 0.1092811167 | BB162: 0.1092811167 | BF162: 141 | BG162: 2036-04-01 | BH162: 31 | BI162: 4292 | BJ162: 817186.8868 | BK162: 10423.48965 | BL162: 12931.00428 | BM162: 240.6626812 | BN162: 450.45 | BO162: 0 | BP162: 24045.60661 | BQ162: 806763.3972 | BR162: 0.1092811167 | BS162: 0.1092811167 | BW162: 141 | BX162: 2036-04-01 | BY162: 31 | BZ162: 4292 | CA162: 1323958.393 | CB162: 5122.65663 | CC162: 20950.05673 | CD162: 389.9075985 | CE162: 450.45 | CF162: 0 | CG162: 26913.07096 | CH162: 1318835.736 | CI162: 0.1092811167 | CJ162: 0.1092811167 | CN162: 141 | CO162: 2036-04-01 | CP162: 31 | CQ162: 4292 | CR162: 1331320.317 | CS162: 1261.011302 | CT162: 21066.55038 | CU162: 392.0756956 | CV162: 450.45 | CW162: 0 | CX162: 23170.08738 | CY162: 1330059.306 | CZ162: 0.1092811167 | DA162: 0.1092811167
B163: 142 | C163: 2036-05-01 | D163: 30 | E163: 4322 | F163: 1318835.736 | G163: 5896.075984 | H163: 20190.67679 | I163: 375.8681848 | J163: 450.45 | K163: 0 | L163: 26913.07096 | M163: 1312939.66 | N163: 0.1076031032 | O163: 0.1076031032 | Q163: =IFERROR(IF('Simulación Cliente'!$H$21="Simple",G163+H163+I163+J163+K163,AC163+AD163+AE163+AF163+AG163),"") -> 26913.07096 | R163: 4322 | S163: =IFERROR((1+'Simulación Cliente'!$E$21)^(R163/360),"") -> 9.68436394 | T163: 2779.02 | X163: 142 | Y163: 2036-05-01 | Z163: 30 | AA163: 4322 | AB163: 1330059.306 | AC163: 1978.066767 | AD163: 20362.50371 | AE163: 379.0669022 | AF163: 450.45 | AG163: 0 | AH163: 23170.08738 | AI163: 1328081.239 | AJ163: 0.1076031032 | AK163: 0.1076031032 | AO163: 142 | AP163: 2036-05-01 | AQ163: 30 | AR163: 4322 | AS163: 795115.0108 | AT163: 15080.1787 | AU163: 12172.7898 | AV163: 226.6077781 | AW163: 450.45 | AX163: 0 | AY163: 27930.02628 | AZ163: 780034.8321 | BA163: 0.1076031032 | BB163: 0.1076031032 | BF163: 142 | BG163: 2036-05-01 | BH163: 30 | BI163: 4322 | BJ163: 806763.3972 | BK163: 11014.10861 | BL163: 12351.12043 | BM163: 229.9275682 | BN163: 450.45 | BO163: 0 | BP163: 24045.60661 | BQ163: 795749.2886 | BR163: 0.1076031032 | BS163: 0.1076031032 | BW163: 142 | BX163: 2036-05-01 | BY163: 30 | BZ163: 4322 | CA163: 1318835.736 | CB163: 5896.075984 | CC163: 20190.67679 | CD163: 375.8681848 | CE163: 450.45 | CF163: 0 | CG163: 26913.07096 | CH163: 1312939.66 | CI163: 0.1076031032 | CJ163: 0.1076031032 | CN163: 142 | CO163: 2036-05-01 | CP163: 30 | CQ163: 4322 | CR163: 1330059.306 | CS163: 1978.066767 | CT163: 20362.50371 | CU163: 379.0669022 | CV163: 450.45 | CW163: 0 | CX163: 23170.08738 | CY163: 1328081.239 | CZ163: 0.1076031032 | DA163: 0.1076031032
B164: 143 | C164: 2036-06-01 | D164: 31 | E164: 4353 | F164: 1312939.66 | G164: 5300.259916 | H164: 20775.69848 | I164: 386.6625663 | J164: 450.45 | K164: 0 | L164: 26913.07096 | M164: 1307639.4 | N164: 0.1058962199 | O164: 0.1058962199 | Q164: =IFERROR(IF('Simulación Cliente'!$H$21="Simple",G164+H164+I164+J164+K164,AC164+AD164+AE164+AF164+AG164),"") -> 26913.07096 | R164: 4353 | S164: =IFERROR((1+'Simulación Cliente'!$E$21)^(R164/360),"") -> 9.84336979 | T164: 2734.13 | X164: 143 | Y164: 2036-06-01 | Z164: 31 | AA164: 4353 | AB164: 1328081.239 | AC164: 1313.219748 | AD164: 21015.29585 | AE164: 391.1217826 | AF164: 450.45 | AG164: 0 | AH164: 23170.08738 | AI164: 1326768.019 | AJ164: 0.1058962199 | AK164: 0.1058962199 | AO164: 143 | AP164: 2036-06-01 | AQ164: 31 | AR164: 4353 | AS164: 780034.8321 | AT164: 14906.73744 | AU164: 12343.11749 | AV164: 229.7213491 | AW164: 450.45 | AX164: 0 | AY164: 27930.02628 | AZ164: 765128.0947 | BA164: 0.1058962199 | BB164: 0.1058962199 | BF164: 143 | BG164: 2036-06-01 | BH164: 31 | BI164: 4353 | BJ164: 795749.2886 | BK164: 10769.02738 | BL164: 12591.77995 | BM164: 234.3492785 | BN164: 450.45 | BO164: 0 | BP164: 24045.60661 | BQ164: 784980.2612 | BR164: 0.1058962199 | BS164: 0.1058962199 | BW164: 143 | BX164: 2036-06-01 | BY164: 31 | BZ164: 4353 | CA164: 1312939.66 | CB164: 5300.259916 | CC164: 20775.69848 | CD164: 386.6625663 | CE164: 450.45 | CF164: 0 | CG164: 26913.07096 | CH164: 1307639.4 | CI164: 0.1058962199 | CJ164: 0.1058962199 | CN164: 143 | CO164: 2036-06-01 | CP164: 31 | CQ164: 4353 | CR164: 1328081.239 | CS164: 1313.219748 | CT164: 21015.29585 | CU164: 391.1217826 | CV164: 450.45 | CW164: 0 | CX164: 23170.08738 | CY164: 1326768.019 | CZ164: 0.1058962199 | DA164: 0.1058962199
B165: 144 | C165: 2036-07-01 | D165: 30 | E165: 4383 | F165: 1307639.4 | G165: 6070.676914 | H165: 20019.26682 | I165: 372.677229 | J165: 450.45 | K165: 0 | L165: 26913.07096 | M165: 1301568.723 | N165: 0.1042701817 | O165: 0.1042701817 | Q165: =IFERROR(IF('Simulación Cliente'!$H$21="Simple",G165+H165+I165+J165+K165,AC165+AD165+AE165+AF165+AG165),"") -> 26913.07096 | R165: 4383 | S165: =IFERROR((1+'Simulación Cliente'!$E$21)^(R165/360),"") -> 9.999731705 | T165: 2691.38 | X165: 144 | Y165: 2036-07-01 | Z165: 30 | AA165: 4383 | AB165: 1326768.019 | AC165: 25199.48001 | AD165: 20312.11585 | AE165: 378.1288855 | AF165: 450.45 | AG165: 0 | AH165: 46340.17475 | AI165: 1301568.539 | AJ165: 0.2085403634 | AK165: 0.1042701817 | AO165: 144 | AP165: 2036-07-01 | AQ165: 30 | AR165: 4383 | AS165: 765128.0947 | AT165: 15547.80878 | AU165: 11713.70599 | AV165: 218.061507 | AW165: 450.45 | AX165: 0 | AY165: 27930.02628 | AZ165: 749580.2859 | BA165: 0.1042701817 | BB165: 0.1042701817 | BF165: 144 | BG165: 2036-07-01 | BH165: 30 | BI165: 4383 | BJ165: 784980.2612 | BK165: 35399.4117 | BL165: 12017.63215 | BM165: 223.7193744 | BN165: 450.45 | BO165: 0 | BP165: 48091.21322 | BQ165: 749580.8495 | BR165: 0.2085403634 | BS165: 0.1042701817 | BW165: 144 | BX165: 2036-07-01 | BY165: 30 | BZ165: 4383 | CA165: 1307639.4 | CB165: 6070.676914 | CC165: 20019.26682 | CD165: 372.677229 | CE165: 450.45 | CF165: 0 | CG165: 26913.07096 | CH165: 1301568.723 | CI165: 0.1042701817 | CJ165: 0.1042701817 | CN165: 144 | CO165: 2036-07-01 | CP165: 30 | CQ165: 4383 | CR165: 1326768.019 | CS165: 25199.48001 | CT165: 20312.11585 | CU165: 378.1288855 | CV165: 450.45 | CW165: 0 | CX165: 46340.17475 | CY165: 1301568.539 | CZ165: 0.2085403634 | DA165: 0.1042701817
B166: 145 | C166: 2036-08-01 | D166: 31 | E166: 4414 | F166: 1301568.723 | G166: 5483.540137 | H166: 20595.76702 | I166: 383.3138095 | J166: 450.45 | K166: 0 | L166: 26913.07096 | M166: 1296085.183 | N166: 0.1026161677 | O166: 0.1026161677 | Q166: =IFERROR(IF('Simulación Cliente'!$H$21="Simple",G166+H166+I166+J166+K166,AC166+AD166+AE166+AF166+AG166),"") -> 26913.07096 | R166: 4414 | S166: =IFERROR((1+'Simulación Cliente'!$E$21)^(R166/360),"") -> 10.16391552 | T166: 2647.9 | X166: 145 | Y166: 2036-08-01 | Z166: 31 | AA166: 4414 | AB166: 1301568.539 | AC166: 1740.559512 | AD166: 20595.76411 | AE166: 383.3137554 | AF166: 450.45 | AG166: 0 | AH166: 23170.08738 | AI166: 1299827.98 | AJ166: 0.1026161677 | AK166: 0.1026161677 | AO166: 145 | AP166: 2036-08-01 | AQ166: 31 | AR166: 4414 | AS166: 749580.2859 | AT166: 15397.61309 | AU166: 11861.21075 | AV166: 220.7524427 | AW166: 450.45 | AX166: 0 | AY166: 27930.02628 | AZ166: 734182.6728 | BA166: 0.1026161677 | BB166: 0.1026161677 | BF166: 145 | BG166: 2036-08-01 | BH166: 31 | BI166: 4414 | BJ166: 749580.8495 | BK166: 11513.18434 | BL166: 11861.21967 | BM166: 220.7526087 | BN166: 450.45 | BO166: 0 | BP166: 24045.60661 | BQ166: 738067.6652 | BR166: 0.1026161677 | BS166: 0.1026161677 | BW166: 145 | BX166: 2036-08-01 | BY166: 31 | BZ166: 4414 | CA166: 1301568.723 | CB166: 5483.540137 | CC166: 20595.76702 | CD166: 383.3138095 | CE166: 450.45 | CF166: 0 | CG166: 26913.07096 | CH166: 1296085.183 | CI166: 0.1026161677 | CJ166: 0.1026161677 | CN166: 145 | CO166: 2036-08-01 | CP166: 31 | CQ166: 4414 | CR166: 1301568.539 | CS166: 1740.559512 | CT166: 20595.76411 | CU166: 383.3137554 | CV166: 450.45 | CW166: 0 | CX166: 23170.08738 | CY166: 1299827.98 | CZ166: 0.1026161677 | DA166: 0.1026161677
B167: 146 | C167: 2036-09-01 | D167: 31 | E167: 4445 | F167: 1296085.183 | G167: 5571.925506 | H167: 20508.99656 | I167: 381.6988993 | J167: 450.45 | K167: 0 | L167: 26913.07096 | M167: 1290513.258 | N167: 0.1009883911 | O167: 0.1009883911 | Q167: =IFERROR(IF('Simulación Cliente'!$H$21="Simple",G167+H167+I167+J167+K167,AC167+AD167+AE167+AF167+AG167),"") -> 26913.07096 | R167: 4445 | S167: =IFERROR((1+'Simulación Cliente'!$E$21)^(R167/360),"") -> 10.33079504 | T167: 2605.13 | X167: 146 | Y167: 2036-09-01 | Z167: 31 | AA167: 4445 | AB167: 1299827.98 | AC167: 1768.61438 | AD167: 20568.22184 | AE167: 382.8011582 | AF167: 450.45 | AG167: 0 | AH167: 23170.08738 | AI167: 1298059.365 | AJ167: 0.1009883911 | AK167: 0.1009883911 | AO167: 146 | AP167: 2036-09-01 | AQ167: 31 | AR167: 4445 | AS167: 734182.6728 | AT167: 15645.7965 | AU167: 11617.56195 | AV167: 216.2178241 | AW167: 450.45 | AX167: 0 | AY167: 27930.02628 | AZ167: 718536.8763 | BA167: 0.1009883911 | BB167: 0.1009883911 | BF167: 146 | BG167: 2036-09-01 | BH167: 31 | BI167: 4445 | BJ167: 738067.6652 | BK167: 11698.75735 | BL167: 11679.03731 | BM167: 217.3619598 | BN167: 450.45 | BO167: 0 | BP167: 24045.60661 | BQ167: 726368.9078 | BR167: 0.1009883911 | BS167: 0.1009883911 | BW167: 146 | BX167: 2036-09-01 | BY167: 31 | BZ167: 4445 | CA167: 1296085.183 | CB167: 5571.925506 | CC167: 20508.99656 | CD167: 381.6988993 | CE167: 450.45 | CF167: 0 | CG167: 26913.07096 | CH167: 1290513.258 | CI167: 0.1009883911 | CJ167: 0.1009883911 | CN167: 146 | CO167: 2036-09-01 | CP167: 31 | CQ167: 4445 | CR167: 1299827.98 | CS167: 1768.61438 | CT167: 20568.22184 | CU167: 382.8011582 | CV167: 450.45 | CW167: 0 | CX167: 23170.08738 | CY167: 1298059.365 | CZ167: 0.1009883911 | DA167: 0.1009883911
B168: 147 | C168: 2036-10-01 | D168: 30 | E168: 4475 | F168: 1290513.258 | G168: 6337.750039 | H168: 19757.07465 | I168: 367.7962784 | J168: 450.45 | K168: 0 | L168: 26913.07096 | M168: 1284175.507 | N168: 0.09943771258 | O168: 0.09943771258 | Q168: =IFERROR(IF('Simulación Cliente'!$H$21="Simple",G168+H168+I168+J168+K168,AC168+AD168+AE168+AF168+AG168),"") -> 26913.07096 | R168: 4475 | S168: =IFERROR((1+'Simulación Cliente'!$E$21)^(R168/360),"") -> 10.49489971 | T168: 2564.4 | X168: 147 | Y168: 2036-10-01 | Z168: 30 | AA168: 4475 | AB168: 1298059.365 | AC168: 2477.088894 | AD168: 19872.60156 | AE168: 369.9469192 | AF168: 450.45 | AG168: 0 | AH168: 23170.08738 | AI168: 1295582.277 | AJ168: 0.09943771258 | AK168: 0.09943771258 | AO168: 147 | AP168: 2036-10-01 | AQ168: 30 | AR168: 4475 | AS168: 718536.8763 | AT168: 16274.37416 | AU168: 11000.41911 | AV168: 204.7830098 | AW168: 450.45 | AX168: 0 | AY168: 27930.02628 | AZ168: 702262.5022 | BA168: 0.09943771258 | BB168: 0.09943771258 | BF168: 147 | BG168: 2036-10-01 | BH168: 30 | BI168: 4475 | BJ168: 726368.9078 | BK168: 12267.81811 | BL168: 11120.32337 | BM168: 207.0151387 | BN168: 450.45 | BO168: 0 | BP168: 24045.60661 | BQ168: 714101.0897 | BR168: 0.09943771258 | BS168: 0.09943771258 | BW168: 147 | BX168: 2036-10-01 | BY168: 30 | BZ168: 4475 | CA168: 1290513.258 | CB168: 6337.750039 | CC168: 19757.07465 | CD168: 367.7962784 | CE168: 450.45 | CF168: 0 | CG168: 26913.07096 | CH168: 1284175.507 | CI168: 0.09943771258 | CJ168: 0.09943771258 | CN168: 147 | CO168: 2036-10-01 | CP168: 30 | CQ168: 4475 | CR168: 1298059.365 | CS168: 2477.088894 | CT168: 19872.60156 | CU168: 369.9469192 | CV168: 450.45 | CW168: 0 | CX168: 23170.08738 | CY168: 1295582.277 | CZ168: 0.09943771258 | DA168: 0.09943771258
B169: 148 | C169: 2036-11-01 | D169: 31 | E169: 4506 | F169: 1284175.507 | G169: 5763.889281 | H169: 20320.5402 | I169: 378.1914832 | J169: 450.45 | K169: 0 | L169: 26913.07096 | M169: 1278411.618 | N169: 0.097860355 | O169: 0.097860355 | Q169: =IFERROR(IF('Simulación Cliente'!$H$21="Simple",G169+H169+I169+J169+K169,AC169+AD169+AE169+AF169+AG169),"") -> 26913.07096 | R169: 4506 | S169: =IFERROR((1+'Simulación Cliente'!$E$21)^(R169/360),"") -> 10.6672136 | T169: 2522.97 | X169: 148 | Y169: 2036-11-01 | Z169: 31 | AA169: 4506 | AB169: 1295582.277 | AC169: 1837.047918 | AD169: 20501.03867 | AE169: 381.5507927 | AF169: 450.45 | AG169: 0 | AH169: 23170.08738 | AI169: 1293745.229 | AJ169: 0.097860355 | AK169: 0.097860355 | AO169: 148 | AP169: 2036-11-01 | AQ169: 31 | AR169: 4506 | AS169: 702262.5022 | AT169: 16160.29553 | AU169: 11112.46346 | AV169: 206.8172892 | AW169: 450.45 | AX169: 0 | AY169: 27930.02628 | AZ169: 686102.2066 | BA169: 0.097860355 | BB169: 0.097860355 | BF169: 148 | BG169: 2036-11-01 | BH169: 31 | BI169: 4506 | BJ169: 714101.0897 | BK169: 12085.0579 | BL169: 11299.79494 | BM169: 210.3037698 | BN169: 450.45 | BO169: 0 | BP169: 24045.60661 | BQ169: 702016.0318 | BR169: 0.097860355 | BS169: 0.097860355 | BW169: 148 | BX169: 2036-11-01 | BY169: 31 | BZ169: 4506 | CA169: 1284175.507 | CB169: 5763.889281 | CC169: 20320.5402 | CD169: 378.1914832 | CE169: 450.45 | CF169: 0 | CG169: 26913.07096 | CH169: 1278411.618 | CI169: 0.097860355 | CJ169: 0.097860355 | CN169: 148 | CO169: 2036-11-01 | CP169: 31 | CQ169: 4506 | CR169: 1295582.277 | CS169: 1837.047918 | CT169: 20501.03867 | CU169: 381.5507927 | CV169: 450.45 | CW169: 0 | CX169: 23170.08738 | CY169: 1293745.229 | CZ169: 0.097860355 | DA169: 0.097860355
B170: 149 | C170: 2036-12-01 | D170: 30 | E170: 4536 | F170: 1278411.618 | G170: 6526.468696 | H170: 19571.80496 | I170: 364.3473112 | J170: 450.45 | K170: 0 | L170: 26913.07096 | M170: 1271885.149 | N170: 0.09635770757 | O170: 0.09635770757 | Q170: =IFERROR(IF('Simulación Cliente'!$H$21="Simple",G170+H170+I170+J170+K170,AC170+AD170+AE170+AF170+AG170),"") -> 26913.07096 | R170: 4536 | S170: =IFERROR((1+'Simulación Cliente'!$E$21)^(R170/360),"") -> 10.83666227 | T170: 2483.52 | X170: 149 | Y170: 2036-12-01 | Z170: 30 | AA170: 4536 | AB170: 1293745.229 | AC170: 25714.45295 | AD170: 19806.55441 | AE170: 368.7173902 | AF170: 450.45 | AG170: 0 | AH170: 46340.17475 | AI170: 1268030.776 | AJ170: 0.1927154151 | AK170: 0.09635770757 | AO170: 149 | AP170: 2036-12-01 | AQ170: 30 | AR170: 4536 | AS170: 686102.2066 | AT170: 16780.17566 | AU170: 10503.86149 | AV170: 195.5391289 | AW170: 450.45 | AX170: 0 | AY170: 27930.02628 | AZ170: 669322.031 | BA170: 0.09635770757 | BB170: 0.09635770757 | BF170: 149 | BG170: 2036-12-01 | BH170: 30 | BI170: 4536 | BJ170: 702016.0318 | BK170: 36693.19492 | BL170: 10747.49373 | BM170: 200.0745691 | BN170: 450.45 | BO170: 0 | BP170: 48091.21322 | BQ170: 665322.8369 | BR170: 0.1927154151 | BS170: 0.09635770757 | BW170: 149 | BX170: 2036-12-01 | BY170: 30 | BZ170: 4536 | CA170: 1278411.618 | CB170: 6526.468696 | CC170: 19571.80496 | CD170: 364.3473112 | CE170: 450.45 | CF170: 0 | CG170: 26913.07096 | CH170: 1271885.149 | CI170: 0.09635770757 | CJ170: 0.09635770757 | CN170: 149 | CO170: 2036-12-01 | CP170: 30 | CQ170: 4536 | CR170: 1293745.229 | CS170: 25714.45295 | CT170: 19806.55441 | CU170: 368.7173902 | CV170: 450.45 | CW170: 0 | CX170: 46340.17475 | CY170: 1268030.776 | CZ170: 0.1927154151 | DA170: 0.09635770757
B171: 150 | C171: 2037-01-01 | D171: 31 | E171: 4567 | F171: 1271885.149 | G171: 5961.989012 | H171: 20126.06 | I171: 374.5719556 | J171: 450.45 | K171: 0 | L171: 26913.07096 | M171: 1265923.16 | N171: 0.0948292074 | O171: 0.0948292074 | Q171: =IFERROR(IF('Simulación Cliente'!$H$21="Simple",G171+H171+I171+J171+K171,AC171+AD171+AE171+AF171+AG171),"") -> 26913.07096 | R171: 4567 | S171: =IFERROR((1+'Simulación Cliente'!$E$21)^(R171/360),"") -> 11.01458751 | T171: 2443.4 | X171: 150 | Y171: 2037-01-01 | Z171: 31 | AA171: 4567 | AB171: 1268030.776 | AC171: 2281.131394 | AD171: 20065.06914 | AE171: 373.4368371 | AF171: 450.45 | AG171: 0 | AH171: 23170.08738 | AI171: 1265749.644 | AJ171: 0.0948292074 | AK171: 0.0948292074 | AO171: 150 | AP171: 2037-01-01 | AQ171: 31 | AR171: 4567 | AS171: 669322.031 | AT171: 16691.24007 | AU171: 10591.21994 | AV171: 197.1162743 | AW171: 450.45 | AX171: 0 | AY171: 27930.02628 | AZ171: 652630.7909 | BA171: 0.0948292074 | BB171: 0.0948292074 | BF171: 150 | BG171: 2037-01-01 | BH171: 31 | BI171: 4567 | BJ171: 665322.8369 | BK171: 12871.28063 | BL171: 10527.93748 | BM171: 195.9385061 | BN171: 450.45 | BO171: 0 | BP171: 24045.60661 | BQ171: 652451.5563 | BR171: 0.0948292074 | BS171: 0.0948292074 | BW171: 150 | BX171: 2037-01-01 | BY171: 31 | BZ171: 4567 | CA171: 1271885.149 | CB171: 5961.989012 | CC171: 20126.06 | CD171: 374.5719556 | CE171: 450.45 | CF171: 0 | CG171: 26913.07096 | CH171: 1265923.16 | CI171: 0.0948292074 | CJ171: 0.0948292074 | CN171: 150 | CO171: 2037-01-01 | CP171: 31 | CQ171: 4567 | CR171: 1268030.776 | CS171: 2281.131394 | CT171: 20065.06914 | CU171: 373.4368371 | CV171: 450.45 | CW171: 0 | CX171: 23170.08738 | CY171: 1265749.644 | CZ171: 0.0948292074 | DA171: 0.0948292074
B172: 151 | C172: 2037-02-01 | D172: 31 | E172: 4598 | F172: 1265923.16 | G172: 6058.086165 | H172: 20031.71866 | I172: 372.8161415 | J172: 450.45 | K172: 0 | L172: 26913.07096 | M172: 1259865.074 | N172: 0.09332495347 | O172: 0.09332495347 | Q172: =IFERROR(IF('Simulación Cliente'!$H$21="Simple",G172+H172+I172+J172+K172,AC172+AD172+AE172+AF172+AG172),"") -> 26913.07096 | R172: 4598 | S172: =IFERROR((1+'Simulación Cliente'!$E$21)^(R172/360),"") -> 11.19543406 | T172: 2403.93 | X172: 151 | Y172: 2037-02-01 | Z172: 31 | AA172: 4598 | AB172: 1265749.644 | AC172: 2317.899365 | AD172: 20028.97297 | AE172: 372.7650407 | AF172: 450.45 | AG172: 0 | AH172: 23170.08738 | AI172: 1263431.745 | AJ172: 0.09332495347 | AK172: 0.09332495347 | AO172: 151 | AP172: 2037-02-01 | AQ172: 31 | AR172: 4598 | AS172: 652630.7909 | AT172: 16960.27455 | AU172: 10327.10104 | AV172: 192.2006808 | AW172: 450.45 | AX172: 0 | AY172: 27930.02628 | AZ172: 635670.5164 | BA172: 0.09332495347 | BB172: 0.09332495347 | BF172: 151 | BG172: 2037-02-01 | BH172: 31 | BI172: 4598 | BJ172: 652451.5563 | BK172: 13078.74385 | BL172: 10324.26487 | BM172: 192.1478959 | BN172: 450.45 | BO172: 0 | BP172: 24045.60661 | BQ172: 639372.8124 | BR172: 0.09332495347 | BS172: 0.09332495347 | BW172: 151 | BX172: 2037-02-01 | BY172: 31 | BZ172: 4598 | CA172: 1265923.16 | CB172: 6058.086165 | CC172: 20031.71866 | CD172: 372.8161415 | CE172: 450.45 | CF172: 0 | CG172: 26913.07096 | CH172: 1259865.074 | CI172: 0.09332495347 | CJ172: 0.09332495347 | CN172: 151 | CO172: 2037-02-01 | CP172: 31 | CQ172: 4598 | CR172: 1265749.644 | CS172: 2317.899365 | CT172: 20028.97297 | CU172: 372.7650407 | CV172: 450.45 | CW172: 0 | CX172: 23170.08738 | CY172: 1263431.745 | CZ172: 0.09332495347 | DA172: 0.09332495347
B173: 152 | C173: 2037-03-01 | D173: 28 | E173: 4626 | F173: 1259865.074 | G173: 8134.627753 | H173: 17992.87228 | I173: 335.1209264 | J173: 450.45 | K173: 0 | L173: 26913.07096 | M173: 1251730.447 | N173: 0.09198679263 | O173: 0.09198679263 | Q173: =IFERROR(IF('Simulación Cliente'!$H$21="Simple",G173+H173+I173+J173+K173,AC173+AD173+AE173+AF173+AG173),"") -> 26913.07096 | R173: 4626 | S173: =IFERROR((1+'Simulación Cliente'!$E$21)^(R173/360),"") -> 11.36133015 | T173: 2368.83 | X173: 152 | Y173: 2037-03-01 | Z173: 28 | AA173: 4626 | AB173: 1263431.745 | AC173: 4339.757725 | AD173: 18043.81 | AE173: 336.0696518 | AF173: 450.45 | AG173: 0 | AH173: 23170.08738 | AI173: 1259091.987 | AJ173: 0.09198679263 | AK173: 0.09198679263 | AO173: 152 | AP173: 2037-03-01 | AQ173: 28 | AR173: 4626 | AS173: 635670.5164 | AT173: 18232.10594 | AU173: 9078.383589 | AV173: 169.0867512 | AW173: 450.45 | AX173: 0 | AY173: 27930.02628 | AZ173: 617438.4104 | BA173: 0.09198679263 | BB173: 0.09198679263 | BF173: 152 | BG173: 2037-03-01 | BH173: 28 | BI173: 4626 | BJ173: 639372.8124 | BK173: 14293.82681 | BL173: 9131.258251 | BM173: 170.0715526 | BN173: 450.45 | BO173: 0 | BP173: 24045.60661 | BQ173: 625078.9856 | BR173: 0.09198679263 | BS173: 0.09198679263 | BW173: 152 | BX173: 2037-03-01 | BY173: 28 | BZ173: 4626 | CA173: 1259865.074 | CB173: 8134.627753 | CC173: 17992.87228 | CD173: 335.1209264 | CE173: 450.45 | CF173: 0 | CG173: 26913.07096 | CH173: 1251730.447 | CI173: 0.09198679263 | CJ173: 0.09198679263 | CN173: 152 | CO173: 2037-03-01 | CP173: 28 | CQ173: 4626 | CR173: 1263431.745 | CS173: 4339.757725 | CT173: 18043.81 | CU173: 336.0696518 | CV173: 450.45 | CW173: 0 | CX173: 23170.08738 | CY173: 1259091.987 | CZ173: 0.09198679263 | DA173: 0.09198679263
B174: 153 | C174: 2037-04-01 | D174: 31 | E174: 4657 | F174: 1251730.447 | G174: 6286.848648 | H174: 19807.13595 | I174: 368.6363674 | J174: 450.45 | K174: 0 | L174: 26913.07096 | M174: 1245443.598 | N174: 0.09052762728 | O174: 0.09052762728 | Q174: =IFERROR(IF('Simulación Cliente'!$H$21="Simple",G174+H174+I174+J174+K174,AC174+AD174+AE174+AF174+AG174),"") -> 26913.07096 | R174: 4657 | S174: =IFERROR((1+'Simulación Cliente'!$E$21)^(R174/360),"") -> 11.54786981 | T174: 2330.57 | X174: 153 | Y174: 2037-04-01 | Z174: 31 | AA174: 4657 | AB174: 1259091.987 | AC174: 2425.209508 | AD174: 19923.62352 | AE174: 370.8043514 | AF174: 450.45 | AG174: 0 | AH174: 23170.08738 | AI174: 1256666.778 | AJ174: 0.09052762728 | AK174: 0.09052762728 | AO174: 153 | AP174: 2037-04-01 | AQ174: 31 | AR174: 4657 | AS174: 617438.4104 | AT174: 17527.51605 | AU174: 9770.223748 | AV174: 181.8364755 | AW174: 450.45 | AX174: 0 | AY174: 27930.02628 | AZ174: 599910.8944 | BA174: 0.09052762728 | BB174: 0.09052762728 | BF174: 153 | BG174: 2037-04-01 | BH174: 31 | BI174: 4657 | BJ174: 625078.9856 | BK174: 13519.94327 | BL174: 9891.126704 | BM174: 184.0866356 | BN174: 450.45 | BO174: 0 | BP174: 24045.60661 | BQ174: 611559.0423 | BR174: 0.09052762728 | BS174: 0.09052762728 | BW174: 153 | BX174: 2037-04-01 | BY174: 31 | BZ174: 4657 | CA174: 1251730.447 | CB174: 6286.848648 | CC174: 19807.13595 | CD174: 368.6363674 | CE174: 450.45 | CF174: 0 | CG174: 26913.07096 | CH174: 1245443.598 | CI174: 0.09052762728 | CJ174: 0.09052762728 | CN174: 153 | CO174: 2037-04-01 | CP174: 31 | CQ174: 4657 | CR174: 1259091.987 | CS174: 2425.209508 | CT174: 19923.62352 | CU174: 370.8043514 | CV174: 450.45 | CW174: 0 | CX174: 23170.08738 | CY174: 1256666.778 | CZ174: 0.09052762728 | DA174: 0.09052762728
B175: 154 | C175: 2037-05-01 | D175: 30 | E175: 4687 | F175: 1245443.598 | G175: 7040.587516 | H175: 19067.08202 | I175: 354.9514254 | J175: 450.45 | K175: 0 | L175: 26913.07096 | M175: 1238403.01 | N175: 0.08913757401 | O175: 0.08913757401 | Q175: =IFERROR(IF('Simulación Cliente'!$H$21="Simple",G175+H175+I175+J175+K175,AC175+AD175+AE175+AF175+AG175),"") -> 26913.07096 | R175: 4687 | S175: =IFERROR((1+'Simulación Cliente'!$E$21)^(R175/360),"") -> 11.73130771 | T175: 2294.12 | X175: 154 | Y175: 2037-05-01 | Z175: 30 | AA175: 4687 | AB175: 1256666.778 | AC175: 3122.584382 | AD175: 19238.90296 | AE175: 358.1500317 | AF175: 450.45 | AG175: 0 | AH175: 23170.08738 | AI175: 1253544.193 | AJ175: 0.08913757401 | AK175: 0.08913757401 | AO175: 154 | AP175: 2037-05-01 | AQ175: 30 | AR175: 4687 | AS175: 599910.8944 | AT175: 18124.28353 | AU175: 9184.31814 | AV175: 170.9746049 | AW175: 450.45 | AX175: 0 | AY175: 27930.02628 | AZ175: 581786.6108 | BA175: 0.08913757401 | BB175: 0.08913757401 | BF175: 154 | BG175: 2037-05-01 | BH175: 30 | BI175: 4687 | BJ175: 611559.0423 | BK175: 14058.21717 | BL175: 9362.645117 | BM175: 174.2943271 | BN175: 450.45 | BO175: 0 | BP175: 24045.60661 | BQ175: 597500.8252 | BR175: 0.08913757401 | BS175: 0.08913757401 | BW175: 154 | BX175: 2037-05-01 | BY175: 30 | BZ175: 4687 | CA175: 1245443.598 | CB175: 7040.587516 | CC175: 19067.08202 | CD175: 354.9514254 | CE175: 450.45 | CF175: 0 | CG175: 26913.07096 | CH175: 1238403.01 | CI175: 0.08913757401 | CJ175: 0.08913757401 | CN175: 154 | CO175: 2037-05-01 | CP175: 30 | CQ175: 4687 | CR175: 1256666.778 | CS175: 3122.584382 | CT175: 19238.90296 | CU175: 358.1500317 | CV175: 450.45 | CW175: 0 | CX175: 23170.08738 | CY175: 1253544.193 | CZ175: 0.08913757401 | DA175: 0.08913757401
B176: 155 | C176: 2037-06-01 | D176: 31 | E176: 4718 | F176: 1238403.01 | G176: 6501.66432 | H176: 19596.24522 | I176: 364.7114188 | J176: 450.45 | K176: 0 | L176: 26913.07096 | M176: 1231901.346 | N176: 0.08772360516 | O176: 0.08772360516 | Q176: =IFERROR(IF('Simulación Cliente'!$H$21="Simple",G176+H176+I176+J176+K176,AC176+AD176+AE176+AF176+AG176),"") -> 26913.07096 | R176: 4718 | S176: =IFERROR((1+'Simulación Cliente'!$E$21)^(R176/360),"") -> 11.92392196 | T176: 2257.07 | X176: 155 | Y176: 2037-06-01 | Z176: 31 | AA176: 4718 | AB176: 1253544.193 | AC176: 2514.630538 | AD176: 19835.83632 | AE176: 369.1705183 | AF176: 450.45 | AG176: 0 | AH176: 23170.08738 | AI176: 1251029.563 | AJ176: 0.08772360516 | AK176: 0.08772360516 | AO176: 155 | AP176: 2037-06-01 | AQ176: 31 | AR176: 4718 | AS176: 581786.6108 | AT176: 18102.16261 | AU176: 9206.076696 | AV176: 171.3369707 | AW176: 450.45 | AX176: 0 | AY176: 27930.02628 | AZ176: 563684.4482 | BA176: 0.08772360516 | BB176: 0.08772360516 | BF176: 155 | BG176: 2037-06-01 | BH176: 31 | BI176: 4718 | BJ176: 597500.8252 | BK176: 13964.45646 | BL176: 9454.735327 | BM176: 175.9648288 | BN176: 450.45 | BO176: 0 | BP176: 24045.60661 | BQ176: 583536.3687 | BR176: 0.08772360516 | BS176: 0.08772360516 | BW176: 155 | BX176: 2037-06-01 | BY176: 31 | BZ176: 4718 | CA176: 1238403.01 | CB176: 6501.66432 | CC176: 19596.24522 | CD176: 364.7114188 | CE176: 450.45 | CF176: 0 | CG176: 26913.07096 | CH176: 1231901.346 | CI176: 0.08772360516 | CJ176: 0.08772360516 | CN176: 155 | CO176: 2037-06-01 | CP176: 31 | CQ176: 4718 | CR176: 1253544.193 | CS176: 2514.630538 | CT176: 19835.83632 | CU176: 369.1705183 | CV176: 450.45 | CW176: 0 | CX176: 23170.08738 | CY176: 1251029.563 | CZ176: 0.08772360516 | DA176: 0.08772360516
B177: 156 | C177: 2037-07-01 | D177: 30 | E177: 4748 | F177: 1231901.346 | G177: 7251.771763 | H177: 18859.75732 | I177: 351.0918836 | J177: 450.45 | K177: 0 | L177: 26913.07096 | M177: 1224649.574 | N177: 0.0863766077 | O177: 0.0863766077 | Q177: =IFERROR(IF('Simulación Cliente'!$H$21="Simple",G177+H177+I177+J177+K177,AC177+AD177+AE177+AF177+AG177),"") -> 26913.07096 | R177: 4748 | S177: =IFERROR((1+'Simulación Cliente'!$E$21)^(R177/360),"") -> 12.11333345 | T177: 2221.77 | X177: 156 | Y177: 2037-07-01 | Z177: 30 | AA177: 4748 | AB177: 1251029.563 | AC177: 26380.58114 | AD177: 19152.60019 | AE177: 356.5434254 | AF177: 450.45 | AG177: 0 | AH177: 46340.17475 | AI177: 1224648.982 | AJ177: 0.1727532154 | AK177: 0.0863766077 | AO177: 156 | AP177: 2037-07-01 | AQ177: 30 | AR177: 4748 | AS177: 563684.4482 | AT177: 18689.21578 | AU177: 8629.710431 | AV177: 160.6500677 | AW177: 450.45 | AX177: 0 | AY177: 27930.02628 | AZ177: 544995.2325 | BA177: 0.0863766077 | BB177: 0.0863766077 | BF177: 156 | BG177: 2037-07-01 | BH177: 30 | BI177: 4748 | BJ177: 583536.3687 | BK177: 38540.82253 | BL177: 8933.632822 | BM177: 166.3078651 | BN177: 450.45 | BO177: 0 | BP177: 48091.21322 | BQ177: 544995.5462 | BR177: 0.1727532154 | BS177: 0.0863766077 | BW177: 156 | BX177: 2037-07-01 | BY177: 30 | BZ177: 4748 | CA177: 1231901.346 | CB177: 7251.771763 | CC177: 18859.75732 | CD177: 351.0918836 | CE177: 450.45 | CF177: 0 | CG177: 26913.07096 | CH177: 1224649.574 | CI177: 0.0863766077 | CJ177: 0.0863766077 | CN177: 156 | CO177: 2037-07-01 | CP177: 30 | CQ177: 4748 | CR177: 1251029.563 | CS177: 26380.58114 | CT177: 19152.60019 | CU177: 356.5434254 | CV177: 450.45 | CW177: 0 | CX177: 46340.17475 | CY177: 1224648.982 | CZ177: 0.1727532154 | DA177: 0.0863766077
B178: 157 | C178: 2037-08-01 | D178: 31 | E178: 4779 | F178: 1224649.574 | G178: 6723.346389 | H178: 19378.61356 | I178: 360.6610126 | J178: 450.45 | K178: 0 | L178: 26913.07096 | M178: 1217926.228 | N178: 0.08500643542 | O178: 0.08500643542 | Q178: =IFERROR(IF('Simulación Cliente'!$H$21="Simple",G178+H178+I178+J178+K178,AC178+AD178+AE178+AF178+AG178),"") -> 26913.07096 | R178: 4779 | S178: =IFERROR((1+'Simulación Cliente'!$E$21)^(R178/360),"") -> 12.31222012 | T178: 2185.88 | X178: 157 | Y178: 2037-08-01 | Z178: 31 | AA178: 4779 | AB178: 1224648.982 | AC178: 2980.372355 | AD178: 19378.60418 | AE178: 360.6608381 | AF178: 450.45 | AG178: 0 | AH178: 23170.08738 | AI178: 1221668.609 | AJ178: 0.08500643542 | AK178: 0.08500643542 | AO178: 157 | AP178: 2037-08-01 | AQ178: 31 | AR178: 4779 | AS178: 544995.2325 | AT178: 18695.17725 | AU178: 8623.897173 | AV178: 160.5018583 | AW178: 450.45 | AX178: 0 | AY178: 27930.02628 | AZ178: 526300.0552 | BA178: 0.08500643542 | BB178: 0.08500643542 | BF178: 157 | BG178: 2037-08-01 | BH178: 31 | BI178: 4779 | BJ178: 544995.5462 | BK178: 14810.75252 | BL178: 8623.902138 | BM178: 160.5019507 | BN178: 450.45 | BO178: 0 | BP178: 24045.60661 | BQ178: 530184.7937 | BR178: 0.08500643542 | BS178: 0.08500643542 | BW178: 157 | BX178: 2037-08-01 | BY178: 31 | BZ178: 4779 | CA178: 1224649.574 | CB178: 6723.346389 | CC178: 19378.61356 | CD178: 360.6610126 | CE178: 450.45 | CF178: 0 | CG178: 26913.07096 | CH178: 1217926.228 | CI178: 0.08500643542 | CJ178: 0.08500643542 | CN178: 157 | CO178: 2037-08-01 | CP178: 31 | CQ178: 4779 | CR178: 1224648.982 | CS178: 2980.372355 | CT178: 19378.60418 | CU178: 360.6608381 | CV178: 450.45 | CW178: 0 | CX178: 23170.08738 | CY178: 1221668.609 | CZ178: 0.08500643542 | DA178: 0.08500643542
B179: 158 | C179: 2037-09-01 | D179: 31 | E179: 4810 | F179: 1217926.228 | G179: 6831.715332 | H179: 19272.22465 | I179: 358.6809777 | J179: 450.45 | K179: 0 | L179: 26913.07096 | M179: 1211094.513 | N179: 0.08365799787 | O179: 0.08365799787 | Q179: =IFERROR(IF('Simulación Cliente'!$H$21="Simple",G179+H179+I179+J179+K179,AC179+AD179+AE179+AF179+AG179),"") -> 26913.07096 | R179: 4810 | S179: =IFERROR((1+'Simulación Cliente'!$E$21)^(R179/360),"") -> 12.51437227 | T179: 2150.57 | X179: 158 | Y179: 2037-09-01 | Z179: 31 | AA179: 4810 | AB179: 1221668.609 | AC179: 3028.410903 | AD179: 19331.44336 | AE179: 359.7831143 | AF179: 450.45 | AG179: 0 | AH179: 23170.08738 | AI179: 1218640.198 | AJ179: 0.08365799787 | AK179: 0.08365799787 | AO179: 158 | AP179: 2037-09-01 | AQ179: 31 | AR179: 4810 | AS179: 526300.0552 | AT179: 18996.5118 | AU179: 8328.068372 | AV179: 154.9961024 | AW179: 450.45 | AX179: 0 | AY179: 27930.02628 | AZ179: 507303.5434 | BA179: 0.08365799787 | BB179: 0.08365799787 | BF179: 158 | BG179: 2037-09-01 | BH179: 31 | BI179: 4810 | BJ179: 530184.7937 | BK179: 15049.47674 | BL179: 8389.539708 | BM179: 156.1401633 | BN179: 450.45 | BO179: 0 | BP179: 24045.60661 | BQ179: 515135.3169 | BR179: 0.08365799787 | BS179: 0.08365799787 | BW179: 158 | BX179: 2037-09-01 | BY179: 31 | BZ179: 4810 | CA179: 1217926.228 | CB179: 6831.715332 | CC179: 19272.22465 | CD179: 358.6809777 | CE179: 450.45 | CF179: 0 | CG179: 26913.07096 | CH179: 1211094.513 | CI179: 0.08365799787 | CJ179: 0.08365799787 | CN179: 158 | CO179: 2037-09-01 | CP179: 31 | CQ179: 4810 | CR179: 1221668.609 | CS179: 3028.410903 | CT179: 19331.44336 | CU179: 359.7831143 | CV179: 450.45 | CW179: 0 | CX179: 23170.08738 | CY179: 1218640.198 | CZ179: 0.08365799787 | DA179: 0.08365799787
B180: 159 | C180: 2037-10-01 | D180: 30 | E180: 4840 | F180: 1211094.513 | G180: 7576.243314 | H180: 18541.21571 | I180: 345.1619361 | J180: 450.45 | K180: 0 | L180: 26913.07096 | M180: 1203518.269 | N180: 0.08237342787 | O180: 0.08237342787 | Q180: =IFERROR(IF('Simulación Cliente'!$H$21="Simple",G180+H180+I180+J180+K180,AC180+AD180+AE180+AF180+AG180),"") -> 26913.07096 | R180: 4840 | S180: =IFERROR((1+'Simulación Cliente'!$E$21)^(R180/360),"") -> 12.71316306 | T180: 2116.95 | X180: 159 | Y180: 2037-10-01 | Z180: 30 | AA180: 4840 | AB180: 1218640.198 | AC180: 3715.588752 | AD180: 18656.73617 | AE180: 347.3124566 | AF180: 450.45 | AG180: 0 | AH180: 23170.08738 | AI180: 1214924.61 | AJ180: 0.08237342787 | AK180: 0.08237342787 | AO180: 159 | AP180: 2037-10-01 | AQ180: 30 | AR180: 4840 | AS180: 507303.5434 | AT180: 19568.44614 | AU180: 7766.548632 | AV180: 144.5815099 | AW180: 450.45 | AX180: 0 | AY180: 27930.02628 | AZ180: 487735.0973 | BA180: 0.08237342787 | BB180: 0.08237342787 | BF180: 159 | BG180: 2037-10-01 | BH180: 30 | BI180: 4840 | BJ180: 515135.3169 | BK180: 15561.89411 | BL180: 7886.448938 | BM180: 146.8135653 | BN180: 450.45 | BO180: 0 | BP180: 24045.60661 | BQ180: 499573.4228 | BR180: 0.08237342787 | BS180: 0.08237342787 | BW180: 159 | BX180: 2037-10-01 | BY180: 30 | BZ180: 4840 | CA180: 1211094.513 | CB180: 7576.243314 | CC180: 18541.21571 | CD180: 345.1619361 | CE180: 450.45 | CF180: 0 | CG180: 26913.07096 | CH180: 1203518.269 | CI180: 0.08237342787 | CJ180: 0.08237342787 | CN180: 159 | CO180: 2037-10-01 | CP180: 30 | CQ180: 4840 | CR180: 1218640.198 | CS180: 3715.588752 | CT180: 18656.73617 | CU180: 347.3124566 | CV180: 450.45 | CW180: 0 | CX180: 23170.08738 | CY180: 1214924.61 | CZ180: 0.08237342787 | DA180: 0.08237342787
